Workbook

Sheet Report - ALL (DASHBOARD)
A2: Dashboard | B2: Select Parameter: | F2: Select Statistic: | I2: Select Seasonal Period: | L2: Do you want to convert CFS values to TAF/Mon? | W2: 5
W3: 11
W4: 7
L5: News | W5: FALSE
L6: - parameter list updated to include all items on the appendix list (in addition to other locations of interest)
L7: - year type sorting is now done by calendar year
L8: - year type sorting is provided for 60-20-20 index as well as 40-30-30 index
L9: - format modified to be consistent with appendix reports
L10: - check out the new spinners!
B13: =CONCATENATE('Report Data'!$P$7," / seasonal statistics (",$W$2,"-",$W$3,"-",$W$4,"-",IF(NOT($W$5),1,2),"a):") -> Shasta Storage / seasonal statistics (5-11-7-1a):
C17: ='Report Data'!P6 -> April
C18: ='Report Data'!P7 -> Shasta Storage
C19: ='Report Data'!P9 -> (S4/STORAGE)
C20: ='Report Data'!P8 -> Driest Periods (29-34,76-77,87-92) Averages
C21: ='Report Data'!P11 -> Volume (TAF) | F21: =CONCATENATE("Difference from ",'Report Data'!Q13) -> Difference from NAA 011221
C25: =IF('Report Data'!O14=0,"",'Report Data'!O14) -> NAA 011221 | E25: =IFERROR('Report Data'!P14,"") -> 3106.918719
C26: =IF('Report Data'!O15=0,"",'Report Data'!O15) -> Alt 1A 011221 | E26: =IFERROR('Report Data'!P15,"") -> 3122.868192 | F26: =IFERROR('Report Data'!Q15,"") -> 15.94947253
C27: =IF('Report Data'!O16=0,"",'Report Data'!O16) -> Alt 1A SB v7 optTEMP | E27: =IFERROR('Report Data'!P16,"") -> 3128.373422 | F27: =IFERROR('Report Data'!Q16,"") -> 21.45470267
C28: =IF('Report Data'!O17=0,"",'Report Data'!O17) -> Alt 1A SB v7a addSPGPLS | E28: =IFERROR('Report Data'!P17,"") -> 3132.197472 | F28: =IFERROR('Report Data'!Q17,"") -> 25.27875266
C29: =IF('Report Data'!O18=0,"",'Report Data'!O18) -> Alt 1A SB v7b addFALLSTAB | E29: =IFERROR('Report Data'!P18,"") -> 3135.212752 | F29: =IFERROR('Report Data'!Q18,"") -> 28.29403228
C30: =IF('Report Data'!O19=0,"",'Report Data'!O19) ->  | E30: =IFERROR('Report Data'!P19,"") ->  | F30: =IFERROR('Report Data'!Q19,"") -> 
B60: =CONCATENATE('Report Data'!$P$7," / monthly statistics (",$W$2,"-",$W$3,"-",$W$4,"-",IF(NOT($W$5),1,2),"b):") -> Shasta Storage / monthly statistics (5-11-7-1b):
B88: =CONCATENATE('Report Data'!$P$7," / time series (",$W$2,"-",$W$3,"-",$W$4,"-",IF(NOT($W$5),1,2),"c):") -> Shasta Storage / time series (5-11-7-1c):

Sheet Chart - Prob Exc
S2: Select Parameter: | X2: Select Statistic: | AB2: Select Seasonal Period: | AE2: Do you want to convert CFS values to TAF/Mon?

Sheet Chart - Pattern
S2: Select Parameter: | X2: Select Statistic: | AB2: Select Seasonal Period: | AE2: Do you want to convert CFS values to TAF/Mon?

Sheet Chart - WYT
S2: Select Parameter: | X2: Select Statistic: | AB2: Select Seasonal Period: | AE2: Do you want to convert CFS values to TAF/Mon?

Sheet Report Data
A2: Information, Tables and Calculations for Reports
A4: Table of Selected Values for Monthly Chart: | O4: Trend Evaluation: | U4: Water Year Type Averages:
A6: Title: | B6: ='Compile Data'!$B$5 -> Shasta Storage | O6: Title: | P6: =INDEX(Other!$B$9:$B$33,'Report - ALL (DASHBOARD)'!$W$4) -> April | U6: Title: | V6: =INDEX(Other!$B$9:$B$33,'Report - ALL (DASHBOARD)'!$W$4) -> April
B7: =INDEX(Other!$C$9:$C$35,'Report - ALL (DASHBOARD)'!$W$3) -> Driest Periods (29-34,76-77,87-92) | P7: ='Compile Data'!$B$5 -> Shasta Storage | V7: ='Compile Data'!$B$5 -> Shasta Storage
B8: =CONCATENATE("(",'Compile Data'!$B$6,"/",'Compile Data'!$B$7,")") -> (S4/STORAGE) | P8: =CONCATENATE(INDEX(Other!$C$9:$C$35,'Report - ALL (DASHBOARD)'!$W$3)," ",IF('Report - ALL (DASHBOARD)'!$W$3>4,IF(AND('Compile Data'!$B$10="TAF",'Compile Data'!$B$8="PER-AVER"),"Totals","Averages"),"")) -> Driest Periods (29-34,76-77,87-92) Averages | V8: =CONCATENATE(INDEX(Other!$C$9:$C$35,'Report - ALL (DASHBOARD)'!$W$3)," ",IF('Report - ALL (DASHBOARD)'!$W$3>4,IF(AND('Compile Data'!$B$10="TAF",'Compile Data'!$B$8="PER-AVER"),"Totals","Averages"),"")) -> Driest Periods (29-34,76-77,87-92) Averages
P9: =CONCATENATE("(",'Compile Data'!$B$6,"/",'Compile Data'!$B$7,")") -> (S4/STORAGE) | V9: =CONCATENATE("(",'Compile Data'!$B$6,"/",'Compile Data'!$B$7,")") -> (S4/STORAGE)
A11: Y-axis: | B11: =IF('Compile Data'!$B$10="CFS","Flow (CFS)",IF('Compile Data'!$B$10="TAF","Volume (TAF)",IF('Compile Data'!$B$10="KM","POSITION (KM)",""))) -> Volume (TAF) | P11: =IF('Compile Data'!$B$10="CFS","Flow (CFS)",IF('Compile Data'!$B$10="TAF","Volume (TAF)",IF('Compile Data'!$B$10="KM","POSITION (KM)",""))) -> Volume (TAF) | V11: =IF('Compile Data'!$B$10="CFS","Flow (CFS)",IF('Compile Data'!$B$10="TAF","Volume (TAF)",IF('Compile Data'!$B$10="KM","POSITION (KM)",""))) -> Volume (TAF)
Q12: Diff from | R12: Diff from
B13: OCT | C13: NOV | D13: DEC | E13: JAN | F13: FEB | G13: MAR | H13: APR | I13: MAY | J13: JUN | K13: JUL | L13: AUG | M13: SEP | P13: Value | Q13: =$O$14 -> NAA 011221 | R13: =$O$15 -> Alt 1A 011221 | V13: Wet | W13: Above Normal | X13: Below Normal | Y13: Dry | Z13: Critically Dry
A14: ='Compile Data'!$B$1 -> NAA 011221 | B14: =INDEX('Compile Data'!L$95:L$120,'Report - ALL (DASHBOARD)'!$W$3) -> 2282.329548 | C14: =INDEX('Compile Data'!M$95:M$120,'Report - ALL (DASHBOARD)'!$W$3) -> 2193.192697 | D14: =INDEX('Compile Data'!N$95:N$120,'Report - ALL (DASHBOARD)'!$W$3) -> 2285.932168 | E14: =INDEX('Compile Data'!O$95:O$120,'Report - ALL (DASHBOARD)'!$W$3) -> 2425.475731 | F14: =INDEX('Compile Data'!P$95:P$120,'Report - ALL (DASHBOARD)'!$W$3) -> 2604.576414 | G14: =INDEX('Compile Data'!Q$95:Q$120,'Report - ALL (DASHBOARD)'!$W$3) -> 2979.861828 | H14: =INDEX('Compile Data'!R$95:R$120,'Report - ALL (DASHBOARD)'!$W$3) -> 3106.918719 | I14: =INDEX('Compile Data'!S$95:S$120,'Report - ALL (DASHBOARD)'!$W$3) -> 2952.116595 | J14: =INDEX('Compile Data'!T$95:T$120,'Report - ALL (DASHBOARD)'!$W$3) -> 2637.862081 | K14: =INDEX('Compile Data'!U$95:U$120,'Report - ALL (DASHBOARD)'!$W$3) -> 2285.00273 | L14: =INDEX('Compile Data'!V$95:V$120,'Report - ALL (DASHBOARD)'!$W$3) -> 2027.380569 | M14: =INDEX('Compile Data'!W$95:W$120,'Report - ALL (DASHBOARD)'!$W$3) -> 1976.661461 | O14: ='Compile Data'!$B$1 -> NAA 011221 | P14: =INDEX('Compile Data'!$L$95:$AI$120,'Report - ALL (DASHBOARD)'!$W$3,'Report - ALL (DASHBOARD)'!$W$4) -> 3106.918719 | U14: ='Compile Data'!$B$1 -> NAA 011221 | V14: =INDEX('Compile Data'!$L$95:$AI$120,14,'Report - ALL (DASHBOARD)'!$W$4) -> 4348.575093 | W14: =INDEX('Compile Data'!$L$95:$AI$120,15,'Report - ALL (DASHBOARD)'!$W$4) -> 4498.557657 | X14: =INDEX('Compile Data'!$L$95:$AI$120,16,'Report - ALL (DASHBOARD)'!$W$4) -> 4323.472705 | Y14: =INDEX('Compile Data'!$L$95:$AI$120,17,'Report - ALL (DASHBOARD)'!$W$4) -> 4038.537917 | Z14: =INDEX('Compile Data'!$L$95:$AI$120,18,'Report - ALL (DASHBOARD)'!$W$4) -> 2986.614395
A15: ='Compile Data'!$C$1 -> Alt 1A 011221 | B15: =INDEX('Compile Data'!AL$95:AL$120,'Report - ALL (DASHBOARD)'!$W$3) -> 2286.217903 | C15: =INDEX('Compile Data'!AM$95:AM$120,'Report - ALL (DASHBOARD)'!$W$3) -> 2204.588074 | D15: =INDEX('Compile Data'!AN$95:AN$120,'Report - ALL (DASHBOARD)'!$W$3) -> 2301.901295 | E15: =INDEX('Compile Data'!AO$95:AO$120,'Report - ALL (DASHBOARD)'!$W$3) -> 2436.204581 | F15: =INDEX('Compile Data'!AP$95:AP$120,'Report - ALL (DASHBOARD)'!$W$3) -> 2621.498155 | G15: =INDEX('Compile Data'!AQ$95:AQ$120,'Report - ALL (DASHBOARD)'!$W$3) -> 2998.867663 | H15: =INDEX('Compile Data'!AR$95:AR$120,'Report - ALL (DASHBOARD)'!$W$3) -> 3122.868192 | I15: =INDEX('Compile Data'!AS$95:AS$120,'Report - ALL (DASHBOARD)'!$W$3) -> 3013.275773 | J15: =INDEX('Compile Data'!AT$95:AT$120,'Report - ALL (DASHBOARD)'!$W$3) -> 2701.55226 | K15: =INDEX('Compile Data'!AU$95:AU$120,'Report - ALL (DASHBOARD)'!$W$3) -> 2340.929244 | L15: =INDEX('Compile Data'!AV$95:AV$120,'Report - ALL (DASHBOARD)'!$W$3) -> 2072.106397 | M15: =INDEX('Compile Data'!AW$95:AW$120,'Report - ALL (DASHBOARD)'!$W$3) -> 2005.261718 | O15: ='Compile Data'!$C$1 -> Alt 1A 011221 | P15: =INDEX('Compile Data'!$AL$95:$BI$120,'Report - ALL (DASHBOARD)'!$W$3,'Report - ALL (DASHBOARD)'!$W$4) -> 3122.868192 | Q15: =$P15-$P$14 -> 15.94947253 | U15: ='Compile Data'!$C$1 -> Alt 1A 011221 | V15: =INDEX('Compile Data'!$AL$95:$BI$120,14,'Report - ALL (DASHBOARD)'!$W$4) -> 4349.713727 | W15: =INDEX('Compile Data'!$AL$95:$BI$120,15,'Report - ALL (DASHBOARD)'!$W$4) -> 4498.557657 | X15: =INDEX('Compile Data'!$AL$95:$BI$120,16,'Report - ALL (DASHBOARD)'!$W$4) -> 4323.785377 | Y15: =INDEX('Compile Data'!$AL$95:$BI$120,17,'Report - ALL (DASHBOARD)'!$W$4) -> 4050.077704 | Z15: =INDEX('Compile Data'!$AL$95:$BI$120,18,'Report - ALL (DASHBOARD)'!$W$4) -> 3006.563474
A16: ='Compile Data'!$D$1 -> Alt 1A SB v7 optTEMP | B16: =INDEX('Compile Data'!BL$95:BL$120,'Report - ALL (DASHBOARD)'!$W$3) -> 2291.370008 | C16: =INDEX('Compile Data'!BM$95:BM$120,'Report - ALL (DASHBOARD)'!$W$3) -> 2197.039336 | D16: =INDEX('Compile Data'!BN$95:BN$120,'Report - ALL (DASHBOARD)'!$W$3) -> 2289.500578 | E16: =INDEX('Compile Data'!BO$95:BO$120,'Report - ALL (DASHBOARD)'!$W$3) -> 2427.746445 | F16: =INDEX('Compile Data'!BP$95:BP$120,'Report - ALL (DASHBOARD)'!$W$3) -> 2612.563814 | G16: =INDEX('Compile Data'!BQ$95:BQ$120,'Report - ALL (DASHBOARD)'!$W$3) -> 2992.37378 | H16: =INDEX('Compile Data'!BR$95:BR$120,'Report - ALL (DASHBOARD)'!$W$3) -> 3128.373422 | I16: =INDEX('Compile Data'!BS$95:BS$120,'Report - ALL (DASHBOARD)'!$W$3) -> 3026.616518 | J16: =INDEX('Compile Data'!BT$95:BT$120,'Report - ALL (DASHBOARD)'!$W$3) -> 2734.485896 | K16: =INDEX('Compile Data'!BU$95:BU$120,'Report - ALL (DASHBOARD)'!$W$3) -> 2376.756323 | L16: =INDEX('Compile Data'!BV$95:BV$120,'Report - ALL (DASHBOARD)'!$W$3) -> 2093.636637 | M16: =INDEX('Compile Data'!BW$95:BW$120,'Report - ALL (DASHBOARD)'!$W$3) -> 2014.072194 | O16: ='Compile Data'!$D$1 -> Alt 1A SB v7 optTEMP | P16: =INDEX('Compile Data'!$BL$95:$CI$120,'Report - ALL (DASHBOARD)'!$W$3,'Report - ALL (DASHBOARD)'!$W$4) -> 3128.373422 | Q16: 21.45470267 | R16: =$P16-$P$15 -> 5.50523014 | U16: ='Compile Data'!$D$1 -> Alt 1A SB v7 optTEMP | V16: =INDEX('Compile Data'!$BL$95:$CI$120,14,'Report - ALL (DASHBOARD)'!$W$4) -> 4341.806492 | W16: =INDEX('Compile Data'!$BL$95:$CI$120,15,'Report - ALL (DASHBOARD)'!$W$4) -> 4474.417465 | X16: =INDEX('Compile Data'!$BL$95:$CI$120,16,'Report - ALL (DASHBOARD)'!$W$4) -> 4323.08379 | Y16: =INDEX('Compile Data'!$BL$95:$CI$120,17,'Report - ALL (DASHBOARD)'!$W$4) -> 4064.525037 | Z16: =INDEX('Compile Data'!$BL$95:$CI$120,18,'Report - ALL (DASHBOARD)'!$W$4) -> 3012.683834
A17: ='Compile Data'!$E$1 -> Alt 1A SB v7a addSPGPLS | B17: =INDEX('Compile Data'!CL$95:CL$120,'Report - ALL (DASHBOARD)'!$W$3) -> 2301.690449 | C17: =INDEX('Compile Data'!CM$95:CM$120,'Report - ALL (DASHBOARD)'!$W$3) -> 2204.02173 | D17: =INDEX('Compile Data'!CN$95:CN$120,'Report - ALL (DASHBOARD)'!$W$3) -> 2288.565631 | E17: =INDEX('Compile Data'!CO$95:CO$120,'Report - ALL (DASHBOARD)'!$W$3) -> 2429.853116 | F17: =INDEX('Compile Data'!CP$95:CP$120,'Report - ALL (DASHBOARD)'!$W$3) -> 2615.519126 | G17: =INDEX('Compile Data'!CQ$95:CQ$120,'Report - ALL (DASHBOARD)'!$W$3) -> 2995.536918 | H17: =INDEX('Compile Data'!CR$95:CR$120,'Report - ALL (DASHBOARD)'!$W$3) -> 3132.197472 | I17: =INDEX('Compile Data'!CS$95:CS$120,'Report - ALL (DASHBOARD)'!$W$3) -> 3040.184754 | J17: =INDEX('Compile Data'!CT$95:CT$120,'Report - ALL (DASHBOARD)'!$W$3) -> 2760.986737 | K17: =INDEX('Compile Data'!CU$95:CU$120,'Report - ALL (DASHBOARD)'!$W$3) -> 2407.814319 | L17: =INDEX('Compile Data'!CV$95:CV$120,'Report - ALL (DASHBOARD)'!$W$3) -> 2126.043122 | M17: =INDEX('Compile Data'!CW$95:CW$120,'Report - ALL (DASHBOARD)'!$W$3) -> 2034.31554 | O17: ='Compile Data'!$E$1 -> Alt 1A SB v7a addSPGPLS | P17: =INDEX('Compile Data'!$CL$95:$DI$120,'Report - ALL (DASHBOARD)'!$W$3,'Report - ALL (DASHBOARD)'!$W$4) -> 3132.197472 | Q17: 25.27875266 | R17: =$P17-$P$15 -> 9.329280134 | U17: ='Compile Data'!$E$1 -> Alt 1A SB v7a addSPGPLS | V17: =INDEX('Compile Data'!$CL$95:$DI$120,14,'Report - ALL (DASHBOARD)'!$W$4) -> 4341.808109 | W17: =INDEX('Compile Data'!$CL$95:$DI$120,15,'Report - ALL (DASHBOARD)'!$W$4) -> 4474.417465 | X17: =INDEX('Compile Data'!$CL$95:$DI$120,16,'Report - ALL (DASHBOARD)'!$W$4) -> 4315.315321 | Y17: =INDEX('Compile Data'!$CL$95:$DI$120,17,'Report - ALL (DASHBOARD)'!$W$4) -> 4053.622064 | Z17: =INDEX('Compile Data'!$CL$95:$DI$120,18,'Report - ALL (DASHBOARD)'!$W$4) -> 3013.369163
A18: ='Compile Data'!$F$1 -> Alt 1A SB v7b addFALLSTAB | B18: =INDEX('Compile Data'!DL$95:DL$120,'Report - ALL (DASHBOARD)'!$W$3) -> 2304.107778 | C18: =INDEX('Compile Data'!DM$95:DM$120,'Report - ALL (DASHBOARD)'!$W$3) -> 2213.780924 | D18: =INDEX('Compile Data'!DN$95:DN$120,'Report - ALL (DASHBOARD)'!$W$3) -> 2302.44233 | E18: =INDEX('Compile Data'!DO$95:DO$120,'Report - ALL (DASHBOARD)'!$W$3) -> 2432.936994 | F18: =INDEX('Compile Data'!DP$95:DP$120,'Report - ALL (DASHBOARD)'!$W$3) -> 2618.401462 | G18: =INDEX('Compile Data'!DQ$95:DQ$120,'Report - ALL (DASHBOARD)'!$W$3) -> 2997.66495 | H18: =INDEX('Compile Data'!DR$95:DR$120,'Report - ALL (DASHBOARD)'!$W$3) -> 3135.212752 | I18: =INDEX('Compile Data'!DS$95:DS$120,'Report - ALL (DASHBOARD)'!$W$3) -> 3034.440154 | J18: =INDEX('Compile Data'!DT$95:DT$120,'Report - ALL (DASHBOARD)'!$W$3) -> 2741.73595 | K18: =INDEX('Compile Data'!DU$95:DU$120,'Report - ALL (DASHBOARD)'!$W$3) -> 2385.370836 | L18: =INDEX('Compile Data'!DV$95:DV$120,'Report - ALL (DASHBOARD)'!$W$3) -> 2099.467428 | M18: =INDEX('Compile Data'!DW$95:DW$120,'Report - ALL (DASHBOARD)'!$W$3) -> 2020.202098 | O18: ='Compile Data'!$F$1 -> Alt 1A SB v7b addFALLSTAB | P18: =INDEX('Compile Data'!$DL$95:$EI$120,'Report - ALL (DASHBOARD)'!$W$3,'Report - ALL (DASHBOARD)'!$W$4) -> 3135.212752 | Q18: =$P18-$P$14 -> 28.29403228 | R18: =$P18-$P$15 -> 12.34455975 | U18: ='Compile Data'!$F$1 -> Alt 1A SB v7b addFALLSTAB | V18: =INDEX('Compile Data'!$DL$95:$EI$120,14,'Report - ALL (DASHBOARD)'!$W$4) -> 4337.596577 | W18: =INDEX('Compile Data'!$DL$95:$EI$120,15,'Report - ALL (DASHBOARD)'!$W$4) -> 4474.417465 | X18: =INDEX('Compile Data'!$DL$95:$EI$120,16,'Report - ALL (DASHBOARD)'!$W$4) -> 4314.701459 | Y18: =INDEX('Compile Data'!$DL$95:$EI$120,17,'Report - ALL (DASHBOARD)'!$W$4) -> 4029.914546 | Z18: =INDEX('Compile Data'!$DL$95:$EI$120,18,'Report - ALL (DASHBOARD)'!$W$4) -> 3000.364257
A19: ='Compile Data'!$G$1 -> 0 | B19: =INDEX('Compile Data'!EL$95:EL$120,'Report - ALL (DASHBOARD)'!$W$3) ->  | C19: =INDEX('Compile Data'!EM$95:EM$120,'Report - ALL (DASHBOARD)'!$W$3) ->  | D19: =INDEX('Compile Data'!EN$95:EN$120,'Report - ALL (DASHBOARD)'!$W$3) ->  | E19: =INDEX('Compile Data'!EO$95:EO$120,'Report - ALL (DASHBOARD)'!$W$3) ->  | F19: =INDEX('Compile Data'!EP$95:EP$120,'Report - ALL (DASHBOARD)'!$W$3) ->  | G19: =INDEX('Compile Data'!EQ$95:EQ$120,'Report - ALL (DASHBOARD)'!$W$3) ->  | H19: =INDEX('Compile Data'!ER$95:ER$120,'Report - ALL (DASHBOARD)'!$W$3) ->  | I19: =INDEX('Compile Data'!ES$95:ES$120,'Report - ALL (DASHBOARD)'!$W$3) ->  | J19: =INDEX('Compile Data'!ET$95:ET$120,'Report - ALL (DASHBOARD)'!$W$3) ->  | K19: =INDEX('Compile Data'!EU$95:EU$120,'Report - ALL (DASHBOARD)'!$W$3) ->  | L19: =INDEX('Compile Data'!EV$95:EV$120,'Report - ALL (DASHBOARD)'!$W$3) ->  | M19: =INDEX('Compile Data'!EW$95:EW$120,'Report - ALL (DASHBOARD)'!$W$3) ->  | O19: ='Compile Data'!$G$1 -> 0 | P19: =INDEX('Compile Data'!$EL$95:$FI$120,'Report - ALL (DASHBOARD)'!$W$3,'Report - ALL (DASHBOARD)'!$W$4) ->  | R19: =$P19-$P$15 ->  | U19: ='Compile Data'!$G$1 -> 0 | V19: =INDEX('Compile Data'!$EL$95:$FI$120,14,'Report - ALL (DASHBOARD)'!$W$4) ->  | W19: =INDEX('Compile Data'!$EL$95:$FI$120,15,'Report - ALL (DASHBOARD)'!$W$4) ->  | X19: =INDEX('Compile Data'!$EL$95:$FI$120,16,'Report - ALL (DASHBOARD)'!$W$4) ->  | Y19: =INDEX('Compile Data'!$EL$95:$FI$120,17,'Report - ALL (DASHBOARD)'!$W$4) ->  | Z19: =INDEX('Compile Data'!$EL$95:$FI$120,18,'Report - ALL (DASHBOARD)'!$W$4) -> 
A21: Annuals Plot: | O21: Exceedence Plot:
A23: Title: | B23: =INDEX(Other!$B$9:$B$33,'Report - ALL (DASHBOARD)'!$W$4) -> April | O23: Title: | P23: =INDEX(Other!$B$9:$B$33,'Report - ALL (DASHBOARD)'!$W$4) -> April
B24: ='Compile Data'!$B$5 -> Shasta Storage | P24: ='Compile Data'!$B$5 -> Shasta Storage
B25: =IF('Compile Data'!$B$10="CFS","Flow (CFS)",IF('Compile Data'!$B$10="TAF","Volume (TAF)",IF('Compile Data'!$B$10="KM","POSITION (KM)",""))) -> Volume (TAF) | P25: =IF('Compile Data'!$B$10="CFS","Flow (CFS)",IF('Compile Data'!$B$10="TAF","Volume (TAF)",IF('Compile Data'!$B$10="KM","POSITION (KM)",""))) -> Volume (TAF)
B27: ='Compile Data'!$B$1 -> NAA 011221 | C27: ='Compile Data'!$C$1 -> Alt 1A 011221 | D27: ='Compile Data'!$D$1 -> Alt 1A SB v7 optTEMP | E27: ='Compile Data'!$E$1 -> Alt 1A SB v7a addSPGPLS | F27: ='Compile Data'!$F$1 -> Alt 1A SB v7b addFALLSTAB | G27: ='Compile Data'!$G$1 -> 0 | Q27: ='Compile Data'!$B$1 -> NAA 011221 | R27: ='Compile Data'!$C$1 -> Alt 1A 011221 | S27: ='Compile Data'!$D$1 -> Alt 1A SB v7 optTEMP | T27: ='Compile Data'!$E$1 -> Alt 1A SB v7a addSPGPLS | U27: ='Compile Data'!$F$1 -> Alt 1A SB v7b addFALLSTAB | V27: ='Compile Data'!$G$1 -> 0
A28: 1922 | B28: =INDEX('Compile Data'!$L$12:$AI$93,$A28-1921,'Report - ALL (DASHBOARD)'!$W$4) -> 4552 | C28: =INDEX('Compile Data'!$AL$12:$BI$93,$A28-1921,'Report - ALL (DASHBOARD)'!$W$4) -> 4552 | D28: =INDEX('Compile Data'!$BL$12:$CI$93,$A28-1921,'Report - ALL (DASHBOARD)'!$W$4) -> 4552 | E28: =INDEX('Compile Data'!$CL$12:$DI$93,$A28-1921,'Report - ALL (DASHBOARD)'!$W$4) -> 4552 | F28: =INDEX('Compile Data'!$DL$12:$EI$93,$A28-1921,'Report - ALL (DASHBOARD)'!$W$4) -> 4552 | G28: =INDEX('Compile Data'!$EL$12:$FI$93,$A28-1921,'Report - ALL (DASHBOARD)'!$W$4) ->  | O28: 1 | P28: =(O28-1)/81 -> 0 | Q28: =INDEX('Compile Data'!$L$123:$AI$204,$O28,'Report - ALL (DASHBOARD)'!$W$4) -> 4552.100098 | R28: =INDEX('Compile Data'!$AL$123:$BI$204,$O28,'Report - ALL (DASHBOARD)'!$W$4) -> 4552.100098 | S28: =INDEX('Compile Data'!$BL$123:$CI$204,$O28,'Report - ALL (DASHBOARD)'!$W$4) -> 4552.100098 | T28: =INDEX('Compile Data'!$CL$123:$DI$204,$O28,'Report - ALL (DASHBOARD)'!$W$4) -> 4552.100098 | U28: =INDEX('Compile Data'!$DL$123:$EI$204,$O28,'Report - ALL (DASHBOARD)'!$W$4) -> 4552.100098 | V28: =INDEX('Compile Data'!$EL$123:$FI$204,$O28,'Report - ALL (DASHBOARD)'!$W$4) -> 
A29: =A28+1 -> 1923 | B29: =INDEX('Compile Data'!$L$12:$AI$93,$A29-1921,'Report - ALL (DASHBOARD)'!$W$4) -> 4229.79085 | C29: =INDEX('Compile Data'!$AL$12:$BI$93,$A29-1921,'Report - ALL (DASHBOARD)'!$W$4) -> 4239.576444 | D29: =INDEX('Compile Data'!$BL$12:$CI$93,$A29-1921,'Report - ALL (DASHBOARD)'!$W$4) -> 4239.576444 | E29: =INDEX('Compile Data'!$CL$12:$DI$93,$A29-1921,'Report - ALL (DASHBOARD)'!$W$4) -> 4230.524062 | F29: =INDEX('Compile Data'!$DL$12:$EI$93,$A29-1921,'Report - ALL (DASHBOARD)'!$W$4) -> 4061.989404 | G29: =INDEX('Compile Data'!$EL$12:$FI$93,$A29-1921,'Report - ALL (DASHBOARD)'!$W$4) ->  | O29: 2 | P29: 0.01234567901 | Q29: =INDEX('Compile Data'!$L$123:$AI$204,$O29,'Report - ALL (DASHBOARD)'!$W$4) -> 4552.100098 | R29: =INDEX('Compile Data'!$AL$123:$BI$204,$O29,'Report - ALL (DASHBOARD)'!$W$4) -> 4552.100098 | S29: =INDEX('Compile Data'!$BL$123:$CI$204,$O29,'Report - ALL (DASHBOARD)'!$W$4) -> 4552.100098 | T29: =INDEX('Compile Data'!$CL$123:$DI$204,$O29,'Report - ALL (DASHBOARD)'!$W$4) -> 4552.100098 | U29: =INDEX('Compile Data'!$DL$123:$EI$204,$O29,'Report - ALL (DASHBOARD)'!$W$4) -> 4552.100098 | V29: =INDEX('Compile Data'!$EL$123:$FI$204,$O29,'Report - ALL (DASHBOARD)'!$W$4) -> 
A30: =A29+1 -> 1924 | B30: =INDEX('Compile Data'!$L$12:$AI$93,$A30-1921,'Report - ALL (DASHBOARD)'!$W$4) -> 2757.091955 | C30: =INDEX('Compile Data'!$AL$12:$BI$93,$A30-1921,'Report - ALL (DASHBOARD)'!$W$4) -> 2785.313567 | D30: =INDEX('Compile Data'!$BL$12:$CI$93,$A30-1921,'Report - ALL (DASHBOARD)'!$W$4) -> 2846.899027 | E30: =INDEX('Compile Data'!$CL$12:$DI$93,$A30-1921,'Report - ALL (DASHBOARD)'!$W$4) -> 2840.839739 | F30: =INDEX('Compile Data'!$DL$12:$EI$93,$A30-1921,'Report - ALL (DASHBOARD)'!$W$4) -> 2729.54112 | G30: =INDEX('Compile Data'!$EL$12:$FI$93,$A30-1921,'Report - ALL (DASHBOARD)'!$W$4) ->  | O30: 3 | P30: 0.02469135802 | Q30: =INDEX('Compile Data'!$L$123:$AI$204,$O30,'Report - ALL (DASHBOARD)'!$W$4) -> 4552.100098 | R30: =INDEX('Compile Data'!$AL$123:$BI$204,$O30,'Report - ALL (DASHBOARD)'!$W$4) -> 4552.100098 | S30: =INDEX('Compile Data'!$BL$123:$CI$204,$O30,'Report - ALL (DASHBOARD)'!$W$4) -> 4552.100098 | T30: =INDEX('Compile Data'!$CL$123:$DI$204,$O30,'Report - ALL (DASHBOARD)'!$W$4) -> 4552.100098 | U30: =INDEX('Compile Data'!$DL$123:$EI$204,$O30,'Report - ALL (DASHBOARD)'!$W$4) -> 4552.100098 | V30: =INDEX('Compile Data'!$EL$123:$FI$204,$O30,'Report - ALL (DASHBOARD)'!$W$4) -> 
A31: 1925 | B31: =INDEX('Compile Data'!$L$12:$AI$93,$A31-1921,'Report - ALL (DASHBOARD)'!$W$4) -> 4144.70203 | C31: =INDEX('Compile Data'!$AL$12:$BI$93,$A31-1921,'Report - ALL (DASHBOARD)'!$W$4) -> 4176.617403 | D31: =INDEX('Compile Data'!$BL$12:$CI$93,$A31-1921,'Report - ALL (DASHBOARD)'!$W$4) -> 4207.563745 | E31: =INDEX('Compile Data'!$CL$12:$DI$93,$A31-1921,'Report - ALL (DASHBOARD)'!$W$4) -> 4200.595477 | F31: =INDEX('Compile Data'!$DL$12:$EI$93,$A31-1921,'Report - ALL (DASHBOARD)'!$W$4) -> 4129.056269 | G31: =INDEX('Compile Data'!$EL$12:$FI$93,$A31-1921,'Report - ALL (DASHBOARD)'!$W$4) ->  | O31: 4 | P31: 0.03703703704 | Q31: =INDEX('Compile Data'!$L$123:$AI$204,$O31,'Report - ALL (DASHBOARD)'!$W$4) -> 4552 | R31: =INDEX('Compile Data'!$AL$123:$BI$204,$O31,'Report - ALL (DASHBOARD)'!$W$4) -> 4552.100098 | S31: =INDEX('Compile Data'!$BL$123:$CI$204,$O31,'Report - ALL (DASHBOARD)'!$W$4) -> 4552 | T31: =INDEX('Compile Data'!$CL$123:$DI$204,$O31,'Report - ALL (DASHBOARD)'!$W$4) -> 4552 | U31: =INDEX('Compile Data'!$DL$123:$EI$204,$O31,'Report - ALL (DASHBOARD)'!$W$4) -> 4552 | V31: =INDEX('Compile Data'!$EL$123:$FI$204,$O31,'Report - ALL (DASHBOARD)'!$W$4) -> 
A32: 1926 | B32: =INDEX('Compile Data'!$L$12:$AI$93,$A32-1921,'Report - ALL (DASHBOARD)'!$W$4) -> 4008.364793 | C32: =INDEX('Compile Data'!$AL$12:$BI$93,$A32-1921,'Report - ALL (DASHBOARD)'!$W$4) -> 4078.22461 | D32: =INDEX('Compile Data'!$BL$12:$CI$93,$A32-1921,'Report - ALL (DASHBOARD)'!$W$4) -> 4093.796537 | E32: =INDEX('Compile Data'!$CL$12:$DI$93,$A32-1921,'Report - ALL (DASHBOARD)'!$W$4) -> 4047.059207 | F32: =INDEX('Compile Data'!$DL$12:$EI$93,$A32-1921,'Report - ALL (DASHBOARD)'!$W$4) -> 4039.1334 | G32: =INDEX('Compile Data'!$EL$12:$FI$93,$A32-1921,'Report - ALL (DASHBOARD)'!$W$4) ->  | O32: 5 | P32: 0.04938271605 | Q32: =INDEX('Compile Data'!$L$123:$AI$204,$O32,'Report - ALL (DASHBOARD)'!$W$4) -> 4552 | R32: =INDEX('Compile Data'!$AL$123:$BI$204,$O32,'Report - ALL (DASHBOARD)'!$W$4) -> 4552 | S32: =INDEX('Compile Data'!$BL$123:$CI$204,$O32,'Report - ALL (DASHBOARD)'!$W$4) -> 4552 | T32: =INDEX('Compile Data'!$CL$123:$DI$204,$O32,'Report - ALL (DASHBOARD)'!$W$4) -> 4552 | U32: =INDEX('Compile Data'!$DL$123:$EI$204,$O32,'Report - ALL (DASHBOARD)'!$W$4) -> 4552 | V32: =INDEX('Compile Data'!$EL$123:$FI$204,$O32,'Report - ALL (DASHBOARD)'!$W$4) -> 
A33: 1927 | B33: =INDEX('Compile Data'!$L$12:$AI$93,$A33-1921,'Report - ALL (DASHBOARD)'!$W$4) -> 4552 | C33: =INDEX('Compile Data'!$AL$12:$BI$93,$A33-1921,'Report - ALL (DASHBOARD)'!$W$4) -> 4552 | D33: =INDEX('Compile Data'!$BL$12:$CI$93,$A33-1921,'Report - ALL (DASHBOARD)'!$W$4) -> 4552 | E33: =INDEX('Compile Data'!$CL$12:$DI$93,$A33-1921,'Report - ALL (DASHBOARD)'!$W$4) -> 4552 | F33: =INDEX('Compile Data'!$DL$12:$EI$93,$A33-1921,'Report - ALL (DASHBOARD)'!$W$4) -> 4552 | G33: =INDEX('Compile Data'!$EL$12:$FI$93,$A33-1921,'Report - ALL (DASHBOARD)'!$W$4) ->  | O33: 6 | P33: 0.06172839506 | Q33: =INDEX('Compile Data'!$L$123:$AI$204,$O33,'Report - ALL (DASHBOARD)'!$W$4) -> 4552 | R33: =INDEX('Compile Data'!$AL$123:$BI$204,$O33,'Report - ALL (DASHBOARD)'!$W$4) -> 4552 | S33: =INDEX('Compile Data'!$BL$123:$CI$204,$O33,'Report - ALL (DASHBOARD)'!$W$4) -> 4552 | T33: =INDEX('Compile Data'!$CL$123:$DI$204,$O33,'Report - ALL (DASHBOARD)'!$W$4) -> 4552 | U33: =INDEX('Compile Data'!$DL$123:$EI$204,$O33,'Report - ALL (DASHBOARD)'!$W$4) -> 4552 | V33: =INDEX('Compile Data'!$EL$123:$FI$204,$O33,'Report - ALL (DASHBOARD)'!$W$4) -> 
A34: 1928 | B34: =INDEX('Compile Data'!$L$12:$AI$93,$A34-1921,'Report - ALL (DASHBOARD)'!$W$4) -> 4552 | C34: =INDEX('Compile Data'!$AL$12:$BI$93,$A34-1921,'Report - ALL (DASHBOARD)'!$W$4) -> 4552 | D34: =INDEX('Compile Data'!$BL$12:$CI$93,$A34-1921,'Report - ALL (DASHBOARD)'!$W$4) -> 4487.110204 | E34: =INDEX('Compile Data'!$CL$12:$DI$93,$A34-1921,'Report - ALL (DASHBOARD)'!$W$4) -> 4487.110204 | F34: =INDEX('Compile Data'!$DL$12:$EI$93,$A34-1921,'Report - ALL (DASHBOARD)'!$W$4) -> 4487.110204 | G34: =INDEX('Compile Data'!$EL$12:$FI$93,$A34-1921,'Report - ALL (DASHBOARD)'!$W$4) ->  | O34: 7 | P34: 0.07407407407 | Q34: =INDEX('Compile Data'!$L$123:$AI$204,$O34,'Report - ALL (DASHBOARD)'!$W$4) -> 4552 | R34: =INDEX('Compile Data'!$AL$123:$BI$204,$O34,'Report - ALL (DASHBOARD)'!$W$4) -> 4552 | S34: =INDEX('Compile Data'!$BL$123:$CI$204,$O34,'Report - ALL (DASHBOARD)'!$W$4) -> 4552 | T34: =INDEX('Compile Data'!$CL$123:$DI$204,$O34,'Report - ALL (DASHBOARD)'!$W$4) -> 4552 | U34: =INDEX('Compile Data'!$DL$123:$EI$204,$O34,'Report - ALL (DASHBOARD)'!$W$4) -> 4552 | V34: =INDEX('Compile Data'!$EL$123:$FI$204,$O34,'Report - ALL (DASHBOARD)'!$W$4) -> 
A35: 1929 | B35: =INDEX('Compile Data'!$L$12:$AI$93,$A35-1921,'Report - ALL (DASHBOARD)'!$W$4) -> 3061.378344 | C35: =INDEX('Compile Data'!$AL$12:$BI$93,$A35-1921,'Report - ALL (DASHBOARD)'!$W$4) -> 3069.5815 | D35: =INDEX('Compile Data'!$BL$12:$CI$93,$A35-1921,'Report - ALL (DASHBOARD)'!$W$4) -> 3062.499026 | E35: =INDEX('Compile Data'!$CL$12:$DI$93,$A35-1921,'Report - ALL (DASHBOARD)'!$W$4) -> 3051.220257 | F35: =INDEX('Compile Data'!$DL$12:$EI$93,$A35-1921,'Report - ALL (DASHBOARD)'!$W$4) -> 3155.873661 | G35: =INDEX('Compile Data'!$EL$12:$FI$93,$A35-1921,'Report - ALL (DASHBOARD)'!$W$4) ->  | O35: 8 | P35: 0.08641975309 | Q35: =INDEX('Compile Data'!$L$123:$AI$204,$O35,'Report - ALL (DASHBOARD)'!$W$4) -> 4552 | R35: =INDEX('Compile Data'!$AL$123:$BI$204,$O35,'Report - ALL (DASHBOARD)'!$W$4) -> 4552 | S35: =INDEX('Compile Data'!$BL$123:$CI$204,$O35,'Report - ALL (DASHBOARD)'!$W$4) -> 4552 | T35: =INDEX('Compile Data'!$CL$123:$DI$204,$O35,'Report - ALL (DASHBOARD)'!$W$4) -> 4552 | U35: =INDEX('Compile Data'!$DL$123:$EI$204,$O35,'Report - ALL (DASHBOARD)'!$W$4) -> 4552 | V35: =INDEX('Compile Data'!$EL$123:$FI$204,$O35,'Report - ALL (DASHBOARD)'!$W$4) -> 
A36: 1930 | B36: =INDEX('Compile Data'!$L$12:$AI$93,$A36-1921,'Report - ALL (DASHBOARD)'!$W$4) -> 3580.508024 | C36: =INDEX('Compile Data'!$AL$12:$BI$93,$A36-1921,'Report - ALL (DASHBOARD)'!$W$4) -> 3628.884363 | D36: =INDEX('Compile Data'!$BL$12:$CI$93,$A36-1921,'Report - ALL (DASHBOARD)'!$W$4) -> 3611.816466 | E36: =INDEX('Compile Data'!$CL$12:$DI$93,$A36-1921,'Report - ALL (DASHBOARD)'!$W$4) -> 3597.977246 | F36: =INDEX('Compile Data'!$DL$12:$EI$93,$A36-1921,'Report - ALL (DASHBOARD)'!$W$4) -> 3652.878456 | G36: =INDEX('Compile Data'!$EL$12:$FI$93,$A36-1921,'Report - ALL (DASHBOARD)'!$W$4) ->  | O36: 9 | P36: 0.0987654321 | Q36: =INDEX('Compile Data'!$L$123:$AI$204,$O36,'Report - ALL (DASHBOARD)'!$W$4) -> 4552 | R36: =INDEX('Compile Data'!$AL$123:$BI$204,$O36,'Report - ALL (DASHBOARD)'!$W$4) -> 4552 | S36: =INDEX('Compile Data'!$BL$123:$CI$204,$O36,'Report - ALL (DASHBOARD)'!$W$4) -> 4552 | T36: =INDEX('Compile Data'!$CL$123:$DI$204,$O36,'Report - ALL (DASHBOARD)'!$W$4) -> 4552 | U36: =INDEX('Compile Data'!$DL$123:$EI$204,$O36,'Report - ALL (DASHBOARD)'!$W$4) -> 4552 | V36: =INDEX('Compile Data'!$EL$123:$FI$204,$O36,'Report - ALL (DASHBOARD)'!$W$4) -> 
A37: 1931 | B37: =INDEX('Compile Data'!$L$12:$AI$93,$A37-1921,'Report - ALL (DASHBOARD)'!$W$4) -> 2662.933187 | C37: =INDEX('Compile Data'!$AL$12:$BI$93,$A37-1921,'Report - ALL (DASHBOARD)'!$W$4) -> 2623.307245 | D37: =INDEX('Compile Data'!$BL$12:$CI$93,$A37-1921,'Report - ALL (DASHBOARD)'!$W$4) -> 2612.414165 | E37: =INDEX('Compile Data'!$CL$12:$DI$93,$A37-1921,'Report - ALL (DASHBOARD)'!$W$4) -> 2610.571627 | F37: =INDEX('Compile Data'!$DL$12:$EI$93,$A37-1921,'Report - ALL (DASHBOARD)'!$W$4) -> 2683.334597 | G37: =INDEX('Compile Data'!$EL$12:$FI$93,$A37-1921,'Report - ALL (DASHBOARD)'!$W$4) ->  | O37: 10 | P37: 0.1111111111 | Q37: =INDEX('Compile Data'!$L$123:$AI$204,$O37,'Report - ALL (DASHBOARD)'!$W$4) -> 4552 | R37: =INDEX('Compile Data'!$AL$123:$BI$204,$O37,'Report - ALL (DASHBOARD)'!$W$4) -> 4552 | S37: =INDEX('Compile Data'!$BL$123:$CI$204,$O37,'Report - ALL (DASHBOARD)'!$W$4) -> 4552 | T37: =INDEX('Compile Data'!$CL$123:$DI$204,$O37,'Report - ALL (DASHBOARD)'!$W$4) -> 4552 | U37: =INDEX('Compile Data'!$DL$123:$EI$204,$O37,'Report - ALL (DASHBOARD)'!$W$4) -> 4552 | V37: =INDEX('Compile Data'!$EL$123:$FI$204,$O37,'Report - ALL (DASHBOARD)'!$W$4) -> 
A38: 1932 | B38: =INDEX('Compile Data'!$L$12:$AI$93,$A38-1921,'Report - ALL (DASHBOARD)'!$W$4) -> 2262.178368 | C38: =INDEX('Compile Data'!$AL$12:$BI$93,$A38-1921,'Report - ALL (DASHBOARD)'!$W$4) -> 2227.071068 | D38: =INDEX('Compile Data'!$BL$12:$CI$93,$A38-1921,'Report - ALL (DASHBOARD)'!$W$4) -> 2212.98862 | E38: =INDEX('Compile Data'!$CL$12:$DI$93,$A38-1921,'Report - ALL (DASHBOARD)'!$W$4) -> 2209.740749 | F38: =INDEX('Compile Data'!$DL$12:$EI$93,$A38-1921,'Report - ALL (DASHBOARD)'!$W$4) -> 2292.372223 | G38: =INDEX('Compile Data'!$EL$12:$FI$93,$A38-1921,'Report - ALL (DASHBOARD)'!$W$4) ->  | O38: 11 | P38: 0.1234567901 | Q38: =INDEX('Compile Data'!$L$123:$AI$204,$O38,'Report - ALL (DASHBOARD)'!$W$4) -> 4552 | R38: =INDEX('Compile Data'!$AL$123:$BI$204,$O38,'Report - ALL (DASHBOARD)'!$W$4) -> 4552 | S38: =INDEX('Compile Data'!$BL$123:$CI$204,$O38,'Report - ALL (DASHBOARD)'!$W$4) -> 4552 | T38: =INDEX('Compile Data'!$CL$123:$DI$204,$O38,'Report - ALL (DASHBOARD)'!$W$4) -> 4552 | U38: =INDEX('Compile Data'!$DL$123:$EI$204,$O38,'Report - ALL (DASHBOARD)'!$W$4) -> 4552 | V38: =INDEX('Compile Data'!$EL$123:$FI$204,$O38,'Report - ALL (DASHBOARD)'!$W$4) -> 
A39: 1933 | B39: =INDEX('Compile Data'!$L$12:$AI$93,$A39-1921,'Report - ALL (DASHBOARD)'!$W$4) -> 2374.768361 | C39: =INDEX('Compile Data'!$AL$12:$BI$93,$A39-1921,'Report - ALL (DASHBOARD)'!$W$4) -> 2364.169031 | D39: =INDEX('Compile Data'!$BL$12:$CI$93,$A39-1921,'Report - ALL (DASHBOARD)'!$W$4) -> 2405.841106 | E39: =INDEX('Compile Data'!$CL$12:$DI$93,$A39-1921,'Report - ALL (DASHBOARD)'!$W$4) -> 2402.525604 | F39: =INDEX('Compile Data'!$DL$12:$EI$93,$A39-1921,'Report - ALL (DASHBOARD)'!$W$4) -> 2482.661244 | G39: =INDEX('Compile Data'!$EL$12:$FI$93,$A39-1921,'Report - ALL (DASHBOARD)'!$W$4) ->  | O39: 12 | P39: 0.1358024691 | Q39: =INDEX('Compile Data'!$L$123:$AI$204,$O39,'Report - ALL (DASHBOARD)'!$W$4) -> 4552 | R39: =INDEX('Compile Data'!$AL$123:$BI$204,$O39,'Report - ALL (DASHBOARD)'!$W$4) -> 4552 | S39: =INDEX('Compile Data'!$BL$123:$CI$204,$O39,'Report - ALL (DASHBOARD)'!$W$4) -> 4552 | T39: =INDEX('Compile Data'!$CL$123:$DI$204,$O39,'Report - ALL (DASHBOARD)'!$W$4) -> 4552 | U39: =INDEX('Compile Data'!$DL$123:$EI$204,$O39,'Report - ALL (DASHBOARD)'!$W$4) -> 4552 | V39: =INDEX('Compile Data'!$EL$123:$FI$204,$O39,'Report - ALL (DASHBOARD)'!$W$4) -> 
A40: 1934 | B40: =INDEX('Compile Data'!$L$12:$AI$93,$A40-1921,'Report - ALL (DASHBOARD)'!$W$4) -> 2397.051304 | C40: =INDEX('Compile Data'!$AL$12:$BI$93,$A40-1921,'Report - ALL (DASHBOARD)'!$W$4) -> 2413.322975 | D40: =INDEX('Compile Data'!$BL$12:$CI$93,$A40-1921,'Report - ALL (DASHBOARD)'!$W$4) -> 2386.551345 | E40: =INDEX('Compile Data'!$CL$12:$DI$93,$A40-1921,'Report - ALL (DASHBOARD)'!$W$4) -> 2383.750305 | F40: =INDEX('Compile Data'!$DL$12:$EI$93,$A40-1921,'Report - ALL (DASHBOARD)'!$W$4) -> 2454.791003 | G40: =INDEX('Compile Data'!$EL$12:$FI$93,$A40-1921,'Report - ALL (DASHBOARD)'!$W$4) ->  | O40: 13 | P40: 0.1481481481 | Q40: =INDEX('Compile Data'!$L$123:$AI$204,$O40,'Report - ALL (DASHBOARD)'!$W$4) -> 4552 | R40: =INDEX('Compile Data'!$AL$123:$BI$204,$O40,'Report - ALL (DASHBOARD)'!$W$4) -> 4552 | S40: =INDEX('Compile Data'!$BL$123:$CI$204,$O40,'Report - ALL (DASHBOARD)'!$W$4) -> 4552 | T40: =INDEX('Compile Data'!$CL$123:$DI$204,$O40,'Report - ALL (DASHBOARD)'!$W$4) -> 4552 | U40: =INDEX('Compile Data'!$DL$123:$EI$204,$O40,'Report - ALL (DASHBOARD)'!$W$4) -> 4551.56866 | V40: =INDEX('Compile Data'!$EL$123:$FI$204,$O40,'Report - ALL (DASHBOARD)'!$W$4) -> 
A41: 1935 | B41: =INDEX('Compile Data'!$L$12:$AI$93,$A41-1921,'Report - ALL (DASHBOARD)'!$W$4) -> 3109.585799 | C41: =INDEX('Compile Data'!$AL$12:$BI$93,$A41-1921,'Report - ALL (DASHBOARD)'!$W$4) -> 3116.456666 | D41: =INDEX('Compile Data'!$BL$12:$CI$93,$A41-1921,'Report - ALL (DASHBOARD)'!$W$4) -> 3092.153595 | E41: =INDEX('Compile Data'!$CL$12:$DI$93,$A41-1921,'Report - ALL (DASHBOARD)'!$W$4) -> 3089.389946 | F41: =INDEX('Compile Data'!$DL$12:$EI$93,$A41-1921,'Report - ALL (DASHBOARD)'!$W$4) -> 3155.542872 | G41: =INDEX('Compile Data'!$EL$12:$FI$93,$A41-1921,'Report - ALL (DASHBOARD)'!$W$4) ->  | O41: 14 | P41: 0.1604938272 | Q41: =INDEX('Compile Data'!$L$123:$AI$204,$O41,'Report - ALL (DASHBOARD)'!$W$4) -> 4552 | R41: =INDEX('Compile Data'!$AL$123:$BI$204,$O41,'Report - ALL (DASHBOARD)'!$W$4) -> 4552 | S41: =INDEX('Compile Data'!$BL$123:$CI$204,$O41,'Report - ALL (DASHBOARD)'!$W$4) -> 4546 | T41: =INDEX('Compile Data'!$CL$123:$DI$204,$O41,'Report - ALL (DASHBOARD)'!$W$4) -> 4546 | U41: =INDEX('Compile Data'!$DL$123:$EI$204,$O41,'Report - ALL (DASHBOARD)'!$W$4) -> 4546 | V41: =INDEX('Compile Data'!$EL$123:$FI$204,$O41,'Report - ALL (DASHBOARD)'!$W$4) -> 
A42: 1936 | B42: =INDEX('Compile Data'!$L$12:$AI$93,$A42-1921,'Report - ALL (DASHBOARD)'!$W$4) -> 4250.343437 | C42: =INDEX('Compile Data'!$AL$12:$BI$93,$A42-1921,'Report - ALL (DASHBOARD)'!$W$4) -> 4250.343437 | D42: =INDEX('Compile Data'!$BL$12:$CI$93,$A42-1921,'Report - ALL (DASHBOARD)'!$W$4) -> 4250.343437 | E42: =INDEX('Compile Data'!$CL$12:$DI$93,$A42-1921,'Report - ALL (DASHBOARD)'!$W$4) -> 4250.343437 | F42: =INDEX('Compile Data'!$DL$12:$EI$93,$A42-1921,'Report - ALL (DASHBOARD)'!$W$4) -> 4250.343437 | G42: =INDEX('Compile Data'!$EL$12:$FI$93,$A42-1921,'Report - ALL (DASHBOARD)'!$W$4) ->  | O42: 15 | P42: 0.1728395062 | Q42: =INDEX('Compile Data'!$L$123:$AI$204,$O42,'Report - ALL (DASHBOARD)'!$W$4) -> 4551.551962 | R42: =INDEX('Compile Data'!$AL$123:$BI$204,$O42,'Report - ALL (DASHBOARD)'!$W$4) -> 4552 | S42: =INDEX('Compile Data'!$BL$123:$CI$204,$O42,'Report - ALL (DASHBOARD)'!$W$4) -> 4541.554824 | T42: =INDEX('Compile Data'!$CL$123:$DI$204,$O42,'Report - ALL (DASHBOARD)'!$W$4) -> 4541.554824 | U42: =INDEX('Compile Data'!$DL$123:$EI$204,$O42,'Report - ALL (DASHBOARD)'!$W$4) -> 4541.554824 | V42: =INDEX('Compile Data'!$EL$123:$FI$204,$O42,'Report - ALL (DASHBOARD)'!$W$4) -> 
A43: 1937 | B43: =INDEX('Compile Data'!$L$12:$AI$93,$A43-1921,'Report - ALL (DASHBOARD)'!$W$4) -> 3951.568418 | C43: =INDEX('Compile Data'!$AL$12:$BI$93,$A43-1921,'Report - ALL (DASHBOARD)'!$W$4) -> 3955.069501 | D43: =INDEX('Compile Data'!$BL$12:$CI$93,$A43-1921,'Report - ALL (DASHBOARD)'!$W$4) -> 3962.565738 | E43: =INDEX('Compile Data'!$CL$12:$DI$93,$A43-1921,'Report - ALL (DASHBOARD)'!$W$4) -> 3963.059645 | F43: =INDEX('Compile Data'!$DL$12:$EI$93,$A43-1921,'Report - ALL (DASHBOARD)'!$W$4) -> 3963.702488 | G43: =INDEX('Compile Data'!$EL$12:$FI$93,$A43-1921,'Report - ALL (DASHBOARD)'!$W$4) ->  | O43: 16 | P43: 0.1851851852 | Q43: =INDEX('Compile Data'!$L$123:$AI$204,$O43,'Report - ALL (DASHBOARD)'!$W$4) -> 4548.748427 | R43: =INDEX('Compile Data'!$AL$123:$BI$204,$O43,'Report - ALL (DASHBOARD)'!$W$4) -> 4552 | S43: =INDEX('Compile Data'!$BL$123:$CI$204,$O43,'Report - ALL (DASHBOARD)'!$W$4) -> 4531.933699 | T43: =INDEX('Compile Data'!$CL$123:$DI$204,$O43,'Report - ALL (DASHBOARD)'!$W$4) -> 4531.933699 | U43: =INDEX('Compile Data'!$DL$123:$EI$204,$O43,'Report - ALL (DASHBOARD)'!$W$4) -> 4531.933699 | V43: =INDEX('Compile Data'!$EL$123:$FI$204,$O43,'Report - ALL (DASHBOARD)'!$W$4) -> 
A44: 1938 | B44: =INDEX('Compile Data'!$L$12:$AI$93,$A44-1921,'Report - ALL (DASHBOARD)'!$W$4) -> 4058 | C44: =INDEX('Compile Data'!$AL$12:$BI$93,$A44-1921,'Report - ALL (DASHBOARD)'!$W$4) -> 4058 | D44: =INDEX('Compile Data'!$BL$12:$CI$93,$A44-1921,'Report - ALL (DASHBOARD)'!$W$4) -> 4058 | E44: =INDEX('Compile Data'!$CL$12:$DI$93,$A44-1921,'Report - ALL (DASHBOARD)'!$W$4) -> 4058 | F44: =INDEX('Compile Data'!$DL$12:$EI$93,$A44-1921,'Report - ALL (DASHBOARD)'!$W$4) -> 4058 | G44: =INDEX('Compile Data'!$EL$12:$FI$93,$A44-1921,'Report - ALL (DASHBOARD)'!$W$4) ->  | O44: 17 | P44: 0.1975308642 | Q44: =INDEX('Compile Data'!$L$123:$AI$204,$O44,'Report - ALL (DASHBOARD)'!$W$4) -> 4546 | R44: =INDEX('Compile Data'!$AL$123:$BI$204,$O44,'Report - ALL (DASHBOARD)'!$W$4) -> 4546 | S44: =INDEX('Compile Data'!$BL$123:$CI$204,$O44,'Report - ALL (DASHBOARD)'!$W$4) -> 4530.802107 | T44: =INDEX('Compile Data'!$CL$123:$DI$204,$O44,'Report - ALL (DASHBOARD)'!$W$4) -> 4530.786408 | U44: =INDEX('Compile Data'!$DL$123:$EI$204,$O44,'Report - ALL (DASHBOARD)'!$W$4) -> 4530.802107 | V44: =INDEX('Compile Data'!$EL$123:$FI$204,$O44,'Report - ALL (DASHBOARD)'!$W$4) -> 
A45: 1939 | B45: =INDEX('Compile Data'!$L$12:$AI$93,$A45-1921,'Report - ALL (DASHBOARD)'!$W$4) -> 3814.579337 | C45: =INDEX('Compile Data'!$AL$12:$BI$93,$A45-1921,'Report - ALL (DASHBOARD)'!$W$4) -> 3814.801488 | D45: =INDEX('Compile Data'!$BL$12:$CI$93,$A45-1921,'Report - ALL (DASHBOARD)'!$W$4) -> 3888.13359 | E45: =INDEX('Compile Data'!$CL$12:$DI$93,$A45-1921,'Report - ALL (DASHBOARD)'!$W$4) -> 3837.516249 | F45: =INDEX('Compile Data'!$DL$12:$EI$93,$A45-1921,'Report - ALL (DASHBOARD)'!$W$4) -> 3745.814369 | G45: =INDEX('Compile Data'!$EL$12:$FI$93,$A45-1921,'Report - ALL (DASHBOARD)'!$W$4) ->  | O45: 18 | P45: 0.2098765432 | Q45: =INDEX('Compile Data'!$L$123:$AI$204,$O45,'Report - ALL (DASHBOARD)'!$W$4) -> 4538.920429 | R45: =INDEX('Compile Data'!$AL$123:$BI$204,$O45,'Report - ALL (DASHBOARD)'!$W$4) -> 4538.920429 | S45: =INDEX('Compile Data'!$BL$123:$CI$204,$O45,'Report - ALL (DASHBOARD)'!$W$4) -> 4511.437459 | T45: =INDEX('Compile Data'!$CL$123:$DI$204,$O45,'Report - ALL (DASHBOARD)'!$W$4) -> 4511.437459 | U45: =INDEX('Compile Data'!$DL$123:$EI$204,$O45,'Report - ALL (DASHBOARD)'!$W$4) -> 4511.437459 | V45: =INDEX('Compile Data'!$EL$123:$FI$204,$O45,'Report - ALL (DASHBOARD)'!$W$4) -> 
A46: 1940 | B46: =INDEX('Compile Data'!$L$12:$AI$93,$A46-1921,'Report - ALL (DASHBOARD)'!$W$4) -> 4224.490492 | C46: =INDEX('Compile Data'!$AL$12:$BI$93,$A46-1921,'Report - ALL (DASHBOARD)'!$W$4) -> 4224.490493 | D46: =INDEX('Compile Data'!$BL$12:$CI$93,$A46-1921,'Report - ALL (DASHBOARD)'!$W$4) -> 4224.490493 | E46: =INDEX('Compile Data'!$CL$12:$DI$93,$A46-1921,'Report - ALL (DASHBOARD)'!$W$4) -> 4224.490493 | F46: =INDEX('Compile Data'!$DL$12:$EI$93,$A46-1921,'Report - ALL (DASHBOARD)'!$W$4) -> 4224.490493 | G46: =INDEX('Compile Data'!$EL$12:$FI$93,$A46-1921,'Report - ALL (DASHBOARD)'!$W$4) ->  | O46: 19 | P46: 0.2222222222 | Q46: =INDEX('Compile Data'!$L$123:$AI$204,$O46,'Report - ALL (DASHBOARD)'!$W$4) -> 4530.802107 | R46: =INDEX('Compile Data'!$AL$123:$BI$204,$O46,'Report - ALL (DASHBOARD)'!$W$4) -> 4531.933699 | S46: =INDEX('Compile Data'!$BL$123:$CI$204,$O46,'Report - ALL (DASHBOARD)'!$W$4) -> 4508.916554 | T46: =INDEX('Compile Data'!$CL$123:$DI$204,$O46,'Report - ALL (DASHBOARD)'!$W$4) -> 4508.930118 | U46: =INDEX('Compile Data'!$DL$123:$EI$204,$O46,'Report - ALL (DASHBOARD)'!$W$4) -> 4501.121037 | V46: =INDEX('Compile Data'!$EL$123:$FI$204,$O46,'Report - ALL (DASHBOARD)'!$W$4) -> 
A47: 1941 | B47: =INDEX('Compile Data'!$L$12:$AI$93,$A47-1921,'Report - ALL (DASHBOARD)'!$W$4) -> 4456 | C47: =INDEX('Compile Data'!$AL$12:$BI$93,$A47-1921,'Report - ALL (DASHBOARD)'!$W$4) -> 4456 | D47: =INDEX('Compile Data'!$BL$12:$CI$93,$A47-1921,'Report - ALL (DASHBOARD)'!$W$4) -> 4456 | E47: =INDEX('Compile Data'!$CL$12:$DI$93,$A47-1921,'Report - ALL (DASHBOARD)'!$W$4) -> 4456 | F47: =INDEX('Compile Data'!$DL$12:$EI$93,$A47-1921,'Report - ALL (DASHBOARD)'!$W$4) -> 4456 | G47: =INDEX('Compile Data'!$EL$12:$FI$93,$A47-1921,'Report - ALL (DASHBOARD)'!$W$4) ->  | O47: 20 | P47: 0.2345679012 | Q47: =INDEX('Compile Data'!$L$123:$AI$204,$O47,'Report - ALL (DASHBOARD)'!$W$4) -> 4527.293537 | R47: =INDEX('Compile Data'!$AL$123:$BI$204,$O47,'Report - ALL (DASHBOARD)'!$W$4) -> 4530.802107 | S47: =INDEX('Compile Data'!$BL$123:$CI$204,$O47,'Report - ALL (DASHBOARD)'!$W$4) -> 4501.120612 | T47: =INDEX('Compile Data'!$CL$123:$DI$204,$O47,'Report - ALL (DASHBOARD)'!$W$4) -> 4500 | U47: =INDEX('Compile Data'!$DL$123:$EI$204,$O47,'Report - ALL (DASHBOARD)'!$W$4) -> 4500 | V47: =INDEX('Compile Data'!$EL$123:$FI$204,$O47,'Report - ALL (DASHBOARD)'!$W$4) -> 
A48: 1942 | B48: =INDEX('Compile Data'!$L$12:$AI$93,$A48-1921,'Report - ALL (DASHBOARD)'!$W$4) -> 4527.293537 | C48: =INDEX('Compile Data'!$AL$12:$BI$93,$A48-1921,'Report - ALL (DASHBOARD)'!$W$4) -> 4531.933699 | D48: =INDEX('Compile Data'!$BL$12:$CI$93,$A48-1921,'Report - ALL (DASHBOARD)'!$W$4) -> 4531.933699 | E48: =INDEX('Compile Data'!$CL$12:$DI$93,$A48-1921,'Report - ALL (DASHBOARD)'!$W$4) -> 4531.933699 | F48: =INDEX('Compile Data'!$DL$12:$EI$93,$A48-1921,'Report - ALL (DASHBOARD)'!$W$4) -> 4531.933699 | G48: =INDEX('Compile Data'!$EL$12:$FI$93,$A48-1921,'Report - ALL (DASHBOARD)'!$W$4) ->  | O48: 21 | P48: 0.2469135802 | Q48: =INDEX('Compile Data'!$L$123:$AI$204,$O48,'Report - ALL (DASHBOARD)'!$W$4) -> 4518.140388 | R48: =INDEX('Compile Data'!$AL$123:$BI$204,$O48,'Report - ALL (DASHBOARD)'!$W$4) -> 4518.140388 | S48: =INDEX('Compile Data'!$BL$123:$CI$204,$O48,'Report - ALL (DASHBOARD)'!$W$4) -> 4500 | T48: =INDEX('Compile Data'!$CL$123:$DI$204,$O48,'Report - ALL (DASHBOARD)'!$W$4) -> 4499.324989 | U48: =INDEX('Compile Data'!$DL$123:$EI$204,$O48,'Report - ALL (DASHBOARD)'!$W$4) -> 4492.345785 | V48: =INDEX('Compile Data'!$EL$123:$FI$204,$O48,'Report - ALL (DASHBOARD)'!$W$4) -> 
A49: 1943 | B49: =INDEX('Compile Data'!$L$12:$AI$93,$A49-1921,'Report - ALL (DASHBOARD)'!$W$4) -> 4552 | C49: =INDEX('Compile Data'!$AL$12:$BI$93,$A49-1921,'Report - ALL (DASHBOARD)'!$W$4) -> 4552 | D49: =INDEX('Compile Data'!$BL$12:$CI$93,$A49-1921,'Report - ALL (DASHBOARD)'!$W$4) -> 4552 | E49: =INDEX('Compile Data'!$CL$12:$DI$93,$A49-1921,'Report - ALL (DASHBOARD)'!$W$4) -> 4552 | F49: =INDEX('Compile Data'!$DL$12:$EI$93,$A49-1921,'Report - ALL (DASHBOARD)'!$W$4) -> 4552 | G49: =INDEX('Compile Data'!$EL$12:$FI$93,$A49-1921,'Report - ALL (DASHBOARD)'!$W$4) ->  | O49: 22 | P49: 0.2592592593 | Q49: =INDEX('Compile Data'!$L$123:$AI$204,$O49,'Report - ALL (DASHBOARD)'!$W$4) -> 4516.005107 | R49: =INDEX('Compile Data'!$AL$123:$BI$204,$O49,'Report - ALL (DASHBOARD)'!$W$4) -> 4516.005107 | S49: =INDEX('Compile Data'!$BL$123:$CI$204,$O49,'Report - ALL (DASHBOARD)'!$W$4) -> 4492.345785 | T49: =INDEX('Compile Data'!$CL$123:$DI$204,$O49,'Report - ALL (DASHBOARD)'!$W$4) -> 4492.345785 | U49: =INDEX('Compile Data'!$DL$123:$EI$204,$O49,'Report - ALL (DASHBOARD)'!$W$4) -> 4487.110204 | V49: =INDEX('Compile Data'!$EL$123:$FI$204,$O49,'Report - ALL (DASHBOARD)'!$W$4) -> 
A50: 1944 | B50: =INDEX('Compile Data'!$L$12:$AI$93,$A50-1921,'Report - ALL (DASHBOARD)'!$W$4) -> 3719.922464 | C50: =INDEX('Compile Data'!$AL$12:$BI$93,$A50-1921,'Report - ALL (DASHBOARD)'!$W$4) -> 3736.985168 | D50: =INDEX('Compile Data'!$BL$12:$CI$93,$A50-1921,'Report - ALL (DASHBOARD)'!$W$4) -> 3736.973676 | E50: =INDEX('Compile Data'!$CL$12:$DI$93,$A50-1921,'Report - ALL (DASHBOARD)'!$W$4) -> 3736.899167 | F50: =INDEX('Compile Data'!$DL$12:$EI$93,$A50-1921,'Report - ALL (DASHBOARD)'!$W$4) -> 3736.934935 | G50: =INDEX('Compile Data'!$EL$12:$FI$93,$A50-1921,'Report - ALL (DASHBOARD)'!$W$4) ->  | O50: 23 | P50: 0.2716049383 | Q50: =INDEX('Compile Data'!$L$123:$AI$204,$O50,'Report - ALL (DASHBOARD)'!$W$4) -> 4512.53156 | R50: =INDEX('Compile Data'!$AL$123:$BI$204,$O50,'Report - ALL (DASHBOARD)'!$W$4) -> 4509.039543 | S50: =INDEX('Compile Data'!$BL$123:$CI$204,$O50,'Report - ALL (DASHBOARD)'!$W$4) -> 4487.110204 | T50: =INDEX('Compile Data'!$CL$123:$DI$204,$O50,'Report - ALL (DASHBOARD)'!$W$4) -> 4487.110204 | U50: =INDEX('Compile Data'!$DL$123:$EI$204,$O50,'Report - ALL (DASHBOARD)'!$W$4) -> 4487.018902 | V50: =INDEX('Compile Data'!$EL$123:$FI$204,$O50,'Report - ALL (DASHBOARD)'!$W$4) -> 
A51: 1945 | B51: =INDEX('Compile Data'!$L$12:$AI$93,$A51-1921,'Report - ALL (DASHBOARD)'!$W$4) -> 4530.802107 | C51: =INDEX('Compile Data'!$AL$12:$BI$93,$A51-1921,'Report - ALL (DASHBOARD)'!$W$4) -> 4530.802107 | D51: =INDEX('Compile Data'!$BL$12:$CI$93,$A51-1921,'Report - ALL (DASHBOARD)'!$W$4) -> 4530.802107 | E51: =INDEX('Compile Data'!$CL$12:$DI$93,$A51-1921,'Report - ALL (DASHBOARD)'!$W$4) -> 4530.786408 | F51: =INDEX('Compile Data'!$DL$12:$EI$93,$A51-1921,'Report - ALL (DASHBOARD)'!$W$4) -> 4530.802107 | G51: =INDEX('Compile Data'!$EL$12:$FI$93,$A51-1921,'Report - ALL (DASHBOARD)'!$W$4) ->  | O51: 24 | P51: 0.2839506173 | Q51: =INDEX('Compile Data'!$L$123:$AI$204,$O51,'Report - ALL (DASHBOARD)'!$W$4) -> 4500 | R51: =INDEX('Compile Data'!$AL$123:$BI$204,$O51,'Report - ALL (DASHBOARD)'!$W$4) -> 4501.123496 | S51: =INDEX('Compile Data'!$BL$123:$CI$204,$O51,'Report - ALL (DASHBOARD)'!$W$4) -> 4487.018902 | T51: =INDEX('Compile Data'!$CL$123:$DI$204,$O51,'Report - ALL (DASHBOARD)'!$W$4) -> 4487.018902 | U51: =INDEX('Compile Data'!$DL$123:$EI$204,$O51,'Report - ALL (DASHBOARD)'!$W$4) -> 4481.153227 | V51: =INDEX('Compile Data'!$EL$123:$FI$204,$O51,'Report - ALL (DASHBOARD)'!$W$4) -> 
A52: 1946 | B52: =INDEX('Compile Data'!$L$12:$AI$93,$A52-1921,'Report - ALL (DASHBOARD)'!$W$4) -> 4552 | C52: =INDEX('Compile Data'!$AL$12:$BI$93,$A52-1921,'Report - ALL (DASHBOARD)'!$W$4) -> 4552 | D52: =INDEX('Compile Data'!$BL$12:$CI$93,$A52-1921,'Report - ALL (DASHBOARD)'!$W$4) -> 4552 | E52: =INDEX('Compile Data'!$CL$12:$DI$93,$A52-1921,'Report - ALL (DASHBOARD)'!$W$4) -> 4552 | F52: =INDEX('Compile Data'!$DL$12:$EI$93,$A52-1921,'Report - ALL (DASHBOARD)'!$W$4) -> 4551.56866 | G52: =INDEX('Compile Data'!$EL$12:$FI$93,$A52-1921,'Report - ALL (DASHBOARD)'!$W$4) ->  | O52: 25 | P52: 0.2962962963 | Q52: =INDEX('Compile Data'!$L$123:$AI$204,$O52,'Report - ALL (DASHBOARD)'!$W$4) -> 4492.345784 | R52: =INDEX('Compile Data'!$AL$123:$BI$204,$O52,'Report - ALL (DASHBOARD)'!$W$4) -> 4500 | S52: =INDEX('Compile Data'!$BL$123:$CI$204,$O52,'Report - ALL (DASHBOARD)'!$W$4) -> 4481.153227 | T52: =INDEX('Compile Data'!$CL$123:$DI$204,$O52,'Report - ALL (DASHBOARD)'!$W$4) -> 4481.153227 | U52: =INDEX('Compile Data'!$DL$123:$EI$204,$O52,'Report - ALL (DASHBOARD)'!$W$4) -> 4479.244009 | V52: =INDEX('Compile Data'!$EL$123:$FI$204,$O52,'Report - ALL (DASHBOARD)'!$W$4) -> 
A53: 1947 | B53: =INDEX('Compile Data'!$L$12:$AI$93,$A53-1921,'Report - ALL (DASHBOARD)'!$W$4) -> 4189.159594 | C53: =INDEX('Compile Data'!$AL$12:$BI$93,$A53-1921,'Report - ALL (DASHBOARD)'!$W$4) -> 4188.617467 | D53: =INDEX('Compile Data'!$BL$12:$CI$93,$A53-1921,'Report - ALL (DASHBOARD)'!$W$4) -> 4202.058488 | E53: =INDEX('Compile Data'!$CL$12:$DI$93,$A53-1921,'Report - ALL (DASHBOARD)'!$W$4) -> 4201.885409 | F53: =INDEX('Compile Data'!$DL$12:$EI$93,$A53-1921,'Report - ALL (DASHBOARD)'!$W$4) -> 4212.159668 | G53: =INDEX('Compile Data'!$EL$12:$FI$93,$A53-1921,'Report - ALL (DASHBOARD)'!$W$4) ->  | O53: 26 | P53: 0.3086419753 | Q53: =INDEX('Compile Data'!$L$123:$AI$204,$O53,'Report - ALL (DASHBOARD)'!$W$4) -> 4487.238398 | R53: =INDEX('Compile Data'!$AL$123:$BI$204,$O53,'Report - ALL (DASHBOARD)'!$W$4) -> 4492.345785 | S53: =INDEX('Compile Data'!$BL$123:$CI$204,$O53,'Report - ALL (DASHBOARD)'!$W$4) -> 4479.244009 | T53: =INDEX('Compile Data'!$CL$123:$DI$204,$O53,'Report - ALL (DASHBOARD)'!$W$4) -> 4479.244009 | U53: =INDEX('Compile Data'!$DL$123:$EI$204,$O53,'Report - ALL (DASHBOARD)'!$W$4) -> 4479 | V53: =INDEX('Compile Data'!$EL$123:$FI$204,$O53,'Report - ALL (DASHBOARD)'!$W$4) -> 
A54: 1948 | B54: =INDEX('Compile Data'!$L$12:$AI$93,$A54-1921,'Report - ALL (DASHBOARD)'!$W$4) -> 4422 | C54: =INDEX('Compile Data'!$AL$12:$BI$93,$A54-1921,'Report - ALL (DASHBOARD)'!$W$4) -> 4422 | D54: =INDEX('Compile Data'!$BL$12:$CI$93,$A54-1921,'Report - ALL (DASHBOARD)'!$W$4) -> 4422 | E54: =INDEX('Compile Data'!$CL$12:$DI$93,$A54-1921,'Report - ALL (DASHBOARD)'!$W$4) -> 4422 | F54: =INDEX('Compile Data'!$DL$12:$EI$93,$A54-1921,'Report - ALL (DASHBOARD)'!$W$4) -> 4422 | G54: =INDEX('Compile Data'!$EL$12:$FI$93,$A54-1921,'Report - ALL (DASHBOARD)'!$W$4) ->  | O54: 27 | P54: 0.3209876543 | Q54: =INDEX('Compile Data'!$L$123:$AI$204,$O54,'Report - ALL (DASHBOARD)'!$W$4) -> 4487.018905 | R54: =INDEX('Compile Data'!$AL$123:$BI$204,$O54,'Report - ALL (DASHBOARD)'!$W$4) -> 4487.238398 | S54: =INDEX('Compile Data'!$BL$123:$CI$204,$O54,'Report - ALL (DASHBOARD)'!$W$4) -> 4479 | T54: =INDEX('Compile Data'!$CL$123:$DI$204,$O54,'Report - ALL (DASHBOARD)'!$W$4) -> 4479 | U54: =INDEX('Compile Data'!$DL$123:$EI$204,$O54,'Report - ALL (DASHBOARD)'!$W$4) -> 4463.992491 | V54: =INDEX('Compile Data'!$EL$123:$FI$204,$O54,'Report - ALL (DASHBOARD)'!$W$4) -> 
A55: 1949 | B55: =INDEX('Compile Data'!$L$12:$AI$93,$A55-1921,'Report - ALL (DASHBOARD)'!$W$4) -> 4479.244009 | C55: =INDEX('Compile Data'!$AL$12:$BI$93,$A55-1921,'Report - ALL (DASHBOARD)'!$W$4) -> 4479.244009 | D55: =INDEX('Compile Data'!$BL$12:$CI$93,$A55-1921,'Report - ALL (DASHBOARD)'!$W$4) -> 4479.244009 | E55: =INDEX('Compile Data'!$CL$12:$DI$93,$A55-1921,'Report - ALL (DASHBOARD)'!$W$4) -> 4479.244009 | F55: =INDEX('Compile Data'!$DL$12:$EI$93,$A55-1921,'Report - ALL (DASHBOARD)'!$W$4) -> 4479.244009 | G55: =INDEX('Compile Data'!$EL$12:$FI$93,$A55-1921,'Report - ALL (DASHBOARD)'!$W$4) ->  | O55: 28 | P55: 0.3333333333 | Q55: =INDEX('Compile Data'!$L$123:$AI$204,$O55,'Report - ALL (DASHBOARD)'!$W$4) -> 4483.937053 | R55: =INDEX('Compile Data'!$AL$123:$BI$204,$O55,'Report - ALL (DASHBOARD)'!$W$4) -> 4487.018902 | S55: =INDEX('Compile Data'!$BL$123:$CI$204,$O55,'Report - ALL (DASHBOARD)'!$W$4) -> 4463.992491 | T55: =INDEX('Compile Data'!$CL$123:$DI$204,$O55,'Report - ALL (DASHBOARD)'!$W$4) -> 4463.992491 | U55: =INDEX('Compile Data'!$DL$123:$EI$204,$O55,'Report - ALL (DASHBOARD)'!$W$4) -> 4456 | V55: =INDEX('Compile Data'!$EL$123:$FI$204,$O55,'Report - ALL (DASHBOARD)'!$W$4) -> 
A56: 1950 | B56: =INDEX('Compile Data'!$L$12:$AI$93,$A56-1921,'Report - ALL (DASHBOARD)'!$W$4) -> 4411.669365 | C56: =INDEX('Compile Data'!$AL$12:$BI$93,$A56-1921,'Report - ALL (DASHBOARD)'!$W$4) -> 4400.904771 | D56: =INDEX('Compile Data'!$BL$12:$CI$93,$A56-1921,'Report - ALL (DASHBOARD)'!$W$4) -> 4408.404208 | E56: =INDEX('Compile Data'!$CL$12:$DI$93,$A56-1921,'Report - ALL (DASHBOARD)'!$W$4) -> 4385.285723 | F56: =INDEX('Compile Data'!$DL$12:$EI$93,$A56-1921,'Report - ALL (DASHBOARD)'!$W$4) -> 4409.176251 | G56: =INDEX('Compile Data'!$EL$12:$FI$93,$A56-1921,'Report - ALL (DASHBOARD)'!$W$4) ->  | O56: 29 | P56: 0.3456790123 | Q56: =INDEX('Compile Data'!$L$123:$AI$204,$O56,'Report - ALL (DASHBOARD)'!$W$4) -> 4481.153227 | R56: =INDEX('Compile Data'!$AL$123:$BI$204,$O56,'Report - ALL (DASHBOARD)'!$W$4) -> 4481.153227 | S56: =INDEX('Compile Data'!$BL$123:$CI$204,$O56,'Report - ALL (DASHBOARD)'!$W$4) -> 4456 | T56: =INDEX('Compile Data'!$CL$123:$DI$204,$O56,'Report - ALL (DASHBOARD)'!$W$4) -> 4456 | U56: =INDEX('Compile Data'!$DL$123:$EI$204,$O56,'Report - ALL (DASHBOARD)'!$W$4) -> 4443.19553 | V56: =INDEX('Compile Data'!$EL$123:$FI$204,$O56,'Report - ALL (DASHBOARD)'!$W$4) -> 
A57: 1951 | B57: =INDEX('Compile Data'!$L$12:$AI$93,$A57-1921,'Report - ALL (DASHBOARD)'!$W$4) -> 4419.749461 | C57: =INDEX('Compile Data'!$AL$12:$BI$93,$A57-1921,'Report - ALL (DASHBOARD)'!$W$4) -> 4419.749461 | D57: =INDEX('Compile Data'!$BL$12:$CI$93,$A57-1921,'Report - ALL (DASHBOARD)'!$W$4) -> 4419.749461 | E57: =INDEX('Compile Data'!$CL$12:$DI$93,$A57-1921,'Report - ALL (DASHBOARD)'!$W$4) -> 4419.749461 | F57: =INDEX('Compile Data'!$DL$12:$EI$93,$A57-1921,'Report - ALL (DASHBOARD)'!$W$4) -> 4419.749461 | G57: =INDEX('Compile Data'!$EL$12:$FI$93,$A57-1921,'Report - ALL (DASHBOARD)'!$W$4) ->  | O57: 30 | P57: 0.3580246914 | Q57: =INDEX('Compile Data'!$L$123:$AI$204,$O57,'Report - ALL (DASHBOARD)'!$W$4) -> 4479.244009 | R57: =INDEX('Compile Data'!$AL$123:$BI$204,$O57,'Report - ALL (DASHBOARD)'!$W$4) -> 4479.244009 | S57: =INDEX('Compile Data'!$BL$123:$CI$204,$O57,'Report - ALL (DASHBOARD)'!$W$4) -> 4443.19553 | T57: =INDEX('Compile Data'!$CL$123:$DI$204,$O57,'Report - ALL (DASHBOARD)'!$W$4) -> 4443.19553 | U57: =INDEX('Compile Data'!$DL$123:$EI$204,$O57,'Report - ALL (DASHBOARD)'!$W$4) -> 4441.077838 | V57: =INDEX('Compile Data'!$EL$123:$FI$204,$O57,'Report - ALL (DASHBOARD)'!$W$4) -> 
A58: 1952 | B58: =INDEX('Compile Data'!$L$12:$AI$93,$A58-1921,'Report - ALL (DASHBOARD)'!$W$4) -> 4290 | C58: =INDEX('Compile Data'!$AL$12:$BI$93,$A58-1921,'Report - ALL (DASHBOARD)'!$W$4) -> 4290 | D58: =INDEX('Compile Data'!$BL$12:$CI$93,$A58-1921,'Report - ALL (DASHBOARD)'!$W$4) -> 4290 | E58: =INDEX('Compile Data'!$CL$12:$DI$93,$A58-1921,'Report - ALL (DASHBOARD)'!$W$4) -> 4290 | F58: =INDEX('Compile Data'!$DL$12:$EI$93,$A58-1921,'Report - ALL (DASHBOARD)'!$W$4) -> 4290 | G58: =INDEX('Compile Data'!$EL$12:$FI$93,$A58-1921,'Report - ALL (DASHBOARD)'!$W$4) ->  | O58: 31 | P58: 0.3703703704 | Q58: =INDEX('Compile Data'!$L$123:$AI$204,$O58,'Report - ALL (DASHBOARD)'!$W$4) -> 4479 | R58: =INDEX('Compile Data'!$AL$123:$BI$204,$O58,'Report - ALL (DASHBOARD)'!$W$4) -> 4479 | S58: =INDEX('Compile Data'!$BL$123:$CI$204,$O58,'Report - ALL (DASHBOARD)'!$W$4) -> 4441.077838 | T58: =INDEX('Compile Data'!$CL$123:$DI$204,$O58,'Report - ALL (DASHBOARD)'!$W$4) -> 4441.077838 | U58: =INDEX('Compile Data'!$DL$123:$EI$204,$O58,'Report - ALL (DASHBOARD)'!$W$4) -> 4434 | V58: =INDEX('Compile Data'!$EL$123:$FI$204,$O58,'Report - ALL (DASHBOARD)'!$W$4) -> 
A59: 1953 | B59: =INDEX('Compile Data'!$L$12:$AI$93,$A59-1921,'Report - ALL (DASHBOARD)'!$W$4) -> 4483.937053 | C59: =INDEX('Compile Data'!$AL$12:$BI$93,$A59-1921,'Report - ALL (DASHBOARD)'!$W$4) -> 4509.039543 | D59: =INDEX('Compile Data'!$BL$12:$CI$93,$A59-1921,'Report - ALL (DASHBOARD)'!$W$4) -> 4508.916554 | E59: =INDEX('Compile Data'!$CL$12:$DI$93,$A59-1921,'Report - ALL (DASHBOARD)'!$W$4) -> 4508.930118 | F59: =INDEX('Compile Data'!$DL$12:$EI$93,$A59-1921,'Report - ALL (DASHBOARD)'!$W$4) -> 4414.145986 | G59: =INDEX('Compile Data'!$EL$12:$FI$93,$A59-1921,'Report - ALL (DASHBOARD)'!$W$4) ->  | O59: 32 | P59: 0.3827160494 | Q59: =INDEX('Compile Data'!$L$123:$AI$204,$O59,'Report - ALL (DASHBOARD)'!$W$4) -> 4456 | R59: =INDEX('Compile Data'!$AL$123:$BI$204,$O59,'Report - ALL (DASHBOARD)'!$W$4) -> 4456 | S59: =INDEX('Compile Data'!$BL$123:$CI$204,$O59,'Report - ALL (DASHBOARD)'!$W$4) -> 4434 | T59: =INDEX('Compile Data'!$CL$123:$DI$204,$O59,'Report - ALL (DASHBOARD)'!$W$4) -> 4434 | U59: =INDEX('Compile Data'!$DL$123:$EI$204,$O59,'Report - ALL (DASHBOARD)'!$W$4) -> 4422.420948 | V59: =INDEX('Compile Data'!$EL$123:$FI$204,$O59,'Report - ALL (DASHBOARD)'!$W$4) -> 
A60: 1954 | B60: =INDEX('Compile Data'!$L$12:$AI$93,$A60-1921,'Report - ALL (DASHBOARD)'!$W$4) -> 4546 | C60: =INDEX('Compile Data'!$AL$12:$BI$93,$A60-1921,'Report - ALL (DASHBOARD)'!$W$4) -> 4546 | D60: =INDEX('Compile Data'!$BL$12:$CI$93,$A60-1921,'Report - ALL (DASHBOARD)'!$W$4) -> 4546 | E60: =INDEX('Compile Data'!$CL$12:$DI$93,$A60-1921,'Report - ALL (DASHBOARD)'!$W$4) -> 4546 | F60: =INDEX('Compile Data'!$DL$12:$EI$93,$A60-1921,'Report - ALL (DASHBOARD)'!$W$4) -> 4546 | G60: =INDEX('Compile Data'!$EL$12:$FI$93,$A60-1921,'Report - ALL (DASHBOARD)'!$W$4) ->  | O60: 33 | P60: 0.3950617284 | Q60: =INDEX('Compile Data'!$L$123:$AI$204,$O60,'Report - ALL (DASHBOARD)'!$W$4) -> 4434 | R60: =INDEX('Compile Data'!$AL$123:$BI$204,$O60,'Report - ALL (DASHBOARD)'!$W$4) -> 4434 | S60: =INDEX('Compile Data'!$BL$123:$CI$204,$O60,'Report - ALL (DASHBOARD)'!$W$4) -> 4427.053692 | T60: =INDEX('Compile Data'!$CL$123:$DI$204,$O60,'Report - ALL (DASHBOARD)'!$W$4) -> 4422 | U60: =INDEX('Compile Data'!$DL$123:$EI$204,$O60,'Report - ALL (DASHBOARD)'!$W$4) -> 4422 | V60: =INDEX('Compile Data'!$EL$123:$FI$204,$O60,'Report - ALL (DASHBOARD)'!$W$4) -> 
A61: 1955 | B61: =INDEX('Compile Data'!$L$12:$AI$93,$A61-1921,'Report - ALL (DASHBOARD)'!$W$4) -> 4186.897132 | C61: =INDEX('Compile Data'!$AL$12:$BI$93,$A61-1921,'Report - ALL (DASHBOARD)'!$W$4) -> 4193.873484 | D61: =INDEX('Compile Data'!$BL$12:$CI$93,$A61-1921,'Report - ALL (DASHBOARD)'!$W$4) -> 4193.873381 | E61: =INDEX('Compile Data'!$CL$12:$DI$93,$A61-1921,'Report - ALL (DASHBOARD)'!$W$4) -> 4193.200771 | F61: =INDEX('Compile Data'!$DL$12:$EI$93,$A61-1921,'Report - ALL (DASHBOARD)'!$W$4) -> 4056.627267 | G61: =INDEX('Compile Data'!$EL$12:$FI$93,$A61-1921,'Report - ALL (DASHBOARD)'!$W$4) ->  | O61: 34 | P61: 0.4074074074 | Q61: =INDEX('Compile Data'!$L$123:$AI$204,$O61,'Report - ALL (DASHBOARD)'!$W$4) -> 4425.326204 | R61: =INDEX('Compile Data'!$AL$123:$BI$204,$O61,'Report - ALL (DASHBOARD)'!$W$4) -> 4427.56563 | S61: =INDEX('Compile Data'!$BL$123:$CI$204,$O61,'Report - ALL (DASHBOARD)'!$W$4) -> 4422 | T61: =INDEX('Compile Data'!$CL$123:$DI$204,$O61,'Report - ALL (DASHBOARD)'!$W$4) -> 4420.289218 | U61: =INDEX('Compile Data'!$DL$123:$EI$204,$O61,'Report - ALL (DASHBOARD)'!$W$4) -> 4420.289218 | V61: =INDEX('Compile Data'!$EL$123:$FI$204,$O61,'Report - ALL (DASHBOARD)'!$W$4) -> 
A62: 1956 | B62: =INDEX('Compile Data'!$L$12:$AI$93,$A62-1921,'Report - ALL (DASHBOARD)'!$W$4) -> 4487.018905 | C62: =INDEX('Compile Data'!$AL$12:$BI$93,$A62-1921,'Report - ALL (DASHBOARD)'!$W$4) -> 4487.018902 | D62: =INDEX('Compile Data'!$BL$12:$CI$93,$A62-1921,'Report - ALL (DASHBOARD)'!$W$4) -> 4487.018902 | E62: =INDEX('Compile Data'!$CL$12:$DI$93,$A62-1921,'Report - ALL (DASHBOARD)'!$W$4) -> 4487.018902 | F62: =INDEX('Compile Data'!$DL$12:$EI$93,$A62-1921,'Report - ALL (DASHBOARD)'!$W$4) -> 4487.018902 | G62: =INDEX('Compile Data'!$EL$12:$FI$93,$A62-1921,'Report - ALL (DASHBOARD)'!$W$4) ->  | O62: 35 | P62: 0.4197530864 | Q62: =INDEX('Compile Data'!$L$123:$AI$204,$O62,'Report - ALL (DASHBOARD)'!$W$4) -> 4422 | R62: =INDEX('Compile Data'!$AL$123:$BI$204,$O62,'Report - ALL (DASHBOARD)'!$W$4) -> 4425.326204 | S62: =INDEX('Compile Data'!$BL$123:$CI$204,$O62,'Report - ALL (DASHBOARD)'!$W$4) -> 4420.289218 | T62: =INDEX('Compile Data'!$CL$123:$DI$204,$O62,'Report - ALL (DASHBOARD)'!$W$4) -> 4419.749461 | U62: =INDEX('Compile Data'!$DL$123:$EI$204,$O62,'Report - ALL (DASHBOARD)'!$W$4) -> 4419.749461 | V62: =INDEX('Compile Data'!$EL$123:$FI$204,$O62,'Report - ALL (DASHBOARD)'!$W$4) -> 
A63: 1957 | B63: =INDEX('Compile Data'!$L$12:$AI$93,$A63-1921,'Report - ALL (DASHBOARD)'!$W$4) -> 4538.920429 | C63: =INDEX('Compile Data'!$AL$12:$BI$93,$A63-1921,'Report - ALL (DASHBOARD)'!$W$4) -> 4538.920429 | D63: =INDEX('Compile Data'!$BL$12:$CI$93,$A63-1921,'Report - ALL (DASHBOARD)'!$W$4) -> 4463.992491 | E63: =INDEX('Compile Data'!$CL$12:$DI$93,$A63-1921,'Report - ALL (DASHBOARD)'!$W$4) -> 4463.992491 | F63: =INDEX('Compile Data'!$DL$12:$EI$93,$A63-1921,'Report - ALL (DASHBOARD)'!$W$4) -> 4463.992491 | G63: =INDEX('Compile Data'!$EL$12:$FI$93,$A63-1921,'Report - ALL (DASHBOARD)'!$W$4) ->  | O63: 36 | P63: 0.4320987654 | Q63: =INDEX('Compile Data'!$L$123:$AI$204,$O63,'Report - ALL (DASHBOARD)'!$W$4) -> 4421.173113 | R63: =INDEX('Compile Data'!$AL$123:$BI$204,$O63,'Report - ALL (DASHBOARD)'!$W$4) -> 4422 | S63: =INDEX('Compile Data'!$BL$123:$CI$204,$O63,'Report - ALL (DASHBOARD)'!$W$4) -> 4419.749461 | T63: =INDEX('Compile Data'!$CL$123:$DI$204,$O63,'Report - ALL (DASHBOARD)'!$W$4) -> 4412.311129 | U63: =INDEX('Compile Data'!$DL$123:$EI$204,$O63,'Report - ALL (DASHBOARD)'!$W$4) -> 4414.145986 | V63: =INDEX('Compile Data'!$EL$123:$FI$204,$O63,'Report - ALL (DASHBOARD)'!$W$4) -> 
A64: 1958 | B64: =INDEX('Compile Data'!$L$12:$AI$93,$A64-1921,'Report - ALL (DASHBOARD)'!$W$4) -> 4173 | C64: =INDEX('Compile Data'!$AL$12:$BI$93,$A64-1921,'Report - ALL (DASHBOARD)'!$W$4) -> 4173 | D64: =INDEX('Compile Data'!$BL$12:$CI$93,$A64-1921,'Report - ALL (DASHBOARD)'!$W$4) -> 4173 | E64: =INDEX('Compile Data'!$CL$12:$DI$93,$A64-1921,'Report - ALL (DASHBOARD)'!$W$4) -> 4173 | F64: =INDEX('Compile Data'!$DL$12:$EI$93,$A64-1921,'Report - ALL (DASHBOARD)'!$W$4) -> 4173 | G64: =INDEX('Compile Data'!$EL$12:$FI$93,$A64-1921,'Report - ALL (DASHBOARD)'!$W$4) ->  | O64: 37 | P64: 0.4444444444 | Q64: =INDEX('Compile Data'!$L$123:$AI$204,$O64,'Report - ALL (DASHBOARD)'!$W$4) -> 4420.289218 | R64: =INDEX('Compile Data'!$AL$123:$BI$204,$O64,'Report - ALL (DASHBOARD)'!$W$4) -> 4420.289218 | S64: =INDEX('Compile Data'!$BL$123:$CI$204,$O64,'Report - ALL (DASHBOARD)'!$W$4) -> 4412.311129 | T64: =INDEX('Compile Data'!$CL$123:$DI$204,$O64,'Report - ALL (DASHBOARD)'!$W$4) -> 4385.285723 | U64: =INDEX('Compile Data'!$DL$123:$EI$204,$O64,'Report - ALL (DASHBOARD)'!$W$4) -> 4412.311129 | V64: =INDEX('Compile Data'!$EL$123:$FI$204,$O64,'Report - ALL (DASHBOARD)'!$W$4) -> 
A65: 1959 | B65: =INDEX('Compile Data'!$L$12:$AI$93,$A65-1921,'Report - ALL (DASHBOARD)'!$W$4) -> 4512.53156 | C65: =INDEX('Compile Data'!$AL$12:$BI$93,$A65-1921,'Report - ALL (DASHBOARD)'!$W$4) -> 4501.123496 | D65: =INDEX('Compile Data'!$BL$12:$CI$93,$A65-1921,'Report - ALL (DASHBOARD)'!$W$4) -> 4501.120612 | E65: =INDEX('Compile Data'!$CL$12:$DI$93,$A65-1921,'Report - ALL (DASHBOARD)'!$W$4) -> 4499.324989 | F65: =INDEX('Compile Data'!$DL$12:$EI$93,$A65-1921,'Report - ALL (DASHBOARD)'!$W$4) -> 4501.121037 | G65: =INDEX('Compile Data'!$EL$12:$FI$93,$A65-1921,'Report - ALL (DASHBOARD)'!$W$4) ->  | O65: 38 | P65: 0.4567901235 | Q65: =INDEX('Compile Data'!$L$123:$AI$204,$O65,'Report - ALL (DASHBOARD)'!$W$4) -> 4419.749461 | R65: =INDEX('Compile Data'!$AL$123:$BI$204,$O65,'Report - ALL (DASHBOARD)'!$W$4) -> 4419.749461 | S65: =INDEX('Compile Data'!$BL$123:$CI$204,$O65,'Report - ALL (DASHBOARD)'!$W$4) -> 4408.404208 | T65: =INDEX('Compile Data'!$CL$123:$DI$204,$O65,'Report - ALL (DASHBOARD)'!$W$4) -> 4383.013987 | U65: =INDEX('Compile Data'!$DL$123:$EI$204,$O65,'Report - ALL (DASHBOARD)'!$W$4) -> 4409.176251 | V65: =INDEX('Compile Data'!$EL$123:$FI$204,$O65,'Report - ALL (DASHBOARD)'!$W$4) -> 
A66: 1960 | B66: =INDEX('Compile Data'!$L$12:$AI$93,$A66-1921,'Report - ALL (DASHBOARD)'!$W$4) -> 4066.066006 | C66: =INDEX('Compile Data'!$AL$12:$BI$93,$A66-1921,'Report - ALL (DASHBOARD)'!$W$4) -> 4045.182458 | D66: =INDEX('Compile Data'!$BL$12:$CI$93,$A66-1921,'Report - ALL (DASHBOARD)'!$W$4) -> 4113.712625 | E66: =INDEX('Compile Data'!$CL$12:$DI$93,$A66-1921,'Report - ALL (DASHBOARD)'!$W$4) -> 4088.591102 | F66: =INDEX('Compile Data'!$DL$12:$EI$93,$A66-1921,'Report - ALL (DASHBOARD)'!$W$4) -> 4141.481433 | G66: =INDEX('Compile Data'!$EL$12:$FI$93,$A66-1921,'Report - ALL (DASHBOARD)'!$W$4) ->  | O66: 39 | P66: 0.4691358025 | Q66: =INDEX('Compile Data'!$L$123:$AI$204,$O66,'Report - ALL (DASHBOARD)'!$W$4) -> 4411.669365 | R66: =INDEX('Compile Data'!$AL$123:$BI$204,$O66,'Report - ALL (DASHBOARD)'!$W$4) -> 4400.904771 | S66: =INDEX('Compile Data'!$BL$123:$CI$204,$O66,'Report - ALL (DASHBOARD)'!$W$4) -> 4383.013987 | T66: =INDEX('Compile Data'!$CL$123:$DI$204,$O66,'Report - ALL (DASHBOARD)'!$W$4) -> 4354.547058 | U66: =INDEX('Compile Data'!$DL$123:$EI$204,$O66,'Report - ALL (DASHBOARD)'!$W$4) -> 4383.013987 | V66: =INDEX('Compile Data'!$EL$123:$FI$204,$O66,'Report - ALL (DASHBOARD)'!$W$4) -> 
A67: 1961 | B67: =INDEX('Compile Data'!$L$12:$AI$93,$A67-1921,'Report - ALL (DASHBOARD)'!$W$4) -> 4551.551962 | C67: =INDEX('Compile Data'!$AL$12:$BI$93,$A67-1921,'Report - ALL (DASHBOARD)'!$W$4) -> 4552 | D67: =INDEX('Compile Data'!$BL$12:$CI$93,$A67-1921,'Report - ALL (DASHBOARD)'!$W$4) -> 4552 | E67: =INDEX('Compile Data'!$CL$12:$DI$93,$A67-1921,'Report - ALL (DASHBOARD)'!$W$4) -> 4552 | F67: =INDEX('Compile Data'!$DL$12:$EI$93,$A67-1921,'Report - ALL (DASHBOARD)'!$W$4) -> 4552 | G67: =INDEX('Compile Data'!$EL$12:$FI$93,$A67-1921,'Report - ALL (DASHBOARD)'!$W$4) ->  | O67: 40 | P67: 0.4814814815 | Q67: =INDEX('Compile Data'!$L$123:$AI$204,$O67,'Report - ALL (DASHBOARD)'!$W$4) -> 4383.013987 | R67: =INDEX('Compile Data'!$AL$123:$BI$204,$O67,'Report - ALL (DASHBOARD)'!$W$4) -> 4383.013987 | S67: =INDEX('Compile Data'!$BL$123:$CI$204,$O67,'Report - ALL (DASHBOARD)'!$W$4) -> 4350.388897 | T67: =INDEX('Compile Data'!$CL$123:$DI$204,$O67,'Report - ALL (DASHBOARD)'!$W$4) -> 4350.388897 | U67: =INDEX('Compile Data'!$DL$123:$EI$204,$O67,'Report - ALL (DASHBOARD)'!$W$4) -> 4350.388897 | V67: =INDEX('Compile Data'!$EL$123:$FI$204,$O67,'Report - ALL (DASHBOARD)'!$W$4) -> 
A68: 1962 | B68: =INDEX('Compile Data'!$L$12:$AI$93,$A68-1921,'Report - ALL (DASHBOARD)'!$W$4) -> 4552 | C68: =INDEX('Compile Data'!$AL$12:$BI$93,$A68-1921,'Report - ALL (DASHBOARD)'!$W$4) -> 4552 | D68: =INDEX('Compile Data'!$BL$12:$CI$93,$A68-1921,'Report - ALL (DASHBOARD)'!$W$4) -> 4552 | E68: =INDEX('Compile Data'!$CL$12:$DI$93,$A68-1921,'Report - ALL (DASHBOARD)'!$W$4) -> 4552 | F68: =INDEX('Compile Data'!$DL$12:$EI$93,$A68-1921,'Report - ALL (DASHBOARD)'!$W$4) -> 4552 | G68: =INDEX('Compile Data'!$EL$12:$FI$93,$A68-1921,'Report - ALL (DASHBOARD)'!$W$4) ->  | O68: 41 | P68: 0.4938271605 | Q68: =INDEX('Compile Data'!$L$123:$AI$204,$O68,'Report - ALL (DASHBOARD)'!$W$4) -> 4293.398405 | R68: =INDEX('Compile Data'!$AL$123:$BI$204,$O68,'Report - ALL (DASHBOARD)'!$W$4) -> 4290 | S68: =INDEX('Compile Data'!$BL$123:$CI$204,$O68,'Report - ALL (DASHBOARD)'!$W$4) -> 4293.398405 | T68: =INDEX('Compile Data'!$CL$123:$DI$204,$O68,'Report - ALL (DASHBOARD)'!$W$4) -> 4290 | U68: =INDEX('Compile Data'!$DL$123:$EI$204,$O68,'Report - ALL (DASHBOARD)'!$W$4) -> 4293.398405 | V68: =INDEX('Compile Data'!$EL$123:$FI$204,$O68,'Report - ALL (DASHBOARD)'!$W$4) -> 
A69: 1963 | B69: =INDEX('Compile Data'!$L$12:$AI$93,$A69-1921,'Report - ALL (DASHBOARD)'!$W$4) -> 4137 | C69: =INDEX('Compile Data'!$AL$12:$BI$93,$A69-1921,'Report - ALL (DASHBOARD)'!$W$4) -> 4137 | D69: =INDEX('Compile Data'!$BL$12:$CI$93,$A69-1921,'Report - ALL (DASHBOARD)'!$W$4) -> 4137 | E69: =INDEX('Compile Data'!$CL$12:$DI$93,$A69-1921,'Report - ALL (DASHBOARD)'!$W$4) -> 4137 | F69: =INDEX('Compile Data'!$DL$12:$EI$93,$A69-1921,'Report - ALL (DASHBOARD)'!$W$4) -> 4137 | G69: =INDEX('Compile Data'!$EL$12:$FI$93,$A69-1921,'Report - ALL (DASHBOARD)'!$W$4) ->  | O69: 42 | P69: 0.5061728395 | Q69: =INDEX('Compile Data'!$L$123:$AI$204,$O69,'Report - ALL (DASHBOARD)'!$W$4) -> 4290 | R69: =INDEX('Compile Data'!$AL$123:$BI$204,$O69,'Report - ALL (DASHBOARD)'!$W$4) -> 4289 | S69: =INDEX('Compile Data'!$BL$123:$CI$204,$O69,'Report - ALL (DASHBOARD)'!$W$4) -> 4290 | T69: =INDEX('Compile Data'!$CL$123:$DI$204,$O69,'Report - ALL (DASHBOARD)'!$W$4) -> 4289 | U69: =INDEX('Compile Data'!$DL$123:$EI$204,$O69,'Report - ALL (DASHBOARD)'!$W$4) -> 4290 | V69: =INDEX('Compile Data'!$EL$123:$FI$204,$O69,'Report - ALL (DASHBOARD)'!$W$4) -> 
A70: 1964 | B70: =INDEX('Compile Data'!$L$12:$AI$93,$A70-1921,'Report - ALL (DASHBOARD)'!$W$4) -> 3980.821629 | C70: =INDEX('Compile Data'!$AL$12:$BI$93,$A70-1921,'Report - ALL (DASHBOARD)'!$W$4) -> 4058.819509 | D70: =INDEX('Compile Data'!$BL$12:$CI$93,$A70-1921,'Report - ALL (DASHBOARD)'!$W$4) -> 4054.596137 | E70: =INDEX('Compile Data'!$CL$12:$DI$93,$A70-1921,'Report - ALL (DASHBOARD)'!$W$4) -> 4054.552794 | F70: =INDEX('Compile Data'!$DL$12:$EI$93,$A70-1921,'Report - ALL (DASHBOARD)'!$W$4) -> 3864.72217 | G70: =INDEX('Compile Data'!$EL$12:$FI$93,$A70-1921,'Report - ALL (DASHBOARD)'!$W$4) ->  | O70: 43 | P70: 0.5185185185 | Q70: =INDEX('Compile Data'!$L$123:$AI$204,$O70,'Report - ALL (DASHBOARD)'!$W$4) -> 4289 | R70: =INDEX('Compile Data'!$AL$123:$BI$204,$O70,'Report - ALL (DASHBOARD)'!$W$4) -> 4279.303671 | S70: =INDEX('Compile Data'!$BL$123:$CI$204,$O70,'Report - ALL (DASHBOARD)'!$W$4) -> 4289 | T70: =INDEX('Compile Data'!$CL$123:$DI$204,$O70,'Report - ALL (DASHBOARD)'!$W$4) -> 4280.054147 | U70: =INDEX('Compile Data'!$DL$123:$EI$204,$O70,'Report - ALL (DASHBOARD)'!$W$4) -> 4289 | V70: =INDEX('Compile Data'!$EL$123:$FI$204,$O70,'Report - ALL (DASHBOARD)'!$W$4) -> 
A71: 1965 | B71: =INDEX('Compile Data'!$L$12:$AI$93,$A71-1921,'Report - ALL (DASHBOARD)'!$W$4) -> 4500 | C71: =INDEX('Compile Data'!$AL$12:$BI$93,$A71-1921,'Report - ALL (DASHBOARD)'!$W$4) -> 4500 | D71: =INDEX('Compile Data'!$BL$12:$CI$93,$A71-1921,'Report - ALL (DASHBOARD)'!$W$4) -> 4500 | E71: =INDEX('Compile Data'!$CL$12:$DI$93,$A71-1921,'Report - ALL (DASHBOARD)'!$W$4) -> 4500 | F71: =INDEX('Compile Data'!$DL$12:$EI$93,$A71-1921,'Report - ALL (DASHBOARD)'!$W$4) -> 4500 | G71: =INDEX('Compile Data'!$EL$12:$FI$93,$A71-1921,'Report - ALL (DASHBOARD)'!$W$4) ->  | O71: 44 | P71: 0.5308641975 | Q71: =INDEX('Compile Data'!$L$123:$AI$204,$O71,'Report - ALL (DASHBOARD)'!$W$4) -> 4250.343437 | R71: =INDEX('Compile Data'!$AL$123:$BI$204,$O71,'Report - ALL (DASHBOARD)'!$W$4) -> 4250.343437 | S71: =INDEX('Compile Data'!$BL$123:$CI$204,$O71,'Report - ALL (DASHBOARD)'!$W$4) -> 4250.343437 | T71: =INDEX('Compile Data'!$CL$123:$DI$204,$O71,'Report - ALL (DASHBOARD)'!$W$4) -> 4250.343437 | U71: =INDEX('Compile Data'!$DL$123:$EI$204,$O71,'Report - ALL (DASHBOARD)'!$W$4) -> 4250.343437 | V71: =INDEX('Compile Data'!$EL$123:$FI$204,$O71,'Report - ALL (DASHBOARD)'!$W$4) -> 
A72: 1966 | B72: =INDEX('Compile Data'!$L$12:$AI$93,$A72-1921,'Report - ALL (DASHBOARD)'!$W$4) -> 4552 | C72: =INDEX('Compile Data'!$AL$12:$BI$93,$A72-1921,'Report - ALL (DASHBOARD)'!$W$4) -> 4552 | D72: =INDEX('Compile Data'!$BL$12:$CI$93,$A72-1921,'Report - ALL (DASHBOARD)'!$W$4) -> 4552 | E72: =INDEX('Compile Data'!$CL$12:$DI$93,$A72-1921,'Report - ALL (DASHBOARD)'!$W$4) -> 4552 | F72: =INDEX('Compile Data'!$DL$12:$EI$93,$A72-1921,'Report - ALL (DASHBOARD)'!$W$4) -> 4552 | G72: =INDEX('Compile Data'!$EL$12:$FI$93,$A72-1921,'Report - ALL (DASHBOARD)'!$W$4) ->  | O72: 45 | P72: 0.5432098765 | Q72: =INDEX('Compile Data'!$L$123:$AI$204,$O72,'Report - ALL (DASHBOARD)'!$W$4) -> 4229.79085 | R72: =INDEX('Compile Data'!$AL$123:$BI$204,$O72,'Report - ALL (DASHBOARD)'!$W$4) -> 4239.576444 | S72: =INDEX('Compile Data'!$BL$123:$CI$204,$O72,'Report - ALL (DASHBOARD)'!$W$4) -> 4239.576444 | T72: =INDEX('Compile Data'!$CL$123:$DI$204,$O72,'Report - ALL (DASHBOARD)'!$W$4) -> 4230.524062 | U72: =INDEX('Compile Data'!$DL$123:$EI$204,$O72,'Report - ALL (DASHBOARD)'!$W$4) -> 4224.490493 | V72: =INDEX('Compile Data'!$EL$123:$FI$204,$O72,'Report - ALL (DASHBOARD)'!$W$4) -> 
A73: 1967 | B73: =INDEX('Compile Data'!$L$12:$AI$93,$A73-1921,'Report - ALL (DASHBOARD)'!$W$4) -> 4479 | C73: =INDEX('Compile Data'!$AL$12:$BI$93,$A73-1921,'Report - ALL (DASHBOARD)'!$W$4) -> 4479 | D73: =INDEX('Compile Data'!$BL$12:$CI$93,$A73-1921,'Report - ALL (DASHBOARD)'!$W$4) -> 4479 | E73: =INDEX('Compile Data'!$CL$12:$DI$93,$A73-1921,'Report - ALL (DASHBOARD)'!$W$4) -> 4479 | F73: =INDEX('Compile Data'!$DL$12:$EI$93,$A73-1921,'Report - ALL (DASHBOARD)'!$W$4) -> 4479 | G73: =INDEX('Compile Data'!$EL$12:$FI$93,$A73-1921,'Report - ALL (DASHBOARD)'!$W$4) ->  | O73: 46 | P73: 0.5555555556 | Q73: =INDEX('Compile Data'!$L$123:$AI$204,$O73,'Report - ALL (DASHBOARD)'!$W$4) -> 4224.490492 | R73: =INDEX('Compile Data'!$AL$123:$BI$204,$O73,'Report - ALL (DASHBOARD)'!$W$4) -> 4224.490493 | S73: =INDEX('Compile Data'!$BL$123:$CI$204,$O73,'Report - ALL (DASHBOARD)'!$W$4) -> 4224.490493 | T73: =INDEX('Compile Data'!$CL$123:$DI$204,$O73,'Report - ALL (DASHBOARD)'!$W$4) -> 4224.490493 | U73: =INDEX('Compile Data'!$DL$123:$EI$204,$O73,'Report - ALL (DASHBOARD)'!$W$4) -> 4216.799805 | V73: =INDEX('Compile Data'!$EL$123:$FI$204,$O73,'Report - ALL (DASHBOARD)'!$W$4) -> 
A74: 1968 | B74: =INDEX('Compile Data'!$L$12:$AI$93,$A74-1921,'Report - ALL (DASHBOARD)'!$W$4) -> 4481.153227 | C74: =INDEX('Compile Data'!$AL$12:$BI$93,$A74-1921,'Report - ALL (DASHBOARD)'!$W$4) -> 4481.153227 | D74: =INDEX('Compile Data'!$BL$12:$CI$93,$A74-1921,'Report - ALL (DASHBOARD)'!$W$4) -> 4481.153227 | E74: =INDEX('Compile Data'!$CL$12:$DI$93,$A74-1921,'Report - ALL (DASHBOARD)'!$W$4) -> 4481.153227 | F74: =INDEX('Compile Data'!$DL$12:$EI$93,$A74-1921,'Report - ALL (DASHBOARD)'!$W$4) -> 4481.153227 | G74: =INDEX('Compile Data'!$EL$12:$FI$93,$A74-1921,'Report - ALL (DASHBOARD)'!$W$4) ->  | O74: 47 | P74: 0.5679012346 | Q74: =INDEX('Compile Data'!$L$123:$AI$204,$O74,'Report - ALL (DASHBOARD)'!$W$4) -> 4216.799805 | R74: =INDEX('Compile Data'!$AL$123:$BI$204,$O74,'Report - ALL (DASHBOARD)'!$W$4) -> 4216.799805 | S74: =INDEX('Compile Data'!$BL$123:$CI$204,$O74,'Report - ALL (DASHBOARD)'!$W$4) -> 4216.799805 | T74: =INDEX('Compile Data'!$CL$123:$DI$204,$O74,'Report - ALL (DASHBOARD)'!$W$4) -> 4216.799805 | U74: =INDEX('Compile Data'!$DL$123:$EI$204,$O74,'Report - ALL (DASHBOARD)'!$W$4) -> 4214.205131 | V74: =INDEX('Compile Data'!$EL$123:$FI$204,$O74,'Report - ALL (DASHBOARD)'!$W$4) -> 
A75: 1969 | B75: =INDEX('Compile Data'!$L$12:$AI$93,$A75-1921,'Report - ALL (DASHBOARD)'!$W$4) -> 4434 | C75: =INDEX('Compile Data'!$AL$12:$BI$93,$A75-1921,'Report - ALL (DASHBOARD)'!$W$4) -> 4434 | D75: =INDEX('Compile Data'!$BL$12:$CI$93,$A75-1921,'Report - ALL (DASHBOARD)'!$W$4) -> 4434 | E75: =INDEX('Compile Data'!$CL$12:$DI$93,$A75-1921,'Report - ALL (DASHBOARD)'!$W$4) -> 4434 | F75: =INDEX('Compile Data'!$DL$12:$EI$93,$A75-1921,'Report - ALL (DASHBOARD)'!$W$4) -> 4434 | G75: =INDEX('Compile Data'!$EL$12:$FI$93,$A75-1921,'Report - ALL (DASHBOARD)'!$W$4) ->  | O75: 48 | P75: 0.5802469136 | Q75: =INDEX('Compile Data'!$L$123:$AI$204,$O75,'Report - ALL (DASHBOARD)'!$W$4) -> 4202.39397 | R75: =INDEX('Compile Data'!$AL$123:$BI$204,$O75,'Report - ALL (DASHBOARD)'!$W$4) -> 4202.393971 | S75: =INDEX('Compile Data'!$BL$123:$CI$204,$O75,'Report - ALL (DASHBOARD)'!$W$4) -> 4207.563745 | T75: =INDEX('Compile Data'!$CL$123:$DI$204,$O75,'Report - ALL (DASHBOARD)'!$W$4) -> 4202.393971 | U75: =INDEX('Compile Data'!$DL$123:$EI$204,$O75,'Report - ALL (DASHBOARD)'!$W$4) -> 4212.159668 | V75: =INDEX('Compile Data'!$EL$123:$FI$204,$O75,'Report - ALL (DASHBOARD)'!$W$4) -> 
A76: 1970 | B76: =INDEX('Compile Data'!$L$12:$AI$93,$A76-1921,'Report - ALL (DASHBOARD)'!$W$4) -> 4202.39397 | C76: =INDEX('Compile Data'!$AL$12:$BI$93,$A76-1921,'Report - ALL (DASHBOARD)'!$W$4) -> 4202.393971 | D76: =INDEX('Compile Data'!$BL$12:$CI$93,$A76-1921,'Report - ALL (DASHBOARD)'!$W$4) -> 4202.393971 | E76: =INDEX('Compile Data'!$CL$12:$DI$93,$A76-1921,'Report - ALL (DASHBOARD)'!$W$4) -> 4202.393971 | F76: =INDEX('Compile Data'!$DL$12:$EI$93,$A76-1921,'Report - ALL (DASHBOARD)'!$W$4) -> 4202.393971 | G76: =INDEX('Compile Data'!$EL$12:$FI$93,$A76-1921,'Report - ALL (DASHBOARD)'!$W$4) ->  | O76: 49 | P76: 0.5925925926 | Q76: =INDEX('Compile Data'!$L$123:$AI$204,$O76,'Report - ALL (DASHBOARD)'!$W$4) -> 4199.357414 | R76: =INDEX('Compile Data'!$AL$123:$BI$204,$O76,'Report - ALL (DASHBOARD)'!$W$4) -> 4200.512983 | S76: =INDEX('Compile Data'!$BL$123:$CI$204,$O76,'Report - ALL (DASHBOARD)'!$W$4) -> 4202.393971 | T76: =INDEX('Compile Data'!$CL$123:$DI$204,$O76,'Report - ALL (DASHBOARD)'!$W$4) -> 4201.885409 | U76: =INDEX('Compile Data'!$DL$123:$EI$204,$O76,'Report - ALL (DASHBOARD)'!$W$4) -> 4202.393971 | V76: =INDEX('Compile Data'!$EL$123:$FI$204,$O76,'Report - ALL (DASHBOARD)'!$W$4) -> 
A77: 1971 | B77: =INDEX('Compile Data'!$L$12:$AI$93,$A77-1921,'Report - ALL (DASHBOARD)'!$W$4) -> 4518.140388 | C77: =INDEX('Compile Data'!$AL$12:$BI$93,$A77-1921,'Report - ALL (DASHBOARD)'!$W$4) -> 4518.140388 | D77: =INDEX('Compile Data'!$BL$12:$CI$93,$A77-1921,'Report - ALL (DASHBOARD)'!$W$4) -> 4443.19553 | E77: =INDEX('Compile Data'!$CL$12:$DI$93,$A77-1921,'Report - ALL (DASHBOARD)'!$W$4) -> 4443.19553 | F77: =INDEX('Compile Data'!$DL$12:$EI$93,$A77-1921,'Report - ALL (DASHBOARD)'!$W$4) -> 4443.19553 | G77: =INDEX('Compile Data'!$EL$12:$FI$93,$A77-1921,'Report - ALL (DASHBOARD)'!$W$4) ->  | O77: 50 | P77: 0.6049382716 | Q77: =INDEX('Compile Data'!$L$123:$AI$204,$O77,'Report - ALL (DASHBOARD)'!$W$4) -> 4189.159594 | R77: =INDEX('Compile Data'!$AL$123:$BI$204,$O77,'Report - ALL (DASHBOARD)'!$W$4) -> 4193.873484 | S77: =INDEX('Compile Data'!$BL$123:$CI$204,$O77,'Report - ALL (DASHBOARD)'!$W$4) -> 4202.058488 | T77: =INDEX('Compile Data'!$CL$123:$DI$204,$O77,'Report - ALL (DASHBOARD)'!$W$4) -> 4200.595477 | U77: =INDEX('Compile Data'!$DL$123:$EI$204,$O77,'Report - ALL (DASHBOARD)'!$W$4) -> 4173 | V77: =INDEX('Compile Data'!$EL$123:$FI$204,$O77,'Report - ALL (DASHBOARD)'!$W$4) -> 
A78: 1972 | B78: =INDEX('Compile Data'!$L$12:$AI$93,$A78-1921,'Report - ALL (DASHBOARD)'!$W$4) -> 4552 | C78: =INDEX('Compile Data'!$AL$12:$BI$93,$A78-1921,'Report - ALL (DASHBOARD)'!$W$4) -> 4552 | D78: =INDEX('Compile Data'!$BL$12:$CI$93,$A78-1921,'Report - ALL (DASHBOARD)'!$W$4) -> 4552 | E78: =INDEX('Compile Data'!$CL$12:$DI$93,$A78-1921,'Report - ALL (DASHBOARD)'!$W$4) -> 4552 | F78: =INDEX('Compile Data'!$DL$12:$EI$93,$A78-1921,'Report - ALL (DASHBOARD)'!$W$4) -> 4552 | G78: =INDEX('Compile Data'!$EL$12:$FI$93,$A78-1921,'Report - ALL (DASHBOARD)'!$W$4) ->  | O78: 51 | P78: 0.6172839506 | Q78: =INDEX('Compile Data'!$L$123:$AI$204,$O78,'Report - ALL (DASHBOARD)'!$W$4) -> 4186.897132 | R78: =INDEX('Compile Data'!$AL$123:$BI$204,$O78,'Report - ALL (DASHBOARD)'!$W$4) -> 4188.617467 | S78: =INDEX('Compile Data'!$BL$123:$CI$204,$O78,'Report - ALL (DASHBOARD)'!$W$4) -> 4200.37981 | T78: =INDEX('Compile Data'!$CL$123:$DI$204,$O78,'Report - ALL (DASHBOARD)'!$W$4) -> 4196.292226 | U78: =INDEX('Compile Data'!$DL$123:$EI$204,$O78,'Report - ALL (DASHBOARD)'!$W$4) -> 4141.481433 | V78: =INDEX('Compile Data'!$EL$123:$FI$204,$O78,'Report - ALL (DASHBOARD)'!$W$4) -> 
A79: 1973 | B79: =INDEX('Compile Data'!$L$12:$AI$93,$A79-1921,'Report - ALL (DASHBOARD)'!$W$4) -> 4516.005107 | C79: =INDEX('Compile Data'!$AL$12:$BI$93,$A79-1921,'Report - ALL (DASHBOARD)'!$W$4) -> 4516.005107 | D79: =INDEX('Compile Data'!$BL$12:$CI$93,$A79-1921,'Report - ALL (DASHBOARD)'!$W$4) -> 4441.077838 | E79: =INDEX('Compile Data'!$CL$12:$DI$93,$A79-1921,'Report - ALL (DASHBOARD)'!$W$4) -> 4441.077838 | F79: =INDEX('Compile Data'!$DL$12:$EI$93,$A79-1921,'Report - ALL (DASHBOARD)'!$W$4) -> 4441.077838 | G79: =INDEX('Compile Data'!$EL$12:$FI$93,$A79-1921,'Report - ALL (DASHBOARD)'!$W$4) ->  | O79: 52 | P79: 0.6296296296 | Q79: =INDEX('Compile Data'!$L$123:$AI$204,$O79,'Report - ALL (DASHBOARD)'!$W$4) -> 4173 | R79: =INDEX('Compile Data'!$AL$123:$BI$204,$O79,'Report - ALL (DASHBOARD)'!$W$4) -> 4176.617403 | S79: =INDEX('Compile Data'!$BL$123:$CI$204,$O79,'Report - ALL (DASHBOARD)'!$W$4) -> 4193.873381 | T79: =INDEX('Compile Data'!$CL$123:$DI$204,$O79,'Report - ALL (DASHBOARD)'!$W$4) -> 4193.200771 | U79: =INDEX('Compile Data'!$DL$123:$EI$204,$O79,'Report - ALL (DASHBOARD)'!$W$4) -> 4137 | V79: =INDEX('Compile Data'!$EL$123:$FI$204,$O79,'Report - ALL (DASHBOARD)'!$W$4) -> 
A80: 1974 | B80: =INDEX('Compile Data'!$L$12:$AI$93,$A80-1921,'Report - ALL (DASHBOARD)'!$W$4) -> 4289 | C80: =INDEX('Compile Data'!$AL$12:$BI$93,$A80-1921,'Report - ALL (DASHBOARD)'!$W$4) -> 4289 | D80: =INDEX('Compile Data'!$BL$12:$CI$93,$A80-1921,'Report - ALL (DASHBOARD)'!$W$4) -> 4289 | E80: =INDEX('Compile Data'!$CL$12:$DI$93,$A80-1921,'Report - ALL (DASHBOARD)'!$W$4) -> 4289 | F80: =INDEX('Compile Data'!$DL$12:$EI$93,$A80-1921,'Report - ALL (DASHBOARD)'!$W$4) -> 4289 | G80: =INDEX('Compile Data'!$EL$12:$FI$93,$A80-1921,'Report - ALL (DASHBOARD)'!$W$4) ->  | O80: 53 | P80: 0.6419753086 | Q80: =INDEX('Compile Data'!$L$123:$AI$204,$O80,'Report - ALL (DASHBOARD)'!$W$4) -> 4151.834613 | R80: =INDEX('Compile Data'!$AL$123:$BI$204,$O80,'Report - ALL (DASHBOARD)'!$W$4) -> 4173 | S80: =INDEX('Compile Data'!$BL$123:$CI$204,$O80,'Report - ALL (DASHBOARD)'!$W$4) -> 4173 | T80: =INDEX('Compile Data'!$CL$123:$DI$204,$O80,'Report - ALL (DASHBOARD)'!$W$4) -> 4173 | U80: =INDEX('Compile Data'!$DL$123:$EI$204,$O80,'Report - ALL (DASHBOARD)'!$W$4) -> 4129.056269 | V80: =INDEX('Compile Data'!$EL$123:$FI$204,$O80,'Report - ALL (DASHBOARD)'!$W$4) -> 
A81: 1975 | B81: =INDEX('Compile Data'!$L$12:$AI$93,$A81-1921,'Report - ALL (DASHBOARD)'!$W$4) -> 4420.289218 | C81: =INDEX('Compile Data'!$AL$12:$BI$93,$A81-1921,'Report - ALL (DASHBOARD)'!$W$4) -> 4420.289218 | D81: =INDEX('Compile Data'!$BL$12:$CI$93,$A81-1921,'Report - ALL (DASHBOARD)'!$W$4) -> 4420.289218 | E81: =INDEX('Compile Data'!$CL$12:$DI$93,$A81-1921,'Report - ALL (DASHBOARD)'!$W$4) -> 4420.289218 | F81: =INDEX('Compile Data'!$DL$12:$EI$93,$A81-1921,'Report - ALL (DASHBOARD)'!$W$4) -> 4420.289218 | G81: =INDEX('Compile Data'!$EL$12:$FI$93,$A81-1921,'Report - ALL (DASHBOARD)'!$W$4) ->  | O81: 54 | P81: 0.6543209877 | Q81: =INDEX('Compile Data'!$L$123:$AI$204,$O81,'Report - ALL (DASHBOARD)'!$W$4) -> 4144.70203 | R81: =INDEX('Compile Data'!$AL$123:$BI$204,$O81,'Report - ALL (DASHBOARD)'!$W$4) -> 4171.172487 | S81: =INDEX('Compile Data'!$BL$123:$CI$204,$O81,'Report - ALL (DASHBOARD)'!$W$4) -> 4171.16817 | T81: =INDEX('Compile Data'!$CL$123:$DI$204,$O81,'Report - ALL (DASHBOARD)'!$W$4) -> 4151.834612 | U81: =INDEX('Compile Data'!$DL$123:$EI$204,$O81,'Report - ALL (DASHBOARD)'!$W$4) -> 4128.57815 | V81: =INDEX('Compile Data'!$EL$123:$FI$204,$O81,'Report - ALL (DASHBOARD)'!$W$4) -> 
A82: 1976 | B82: =INDEX('Compile Data'!$L$12:$AI$93,$A82-1921,'Report - ALL (DASHBOARD)'!$W$4) -> 4124.562147 | C82: =INDEX('Compile Data'!$AL$12:$BI$93,$A82-1921,'Report - ALL (DASHBOARD)'!$W$4) -> 4171.172487 | D82: =INDEX('Compile Data'!$BL$12:$CI$93,$A82-1921,'Report - ALL (DASHBOARD)'!$W$4) -> 4171.16817 | E82: =INDEX('Compile Data'!$CL$12:$DI$93,$A82-1921,'Report - ALL (DASHBOARD)'!$W$4) -> 4077.55318 | F82: =INDEX('Compile Data'!$DL$12:$EI$93,$A82-1921,'Report - ALL (DASHBOARD)'!$W$4) -> 3969.5584 | G82: =INDEX('Compile Data'!$EL$12:$FI$93,$A82-1921,'Report - ALL (DASHBOARD)'!$W$4) ->  | O82: 55 | P82: 0.6666666667 | Q82: =INDEX('Compile Data'!$L$123:$AI$204,$O82,'Report - ALL (DASHBOARD)'!$W$4) -> 4137 | R82: =INDEX('Compile Data'!$AL$123:$BI$204,$O82,'Report - ALL (DASHBOARD)'!$W$4) -> 4151.834612 | S82: =INDEX('Compile Data'!$BL$123:$CI$204,$O82,'Report - ALL (DASHBOARD)'!$W$4) -> 4151.834612 | T82: =INDEX('Compile Data'!$CL$123:$DI$204,$O82,'Report - ALL (DASHBOARD)'!$W$4) -> 4137 | U82: =INDEX('Compile Data'!$DL$123:$EI$204,$O82,'Report - ALL (DASHBOARD)'!$W$4) -> 4095.039912 | V82: =INDEX('Compile Data'!$EL$123:$FI$204,$O82,'Report - ALL (DASHBOARD)'!$W$4) -> 
A83: 1977 | B83: =INDEX('Compile Data'!$L$12:$AI$93,$A83-1921,'Report - ALL (DASHBOARD)'!$W$4) -> 2055.187407 | C83: =INDEX('Compile Data'!$AL$12:$BI$93,$A83-1921,'Report - ALL (DASHBOARD)'!$W$4) -> 2213.932854 | D83: =INDEX('Compile Data'!$BL$12:$CI$93,$A83-1921,'Report - ALL (DASHBOARD)'!$W$4) -> 2197.105387 | E83: =INDEX('Compile Data'!$CL$12:$DI$93,$A83-1921,'Report - ALL (DASHBOARD)'!$W$4) -> 2448.906938 | F83: =INDEX('Compile Data'!$DL$12:$EI$93,$A83-1921,'Report - ALL (DASHBOARD)'!$W$4) -> 2062.155747 | G83: =INDEX('Compile Data'!$EL$12:$FI$93,$A83-1921,'Report - ALL (DASHBOARD)'!$W$4) ->  | O83: 56 | P83: 0.6790123457 | Q83: =INDEX('Compile Data'!$L$123:$AI$204,$O83,'Report - ALL (DASHBOARD)'!$W$4) -> 4124.562147 | R83: =INDEX('Compile Data'!$AL$123:$BI$204,$O83,'Report - ALL (DASHBOARD)'!$W$4) -> 4137 | S83: =INDEX('Compile Data'!$BL$123:$CI$204,$O83,'Report - ALL (DASHBOARD)'!$W$4) -> 4137 | T83: =INDEX('Compile Data'!$CL$123:$DI$204,$O83,'Report - ALL (DASHBOARD)'!$W$4) -> 4109.755606 | U83: =INDEX('Compile Data'!$DL$123:$EI$204,$O83,'Report - ALL (DASHBOARD)'!$W$4) -> 4094 | V83: =INDEX('Compile Data'!$EL$123:$FI$204,$O83,'Report - ALL (DASHBOARD)'!$W$4) -> 
A84: 1978 | B84: =INDEX('Compile Data'!$L$12:$AI$93,$A84-1921,'Report - ALL (DASHBOARD)'!$W$4) -> 4552 | C84: =INDEX('Compile Data'!$AL$12:$BI$93,$A84-1921,'Report - ALL (DASHBOARD)'!$W$4) -> 4552 | D84: =INDEX('Compile Data'!$BL$12:$CI$93,$A84-1921,'Report - ALL (DASHBOARD)'!$W$4) -> 4552 | E84: =INDEX('Compile Data'!$CL$12:$DI$93,$A84-1921,'Report - ALL (DASHBOARD)'!$W$4) -> 4552 | F84: =INDEX('Compile Data'!$DL$12:$EI$93,$A84-1921,'Report - ALL (DASHBOARD)'!$W$4) -> 4552 | G84: =INDEX('Compile Data'!$EL$12:$FI$93,$A84-1921,'Report - ALL (DASHBOARD)'!$W$4) ->  | O84: 57 | P84: 0.6913580247 | Q84: =INDEX('Compile Data'!$L$123:$AI$204,$O84,'Report - ALL (DASHBOARD)'!$W$4) -> 4114.35047 | R84: =INDEX('Compile Data'!$AL$123:$BI$204,$O84,'Report - ALL (DASHBOARD)'!$W$4) -> 4114.212306 | S84: =INDEX('Compile Data'!$BL$123:$CI$204,$O84,'Report - ALL (DASHBOARD)'!$W$4) -> 4124.634688 | T84: =INDEX('Compile Data'!$CL$123:$DI$204,$O84,'Report - ALL (DASHBOARD)'!$W$4) -> 4094 | U84: =INDEX('Compile Data'!$DL$123:$EI$204,$O84,'Report - ALL (DASHBOARD)'!$W$4) -> 4074 | V84: =INDEX('Compile Data'!$EL$123:$FI$204,$O84,'Report - ALL (DASHBOARD)'!$W$4) -> 
A85: 1979 | B85: =INDEX('Compile Data'!$L$12:$AI$93,$A85-1921,'Report - ALL (DASHBOARD)'!$W$4) -> 4421.173113 | C85: =INDEX('Compile Data'!$AL$12:$BI$93,$A85-1921,'Report - ALL (DASHBOARD)'!$W$4) -> 4427.56563 | D85: =INDEX('Compile Data'!$BL$12:$CI$93,$A85-1921,'Report - ALL (DASHBOARD)'!$W$4) -> 4427.053692 | E85: =INDEX('Compile Data'!$CL$12:$DI$93,$A85-1921,'Report - ALL (DASHBOARD)'!$W$4) -> 4354.547058 | F85: =INDEX('Compile Data'!$DL$12:$EI$93,$A85-1921,'Report - ALL (DASHBOARD)'!$W$4) -> 4422.420948 | G85: =INDEX('Compile Data'!$EL$12:$FI$93,$A85-1921,'Report - ALL (DASHBOARD)'!$W$4) ->  | O85: 58 | P85: 0.7037037037 | Q85: =INDEX('Compile Data'!$L$123:$AI$204,$O85,'Report - ALL (DASHBOARD)'!$W$4) -> 4094 | R85: =INDEX('Compile Data'!$AL$123:$BI$204,$O85,'Report - ALL (DASHBOARD)'!$W$4) -> 4094 | S85: =INDEX('Compile Data'!$BL$123:$CI$204,$O85,'Report - ALL (DASHBOARD)'!$W$4) -> 4113.712625 | T85: =INDEX('Compile Data'!$CL$123:$DI$204,$O85,'Report - ALL (DASHBOARD)'!$W$4) -> 4093.308102 | U85: =INDEX('Compile Data'!$DL$123:$EI$204,$O85,'Report - ALL (DASHBOARD)'!$W$4) -> 4061.989404 | V85: =INDEX('Compile Data'!$EL$123:$FI$204,$O85,'Report - ALL (DASHBOARD)'!$W$4) -> 
A86: 1980 | B86: =INDEX('Compile Data'!$L$12:$AI$93,$A86-1921,'Report - ALL (DASHBOARD)'!$W$4) -> 4425.326204 | C86: =INDEX('Compile Data'!$AL$12:$BI$93,$A86-1921,'Report - ALL (DASHBOARD)'!$W$4) -> 4425.326204 | D86: =INDEX('Compile Data'!$BL$12:$CI$93,$A86-1921,'Report - ALL (DASHBOARD)'!$W$4) -> 4350.388897 | E86: =INDEX('Compile Data'!$CL$12:$DI$93,$A86-1921,'Report - ALL (DASHBOARD)'!$W$4) -> 4350.388897 | F86: =INDEX('Compile Data'!$DL$12:$EI$93,$A86-1921,'Report - ALL (DASHBOARD)'!$W$4) -> 4350.388897 | G86: =INDEX('Compile Data'!$EL$12:$FI$93,$A86-1921,'Report - ALL (DASHBOARD)'!$W$4) ->  | O86: 59 | P86: 0.7160493827 | Q86: =INDEX('Compile Data'!$L$123:$AI$204,$O86,'Report - ALL (DASHBOARD)'!$W$4) -> 4074 | R86: =INDEX('Compile Data'!$AL$123:$BI$204,$O86,'Report - ALL (DASHBOARD)'!$W$4) -> 4078.22461 | S86: =INDEX('Compile Data'!$BL$123:$CI$204,$O86,'Report - ALL (DASHBOARD)'!$W$4) -> 4109.727116 | T86: =INDEX('Compile Data'!$CL$123:$DI$204,$O86,'Report - ALL (DASHBOARD)'!$W$4) -> 4088.591102 | U86: =INDEX('Compile Data'!$DL$123:$EI$204,$O86,'Report - ALL (DASHBOARD)'!$W$4) -> 4058 | V86: =INDEX('Compile Data'!$EL$123:$FI$204,$O86,'Report - ALL (DASHBOARD)'!$W$4) -> 
A87: 1981 | B87: =INDEX('Compile Data'!$L$12:$AI$93,$A87-1921,'Report - ALL (DASHBOARD)'!$W$4) -> 4492.345784 | C87: =INDEX('Compile Data'!$AL$12:$BI$93,$A87-1921,'Report - ALL (DASHBOARD)'!$W$4) -> 4492.345785 | D87: =INDEX('Compile Data'!$BL$12:$CI$93,$A87-1921,'Report - ALL (DASHBOARD)'!$W$4) -> 4492.345785 | E87: =INDEX('Compile Data'!$CL$12:$DI$93,$A87-1921,'Report - ALL (DASHBOARD)'!$W$4) -> 4492.345785 | F87: =INDEX('Compile Data'!$DL$12:$EI$93,$A87-1921,'Report - ALL (DASHBOARD)'!$W$4) -> 4492.345785 | G87: =INDEX('Compile Data'!$EL$12:$FI$93,$A87-1921,'Report - ALL (DASHBOARD)'!$W$4) ->  | O87: 60 | P87: 0.7283950617 | Q87: =INDEX('Compile Data'!$L$123:$AI$204,$O87,'Report - ALL (DASHBOARD)'!$W$4) -> 4066.066006 | R87: =INDEX('Compile Data'!$AL$123:$BI$204,$O87,'Report - ALL (DASHBOARD)'!$W$4) -> 4074 | S87: =INDEX('Compile Data'!$BL$123:$CI$204,$O87,'Report - ALL (DASHBOARD)'!$W$4) -> 4094 | T87: =INDEX('Compile Data'!$CL$123:$DI$204,$O87,'Report - ALL (DASHBOARD)'!$W$4) -> 4077.55318 | U87: =INDEX('Compile Data'!$DL$123:$EI$204,$O87,'Report - ALL (DASHBOARD)'!$W$4) -> 4056.627267 | V87: =INDEX('Compile Data'!$EL$123:$FI$204,$O87,'Report - ALL (DASHBOARD)'!$W$4) -> 
A88: 1982 | B88: =INDEX('Compile Data'!$L$12:$AI$93,$A88-1921,'Report - ALL (DASHBOARD)'!$W$4) -> 4094 | C88: =INDEX('Compile Data'!$AL$12:$BI$93,$A88-1921,'Report - ALL (DASHBOARD)'!$W$4) -> 4094 | D88: =INDEX('Compile Data'!$BL$12:$CI$93,$A88-1921,'Report - ALL (DASHBOARD)'!$W$4) -> 4094 | E88: =INDEX('Compile Data'!$CL$12:$DI$93,$A88-1921,'Report - ALL (DASHBOARD)'!$W$4) -> 4094 | F88: =INDEX('Compile Data'!$DL$12:$EI$93,$A88-1921,'Report - ALL (DASHBOARD)'!$W$4) -> 4094 | G88: =INDEX('Compile Data'!$EL$12:$FI$93,$A88-1921,'Report - ALL (DASHBOARD)'!$W$4) ->  | O88: 61 | P88: 0.7407407407 | Q88: =INDEX('Compile Data'!$L$123:$AI$204,$O88,'Report - ALL (DASHBOARD)'!$W$4) -> 4058 | R88: =INDEX('Compile Data'!$AL$123:$BI$204,$O88,'Report - ALL (DASHBOARD)'!$W$4) -> 4058.819509 | S88: =INDEX('Compile Data'!$BL$123:$CI$204,$O88,'Report - ALL (DASHBOARD)'!$W$4) -> 4093.796537 | T88: =INDEX('Compile Data'!$CL$123:$DI$204,$O88,'Report - ALL (DASHBOARD)'!$W$4) -> 4074 | U88: =INDEX('Compile Data'!$DL$123:$EI$204,$O88,'Report - ALL (DASHBOARD)'!$W$4) -> 4039.1334 | V88: =INDEX('Compile Data'!$EL$123:$FI$204,$O88,'Report - ALL (DASHBOARD)'!$W$4) -> 
A89: 1983 | B89: =INDEX('Compile Data'!$L$12:$AI$93,$A89-1921,'Report - ALL (DASHBOARD)'!$W$4) -> 4074 | C89: =INDEX('Compile Data'!$AL$12:$BI$93,$A89-1921,'Report - ALL (DASHBOARD)'!$W$4) -> 4074 | D89: =INDEX('Compile Data'!$BL$12:$CI$93,$A89-1921,'Report - ALL (DASHBOARD)'!$W$4) -> 4074 | E89: =INDEX('Compile Data'!$CL$12:$DI$93,$A89-1921,'Report - ALL (DASHBOARD)'!$W$4) -> 4074 | F89: =INDEX('Compile Data'!$DL$12:$EI$93,$A89-1921,'Report - ALL (DASHBOARD)'!$W$4) -> 4074 | G89: =INDEX('Compile Data'!$EL$12:$FI$93,$A89-1921,'Report - ALL (DASHBOARD)'!$W$4) ->  | O89: 62 | P89: 0.7530864198 | Q89: =INDEX('Compile Data'!$L$123:$AI$204,$O89,'Report - ALL (DASHBOARD)'!$W$4) -> 4030.376596 | R89: =INDEX('Compile Data'!$AL$123:$BI$204,$O89,'Report - ALL (DASHBOARD)'!$W$4) -> 4058 | S89: =INDEX('Compile Data'!$BL$123:$CI$204,$O89,'Report - ALL (DASHBOARD)'!$W$4) -> 4074 | T89: =INDEX('Compile Data'!$CL$123:$DI$204,$O89,'Report - ALL (DASHBOARD)'!$W$4) -> 4058 | U89: =INDEX('Compile Data'!$DL$123:$EI$204,$O89,'Report - ALL (DASHBOARD)'!$W$4) -> 4030.376593 | V89: =INDEX('Compile Data'!$EL$123:$FI$204,$O89,'Report - ALL (DASHBOARD)'!$W$4) -> 
A90: 1984 | B90: =INDEX('Compile Data'!$L$12:$AI$93,$A90-1921,'Report - ALL (DASHBOARD)'!$W$4) -> 4552 | C90: =INDEX('Compile Data'!$AL$12:$BI$93,$A90-1921,'Report - ALL (DASHBOARD)'!$W$4) -> 4552 | D90: =INDEX('Compile Data'!$BL$12:$CI$93,$A90-1921,'Report - ALL (DASHBOARD)'!$W$4) -> 4541.554824 | E90: =INDEX('Compile Data'!$CL$12:$DI$93,$A90-1921,'Report - ALL (DASHBOARD)'!$W$4) -> 4541.554824 | F90: =INDEX('Compile Data'!$DL$12:$EI$93,$A90-1921,'Report - ALL (DASHBOARD)'!$W$4) -> 4541.554824 | G90: =INDEX('Compile Data'!$EL$12:$FI$93,$A90-1921,'Report - ALL (DASHBOARD)'!$W$4) ->  | O90: 63 | P90: 0.7654320988 | Q90: =INDEX('Compile Data'!$L$123:$AI$204,$O90,'Report - ALL (DASHBOARD)'!$W$4) -> 4024.00251 | R90: =INDEX('Compile Data'!$AL$123:$BI$204,$O90,'Report - ALL (DASHBOARD)'!$W$4) -> 4045.182458 | S90: =INDEX('Compile Data'!$BL$123:$CI$204,$O90,'Report - ALL (DASHBOARD)'!$W$4) -> 4058 | T90: =INDEX('Compile Data'!$CL$123:$DI$204,$O90,'Report - ALL (DASHBOARD)'!$W$4) -> 4054.552794 | U90: =INDEX('Compile Data'!$DL$123:$EI$204,$O90,'Report - ALL (DASHBOARD)'!$W$4) -> 3969.5584 | V90: =INDEX('Compile Data'!$EL$123:$FI$204,$O90,'Report - ALL (DASHBOARD)'!$W$4) -> 
A91: 1985 | B91: =INDEX('Compile Data'!$L$12:$AI$93,$A91-1921,'Report - ALL (DASHBOARD)'!$W$4) -> 4151.834613 | C91: =INDEX('Compile Data'!$AL$12:$BI$93,$A91-1921,'Report - ALL (DASHBOARD)'!$W$4) -> 4151.834612 | D91: =INDEX('Compile Data'!$BL$12:$CI$93,$A91-1921,'Report - ALL (DASHBOARD)'!$W$4) -> 4151.834612 | E91: =INDEX('Compile Data'!$CL$12:$DI$93,$A91-1921,'Report - ALL (DASHBOARD)'!$W$4) -> 4151.834612 | F91: =INDEX('Compile Data'!$DL$12:$EI$93,$A91-1921,'Report - ALL (DASHBOARD)'!$W$4) -> 3955.410061 | G91: =INDEX('Compile Data'!$EL$12:$FI$93,$A91-1921,'Report - ALL (DASHBOARD)'!$W$4) ->  | O91: 64 | P91: 0.7777777778 | Q91: =INDEX('Compile Data'!$L$123:$AI$204,$O91,'Report - ALL (DASHBOARD)'!$W$4) -> 4008.364793 | R91: =INDEX('Compile Data'!$AL$123:$BI$204,$O91,'Report - ALL (DASHBOARD)'!$W$4) -> 4044.980494 | S91: =INDEX('Compile Data'!$BL$123:$CI$204,$O91,'Report - ALL (DASHBOARD)'!$W$4) -> 4054.596137 | T91: =INDEX('Compile Data'!$CL$123:$DI$204,$O91,'Report - ALL (DASHBOARD)'!$W$4) -> 4047.059207 | U91: =INDEX('Compile Data'!$DL$123:$EI$204,$O91,'Report - ALL (DASHBOARD)'!$W$4) -> 3963.702488 | V91: =INDEX('Compile Data'!$EL$123:$FI$204,$O91,'Report - ALL (DASHBOARD)'!$W$4) -> 
A92: 1986 | B92: =INDEX('Compile Data'!$L$12:$AI$93,$A92-1921,'Report - ALL (DASHBOARD)'!$W$4) -> 4030.376596 | C92: =INDEX('Compile Data'!$AL$12:$BI$93,$A92-1921,'Report - ALL (DASHBOARD)'!$W$4) -> 4030.376593 | D92: =INDEX('Compile Data'!$BL$12:$CI$93,$A92-1921,'Report - ALL (DASHBOARD)'!$W$4) -> 4030.376593 | E92: =INDEX('Compile Data'!$CL$12:$DI$93,$A92-1921,'Report - ALL (DASHBOARD)'!$W$4) -> 4030.376593 | F92: =INDEX('Compile Data'!$DL$12:$EI$93,$A92-1921,'Report - ALL (DASHBOARD)'!$W$4) -> 4030.376593 | G92: =INDEX('Compile Data'!$EL$12:$FI$93,$A92-1921,'Report - ALL (DASHBOARD)'!$W$4) ->  | O92: 65 | P92: =(O92-1)/81 -> 0.7901234568 | Q92: =INDEX('Compile Data'!$L$123:$AI$204,$O92,'Report - ALL (DASHBOARD)'!$W$4) -> 3980.821629 | R92: =INDEX('Compile Data'!$AL$123:$BI$204,$O92,'Report - ALL (DASHBOARD)'!$W$4) -> 4030.376593 | S92: =INDEX('Compile Data'!$BL$123:$CI$204,$O92,'Report - ALL (DASHBOARD)'!$W$4) -> 4030.376593 | T92: =INDEX('Compile Data'!$CL$123:$DI$204,$O92,'Report - ALL (DASHBOARD)'!$W$4) -> 4030.376593 | U92: =INDEX('Compile Data'!$DL$123:$EI$204,$O92,'Report - ALL (DASHBOARD)'!$W$4) -> 3955.410061 | V92: =INDEX('Compile Data'!$EL$123:$FI$204,$O92,'Report - ALL (DASHBOARD)'!$W$4) -> 
A93: 1987 | B93: =INDEX('Compile Data'!$L$12:$AI$93,$A93-1921,'Report - ALL (DASHBOARD)'!$W$4) -> 4024.00251 | C93: =INDEX('Compile Data'!$AL$12:$BI$93,$A93-1921,'Report - ALL (DASHBOARD)'!$W$4) -> 4044.980494 | D93: =INDEX('Compile Data'!$BL$12:$CI$93,$A93-1921,'Report - ALL (DASHBOARD)'!$W$4) -> 4124.634688 | E93: =INDEX('Compile Data'!$CL$12:$DI$93,$A93-1921,'Report - ALL (DASHBOARD)'!$W$4) -> 4093.308102 | F93: =INDEX('Compile Data'!$DL$12:$EI$93,$A93-1921,'Report - ALL (DASHBOARD)'!$W$4) -> 4128.57815 | G93: =INDEX('Compile Data'!$EL$12:$FI$93,$A93-1921,'Report - ALL (DASHBOARD)'!$W$4) ->  | O93: 66 | P93: 0.8024691358 | Q93: =INDEX('Compile Data'!$L$123:$AI$204,$O93,'Report - ALL (DASHBOARD)'!$W$4) -> 3951.568418 | R93: =INDEX('Compile Data'!$AL$123:$BI$204,$O93,'Report - ALL (DASHBOARD)'!$W$4) -> 3955.069501 | S93: =INDEX('Compile Data'!$BL$123:$CI$204,$O93,'Report - ALL (DASHBOARD)'!$W$4) -> 3962.565738 | T93: =INDEX('Compile Data'!$CL$123:$DI$204,$O93,'Report - ALL (DASHBOARD)'!$W$4) -> 3963.059645 | U93: =INDEX('Compile Data'!$DL$123:$EI$204,$O93,'Report - ALL (DASHBOARD)'!$W$4) -> 3864.72217 | V93: =INDEX('Compile Data'!$EL$123:$FI$204,$O93,'Report - ALL (DASHBOARD)'!$W$4) -> 
A94: =A93+1 -> 1988 | B94: =INDEX('Compile Data'!$L$12:$AI$93,$A94-1921,'Report - ALL (DASHBOARD)'!$W$4) -> 3394.96433 | C94: =INDEX('Compile Data'!$AL$12:$BI$93,$A94-1921,'Report - ALL (DASHBOARD)'!$W$4) -> 3265.244873 | D94: =INDEX('Compile Data'!$BL$12:$CI$93,$A94-1921,'Report - ALL (DASHBOARD)'!$W$4) -> 3269.346374 | E94: =INDEX('Compile Data'!$CL$12:$DI$93,$A94-1921,'Report - ALL (DASHBOARD)'!$W$4) -> 3237.409932 | F94: =INDEX('Compile Data'!$DL$12:$EI$93,$A94-1921,'Report - ALL (DASHBOARD)'!$W$4) -> 3271.428472 | G94: =INDEX('Compile Data'!$EL$12:$FI$93,$A94-1921,'Report - ALL (DASHBOARD)'!$W$4) ->  | O94: 67 | P94: 0.8148148148 | Q94: =INDEX('Compile Data'!$L$123:$AI$204,$O94,'Report - ALL (DASHBOARD)'!$W$4) -> 3814.579337 | R94: =INDEX('Compile Data'!$AL$123:$BI$204,$O94,'Report - ALL (DASHBOARD)'!$W$4) -> 3814.801488 | S94: =INDEX('Compile Data'!$BL$123:$CI$204,$O94,'Report - ALL (DASHBOARD)'!$W$4) -> 3888.13359 | T94: =INDEX('Compile Data'!$CL$123:$DI$204,$O94,'Report - ALL (DASHBOARD)'!$W$4) -> 3837.516249 | U94: =INDEX('Compile Data'!$DL$123:$EI$204,$O94,'Report - ALL (DASHBOARD)'!$W$4) -> 3749.078675 | V94: =INDEX('Compile Data'!$EL$123:$FI$204,$O94,'Report - ALL (DASHBOARD)'!$W$4) -> 
A95: 1989 | B95: =INDEX('Compile Data'!$L$12:$AI$93,$A95-1921,'Report - ALL (DASHBOARD)'!$W$4) -> 4293.398405 | C95: =INDEX('Compile Data'!$AL$12:$BI$93,$A95-1921,'Report - ALL (DASHBOARD)'!$W$4) -> 4279.303671 | D95: =INDEX('Compile Data'!$BL$12:$CI$93,$A95-1921,'Report - ALL (DASHBOARD)'!$W$4) -> 4293.398405 | E95: =INDEX('Compile Data'!$CL$12:$DI$93,$A95-1921,'Report - ALL (DASHBOARD)'!$W$4) -> 4280.054147 | F95: =INDEX('Compile Data'!$DL$12:$EI$93,$A95-1921,'Report - ALL (DASHBOARD)'!$W$4) -> 4293.398405 | G95: =INDEX('Compile Data'!$EL$12:$FI$93,$A95-1921,'Report - ALL (DASHBOARD)'!$W$4) ->  | O95: 68 | P95: 0.8271604938 | Q95: =INDEX('Compile Data'!$L$123:$AI$204,$O95,'Report - ALL (DASHBOARD)'!$W$4) -> 3745.506024 | R95: =INDEX('Compile Data'!$AL$123:$BI$204,$O95,'Report - ALL (DASHBOARD)'!$W$4) -> 3753.533027 | S95: =INDEX('Compile Data'!$BL$123:$CI$204,$O95,'Report - ALL (DASHBOARD)'!$W$4) -> 3750.917251 | T95: =INDEX('Compile Data'!$CL$123:$DI$204,$O95,'Report - ALL (DASHBOARD)'!$W$4) -> 3736.899167 | U95: =INDEX('Compile Data'!$DL$123:$EI$204,$O95,'Report - ALL (DASHBOARD)'!$W$4) -> 3745.814369 | V95: =INDEX('Compile Data'!$EL$123:$FI$204,$O95,'Report - ALL (DASHBOARD)'!$W$4) -> 
A96: 1990 | B96: =INDEX('Compile Data'!$L$12:$AI$93,$A96-1921,'Report - ALL (DASHBOARD)'!$W$4) -> 3465.024638 | C96: =INDEX('Compile Data'!$AL$12:$BI$93,$A96-1921,'Report - ALL (DASHBOARD)'!$W$4) -> 3475.429241 | D96: =INDEX('Compile Data'!$BL$12:$CI$93,$A96-1921,'Report - ALL (DASHBOARD)'!$W$4) -> 3506.765098 | E96: =INDEX('Compile Data'!$CL$12:$DI$93,$A96-1921,'Report - ALL (DASHBOARD)'!$W$4) -> 3503.981971 | F96: =INDEX('Compile Data'!$DL$12:$EI$93,$A96-1921,'Report - ALL (DASHBOARD)'!$W$4) -> 3505.820089 | G96: =INDEX('Compile Data'!$EL$12:$FI$93,$A96-1921,'Report - ALL (DASHBOARD)'!$W$4) ->  | O96: 69 | P96: 0.8395061728 | Q96: =INDEX('Compile Data'!$L$123:$AI$204,$O96,'Report - ALL (DASHBOARD)'!$W$4) -> 3719.922464 | R96: =INDEX('Compile Data'!$AL$123:$BI$204,$O96,'Report - ALL (DASHBOARD)'!$W$4) -> 3736.985168 | S96: =INDEX('Compile Data'!$BL$123:$CI$204,$O96,'Report - ALL (DASHBOARD)'!$W$4) -> 3736.973676 | T96: =INDEX('Compile Data'!$CL$123:$DI$204,$O96,'Report - ALL (DASHBOARD)'!$W$4) -> 3649.905849 | U96: =INDEX('Compile Data'!$DL$123:$EI$204,$O96,'Report - ALL (DASHBOARD)'!$W$4) -> 3736.934935 | V96: =INDEX('Compile Data'!$EL$123:$FI$204,$O96,'Report - ALL (DASHBOARD)'!$W$4) -> 
A97: 1991 | B97: =INDEX('Compile Data'!$L$12:$AI$93,$A97-1921,'Report - ALL (DASHBOARD)'!$W$4) -> 2701.798169 | C97: =INDEX('Compile Data'!$AL$12:$BI$93,$A97-1921,'Report - ALL (DASHBOARD)'!$W$4) -> 2773.516793 | D97: =INDEX('Compile Data'!$BL$12:$CI$93,$A97-1921,'Report - ALL (DASHBOARD)'!$W$4) -> 2772.022711 | E97: =INDEX('Compile Data'!$CL$12:$DI$93,$A97-1921,'Report - ALL (DASHBOARD)'!$W$4) -> 2777.743472 | F97: =INDEX('Compile Data'!$DL$12:$EI$93,$A97-1921,'Report - ALL (DASHBOARD)'!$W$4) -> 2770.820496 | G97: =INDEX('Compile Data'!$EL$12:$FI$93,$A97-1921,'Report - ALL (DASHBOARD)'!$W$4) ->  | O97: 70 | P97: 0.8518518519 | Q97: =INDEX('Compile Data'!$L$123:$AI$204,$O97,'Report - ALL (DASHBOARD)'!$W$4) -> 3580.508024 | R97: =INDEX('Compile Data'!$AL$123:$BI$204,$O97,'Report - ALL (DASHBOARD)'!$W$4) -> 3628.884363 | S97: =INDEX('Compile Data'!$BL$123:$CI$204,$O97,'Report - ALL (DASHBOARD)'!$W$4) -> 3611.816466 | T97: =INDEX('Compile Data'!$CL$123:$DI$204,$O97,'Report - ALL (DASHBOARD)'!$W$4) -> 3597.977246 | U97: =INDEX('Compile Data'!$DL$123:$EI$204,$O97,'Report - ALL (DASHBOARD)'!$W$4) -> 3652.878456 | V97: =INDEX('Compile Data'!$EL$123:$FI$204,$O97,'Report - ALL (DASHBOARD)'!$W$4) -> 
A98: 1992 | B98: =INDEX('Compile Data'!$L$12:$AI$93,$A98-1921,'Report - ALL (DASHBOARD)'!$W$4) -> 3099.106876 | C98: =INDEX('Compile Data'!$AL$12:$BI$93,$A98-1921,'Report - ALL (DASHBOARD)'!$W$4) -> 3170.238089 | D98: =INDEX('Compile Data'!$BL$12:$CI$93,$A98-1921,'Report - ALL (DASHBOARD)'!$W$4) -> 3170.676347 | E98: =INDEX('Compile Data'!$CL$12:$DI$93,$A98-1921,'Report - ALL (DASHBOARD)'!$W$4) -> 3176.021078 | F98: =INDEX('Compile Data'!$DL$12:$EI$93,$A98-1921,'Report - ALL (DASHBOARD)'!$W$4) -> 3169.307578 | G98: =INDEX('Compile Data'!$EL$12:$FI$93,$A98-1921,'Report - ALL (DASHBOARD)'!$W$4) ->  | O98: 71 | P98: 0.8641975309 | Q98: =INDEX('Compile Data'!$L$123:$AI$204,$O98,'Report - ALL (DASHBOARD)'!$W$4) -> 3465.024638 | R98: =INDEX('Compile Data'!$AL$123:$BI$204,$O98,'Report - ALL (DASHBOARD)'!$W$4) -> 3475.429241 | S98: =INDEX('Compile Data'!$BL$123:$CI$204,$O98,'Report - ALL (DASHBOARD)'!$W$4) -> 3506.765098 | T98: =INDEX('Compile Data'!$CL$123:$DI$204,$O98,'Report - ALL (DASHBOARD)'!$W$4) -> 3503.981971 | U98: =INDEX('Compile Data'!$DL$123:$EI$204,$O98,'Report - ALL (DASHBOARD)'!$W$4) -> 3505.820089 | V98: =INDEX('Compile Data'!$EL$123:$FI$204,$O98,'Report - ALL (DASHBOARD)'!$W$4) -> 
A99: 1993 | B99: =INDEX('Compile Data'!$L$12:$AI$93,$A99-1921,'Report - ALL (DASHBOARD)'!$W$4) -> 4552 | C99: =INDEX('Compile Data'!$AL$12:$BI$93,$A99-1921,'Report - ALL (DASHBOARD)'!$W$4) -> 4552 | D99: =INDEX('Compile Data'!$BL$12:$CI$93,$A99-1921,'Report - ALL (DASHBOARD)'!$W$4) -> 4552 | E99: =INDEX('Compile Data'!$CL$12:$DI$93,$A99-1921,'Report - ALL (DASHBOARD)'!$W$4) -> 4552 | F99: =INDEX('Compile Data'!$DL$12:$EI$93,$A99-1921,'Report - ALL (DASHBOARD)'!$W$4) -> 4552 | G99: =INDEX('Compile Data'!$EL$12:$FI$93,$A99-1921,'Report - ALL (DASHBOARD)'!$W$4) ->  | O99: 72 | P99: 0.8765432099 | Q99: =INDEX('Compile Data'!$L$123:$AI$204,$O99,'Report - ALL (DASHBOARD)'!$W$4) -> 3394.96433 | R99: =INDEX('Compile Data'!$AL$123:$BI$204,$O99,'Report - ALL (DASHBOARD)'!$W$4) -> 3265.244873 | S99: =INDEX('Compile Data'!$BL$123:$CI$204,$O99,'Report - ALL (DASHBOARD)'!$W$4) -> 3269.346374 | T99: =INDEX('Compile Data'!$CL$123:$DI$204,$O99,'Report - ALL (DASHBOARD)'!$W$4) -> 3237.409932 | U99: =INDEX('Compile Data'!$DL$123:$EI$204,$O99,'Report - ALL (DASHBOARD)'!$W$4) -> 3271.428472 | V99: =INDEX('Compile Data'!$EL$123:$FI$204,$O99,'Report - ALL (DASHBOARD)'!$W$4) -> 
A100: 1994 | B100: =INDEX('Compile Data'!$L$12:$AI$93,$A100-1921,'Report - ALL (DASHBOARD)'!$W$4) -> 3745.506024 | C100: =INDEX('Compile Data'!$AL$12:$BI$93,$A100-1921,'Report - ALL (DASHBOARD)'!$W$4) -> 3753.533027 | D100: =INDEX('Compile Data'!$BL$12:$CI$93,$A100-1921,'Report - ALL (DASHBOARD)'!$W$4) -> 3750.917251 | E100: =INDEX('Compile Data'!$CL$12:$DI$93,$A100-1921,'Report - ALL (DASHBOARD)'!$W$4) -> 3649.905849 | F100: =INDEX('Compile Data'!$DL$12:$EI$93,$A100-1921,'Report - ALL (DASHBOARD)'!$W$4) -> 3749.078675 | G100: =INDEX('Compile Data'!$EL$12:$FI$93,$A100-1921,'Report - ALL (DASHBOARD)'!$W$4) ->  | O100: 73 | P100: 0.8888888889 | Q100: =INDEX('Compile Data'!$L$123:$AI$204,$O100,'Report - ALL (DASHBOARD)'!$W$4) -> 3109.585799 | R100: =INDEX('Compile Data'!$AL$123:$BI$204,$O100,'Report - ALL (DASHBOARD)'!$W$4) -> 3170.238089 | S100: =INDEX('Compile Data'!$BL$123:$CI$204,$O100,'Report - ALL (DASHBOARD)'!$W$4) -> 3170.676347 | T100: =INDEX('Compile Data'!$CL$123:$DI$204,$O100,'Report - ALL (DASHBOARD)'!$W$4) -> 3176.021078 | U100: =INDEX('Compile Data'!$DL$123:$EI$204,$O100,'Report - ALL (DASHBOARD)'!$W$4) -> 3169.307578 | V100: =INDEX('Compile Data'!$EL$123:$FI$204,$O100,'Report - ALL (DASHBOARD)'!$W$4) -> 
A101: 1995 | B101: =INDEX('Compile Data'!$L$12:$AI$93,$A101-1921,'Report - ALL (DASHBOARD)'!$W$4) -> 4216.799805 | C101: =INDEX('Compile Data'!$AL$12:$BI$93,$A101-1921,'Report - ALL (DASHBOARD)'!$W$4) -> 4216.799805 | D101: =INDEX('Compile Data'!$BL$12:$CI$93,$A101-1921,'Report - ALL (DASHBOARD)'!$W$4) -> 4216.799805 | E101: =INDEX('Compile Data'!$CL$12:$DI$93,$A101-1921,'Report - ALL (DASHBOARD)'!$W$4) -> 4216.799805 | F101: =INDEX('Compile Data'!$DL$12:$EI$93,$A101-1921,'Report - ALL (DASHBOARD)'!$W$4) -> 4216.799805 | G101: =INDEX('Compile Data'!$EL$12:$FI$93,$A101-1921,'Report - ALL (DASHBOARD)'!$W$4) ->  | O101: 74 | P101: 0.9012345679 | Q101: =INDEX('Compile Data'!$L$123:$AI$204,$O101,'Report - ALL (DASHBOARD)'!$W$4) -> 3099.106876 | R101: =INDEX('Compile Data'!$AL$123:$BI$204,$O101,'Report - ALL (DASHBOARD)'!$W$4) -> 3116.456666 | S101: =INDEX('Compile Data'!$BL$123:$CI$204,$O101,'Report - ALL (DASHBOARD)'!$W$4) -> 3092.153595 | T101: =INDEX('Compile Data'!$CL$123:$DI$204,$O101,'Report - ALL (DASHBOARD)'!$W$4) -> 3089.389946 | U101: =INDEX('Compile Data'!$DL$123:$EI$204,$O101,'Report - ALL (DASHBOARD)'!$W$4) -> 3155.873661 | V101: =INDEX('Compile Data'!$EL$123:$FI$204,$O101,'Report - ALL (DASHBOARD)'!$W$4) -> 
A102: 1996 | B102: =INDEX('Compile Data'!$L$12:$AI$93,$A102-1921,'Report - ALL (DASHBOARD)'!$W$4) -> 4487.238398 | C102: =INDEX('Compile Data'!$AL$12:$BI$93,$A102-1921,'Report - ALL (DASHBOARD)'!$W$4) -> 4487.238398 | D102: =INDEX('Compile Data'!$BL$12:$CI$93,$A102-1921,'Report - ALL (DASHBOARD)'!$W$4) -> 4412.311129 | E102: =INDEX('Compile Data'!$CL$12:$DI$93,$A102-1921,'Report - ALL (DASHBOARD)'!$W$4) -> 4412.311129 | F102: =INDEX('Compile Data'!$DL$12:$EI$93,$A102-1921,'Report - ALL (DASHBOARD)'!$W$4) -> 4412.311129 | G102: =INDEX('Compile Data'!$EL$12:$FI$93,$A102-1921,'Report - ALL (DASHBOARD)'!$W$4) ->  | O102: 75 | P102: 0.9135802469 | Q102: =INDEX('Compile Data'!$L$123:$AI$204,$O102,'Report - ALL (DASHBOARD)'!$W$4) -> 3061.378344 | R102: =INDEX('Compile Data'!$AL$123:$BI$204,$O102,'Report - ALL (DASHBOARD)'!$W$4) -> 3069.5815 | S102: =INDEX('Compile Data'!$BL$123:$CI$204,$O102,'Report - ALL (DASHBOARD)'!$W$4) -> 3062.499026 | T102: =INDEX('Compile Data'!$CL$123:$DI$204,$O102,'Report - ALL (DASHBOARD)'!$W$4) -> 3051.220257 | U102: =INDEX('Compile Data'!$DL$123:$EI$204,$O102,'Report - ALL (DASHBOARD)'!$W$4) -> 3155.542872 | V102: =INDEX('Compile Data'!$EL$123:$FI$204,$O102,'Report - ALL (DASHBOARD)'!$W$4) -> 
A103: 1997 | B103: =INDEX('Compile Data'!$L$12:$AI$93,$A103-1921,'Report - ALL (DASHBOARD)'!$W$4) -> 4114.35047 | C103: =INDEX('Compile Data'!$AL$12:$BI$93,$A103-1921,'Report - ALL (DASHBOARD)'!$W$4) -> 4114.212306 | D103: =INDEX('Compile Data'!$BL$12:$CI$93,$A103-1921,'Report - ALL (DASHBOARD)'!$W$4) -> 4109.727116 | E103: =INDEX('Compile Data'!$CL$12:$DI$93,$A103-1921,'Report - ALL (DASHBOARD)'!$W$4) -> 4109.755606 | F103: =INDEX('Compile Data'!$DL$12:$EI$93,$A103-1921,'Report - ALL (DASHBOARD)'!$W$4) -> 4095.039912 | G103: =INDEX('Compile Data'!$EL$12:$FI$93,$A103-1921,'Report - ALL (DASHBOARD)'!$W$4) ->  | O103: 76 | P103: 0.9259259259 | Q103: =INDEX('Compile Data'!$L$123:$AI$204,$O103,'Report - ALL (DASHBOARD)'!$W$4) -> 2757.091955 | R103: =INDEX('Compile Data'!$AL$123:$BI$204,$O103,'Report - ALL (DASHBOARD)'!$W$4) -> 2785.313567 | S103: =INDEX('Compile Data'!$BL$123:$CI$204,$O103,'Report - ALL (DASHBOARD)'!$W$4) -> 2846.899027 | T103: =INDEX('Compile Data'!$CL$123:$DI$204,$O103,'Report - ALL (DASHBOARD)'!$W$4) -> 2840.839739 | U103: =INDEX('Compile Data'!$DL$123:$EI$204,$O103,'Report - ALL (DASHBOARD)'!$W$4) -> 2770.820496 | V103: =INDEX('Compile Data'!$EL$123:$FI$204,$O103,'Report - ALL (DASHBOARD)'!$W$4) -> 
A104: 1998 | B104: =INDEX('Compile Data'!$L$12:$AI$93,$A104-1921,'Report - ALL (DASHBOARD)'!$W$4) -> 4383.013987 | C104: =INDEX('Compile Data'!$AL$12:$BI$93,$A104-1921,'Report - ALL (DASHBOARD)'!$W$4) -> 4383.013987 | D104: =INDEX('Compile Data'!$BL$12:$CI$93,$A104-1921,'Report - ALL (DASHBOARD)'!$W$4) -> 4383.013987 | E104: =INDEX('Compile Data'!$CL$12:$DI$93,$A104-1921,'Report - ALL (DASHBOARD)'!$W$4) -> 4383.013987 | F104: =INDEX('Compile Data'!$DL$12:$EI$93,$A104-1921,'Report - ALL (DASHBOARD)'!$W$4) -> 4383.013987 | G104: =INDEX('Compile Data'!$EL$12:$FI$93,$A104-1921,'Report - ALL (DASHBOARD)'!$W$4) ->  | O104: 77 | P104: 0.9382716049 | Q104: =INDEX('Compile Data'!$L$123:$AI$204,$O104,'Report - ALL (DASHBOARD)'!$W$4) -> 2701.798169 | R104: =INDEX('Compile Data'!$AL$123:$BI$204,$O104,'Report - ALL (DASHBOARD)'!$W$4) -> 2773.516793 | S104: =INDEX('Compile Data'!$BL$123:$CI$204,$O104,'Report - ALL (DASHBOARD)'!$W$4) -> 2772.022711 | T104: =INDEX('Compile Data'!$CL$123:$DI$204,$O104,'Report - ALL (DASHBOARD)'!$W$4) -> 2777.743472 | U104: =INDEX('Compile Data'!$DL$123:$EI$204,$O104,'Report - ALL (DASHBOARD)'!$W$4) -> 2729.54112 | V104: =INDEX('Compile Data'!$EL$123:$FI$204,$O104,'Report - ALL (DASHBOARD)'!$W$4) -> 
A105: 1999 | B105: =INDEX('Compile Data'!$L$12:$AI$93,$A105-1921,'Report - ALL (DASHBOARD)'!$W$4) -> 4552.100098 | C105: =INDEX('Compile Data'!$AL$12:$BI$93,$A105-1921,'Report - ALL (DASHBOARD)'!$W$4) -> 4552.100098 | D105: =INDEX('Compile Data'!$BL$12:$CI$93,$A105-1921,'Report - ALL (DASHBOARD)'!$W$4) -> 4511.437459 | E105: =INDEX('Compile Data'!$CL$12:$DI$93,$A105-1921,'Report - ALL (DASHBOARD)'!$W$4) -> 4511.437459 | F105: =INDEX('Compile Data'!$DL$12:$EI$93,$A105-1921,'Report - ALL (DASHBOARD)'!$W$4) -> 4511.437459 | G105: =INDEX('Compile Data'!$EL$12:$FI$93,$A105-1921,'Report - ALL (DASHBOARD)'!$W$4) ->  | O105: 78 | P105: 0.950617284 | Q105: =INDEX('Compile Data'!$L$123:$AI$204,$O105,'Report - ALL (DASHBOARD)'!$W$4) -> 2662.933187 | R105: =INDEX('Compile Data'!$AL$123:$BI$204,$O105,'Report - ALL (DASHBOARD)'!$W$4) -> 2623.307245 | S105: =INDEX('Compile Data'!$BL$123:$CI$204,$O105,'Report - ALL (DASHBOARD)'!$W$4) -> 2612.414165 | T105: =INDEX('Compile Data'!$CL$123:$DI$204,$O105,'Report - ALL (DASHBOARD)'!$W$4) -> 2610.571627 | U105: =INDEX('Compile Data'!$DL$123:$EI$204,$O105,'Report - ALL (DASHBOARD)'!$W$4) -> 2683.334597 | V105: =INDEX('Compile Data'!$EL$123:$FI$204,$O105,'Report - ALL (DASHBOARD)'!$W$4) -> 
A106: 2000 | B106: =INDEX('Compile Data'!$L$12:$AI$93,$A106-1921,'Report - ALL (DASHBOARD)'!$W$4) -> 4552.100098 | C106: =INDEX('Compile Data'!$AL$12:$BI$93,$A106-1921,'Report - ALL (DASHBOARD)'!$W$4) -> 4552.100098 | D106: =INDEX('Compile Data'!$BL$12:$CI$93,$A106-1921,'Report - ALL (DASHBOARD)'!$W$4) -> 4552.100098 | E106: =INDEX('Compile Data'!$CL$12:$DI$93,$A106-1921,'Report - ALL (DASHBOARD)'!$W$4) -> 4552.100098 | F106: =INDEX('Compile Data'!$DL$12:$EI$93,$A106-1921,'Report - ALL (DASHBOARD)'!$W$4) -> 4552.100098 | G106: =INDEX('Compile Data'!$EL$12:$FI$93,$A106-1921,'Report - ALL (DASHBOARD)'!$W$4) ->  | O106: 79 | P106: 0.962962963 | Q106: =INDEX('Compile Data'!$L$123:$AI$204,$O106,'Report - ALL (DASHBOARD)'!$W$4) -> 2397.051304 | R106: =INDEX('Compile Data'!$AL$123:$BI$204,$O106,'Report - ALL (DASHBOARD)'!$W$4) -> 2413.322975 | S106: =INDEX('Compile Data'!$BL$123:$CI$204,$O106,'Report - ALL (DASHBOARD)'!$W$4) -> 2405.841106 | T106: =INDEX('Compile Data'!$CL$123:$DI$204,$O106,'Report - ALL (DASHBOARD)'!$W$4) -> 2448.906938 | U106: =INDEX('Compile Data'!$DL$123:$EI$204,$O106,'Report - ALL (DASHBOARD)'!$W$4) -> 2482.661244 | V106: =INDEX('Compile Data'!$EL$123:$FI$204,$O106,'Report - ALL (DASHBOARD)'!$W$4) -> 
A107: 2001 | B107: =INDEX('Compile Data'!$L$12:$AI$93,$A107-1921,'Report - ALL (DASHBOARD)'!$W$4) -> 4199.357414 | C107: =INDEX('Compile Data'!$AL$12:$BI$93,$A107-1921,'Report - ALL (DASHBOARD)'!$W$4) -> 4200.512983 | D107: =INDEX('Compile Data'!$BL$12:$CI$93,$A107-1921,'Report - ALL (DASHBOARD)'!$W$4) -> 4200.37981 | E107: =INDEX('Compile Data'!$CL$12:$DI$93,$A107-1921,'Report - ALL (DASHBOARD)'!$W$4) -> 4196.292226 | F107: =INDEX('Compile Data'!$DL$12:$EI$93,$A107-1921,'Report - ALL (DASHBOARD)'!$W$4) -> 4214.205131 | G107: =INDEX('Compile Data'!$EL$12:$FI$93,$A107-1921,'Report - ALL (DASHBOARD)'!$W$4) ->  | O107: 80 | P107: 0.975308642 | Q107: =INDEX('Compile Data'!$L$123:$AI$204,$O107,'Report - ALL (DASHBOARD)'!$W$4) -> 2374.768361 | R107: =INDEX('Compile Data'!$AL$123:$BI$204,$O107,'Report - ALL (DASHBOARD)'!$W$4) -> 2364.169031 | S107: =INDEX('Compile Data'!$BL$123:$CI$204,$O107,'Report - ALL (DASHBOARD)'!$W$4) -> 2386.551345 | T107: =INDEX('Compile Data'!$CL$123:$DI$204,$O107,'Report - ALL (DASHBOARD)'!$W$4) -> 2402.525604 | U107: =INDEX('Compile Data'!$DL$123:$EI$204,$O107,'Report - ALL (DASHBOARD)'!$W$4) -> 2454.791003 | V107: =INDEX('Compile Data'!$EL$123:$FI$204,$O107,'Report - ALL (DASHBOARD)'!$W$4) -> 
A108: 2002 | B108: =INDEX('Compile Data'!$L$12:$AI$93,$A108-1921,'Report - ALL (DASHBOARD)'!$W$4) -> 4548.748427 | C108: =INDEX('Compile Data'!$AL$12:$BI$93,$A108-1921,'Report - ALL (DASHBOARD)'!$W$4) -> 4552.100098 | D108: =INDEX('Compile Data'!$BL$12:$CI$93,$A108-1921,'Report - ALL (DASHBOARD)'!$W$4) -> 4552.100098 | E108: =INDEX('Compile Data'!$CL$12:$DI$93,$A108-1921,'Report - ALL (DASHBOARD)'!$W$4) -> 4552.100098 | F108: =INDEX('Compile Data'!$DL$12:$EI$93,$A108-1921,'Report - ALL (DASHBOARD)'!$W$4) -> 4552.100098 | G108: =INDEX('Compile Data'!$EL$12:$FI$93,$A108-1921,'Report - ALL (DASHBOARD)'!$W$4) ->  | O108: 81 | P108: 0.987654321 | Q108: =INDEX('Compile Data'!$L$123:$AI$204,$O108,'Report - ALL (DASHBOARD)'!$W$4) -> 2262.178368 | R108: =INDEX('Compile Data'!$AL$123:$BI$204,$O108,'Report - ALL (DASHBOARD)'!$W$4) -> 2227.071068 | S108: =INDEX('Compile Data'!$BL$123:$CI$204,$O108,'Report - ALL (DASHBOARD)'!$W$4) -> 2212.98862 | T108: =INDEX('Compile Data'!$CL$123:$DI$204,$O108,'Report - ALL (DASHBOARD)'!$W$4) -> 2383.750305 | U108: =INDEX('Compile Data'!$DL$123:$EI$204,$O108,'Report - ALL (DASHBOARD)'!$W$4) -> 2292.372223 | V108: =INDEX('Compile Data'!$EL$123:$FI$204,$O108,'Report - ALL (DASHBOARD)'!$W$4) -> 
A109: 2003 | B109: =INDEX('Compile Data'!$L$12:$AI$93,$A109-1921,'Report - ALL (DASHBOARD)'!$W$4) -> 4552.100098 | C109: =INDEX('Compile Data'!$AL$12:$BI$93,$A109-1921,'Report - ALL (DASHBOARD)'!$W$4) -> 4552.100098 | D109: =INDEX('Compile Data'!$BL$12:$CI$93,$A109-1921,'Report - ALL (DASHBOARD)'!$W$4) -> 4552.100098 | E109: =INDEX('Compile Data'!$CL$12:$DI$93,$A109-1921,'Report - ALL (DASHBOARD)'!$W$4) -> 4552.100098 | F109: =INDEX('Compile Data'!$DL$12:$EI$93,$A109-1921,'Report - ALL (DASHBOARD)'!$W$4) -> 4552.100098 | G109: =INDEX('Compile Data'!$EL$12:$FI$93,$A109-1921,'Report - ALL (DASHBOARD)'!$W$4) ->  | O109: 82 | P109: 1 | Q109: =INDEX('Compile Data'!$L$123:$AI$204,$O109,'Report - ALL (DASHBOARD)'!$W$4) -> 2055.187407 | R109: =INDEX('Compile Data'!$AL$123:$BI$204,$O109,'Report - ALL (DASHBOARD)'!$W$4) -> 2213.932854 | S109: =INDEX('Compile Data'!$BL$123:$CI$204,$O109,'Report - ALL (DASHBOARD)'!$W$4) -> 2197.105387 | T109: =INDEX('Compile Data'!$CL$123:$DI$204,$O109,'Report - ALL (DASHBOARD)'!$W$4) -> 2209.740749 | U109: =INDEX('Compile Data'!$DL$123:$EI$204,$O109,'Report - ALL (DASHBOARD)'!$W$4) -> 2062.155747 | V109: =INDEX('Compile Data'!$EL$123:$FI$204,$O109,'Report - ALL (DASHBOARD)'!$W$4) -> 

Sheet Compile Data
B1: =Control!$B$5 -> NAA 011221 | C1: =Control!$B$6 -> Alt 1A 011221 | D1: =Control!$B$7 -> Alt 1A SB v7 optTEMP | E1: =Control!$B$8 -> Alt 1A SB v7a addSPGPLS | F1: =Control!$B$9 -> Alt 1A SB v7b addFALLSTAB | G1: =Control!$B$10 -> 0 | AE1: =$B$8 -> INST-VAL | BE1: =$C$8 -> INST-VAL | CE1: =$D$8 -> INST-VAL | DE1: =$E$8 -> INST-VAL | EE1: =$F$8 -> INST-VAL | FE1: =$G$8 -> INST-VAL
A2: Index: | B2: ='Report - ALL (DASHBOARD)'!W2 -> 5 | C2: =B2 -> 5 | D2: 5 | E2: 5 | F2: 5 | G2: 5
A3: Convert? | B3: =IF('Report - ALL (DASHBOARD)'!W5,1,0) -> 0 | C3: 0 | D3: 0 | E3: 0 | F3: 0 | G3: 0
A4: Column: | B4: =TRIM(VLOOKUP(B$2+2,DSSPathnames!$H$7:$K$185,2)) -> G | C4: G | D4: G | E4: G | F4: G | G4: G
A5: Title: | B5: =TRIM(VLOOKUP(B$2+2,DSSPathnames!$H$7:$K$185,4)) -> Shasta Storage | C5: =TRIM(VLOOKUP(C$2+2,DSSPathnames!$H$7:$K$185,4)) -> Shasta Storage | D5: =TRIM(VLOOKUP(D$2+2,DSSPathnames!$H$7:$K$185,4)) -> Shasta Storage | E5: =TRIM(VLOOKUP(E$2+2,DSSPathnames!$H$7:$K$185,4)) -> Shasta Storage | F5: =TRIM(VLOOKUP(F$2+2,DSSPathnames!$H$7:$K$185,4)) -> Shasta Storage | G5: =TRIM(VLOOKUP(G$2+2,DSSPathnames!$H$7:$K$185,4)) -> Shasta Storage
A6: Parameter: | B6: =INDIRECT(CONCATENATE("'",B$1,"'!",B$4,2)) -> S4 | C6: S4 | D6: S4 | E6: S4 | F6: S4
B7: =INDIRECT(CONCATENATE("'",B$1,"'!",B$4,3)) -> STORAGE | C7: STORAGE | D7: STORAGE | E7: STORAGE | F7: STORAGE
A8: Type: | B8: =TRIM(VLOOKUP(B$2+2,DSSPathnames!$H$7:$K$185,3)) -> INST-VAL | C8: =TRIM(VLOOKUP(C$2+2,DSSPathnames!$H$7:$K$185,3)) -> INST-VAL | D8: =TRIM(VLOOKUP(D$2+2,DSSPathnames!$H$7:$K$185,3)) -> INST-VAL | E8: =TRIM(VLOOKUP(E$2+2,DSSPathnames!$H$7:$K$185,3)) -> INST-VAL | F8: =TRIM(VLOOKUP(F$2+2,DSSPathnames!$H$7:$K$185,3)) -> INST-VAL | G8: =TRIM(VLOOKUP(G$2+2,DSSPathnames!$H$7:$K$185,3)) -> INST-VAL | K8: =CONCATENATE(TRIM(B$1),": ",TRIM(B$5)," - ",TRIM(B$6)," ",TRIM(B$7)," (",TRIM(B$10),") ",TRIM(B$11)) -> NAA 011221: Shasta Storage - S4 STORAGE (TAF) | AK8: =CONCATENATE(TRIM(C$1),": ",TRIM(C$5)," - ",TRIM(C$6)," ",TRIM(C$7)," (",TRIM(C$10),") ",TRIM(C$11)) -> Alt 1A 011221: Shasta Storage - S4 STORAGE (TAF) | BK8: =CONCATENATE(TRIM(D$1),": ",TRIM(D$5)," - ",TRIM(D$6)," ",TRIM(D$7)," (",TRIM(D$10),") ",TRIM(D$11)) -> Alt 1A SB v7 optTEMP: Shasta Storage - S4 STORAGE (TAF) | CK8: =CONCATENATE(TRIM(E$1),": ",TRIM(E$5)," - ",TRIM(E$6)," ",TRIM(E$7)," (",TRIM(E$10),") ",TRIM(E$11)) -> Alt 1A SB v7a addSPGPLS: Shasta Storage - S4 STORAGE (TAF) | DK8: =CONCATENATE(TRIM(F$1),": ",TRIM(F$5)," - ",TRIM(F$6)," ",TRIM(F$7)," (",TRIM(F$10),") ",TRIM(F$11)) -> Alt 1A SB v7b addFALLSTAB: Shasta Storage - S4 STORAGE (TAF) | EK8: =CONCATENATE(TRIM(G$1),": ",TRIM(G$5)," - ",TRIM(G$6)," ",TRIM(G$7)," (",TRIM(G$10),") ",TRIM(G$11)) -> 
A9: Units-native: | B9: =TRIM(INDIRECT(CONCATENATE("'",B$1,"'!",B$4,11))) -> TAF | C9: TAF | D9: TAF | E9: TAF | F9: TAF
A10: Units-shown: | B10: =IF(AND(B$3>0,B$9="CFS"),"TAF",B$9) -> TAF | C10: TAF | D10: TAF | E10: TAF | F10: TAF | Y10: Jan-Dec | Z10: Mar-Feb | AA10: Oct-Sep | AC10: Nov-Mar | AD10: Aug-Oct | AE10: Oct-Jan | AF10: Dec-Feb | AG10: Mar-Jun | AH10: Jun-Sep | AI10: Sep-Nov | AY10: Jan-Dec | AZ10: Mar-Feb | BA10: Oct-Sep | BC10: Nov-Mar | BD10: Aug-Oct | BE10: Oct-Jan | BF10: Dec-Feb | BG10: Mar-Jun | BH10: Jun-Sep | BI10: Sep-Nov | BY10: Jan-Dec | BZ10: Mar-Feb | CA10: Oct-Sep | CC10: Nov-Mar | CD10: Aug-Oct | CE10: Oct-Jan | CF10: Dec-Feb | CG10: Mar-Jun | CH10: Jun-Sep | CI10: Sep-Nov | CY10: Jan-Dec | CZ10: Mar-Feb | DA10: Oct-Sep | DC10: Nov-Mar | DD10: Aug-Oct | DE10: Oct-Jan | DF10: Dec-Feb | DG10: Mar-Jun | DH10: Jun-Sep | DI10: Sep-Nov | DY10: Jan-Dec | DZ10: Mar-Feb | EA10: Oct-Sep | EC10: Nov-Mar | ED10: Aug-Oct | EE10: Oct-Jan | EF10: Dec-Feb | EG10: Mar-Jun | EH10: Jun-Sep | EI10: Sep-Nov | EY10: Jan-Dec | EZ10: Mar-Feb | FA10: Oct-Sep | FC10: Nov-Mar | FD10: Aug-Oct | FE10: Oct-Jan | FF10: Dec-Feb | FG10: Mar-Jun | FH10: Jun-Sep | FI10: Sep-Nov
A11: Date | B11: =IF(ISNUMBER(FIND("PRV",B$6)),"SHIFTED","") ->  | C11: =IF(ISNUMBER(FIND("PRV",C$6)),"SHIFTED","") ->  | D11: =IF(ISNUMBER(FIND("PRV",D$6)),"SHIFTED","") ->  | E11: =IF(ISNUMBER(FIND("PRV",E$6)),"SHIFTED","") ->  | F11: =IF(ISNUMBER(FIND("PRV",F$6)),"SHIFTED","") ->  | K11: YEAR | L11: OCT | M11: NOV | N11: DEC | O11: JAN | P11: FEB | Q11: MAR | R11: APR | S11: MAY | T11: JUN | U11: JUL | V11: AUG | W11: SEP | Y11: =IF(AND($B$10="TAF",$B$8="PER-AVER"),"TOT","AVG") -> AVG | Z11: =IF(AND($B$10="TAF",$B$8="PER-AVER"),"TOT","AVG") -> AVG | AA11: =IF(AND($B$10="TAF",$B$8="PER-AVER"),"TOT","AVG") -> AVG | AC11: =IF(AND($B$10="TAF",$B$8="PER-AVER"),"TOT","AVG") -> AVG | AD11: AVG | AE11: AVG | AF11: AVG | AG11: AVG | AH11: AVG | AI11: AVG | AK11: YEAR | AL11: OCT | AM11: NOV | AN11: DEC | AO11: JAN | AP11: FEB | AQ11: MAR | AR11: APR | AS11: MAY | AT11: JUN | AU11: JUL | AV11: AUG | AW11: SEP | AY11: =IF(AND($C$10="TAF",$C$8="PER-AVER"),"TOT","AVG") -> AVG | AZ11: =IF(AND($C$10="TAF",$C$8="PER-AVER"),"TOT","AVG") -> AVG | BA11: =IF(AND($C$10="TAF",$C$8="PER-AVER"),"TOT","AVG") -> AVG | BC11: =IF(AND($B$10="TAF",$B$8="PER-AVER"),"TOT","AVG") -> AVG | BD11: =IF(AND($B$10="TAF",$B$8="PER-AVER"),"TOT","AVG") -> AVG | BE11: =IF(AND($C$10="TAF",$C$8="PER-AVER"),"TOT","AVG") -> AVG | BF11: =IF(AND($C$10="TAF",$C$8="PER-AVER"),"TOT","AVG") -> AVG | BG11: =IF(AND($C$10="TAF",$C$8="PER-AVER"),"TOT","AVG") -> AVG | BH11: =IF(AND($C$10="TAF",$C$8="PER-AVER"),"TOT","AVG") -> AVG | BI11: =IF(AND($C$10="TAF",$C$8="PER-AVER"),"TOT","AVG") -> AVG | BK11: YEAR | BL11: OCT | BM11: NOV | BN11: DEC | BO11: JAN | BP11: FEB | BQ11: MAR | BR11: APR | BS11: MAY | BT11: JUN | BU11: JUL | BV11: AUG | BW11: SEP | BY11: =IF(AND($D$10="TAF",$D$8="PER-AVER"),"TOT","AVG") -> AVG | BZ11: =IF(AND($D$10="TAF",$D$8="PER-AVER"),"TOT","AVG") -> AVG | CA11: =IF(AND($D$10="TAF",$D$8="PER-AVER"),"TOT","AVG") -> AVG | CC11: =IF(AND($B$10="TAF",$B$8="PER-AVER"),"TOT","AVG") -> AVG | CD11: =IF(AND($B$10="TAF",$B$8="PER-AVER"),"TOT","AVG") -> AVG | CE11: =IF(AND($D$10="TAF",$D$8="PER-AVER"),"TOT","AVG") -> AVG | CF11: =IF(AND($D$10="TAF",$D$8="PER-AVER"),"TOT","AVG") -> AVG | CG11: =IF(AND($D$10="TAF",$D$8="PER-AVER"),"TOT","AVG") -> AVG | CH11: =IF(AND($D$10="TAF",$D$8="PER-AVER"),"TOT","AVG") -> AVG | CI11: =IF(AND($D$10="TAF",$D$8="PER-AVER"),"TOT","AVG") -> AVG | CK11: YEAR | CL11: OCT | CM11: NOV | CN11: DEC | CO11: JAN | CP11: FEB | CQ11: MAR | CR11: APR | CS11: MAY | CT11: JUN | CU11: JUL | CV11: AUG | CW11: SEP | CY11: =IF(AND($E$10="TAF",$E$8="PER-AVER"),"TOT","AVG") -> AVG | CZ11: =IF(AND($E$10="TAF",$E$8="PER-AVER"),"TOT","AVG") -> AVG | DA11: =IF(AND($E$10="TAF",$E$8="PER-AVER"),"TOT","AVG") -> AVG | DC11: =IF(AND($B$10="TAF",$B$8="PER-AVER"),"TOT","AVG") -> AVG | DD11: =IF(AND($B$10="TAF",$B$8="PER-AVER"),"TOT","AVG") -> AVG | DE11: =IF(AND($E$10="TAF",$E$8="PER-AVER"),"TOT","AVG") -> AVG | DF11: =IF(AND($E$10="TAF",$E$8="PER-AVER"),"TOT","AVG") -> AVG | DG11: =IF(AND($E$10="TAF",$E$8="PER-AVER"),"TOT","AVG") -> AVG | DH11: =IF(AND($E$10="TAF",$E$8="PER-AVER"),"TOT","AVG") -> AVG | DI11: =IF(AND($E$10="TAF",$E$8="PER-AVER"),"TOT","AVG") -> AVG | DK11: YEAR | DL11: OCT | DM11: NOV | DN11: DEC | DO11: JAN | DP11: FEB | DQ11: MAR | DR11: APR | DS11: MAY | DT11: JUN | DU11: JUL | DV11: AUG | DW11: SEP | DY11: =IF(AND($F$10="TAF",$F$8="PER-AVER"),"TOT","AVG") -> AVG | DZ11: =IF(AND($F$10="TAF",$F$8="PER-AVER"),"TOT","AVG") -> AVG | EA11: =IF(AND($F$10="TAF",$F$8="PER-AVER"),"TOT","AVG") -> AVG | EC11: =IF(AND($B$10="TAF",$B$8="PER-AVER"),"TOT","AVG") -> AVG | ED11: =IF(AND($B$10="TAF",$B$8="PER-AVER"),"TOT","AVG") -> AVG | EE11: =IF(AND($F$10="TAF",$F$8="PER-AVER"),"TOT","AVG") -> AVG | EF11: =IF(AND($F$10="TAF",$F$8="PER-AVER"),"TOT","AVG") -> AVG | EG11: =IF(AND($F$10="TAF",$F$8="PER-AVER"),"TOT","AVG") -> AVG | EH11: =IF(AND($F$10="TAF",$F$8="PER-AVER"),"TOT","AVG") -> AVG | EI11: =IF(AND($F$10="TAF",$F$8="PER-AVER"),"TOT","AVG") -> AVG | EK11: YEAR | EL11: OCT | EM11: NOV | EN11: DEC | EO11: JAN | EP11: FEB | EQ11: MAR | ER11: APR | ES11: MAY | ET11: JUN | EU11: JUL | EV11: AUG | EW11: SEP | EY11: =IF(AND($F$10="TAF",$F$8="PER-AVER"),"TOT","AVG") -> AVG | EZ11: =IF(AND($F$10="TAF",$F$8="PER-AVER"),"TOT","AVG") -> AVG | FA11: =IF(AND($F$10="TAF",$F$8="PER-AVER"),"TOT","AVG") -> AVG | FC11: =IF(AND($B$10="TAF",$B$8="PER-AVER"),"TOT","AVG") -> AVG | FD11: =IF(AND($B$10="TAF",$B$8="PER-AVER"),"TOT","AVG") -> AVG | FE11: =IF(AND($F$10="TAF",$F$8="PER-AVER"),"TOT","AVG") -> AVG | FF11: =IF(AND($F$10="TAF",$F$8="PER-AVER"),"TOT","AVG") -> AVG | FG11: =IF(AND($F$10="TAF",$F$8="PER-AVER"),"TOT","AVG") -> AVG | FH11: =IF(AND($F$10="TAF",$F$8="PER-AVER"),"TOT","AVG") -> AVG | FI11: =IF(AND($F$10="TAF",$F$8="PER-AVER"),"TOT","AVG") -> AVG
A12: 1921-09-30 | K12: 1922 | L12: =B13 -> 2739.663051 | M12: =B14 -> 2699.42931 | N12: =B15 -> 2874.796432 | O12: =B16 -> 3021.45025 | P12: =B17 -> 3448.078868 | Q12: =B18 -> 3968.731586 | R12: =B19 -> 4552 | S12: =B20 -> 4552 | T12: =B21 -> 4288.190126 | U12: =B22 -> 3876.566529 | V12: =B23 -> 3520.599895 | W12: =B24 -> 3353.49032 | Y12: =IF(Y$11="AVG",AVERAGE(O12:W12,L13:N13),SUM(O12:W12,L13:N13)) -> 3704.342298 | Z12: =IF(Z$11="AVG",AVERAGE(Q12:W12,L13:P13),SUM(Q12:W12,L13:P13)) -> 3767.133297 | AA12: =IF(AA$11="AVG",AVERAGE(L12:W12),SUM(L12:W12)) -> 3574.58303 | AC12: =IF(AC$11="AVG",IF(AE$1="INST-VAL",AVERAGE(L12:P12,M12:Q12),AVERAGE(M12:Q12)),SUM(M12:Q12)) -> 3079.590436 | AD12: =IF(AD$11="AVG",IF(AE$1="INST-VAL",AVERAGE(U12:W12,V12:W12,L13),AVERAGE(V12:W12,L13)),SUM(V12:W12,L13)) -> 3479.124493 | AE12: =IF(AE$11="AVG",IF(AE$1="INST-VAL",AVERAGE(W11,L12:N12,L12:O12),AVERAGE(L12:O12)),SUM(L12:O12)) -> 2807.032548 | AF12: =IF(AF$11="AVG",IF(AE$1="INST-VAL",AVERAGE(M12:O12,N12:P12),AVERAGE(N12:P12)),SUM(N12:P12)) -> 2990.000257 | AG12: =IF(AG$11="AVG",IF(AE$1="INST-VAL",AVERAGE(P12:S12,Q12:T12),AVERAGE(Q12:T12)),SUM(Q12:T12)) -> 4235.216521 | AH12: =IF(AH$11="AVG",IF(AE$1="INST-VAL",AVERAGE(S12:V12,T12:W12),AVERAGE(T12:W12)),SUM(T12:W12)) -> 3909.525427 | AI12: =IF(AI$11="AVG",IF(AE$1="INST-VAL",AVERAGE(V12:W12,L13,W12,L13:M13),AVERAGE(W12,L13:M13)),SUM(W12,L13:M13)) -> 3329.930089 | AK12: 1922 | AL12: =C13 -> 2740.72521 | AM12: =C14 -> 2706.763164 | AN12: =C15 -> 2882.124901 | AO12: =C16 -> 3028.774251 | AP12: =C17 -> 3455.398077 | AQ12: =C18 -> 3976.042101 | AR12: =C19 -> 4552 | AS12: =C20 -> 4552 | AT12: =C21 -> 4318.250047 | AU12: =C22 -> 3912.604497 | AV12: =C23 -> 3558.095704 | AW12: =C24 -> 3381.834579 | AY12: =IF(AY$11="AVG",AVERAGE(AO12:AW12,AL13:AN13),SUM(AO12:AW12,AL13:AN13)) -> 3717.166605 | AZ12: =IF(AZ$11="AVG",AVERAGE(AQ12:AW12,AL13:AP13),SUM(AQ12:AW12,AL13:AP13)) -> 3778.819331 | BA12: =IF(BA$11="AVG",AVERAGE(AL12:AW12),SUM(AL12:AW12)) -> 3588.717711 | BC12: =IF(BC$11="AVG",IF(BE$1="INST-VAL",AVERAGE(AL12:AP12,AM12:AQ12),AVERAGE(AM12:AQ12)),SUM(AM12:AQ12)) -> 3086.28881 | BD12: =IF(BD$11="AVG",IF(BE$1="INST-VAL",AVERAGE(AU12:AW12,AV12:AW12,AL13),AVERAGE(AV12:AW12,AL13)),SUM(AV12:AW12,AL13)) -> 3507.077511 | BE12: =IF(BE$11="AVG",IF(BE$1="INST-VAL",AVERAGE(AW11,AL12:AN12,AL12:AO12),AVERAGE(AL12:AO12)),SUM(AL12:AO12)) -> 2812.571543 | BF12: =IF(BF$11="AVG",IF(BE$1="INST-VAL",AVERAGE(AM12:AO12,AN12:AP12),AVERAGE(AN12:AP12)),SUM(AN12:AP12)) -> 2997.326591 | BG12: =IF(BG$11="AVG",IF(BE$1="INST-VAL",AVERAGE(AP12:AS12,AQ12:AT12),AVERAGE(AQ12:AT12)),SUM(AQ12:AT12)) -> 4241.716541 | BH12: =IF(BH$11="AVG",IF(BE$1="INST-VAL",AVERAGE(AS12:AV12,AT12:AW12),AVERAGE(AT12:AW12)),SUM(AT12:AW12)) -> 3938.966884 | BI12: =IF(BI$11="AVG",IF(BE$1="INST-VAL",AVERAGE(AV12:AW12,AL13,AW12,AL13:AM13),AVERAGE(AW12,AL13:AM13)),SUM(AW12,AL13:AM13)) -> 3345.627477 | BK12: 1922 | BL12: =D13 -> 2740.72521 | BM12: =D14 -> 2706.763164 | BN12: =D15 -> 2882.124901 | BO12: =D16 -> 3028.774251 | BP12: =D17 -> 3455.398077 | BQ12: =D18 -> 3976.042101 | BR12: =D19 -> 4552 | BS12: =D20 -> 4552 | BT12: =D21 -> 4318.250047 | BU12: =D22 -> 3912.604497 | BV12: =D23 -> 3558.095704 | BW12: =D24 -> 3381.834579 | BY12: =IF(BY$11="AVG",AVERAGE(BO12:BW12,BL13:BN13),SUM(BO12:BW12,BL13:BN13)) -> 3717.166605 | BZ12: =IF(BZ$11="AVG",AVERAGE(BQ12:BW12,BL13:BP13),SUM(BQ12:BW12,BL13:BP13)) -> 3778.819331 | CA12: =IF(CA$11="AVG",AVERAGE(BL12:BW12),SUM(BL12:BW12)) -> 3588.717711 | CC12: =IF(CC$11="AVG",IF(CE$1="INST-VAL",AVERAGE(BL12:BP12,BM12:BQ12),AVERAGE(BM12:BQ12)),SUM(BM12:BQ12)) -> 3086.28881 | CD12: =IF(CD$11="AVG",IF(CE$1="INST-VAL",AVERAGE(BU12:BW12,BV12:BW12,BL13),AVERAGE(BV12:BW12,BL13)),SUM(BV12:BW12,BL13)) -> 3507.077511 | CE12: =IF(CE$11="AVG",IF(CE$1="INST-VAL",AVERAGE(BW11,BL12:BN12,BL12:BO12),AVERAGE(BL12:BO12)),SUM(BL12:BO12)) -> 2812.571543 | CF12: =IF(CF$11="AVG",IF(CE$1="INST-VAL",AVERAGE(BM12:BO12,BN12:BP12),AVERAGE(BN12:BP12)),SUM(BN12:BP12)) -> 2997.326591 | CG12: =IF(CG$11="AVG",IF(CE$1="INST-VAL",AVERAGE(BP12:BS12,BQ12:BT12),AVERAGE(BQ12:BT12)),SUM(BQ12:BT12)) -> 4241.716541 | CH12: =IF(CH$11="AVG",IF(CE$1="INST-VAL",AVERAGE(BS12:BV12,BT12:BW12),AVERAGE(BT12:BW12)),SUM(BT12:BW12)) -> 3938.966884 | CI12: =IF(CI$11="AVG",IF(CE$1="INST-VAL",AVERAGE(BV12:BW12,BL13,BW12,BL13:BM13),AVERAGE(BW12,BL13:BM13)),SUM(BW12,BL13:BM13)) -> 3345.627477 | CK12: 1922 | CL12: =E13 -> 2740.72521 | CM12: =E14 -> 2706.763164 | CN12: =E15 -> 2882.124901 | CO12: =E16 -> 3028.774251 | CP12: =E17 -> 3455.398077 | CQ12: =E18 -> 3976.042101 | CR12: =E19 -> 4552 | CS12: =E20 -> 4552 | CT12: =E21 -> 4317.258857 | CU12: =E22 -> 3910.15416 | CV12: =E23 -> 3555.870561 | CW12: =E24 -> 3380.154697 | CY12: =IF(CY$11="AVG",AVERAGE(CO12:CW12,CL13:CN13),SUM(CO12:CW12,CL13:CN13)) -> 3715.683313 | CZ12: =IF(CZ$11="AVG",AVERAGE(CQ12:CW12,CL13:CP13),SUM(CQ12:CW12,CL13:CP13)) -> 3776.579567 | DA12: =IF(DA$11="AVG",AVERAGE(CL12:CW12),SUM(CL12:CW12)) -> 3588.105498 | DC12: =IF(DC$11="AVG",IF(DE$1="INST-VAL",AVERAGE(CL12:CP12,CM12:CQ12),AVERAGE(CM12:CQ12)),SUM(CM12:CQ12)) -> 3086.28881 | DD12: =IF(DD$11="AVG",IF(DE$1="INST-VAL",AVERAGE(CU12:CW12,CV12:CW12,CL13),AVERAGE(CV12:CW12,CL13)),SUM(CV12:CW12,CL13)) -> 3505.367446 | DE12: =IF(DE$11="AVG",IF(DE$1="INST-VAL",AVERAGE(CW11,CL12:CN12,CL12:CO12),AVERAGE(CL12:CO12)),SUM(CL12:CO12)) -> 2812.571543 | DF12: =IF(DF$11="AVG",IF(DE$1="INST-VAL",AVERAGE(CM12:CO12,CN12:CP12),AVERAGE(CN12:CP12)),SUM(CN12:CP12)) -> 2997.326591 | DG12: =IF(DG$11="AVG",IF(DE$1="INST-VAL",AVERAGE(CP12:CS12,CQ12:CT12),AVERAGE(CQ12:CT12)),SUM(CQ12:CT12)) -> 4241.592642 | DH12: =IF(DH$11="AVG",IF(DE$1="INST-VAL",AVERAGE(CS12:CV12,CT12:CW12),AVERAGE(CT12:CW12)),SUM(CT12:CW12)) -> 3937.340232 | DI12: =IF(DI$11="AVG",IF(DE$1="INST-VAL",AVERAGE(CV12:CW12,CL13,CW12,CL13:CM13),AVERAGE(CW12,CL13:CM13)),SUM(CW12,CL13:CM13)) -> 3342.954501 | DK12: 1922 | DL12: =F13 -> 2740.72521 | DM12: =F14 -> 2706.763164 | DN12: =F15 -> 2882.124901 | DO12: =F16 -> 3028.774251 | DP12: =F17 -> 3455.398077 | DQ12: =F18 -> 3976.042101 | DR12: =F19 -> 4552 | DS12: =F20 -> 4552 | DT12: =F21 -> 4317.258857 | DU12: =F22 -> 3910.15416 | DV12: =F23 -> 3555.870561 | DW12: =F24 -> 3380.154697 | DY12: =IF(DY$11="AVG",AVERAGE(DO12:DW12,DL13:DN13),SUM(DO12:DW12,DL13:DN13)) -> 3709.924939 | DZ12: =IF(DZ$11="AVG",AVERAGE(DQ12:DW12,DL13:DP13),SUM(DQ12:DW12,DL13:DP13)) -> 3742.633639 | EA12: =IF(EA$11="AVG",AVERAGE(DL12:DW12),SUM(DL12:DW12)) -> 3588.105498 | EC12: =IF(EC$11="AVG",IF(EE$1="INST-VAL",AVERAGE(DL12:DP12,DM12:DQ12),AVERAGE(DM12:DQ12)),SUM(DM12:DQ12)) -> 3086.28881 | ED12: =IF(ED$11="AVG",IF(EE$1="INST-VAL",AVERAGE(DU12:DW12,DV12:DW12,DL13),AVERAGE(DV12:DW12,DL13)),SUM(DV12:DW12,DL13)) -> 3505.367446 | EE12: =IF(EE$11="AVG",IF(EE$1="INST-VAL",AVERAGE(DW11,DL12:DN12,DL12:DO12),AVERAGE(DL12:DO12)),SUM(DL12:DO12)) -> 2812.571543 | EF12: =IF(EF$11="AVG",IF(EE$1="INST-VAL",AVERAGE(DM12:DO12,DN12:DP12),AVERAGE(DN12:DP12)),SUM(DN12:DP12)) -> 2997.326591 | EG12: =IF(EG$11="AVG",IF(EE$1="INST-VAL",AVERAGE(DP12:DS12,DQ12:DT12),AVERAGE(DQ12:DT12)),SUM(DQ12:DT12)) -> 4241.592642 | EH12: =IF(EH$11="AVG",IF(EE$1="INST-VAL",AVERAGE(DS12:DV12,DT12:DW12),AVERAGE(DT12:DW12)),SUM(DT12:DW12)) -> 3937.340232 | EI12: =IF(EI$11="AVG",IF(EE$1="INST-VAL",AVERAGE(DV12:DW12,DL13,DW12,DL13:DM13),AVERAGE(DW12,DL13:DM13)),SUM(DW12,DL13:DM13)) -> 3342.954501 | EK12: 1922 | EL12: =G13 ->  | EM12: =G14 ->  | EN12: =G15 ->  | EO12: =G16 ->  | EP12: =G17 ->  | EQ12: =G18 ->  | ER12: =G19 ->  | ES12: =G20 ->  | ET12: =G21 ->  | EU12: =G22 ->  | EV12: =G23 ->  | EW12: =G24 ->  | EY12: =IF(EY$11="AVG",AVERAGE(EO12:EW12,EL13:EN13),SUM(EO12:EW12,EL13:EN13)) ->  | EZ12: =IF(EZ$11="AVG",AVERAGE(EQ12:EW12,EL13:EP13),SUM(EQ12:EW12,EL13:EP13)) ->  | FA12: =IF(FA$11="AVG",AVERAGE(EL12:EW12),SUM(EL12:EW12)) ->  | FC12: =IF(FC$11="AVG",IF(FE$1="INST-VAL",AVERAGE(EL12:EP12,EM12:EQ12),AVERAGE(EM12:EQ12)),SUM(EM12:EQ12)) ->  | FD12: =IF(FD$11="AVG",IF(FE$1="INST-VAL",AVERAGE(EU12:EW12,EV12:EW12,EL13),AVERAGE(EV12:EW12,EL13)),SUM(EV12:EW12,EL13)) ->  | FE12: =IF(FE$11="AVG",IF(FE$1="INST-VAL",AVERAGE(EW11,EL12:EN12,EL12:EO12),AVERAGE(EL12:EO12)),SUM(EL12:EO12)) ->  | FF12: =IF(FF$11="AVG",IF(FE$1="INST-VAL",AVERAGE(EM12:EO12,EN12:EP12),AVERAGE(EN12:EP12)),SUM(EN12:EP12)) ->  | FG12: =IF(FG$11="AVG",IF(FE$1="INST-VAL",AVERAGE(EP12:ES12,EQ12:ET12),AVERAGE(EQ12:ET12)),SUM(EQ12:ET12)) ->  | FH12: =IF(FH$11="AVG",IF(FE$1="INST-VAL",AVERAGE(ES12:EV12,ET12:EW12),AVERAGE(ET12:EW12)),SUM(ET12:EW12)) ->  | FI12: =IF(FI$11="AVG",IF(FE$1="INST-VAL",AVERAGE(EV12:EW12,EL13,EW12,EL13:EM13),AVERAGE(EW12,EL13:EM13)),SUM(EW12,EL13:EM13)) -> 
A13: 1921-10-31 | B13: =INDIRECT(CONCATENATE("'",B$1,"'!",B$4,(YEAR($A13)-1921)*12+MONTH($A13)+3+IF(ISNUMBER(FIND("PRV",B$6)),1,0)))*IF(AND(B$3>0,TRIM(B$9)="CFS"),Conversions!$C13,1) -> 2739.663051 | C13: =INDIRECT(CONCATENATE("'",C$1,"'!",C$4,(YEAR($A13)-1921)*12+MONTH($A13)+3+IF(ISNUMBER(FIND("PRV",C$6)),1,0)))*IF(AND(C$3>0,TRIM(C$9)="CFS"),Conversions!$C13,1) -> 2740.72521 | D13: =INDIRECT(CONCATENATE("'",D$1,"'!",D$4,(YEAR($A13)-1921)*12+MONTH($A13)+3+IF(ISNUMBER(FIND("PRV",D$6)),1,0)))*IF(AND(D$3>0,TRIM(D$9)="CFS"),Conversions!$C13,1) -> 2740.72521 | E13: =INDIRECT(CONCATENATE("'",E$1,"'!",E$4,(YEAR($A13)-1921)*12+MONTH($A13)+3+IF(ISNUMBER(FIND("PRV",E$6)),1,0)))*IF(AND(E$3>0,TRIM(E$9)="CFS"),Conversions!$C13,1) -> 2740.72521 | F13: =INDIRECT(CONCATENATE("'",F$1,"'!",F$4,(YEAR($A13)-1921)*12+MONTH($A13)+3+IF(ISNUMBER(FIND("PRV",F$6)),1,0)))*IF(AND(F$3>0,TRIM(F$9)="CFS"),Conversions!$C13,1) -> 2740.72521 | G13: =INDIRECT(CONCATENATE("'",G$1,"'!",G$4,(YEAR($A13)-1921)*12+MONTH($A13)+3+IF(ISNUMBER(FIND("PRV",G$6)),1,0)))*IF(AND(G$3>0,TRIM(G$9)="CFS"),Conversions!$C13,1) ->  | K13: 1923 | L13: =B25 -> 3250 | M13: =B26 -> 3252 | N13: =B27 -> 3369 | O13: =B28 -> 3589.959766 | P13: =B29 -> 3633.061339 | Q13: =B30 -> 3769.078447 | R13: =B31 -> 4229.79085 | S13: =B32 -> 3964.600475 | T13: =B33 -> 3642.950162 | U13: =B34 -> 3264.73171 | V13: =B35 -> 2946.763879 | W13: =B36 -> 2918.581988 | Y13: 3353.296033 | Z13: 3230.751164 | AA13: 3485.876551 | AC13: =IF(AC$11="AVG",IF(AE$1="INST-VAL",AVERAGE(L13:P13,M13:Q13),AVERAGE(M13:Q13)),SUM(M13:Q13)) -> 3470.712066 | AD13: =IF(AD$11="AVG",IF(AE$1="INST-VAL",AVERAGE(U13:W13,V13:W13,L14),AVERAGE(V13:W13,L14)),SUM(V13:W13,L14)) -> 2975.818399 | AE13: =IF(AE$11="AVG",IF(AE$1="INST-VAL",AVERAGE(W12,L13:N13,L13:O13),AVERAGE(L13:O13)),SUM(L13:O13)) -> 3335.681261 | AF13: 3467.163478 | AG13: 3900.368881 | AH13: 3324.009246 | AI13: 2874.327411 | AK13: 1923 | AL13: =C25 -> 3250 | AM13: =C26 -> 3252 | AN13: =C27 -> 3369 | AO13: =C28 -> 3589.959766 | AP13: =C29 -> 3634.045275 | AQ13: =C30 -> 3770.060972 | AR13: =C31 -> 4239.576444 | AS13: =C32 -> 3984.967735 | AT13: =C33 -> 3668.989847 | AU13: =C34 -> 3295.257719 | AV13: =C35 -> 2987.588649 | AW13: =C36 -> 2951.114378 | AY13: 3372.692031 | AZ13: 3254.023319 | BA13: 3499.380065 | BC13: =IF(BC$11="AVG",IF(BE$1="INST-VAL",AVERAGE(AL13:AP13,AM13:AQ13),AVERAGE(AM13:AQ13)),SUM(AM13:AQ13)) -> 3471.007105 | BD13: =IF(BD$11="AVG",IF(BE$1="INST-VAL",AVERAGE(AU13:AW13,AV13:AW13,AL14),AVERAGE(AV13:AW13,AL14)),SUM(AV13:AW13,AL14)) -> 3009.15545 | BE13: 3339.224293 | BF13: 3467.327468 | BG13: 3911.530678 | BH13: 3354.969318 | BI13: 2903.594943 | BK13: 1923 | BL13: =D25 -> 3250 | BM13: =D26 -> 3252 | BN13: =D27 -> 3369 | BO13: =D28 -> 3589.959766 | BP13: =D29 -> 3634.045275 | BQ13: =D30 -> 3770.060972 | BR13: =D31 -> 4239.576444 | BS13: =D32 -> 3984.967735 | BT13: =D33 -> 3668.989847 | BU13: =D34 -> 3295.257719 | BV13: =D35 -> 2987.546119 | BW13: =D36 -> 2951.015331 | BY13: 3372.669361 | BZ13: 3253.994334 | CA13: 3499.368267 | CC13: =IF(CC$11="AVG",IF(CE$1="INST-VAL",AVERAGE(BL13:BP13,BM13:BQ13),AVERAGE(BM13:BQ13)),SUM(BM13:BQ13)) -> 3471.007105 | CD13: =IF(CD$11="AVG",IF(CE$1="INST-VAL",AVERAGE(BU13:BW13,BV13:BW13,BL14),AVERAGE(BV13:BW13,BL14)),SUM(BV13:BW13,BL14)) -> 3009.099959 | CE13: 3339.224293 | CF13: 3467.327468 | CG13: 3911.530678 | CH13: 3354.946305 | CI13: 2903.531118 | CK13: 1923 | CL13: =E25 -> 3250 | CM13: =E26 -> 3241.547051 | CN13: =E27 -> 3369 | CO13: =E28 -> 3589.959766 | CP13: =E29 -> 3624.967611 | CQ13: =E30 -> 3760.996326 | CR13: =E31 -> 4230.524062 | CS13: =E32 -> 3975.970115 | CT13: =E33 -> 3660.044588 | CU13: =E34 -> 3286.204346 | CV13: =E35 -> 2977.30102 | CW13: =E36 -> 2942.84422 | CY13: 3365.007804 | CZ13: 3246.119608 | DA13: 3492.446592 | DC13: 3466.194518 | DD13: 3000.296086 | DE13: 3336.401071 | DF13: 3464.072366 | DG13: 3902.499151 | DH13: 3345.73928 | DI13: 2895.692489 | DK13: 1923 | DL13: =F25 -> 3250 | DM13: =F26 -> 3241.547051 | DN13: =F27 -> 3299.899509 | DO13: =F28 -> 3420.765773 | DP13: =F29 -> 3455.910962 | DQ13: =F30 -> 3593.548303 | DR13: =F31 -> 4061.989404 | DS13: =F32 -> 3807.018611 | DT13: =F33 -> 3492.019728 | DU13: =F34 -> 3119.161486 | DV13: =F35 -> 2812.357538 | DW13: =F36 -> 2794.091171 | DY13: 3210.243546 | DZ13: 3100.530426 | EA13: 3362.359128 | EC13: 3367.979489 | ED13: 2846.024769 | EE13: 3297.976699 | EF13: 3356.464763 | EG13: 3734.130416 | EH13: 3181.023411 | EI13: 2754.916073 | EK13: 1923 | EL13: =G25 ->  | EM13: =G26 ->  | EN13: =G27 ->  | EO13: =G28 ->  | EP13: =G29 ->  | EQ13: =G30 ->  | ER13: =G31 ->  | ES13: =G32 ->  | ET13: =G33 ->  | EU13: =G34 ->  | EV13: =G35 ->  | EW13: =G36 -> 
A14: 1921-11-30 | B14: =INDIRECT(CONCATENATE("'",B$1,"'!",B$4,(YEAR($A14)-1921)*12+MONTH($A14)+3+IF(ISNUMBER(FIND("PRV",B$6)),1,0)))*IF(AND(B$3>0,TRIM(B$9)="CFS"),Conversions!$C14,1) -> 2699.42931 | C14: =INDIRECT(CONCATENATE("'",C$1,"'!",C$4,(YEAR($A14)-1921)*12+MONTH($A14)+3+IF(ISNUMBER(FIND("PRV",C$6)),1,0)))*IF(AND(C$3>0,TRIM(C$9)="CFS"),Conversions!$C14,1) -> 2706.763164 | D14: =INDIRECT(CONCATENATE("'",D$1,"'!",D$4,(YEAR($A14)-1921)*12+MONTH($A14)+3+IF(ISNUMBER(FIND("PRV",D$6)),1,0)))*IF(AND(D$3>0,TRIM(D$9)="CFS"),Conversions!$C14,1) -> 2706.763164 | E14: =INDIRECT(CONCATENATE("'",E$1,"'!",E$4,(YEAR($A14)-1921)*12+MONTH($A14)+3+IF(ISNUMBER(FIND("PRV",E$6)),1,0)))*IF(AND(E$3>0,TRIM(E$9)="CFS"),Conversions!$C14,1) -> 2706.763164 | F14: =INDIRECT(CONCATENATE("'",F$1,"'!",F$4,(YEAR($A14)-1921)*12+MONTH($A14)+3+IF(ISNUMBER(FIND("PRV",F$6)),1,0)))*IF(AND(F$3>0,TRIM(F$9)="CFS"),Conversions!$C14,1) -> 2706.763164 | G14: =INDIRECT(CONCATENATE("'",G$1,"'!",G$4,(YEAR($A14)-1921)*12+MONTH($A14)+3+IF(ISNUMBER(FIND("PRV",G$6)),1,0)))*IF(AND(G$3>0,TRIM(G$9)="CFS"),Conversions!$C14,1) ->  | K14: 1924 | L14: =B37 -> 2859.486952 | M14: =B38 -> 2743.06271 | N14: =B39 -> 2677.484118 | O14: =B40 -> 2771.837045 | P14: =B41 -> 2980.645633 | Q14: =B42 -> 2853.496776 | R14: =B43 -> 2757.091955 | S14: =B44 -> 2408.197813 | T14: =B45 -> 2036.059248 | U14: =B46 -> 1693.912774 | V14: =B47 -> 1424.342838 | W14: =B48 -> 1350.069812 | Y14: 2060.957465 | Z14: 1991.569022 | AA14: 2379.64064 | AC14: =IF(AC$11="AVG",IF(AE$1="INST-VAL",AVERAGE(L14:P14,M14:Q14),AVERAGE(M14:Q14)),SUM(M14:Q14)) -> 2805.904274 | AD14: =IF(AD$11="AVG",IF(AE$1="INST-VAL",AVERAGE(U14:W14,V14:W14,L15),AVERAGE(V14:W14,L15)),SUM(V14:W14,L15)) -> 1431.020916 | AE14: =IF(AE$11="AVG",IF(AE$1="INST-VAL",AVERAGE(W13,L14:N14,L14:O14),AVERAGE(L14:O14)),SUM(L14:O14)) -> 2781.310824 | AF14: 2770.391778 | AG14: 2631.784746 | AH14: 1758.362168 | AI14: 1385.17369 | AK14: 1924 | AL14: =C37 -> 2882.268925 | AM14: =C38 -> 2767.214404 | AN14: =C39 -> 2701.260261 | AO14: =C40 -> 2795.598058 | AP14: =C41 -> 3004.382434 | AQ14: =C42 -> 2879.617374 | AR14: =C43 -> 2785.313567 | AS14: =C44 -> 2435.377474 | AT14: =C45 -> 2063.025683 | AU14: =C46 -> 1719.997513 | AV14: =C47 -> 1458.358438 | AW14: =C48 -> 1387.570543 | AY14: 2092.714411 | AZ14: 2024.708084 | BA14: 2406.66539 | BC14: =IF(BC$11="AVG",IF(BE$1="INST-VAL",AVERAGE(AL14:AP14,AM14:AQ14),AVERAGE(AM14:AQ14)),SUM(AM14:AQ14)) -> 2829.879661 | BD14: 1469.485865 | BE14: 2806.024952 | BF14: 2794.218913 | BG14: 2658.503119 | BH14: 1788.213911 | BI14: 1429.524372 | BK14: 1924 | BL14: =D37 -> 2882.219137 | BM14: =D38 -> 2767.171655 | BN14: =D39 -> 2701.222331 | BO14: =D40 -> 2795.560153 | BP14: =D41 -> 3004.344568 | BQ14: =D42 -> 2879.576137 | BR14: =D43 -> 2846.899027 | BS14: =D44 -> 2559.915489 | BT14: =D45 -> 2245.342366 | BU14: =D46 -> 1901.744367 | BV14: =D47 -> 1579.114549 | BW14: =D48 -> 1450.274054 | BY14: 2159.371143 | BZ14: 2096.549253 | CA14: 2467.781986 | CC14: =IF(CC$11="AVG",IF(CE$1="INST-VAL",AVERAGE(BL14:BP14,BM14:BQ14),AVERAGE(BM14:BQ14)),SUM(BM14:BQ14)) -> 2829.839269 | CD14: 1561.61637 | CE14: 2805.975216 | CF14: 2794.180199 | CG14: 2727.80853 | CH14: 1932.824013 | CI14: 1477.111678 | CK14: 1924 | CL14: =E37 -> 2875.281689 | CM14: =E38 -> 2760.602098 | CN14: =E39 -> 2695.397809 | CO14: =E40 -> 2789.739337 | CP14: =E41 -> 2998.529683 | CQ14: =E42 -> 2873.507191 | CR14: =E43 -> 2840.839739 | CS14: =E44 -> 2553.913508 | CT14: =E45 -> 2239.365462 | CU14: =E46 -> 1895.807836 | CV14: =E47 -> 1573.258042 | CW14: =E48 -> 1444.591391 | CY14: 2153.206313 | CZ14: 2090.188093 | DA14: 2461.736149 | DC14: 2823.732673 | DD14: 1555.648482 | DE14: 2799.393344 | DF14: 2788.234345 | DG14: 2721.802003 | DH14: 1926.920947 | DI14: 1470.816812 | DK14: 1924 | DL14: =F37 -> 2744.089711 | DM14: =F38 -> 2640.777138 | DN14: =F39 -> 2581.192728 | DO14: =F40 -> 2675.606325 | DP14: =F41 -> 2884.512967 | DQ14: =F42 -> 2762.033231 | DR14: =F43 -> 2729.54112 | DS14: =F44 -> 2442.741642 | DT14: =F45 -> 2128.683192 | DU14: =F46 -> 1785.611277 | DV14: =F47 -> 1463.428088 | DW14: =F48 -> 1334.897698 | DY14: 2051.647546 | DZ14: 1995.671445 | EA14: 2347.759593 | EC14: 2707.030126 | ED14: 1452.060678 | EE14: 2675.227081 | EF14: 2673.148035 | EG14: 2610.228518 | EH14: 1816.635557 | EI14: 1379.850629 | EK14: 1924 | EL14: =G37 ->  | EM14: =G38 ->  | EN14: =G39 ->  | EO14: =G40 ->  | EP14: =G41 ->  | EQ14: =G42 ->  | ER14: =G43 ->  | ES14: =G44 ->  | ET14: =G45 ->  | EU14: =G46 ->  | EV14: =G47 ->  | EW14: =G48 -> 
A15: 1921-12-31 | B15: =INDIRECT(CONCATENATE("'",B$1,"'!",B$4,(YEAR($A15)-1921)*12+MONTH($A15)+3+IF(ISNUMBER(FIND("PRV",B$6)),1,0)))*IF(AND(B$3>0,TRIM(B$9)="CFS"),Conversions!$C15,1) -> 2874.796432 | C15: =INDIRECT(CONCATENATE("'",C$1,"'!",C$4,(YEAR($A15)-1921)*12+MONTH($A15)+3+IF(ISNUMBER(FIND("PRV",C$6)),1,0)))*IF(AND(C$3>0,TRIM(C$9)="CFS"),Conversions!$C15,1) -> 2882.124901 | D15: =INDIRECT(CONCATENATE("'",D$1,"'!",D$4,(YEAR($A15)-1921)*12+MONTH($A15)+3+IF(ISNUMBER(FIND("PRV",D$6)),1,0)))*IF(AND(D$3>0,TRIM(D$9)="CFS"),Conversions!$C15,1) -> 2882.124901 | E15: =INDIRECT(CONCATENATE("'",E$1,"'!",E$4,(YEAR($A15)-1921)*12+MONTH($A15)+3+IF(ISNUMBER(FIND("PRV",E$6)),1,0)))*IF(AND(E$3>0,TRIM(E$9)="CFS"),Conversions!$C15,1) -> 2882.124901 | F15: =INDIRECT(CONCATENATE("'",F$1,"'!",F$4,(YEAR($A15)-1921)*12+MONTH($A15)+3+IF(ISNUMBER(FIND("PRV",F$6)),1,0)))*IF(AND(F$3>0,TRIM(F$9)="CFS"),Conversions!$C15,1) -> 2882.124901 | G15: =INDIRECT(CONCATENATE("'",G$1,"'!",G$4,(YEAR($A15)-1921)*12+MONTH($A15)+3+IF(ISNUMBER(FIND("PRV",G$6)),1,0)))*IF(AND(G$3>0,TRIM(G$9)="CFS"),Conversions!$C15,1) ->  | K15: 1925 | L15: =B49 -> 1343.38742 | M15: =B50 -> 1499.784842 | N15: =B51 -> 1612.663428 | O15: =B52 -> 1852.177913 | P15: =B53 -> 3067.643448 | Q15: =B54 -> 3441.873918 | R15: =B55 -> 4144.70203 | S15: =B56 -> 4286.178038 | T15: =B57 -> 4072.235571 | U15: =B58 -> 3542.212452 | V15: =B59 -> 3193.757345 | W15: =B60 -> 3067.864588 | Y15: 3287.88845 | Z15: 3432.824768 | AA15: 2927.040083 | AC15: =IF(AC$11="AVG",IF(AE$1="INST-VAL",AVERAGE(L15:P15,M15:Q15),AVERAGE(M15:Q15)),SUM(M15:Q15)) -> 2084.98006 | AD15: 3171.143291 | AE15: 1514.239888 | AF15: 1916.185162 | AG15: 3860.673374 | AH15: 3621.306671 | AI15: 3025.686415 | AK15: 1925 | AL15: =C49 -> 1405.059711 | AM15: =C50 -> 1533.527285 | AN15: =C51 -> 1644.74485 | AO15: =C52 -> 1884.235439 | AP15: =C53 -> 3099.669126 | AQ15: =C54 -> 3473.855144 | AR15: =C55 -> 4176.617403 | AS15: =C56 -> 4345.611567 | AT15: =C57 -> 4149.394161 | AU15: =C58 -> 3599.421154 | AV15: =C59 -> 3238.01843 | AW15: =C60 -> 3112.928703 | AY15: 3333.502491 | AZ15: 3479.736322 | BA15: 2971.923581 | BC15: =IF(BC$11="AVG",IF(BE$1="INST-VAL",AVERAGE(AL15:AP15,AM15:AQ15),AVERAGE(AM15:AQ15)),SUM(AM15:AQ15)) -> 2120.326825 | BD15: =IF(BD$11="AVG",IF(BE$1="INST-VAL",AVERAGE(AU15:AW15,AV15:AW15,AL16),AVERAGE(AV15:AW15,AL16)),SUM(AV15:AW15,AL16)) -> 3218.417587 | BE15: 1554.808709 | BF15: 1948.526165 | BG15: 3905.153939 | BH15: 3679.02597 | BI15: 3072.114454 | BK15: 1925 | BL15: =D49 -> 1409.176645 | BM15: =D50 -> 1564.654122 | BN15: =D51 -> 1675.852242 | BO15: =D52 -> 1915.319618 | BP15: =D53 -> 3130.722423 | BQ15: =D54 -> 3504.865338 | BR15: =D55 -> 4207.563745 | BS15: =D56 -> 4376.541121 | BT15: =D57 -> 4180.250185 | BU15: =D58 -> 3621.539513 | BV15: =D59 -> 3259.643134 | BW15: =D60 -> 3134.73595 | BY15: 3359.394482 | BZ15: 3503.546435 | CA15: 2998.405336 | CC15: 2148.713879 | CD15: 3240.245405 | CE15: 1583.119961 | CF15: 1979.620044 | CG15: 3936.114127 | CH15: 3704.267842 | CI15: 3093.431117 | CK15: 1925 | CL15: =E49 -> 1402.384189 | CM15: =E50 -> 1557.69167 | CN15: =E51 -> 1668.847707 | CO15: =E52 -> 1908.320313 | CP15: =E53 -> 3123.730072 | CQ15: =E54 -> 3497.882693 | CR15: =E55 -> 4200.595477 | CS15: =E56 -> 4369.570775 | CT15: =E57 -> 4173.301748 | CU15: =E58 -> 3616.483807 | CV15: =E59 -> 3254.702457 | CW15: =E60 -> 3129.760956 | CY15: 3349.407998 | CZ15: 3485.30722 | DA15: 2991.939322 | DC15: 2141.74464 | DD15: 3235.264805 | DE15: 1576.344854 | DF15: 1972.626297 | DG15: 3929.141214 | DH15: 3698.538469 | DI15: 3089.044777 | DK15: 1925 | DL15: =F49 -> 1330.101221 | DM15: =F50 -> 1485.677848 | DN15: =F51 -> 1596.935944 | DO15: =F52 -> 1836.462465 | DP15: =F53 -> 3051.943613 | DQ15: =F54 -> 3426.195875 | DR15: =F55 -> 4129.056269 | DS15: =F56 -> 4298.181914 | DT15: =F57 -> 4072.40524 | DU15: =F58 -> 3562.006551 | DV15: =F59 -> 3202.347624 | DW15: =F60 -> 3076.826992 | DY15: 3287.143763 | DZ15: 3433.581072 | EA15: 2922.34513 | EC15: 2069.833683 | ED15: 3182.219057 | EE15: 1499.598774 | EF15: 1900.73638 | EG15: 3853.902121 | EH15: 3631.065967 | EI15: 3033.863378 | EK15: 1925 | EL15: =G49 ->  | EM15: =G50 ->  | EN15: =G51 ->  | EO15: =G52 ->  | EP15: =G53 ->  | EQ15: =G54 ->  | ER15: =G55 ->  | ES15: =G56 ->  | ET15: =G57 ->  | EU15: =G58 ->  | EV15: =G59 ->  | EW15: =G60 -> 
A16: 1922-01-31 | B16: =INDIRECT(CONCATENATE("'",B$1,"'!",B$4,(YEAR($A16)-1921)*12+MONTH($A16)+3+IF(ISNUMBER(FIND("PRV",B$6)),1,0)))*IF(AND(B$3>0,TRIM(B$9)="CFS"),Conversions!$C16,1) -> 3021.45025 | C16: =INDIRECT(CONCATENATE("'",C$1,"'!",C$4,(YEAR($A16)-1921)*12+MONTH($A16)+3+IF(ISNUMBER(FIND("PRV",C$6)),1,0)))*IF(AND(C$3>0,TRIM(C$9)="CFS"),Conversions!$C16,1) -> 3028.774251 | D16: =INDIRECT(CONCATENATE("'",D$1,"'!",D$4,(YEAR($A16)-1921)*12+MONTH($A16)+3+IF(ISNUMBER(FIND("PRV",D$6)),1,0)))*IF(AND(D$3>0,TRIM(D$9)="CFS"),Conversions!$C16,1) -> 3028.774251 | E16: =INDIRECT(CONCATENATE("'",E$1,"'!",E$4,(YEAR($A16)-1921)*12+MONTH($A16)+3+IF(ISNUMBER(FIND("PRV",E$6)),1,0)))*IF(AND(E$3>0,TRIM(E$9)="CFS"),Conversions!$C16,1) -> 3028.774251 | F16: =INDIRECT(CONCATENATE("'",F$1,"'!",F$4,(YEAR($A16)-1921)*12+MONTH($A16)+3+IF(ISNUMBER(FIND("PRV",F$6)),1,0)))*IF(AND(F$3>0,TRIM(F$9)="CFS"),Conversions!$C16,1) -> 3028.774251 | G16: =INDIRECT(CONCATENATE("'",G$1,"'!",G$4,(YEAR($A16)-1921)*12+MONTH($A16)+3+IF(ISNUMBER(FIND("PRV",G$6)),1,0)))*IF(AND(G$3>0,TRIM(G$9)="CFS"),Conversions!$C16,1) ->  | K16: 1926 | L16: =B61 -> 2961.40343 | M16: =B62 -> 2901.825106 | N16: =B63 -> 2922.787565 | O16: =B64 -> 2958.819405 | P16: =B65 -> 3700.237766 | Q16: =B66 -> 3719.610331 | R16: =B67 -> 4008.364793 | S16: =B68 -> 3714.452745 | T16: =B69 -> 3391.650819 | U16: =B70 -> 3005.37459 | V16: =B71 -> 2779.603715 | W16: =B72 -> 2719.827887 | Y16: 3267.834892 | Z16: 3307.080128 | AA16: 3231.996513 | AC16: 3164.835345 | AD16: 2784.703489 | AE16: 2949.839524 | AF16: 3060.879469 | AG16: 3747.09304 | AH16: 3098.44236 | AI16: 2798.719882 | AK16: 1926 | AL16: =C61 -> 3009.190103 | AM16: =C62 -> 2950.43068 | AN16: =C63 -> 2962.657977 | AO16: =C64 -> 2998.66462 | AP16: =C65 -> 3740.045925 | AQ16: =C66 -> 3755.118092 | AR16: =C67 -> 4078.22461 | AS16: =C68 -> 3778.707533 | AT16: =C69 -> 3458.300633 | AU16: =C70 -> 3049.273729 | AV16: =C71 -> 2819.751314 | AW16: =C72 -> 2761.841581 | AY16: 3312.599032 | AZ16: 3345.206486 | BA16: 3280.1839 | BC16: 3206.79066 | BD16: 2827.344258 | BE16: 2994.518855 | BF16: 3102.186967 | BG16: 3802.805878 | BH16: 3149.400058 | BI16: 2843.216808 | BK16: 1926 | BL16: =D61 -> 3031.174746 | BM16: =D62 -> 2969.122176 | BN16: =D63 -> 2981.255838 | BO16: =D64 -> 3017.250728 | BP16: =D65 -> 3758.614748 | BQ16: =D66 -> 3770.87758 | BR16: =D67 -> 4093.796537 | BS16: =D68 -> 3865.035657 | BT16: =D69 -> 3555.277895 | BU16: =D70 -> 3168.542235 | BV16: =D71 -> 2913.326052 | BW16: =D72 -> 2828.424755 | BY16: 3363.479971 | BZ16: 3392.991181 | CA16: 3329.391579 | CC16: 3225.453931 | CD16: 2907.276219 | CE16: 3014.386525 | CF16: 3120.791676 | CG16: 3846.664024 | CH16: 3245.969097 | CI16: 2900.900415 | CK16: 1926 | CL16: =E61 -> 3026.178195 | CM16: =E62 -> 2967.687901 | CN16: =E63 -> 2924.681581 | CO16: =E64 -> 2960.712224 | CP16: =E65 -> 3702.128825 | CQ16: =E66 -> 3723.161868 | CR16: =E67 -> 4047.059207 | CS16: =E68 -> 3824.686002 | CT16: =E69 -> 3515.732135 | CU16: =E70 -> 3144.193179 | CV16: =E71 -> 2890.433835 | CW16: =E72 -> 2804.217546 | CY16: 3329.427404 | CZ16: 3368.357316 | DA16: 3294.239375 | DC16: 3185.976112 | DD16: 2883.313907 | DE16: 2990.946067 | DF16: 3073.434056 | DG16: 3800.959389 | DH16: 3216.202731 | DI16: 2876.510075 | DK16: 1926 | DL16: =F61 -> 2972.958559 | DM16: =F62 -> 2901.261541 | DN16: =F63 -> 2916.078514 | DO16: =F64 -> 2952.114594 | DP16: =F65 -> 3693.539191 | DQ16: =F66 -> 3715.574713 | DR16: =F67 -> 4039.1334 | DS16: =F68 -> 3735.145431 | DT16: =F69 -> 3374.270626 | DU16: =F70 -> 2871.870553 | DV16: =F71 -> 2614.759661 | DW16: =F72 -> 2551.253918 | DY16: 3187.235601 | DZ16: 3227.597785 | EA16: 3194.830058 | EC16: 3161.452095 | ED16: 2608.210436 | EE16: 2951.192352 | EF16: 3055.197824 | EG16: 3755.939613 | EH16: 3001.025129 | EI16: 2585.799587 | EK16: 1926 | EL16: =G61 ->  | EM16: =G62 ->  | EN16: =G63 ->  | EO16: =G64 ->  | EP16: =G65 ->  | EQ16: =G66 ->  | ER16: =G67 ->  | ES16: =G68 ->  | ET16: =G69 ->  | EU16: =G70 ->  | EV16: =G71 ->  | EW16: =G72 -> 
A17: 1922-02-28 | B17: =INDIRECT(CONCATENATE("'",B$1,"'!",B$4,(YEAR($A17)-1921)*12+MONTH($A17)+3+IF(ISNUMBER(FIND("PRV",B$6)),1,0)))*IF(AND(B$3>0,TRIM(B$9)="CFS"),Conversions!$C17,1) -> 3448.078868 | C17: =INDIRECT(CONCATENATE("'",C$1,"'!",C$4,(YEAR($A17)-1921)*12+MONTH($A17)+3+IF(ISNUMBER(FIND("PRV",C$6)),1,0)))*IF(AND(C$3>0,TRIM(C$9)="CFS"),Conversions!$C17,1) -> 3455.398077 | D17: =INDIRECT(CONCATENATE("'",D$1,"'!",D$4,(YEAR($A17)-1921)*12+MONTH($A17)+3+IF(ISNUMBER(FIND("PRV",D$6)),1,0)))*IF(AND(D$3>0,TRIM(D$9)="CFS"),Conversions!$C17,1) -> 3455.398077 | E17: =INDIRECT(CONCATENATE("'",E$1,"'!",E$4,(YEAR($A17)-1921)*12+MONTH($A17)+3+IF(ISNUMBER(FIND("PRV",E$6)),1,0)))*IF(AND(E$3>0,TRIM(E$9)="CFS"),Conversions!$C17,1) -> 3455.398077 | F17: =INDIRECT(CONCATENATE("'",F$1,"'!",F$4,(YEAR($A17)-1921)*12+MONTH($A17)+3+IF(ISNUMBER(FIND("PRV",F$6)),1,0)))*IF(AND(F$3>0,TRIM(F$9)="CFS"),Conversions!$C17,1) -> 3455.398077 | G17: =INDIRECT(CONCATENATE("'",G$1,"'!",G$4,(YEAR($A17)-1921)*12+MONTH($A17)+3+IF(ISNUMBER(FIND("PRV",G$6)),1,0)))*IF(AND(G$3>0,TRIM(G$9)="CFS"),Conversions!$C17,1) ->  | K17: 1927 | L17: =B73 -> 2703.983144 | M17: =B74 -> 3165.093514 | N17: =B75 -> 3347 | O17: =B76 -> 3668 | P17: =B77 -> 3462 | Q17: =B78 -> 4085.375156 | R17: =B79 -> 4552 | S17: =B80 -> 4552 | T17: =B81 -> 4346.501847 | U17: =B82 -> 3842.863245 | V17: =B83 -> 3463.109571 | W17: =B84 -> 3184.04974 | Y17: 3736.512304 | Z17: 3788.54325 | AA17: 3697.664685 | AC17: 3407.354533 | AD17: 3367.404993 | AE17: 3102.49765 | AF17: 3442.848919 | AG17: 4273.40652 | AH17: 3880.124883 | AI17: 3202.950873 | AK17: 1927 | AL17: =C73 -> 2751.606028 | AM17: =C74 -> 3212.654319 | AN17: =C75 -> 3347 | AO17: =C76 -> 3668 | AP17: =C77 -> 3462 | AQ17: =C78 -> 4085.375156 | AR17: =C79 -> 4552 | AS17: =C80 -> 4552 | AT17: =C81 -> 4356.865655 | AU17: =C82 -> 3847.390793 | AV17: =C83 -> 3467.304499 | AW17: =C84 -> 3190.288264 | AY17: 3739.130483 | AZ17: 3791.161429 | BA17: 3707.707059 | BC17: 3421.628982 | BD17: 3372.652958 | BE17: 3131.545284 | BF17: 3450.77572 | BG17: 4274.701996 | BH17: 3885.67627 | BI17: 3207.760647 | BK17: 1927 | BL17: =D73 -> 2791.613466 | BM17: =D74 -> 3252 | BN17: =D75 -> 3347 | BO17: =D76 -> 3668 | BP17: =D77 -> 3462 | BQ17: =D78 -> 4085.375156 | BR17: =D79 -> 4552 | BS17: =D80 -> 4552 | BT17: =D81 -> 4356.9306 | BU17: =D82 -> 3847.471717 | BV17: =D83 -> 3467.410592 | BW17: =D84 -> 3190.101535 | BY17: 3739.120255 | BZ17: 3791.151201 | CA17: 3714.325255 | CC17: =IF(CC$11="AVG",IF(CE$1="INST-VAL",AVERAGE(BL17:BP17,BM17:BQ17),AVERAGE(BM17:BQ17)),SUM(BM17:BQ17)) -> 3433.498862 | CD17: =IF(CD$11="AVG",IF(CE$1="INST-VAL",AVERAGE(BU17:BW17,BV17:BW17,BL18),AVERAGE(BV17:BW17,BL18)),SUM(BV17:BW17,BL18)) -> 3372.608239 | CE17: 3159.706461 | CF17: 3457.333333 | CG17: 4274.710114 | CH17: 3885.715919 | CI17: 3207.653431 | CK17: 1927 | CL17: =E73 -> 2766.387501 | CM17: =E74 -> 3227.416524 | CN17: =E75 -> 3347 | CO17: =E76 -> 3668 | CP17: =E77 -> 3462 | CQ17: =E78 -> 4085.375156 | CR17: =E79 -> 4552 | CS17: =E80 -> 4552 | CT17: =E81 -> 4356.895928 | CU17: =E82 -> 3847.432338 | CV17: =E83 -> 3467.352389 | CW17: =E84 -> 3190.174768 | CY17: 3739.120869 | CZ17: 3791.151815 | DA17: 3710.16955 | DC17: 3426.05957 | DD17: 3372.617751 | DE17: 3144.228199 | DF17: 3453.236087 | DG17: 4274.70578 | DH17: 3885.69201 | DI17: 3207.690271 | DK17: 1927 | DL17: =F73 -> 2445.364903 | DM17: =F74 -> 2906.800216 | DN17: =F75 -> 3347 | DO17: =F76 -> 3668 | DP17: =F77 -> 3462 | DQ17: =F78 -> 4085.375156 | DR17: =F79 -> 4552 | DS17: =F80 -> 4552 | DT17: =F81 -> 4356.65096 | DU17: =F82 -> 3847.145761 | DV17: =F83 -> 3466.985561 | DW17: =F84 -> 3190.022321 | DY17: 3732.613258 | DZ17: 3756.883985 | EA17: 3656.612073 | EC17: 3329.834049 | ED17: 3372.371064 | EE17: 2952.19802 | EF17: 3399.800036 | EG17: 4274.675159 | EH17: 3885.448361 | EI17: 3207.526653 | EK17: 1927 | EL17: =G73 ->  | EM17: =G74 ->  | EN17: =G75 ->  | EO17: =G76 ->  | EP17: =G77 ->  | EQ17: =G78 ->  | ER17: =G79 ->  | ES17: =G80 ->  | ET17: =G81 ->  | EU17: =G82 ->  | EV17: =G83 ->  | EW17: =G84 -> 
A18: 1922-03-31 | B18: =INDIRECT(CONCATENATE("'",B$1,"'!",B$4,(YEAR($A18)-1921)*12+MONTH($A18)+3+IF(ISNUMBER(FIND("PRV",B$6)),1,0)))*IF(AND(B$3>0,TRIM(B$9)="CFS"),Conversions!$C18,1) -> 3968.731586 | C18: =INDIRECT(CONCATENATE("'",C$1,"'!",C$4,(YEAR($A18)-1921)*12+MONTH($A18)+3+IF(ISNUMBER(FIND("PRV",C$6)),1,0)))*IF(AND(C$3>0,TRIM(C$9)="CFS"),Conversions!$C18,1) -> 3976.042101 | D18: =INDIRECT(CONCATENATE("'",D$1,"'!",D$4,(YEAR($A18)-1921)*12+MONTH($A18)+3+IF(ISNUMBER(FIND("PRV",D$6)),1,0)))*IF(AND(D$3>0,TRIM(D$9)="CFS"),Conversions!$C18,1) -> 3976.042101 | E18: =INDIRECT(CONCATENATE("'",E$1,"'!",E$4,(YEAR($A18)-1921)*12+MONTH($A18)+3+IF(ISNUMBER(FIND("PRV",E$6)),1,0)))*IF(AND(E$3>0,TRIM(E$9)="CFS"),Conversions!$C18,1) -> 3976.042101 | F18: =INDIRECT(CONCATENATE("'",F$1,"'!",F$4,(YEAR($A18)-1921)*12+MONTH($A18)+3+IF(ISNUMBER(FIND("PRV",F$6)),1,0)))*IF(AND(F$3>0,TRIM(F$9)="CFS"),Conversions!$C18,1) -> 3976.042101 | G18: =INDIRECT(CONCATENATE("'",G$1,"'!",G$4,(YEAR($A18)-1921)*12+MONTH($A18)+3+IF(ISNUMBER(FIND("PRV",G$6)),1,0)))*IF(AND(G$3>0,TRIM(G$9)="CFS"),Conversions!$C18,1) ->  | K18: 1928 | L18: =B85 -> 3067.248092 | M18: =B86 -> 3252 | N18: =B87 -> 3363 | O18: =B88 -> 3655.371351 | P18: =B89 -> 4099 | Q18: =B90 -> 3965 | R18: =B91 -> 4552 | S18: =B92 -> 4461.962636 | T18: =B93 -> 4003.978951 | U18: =B94 -> 3298.998982 | V18: =B95 -> 2837.249946 | W18: =B96 -> 2573.693903 | Y18: 3364.24235 | Z18: 3164.679739 | AA18: 3594.125322 | AC18: 3577.099079 | AD18: 2744.938116 | AE18: 3275.489659 | AF18: 3564.623784 | AG18: 4257.613028 | AH18: 3414.514037 | AI18: 2489.153479 | AK18: 1928 | AL18: =C85 -> 3073.341428 | AM18: =C86 -> 3252 | AN18: =C87 -> 3363 | AO18: =C88 -> 3655.371351 | AP18: =C89 -> 4099 | AQ18: =C90 -> 3965 | AR18: =C91 -> 4552 | AS18: =C92 -> 4477.528706 | AT18: =C93 -> 4018.447632 | AU18: =C94 -> 3313.410099 | AV18: =C95 -> 2851.661683 | AW18: =C96 -> 2590.73183 | AY18: 3374.943492 | AZ18: 3178.381534 | BA18: 3600.957727 | BC18: 3577.708413 | BD18: 2760.662945 | BE18: 3277.792809 | BF18: 3564.623784 | BG18: 4263.31313 | BH18: 3429.41242 | BI18: 2505.823829 | BK18: 1928 | BL18: =D85 -> 3073.153463 | BM18: =D86 -> 3252 | BN18: =D87 -> 3363 | BO18: =D88 -> 3655.371351 | BP18: =D89 -> 4099 | BQ18: =D90 -> 3965 | BR18: =D91 -> 4487.110204 | BS18: =D92 -> 4417.287876 | BT18: =D93 -> 3977.59334 | BU18: =D94 -> 3272.718344 | BV18: =D95 -> 2816.602519 | BW18: =D96 -> 2558.799145 | BY18: 3344.392871 | BZ18: 3142.6988 | CA18: 3578.136354 | CC18: 3577.689617 | CD18: 2726.367652 | CE18: 3277.722476 | CF18: 3564.623784 | CG18: 4226.923687 | CH18: 3388.739428 | CI18: 2473.801187 | CK18: 1928 | CL18: =E85 -> 3073.219852 | CM18: =E86 -> 3252 | CN18: =E87 -> 3363 | CO18: =E88 -> 3655.371351 | CP18: =E89 -> 4099 | CQ18: =E90 -> 3965 | CR18: =E91 -> 4487.110204 | CS18: =E92 -> 4342.355995 | CT18: =E93 -> 3913.222397 | CU18: =E94 -> 3233.528819 | CV18: =E95 -> 2803.407458 | CW18: =E96 -> 2570.334313 | CY18: 3328.440067 | CZ18: 3121.020679 | DA18: 3563.129199 | DC18: =IF(DC$11="AVG",IF(DE$1="INST-VAL",AVERAGE(CL18:CP18,CM18:CQ18),AVERAGE(CM18:CQ18)),SUM(CM18:CQ18)) -> 3577.696255 | DD18: =IF(DD$11="AVG",IF(DE$1="INST-VAL",AVERAGE(CU18:CW18,CV18:CW18,CL19),AVERAGE(CV18:CW18,CL19)),SUM(CV18:CW18,CL19)) -> 2721.277043 | DE18: 3277.748228 | DF18: 3564.623784 | DG18: 4200.144349 | DH18: 3351.625957 | DI18: 2481.292232 | DK18: 1928 | DL18: =F85 -> 3073.064859 | DM18: =F86 -> 3252 | DN18: =F87 -> 3286.114481 | DO18: =F88 -> 3478.569407 | DP18: =F89 -> 3942.679309 | DQ18: =F90 -> 3965 | DR18: =F91 -> 4487.110204 | DS18: =F92 -> 4341.922307 | DT18: =F93 -> 3912.150573 | DU18: =F94 -> 3272.34177 | DV18: =F95 -> 2865.297362 | DW18: =F96 -> 2672.334021 | DY18: 3346.756248 | DZ18: 3191.737089 | EA18: 3545.715358 | EC18: =IF(EC$11="AVG",IF(EE$1="INST-VAL",AVERAGE(DL18:DP18,DM18:DQ18),AVERAGE(DM18:DQ18)),SUM(DM18:DQ18)) -> 3495.679125 | ED18: =IF(ED$11="AVG",IF(EE$1="INST-VAL",AVERAGE(DU18:DW18,DV18:DW18,DL19),AVERAGE(DV18:DW18,DL19)),SUM(DV18:DW18,DL19)) -> 2799.445562 | EE18: 3236.368801 | EF18: 3454.007848 | EG18: 4180.361863 | EH18: 3389.229467 | EI18: 2576.631959 | EK18: 1928 | EL18: =G85 ->  | EM18: =G86 ->  | EN18: =G87 ->  | EO18: =G88 ->  | EP18: =G89 ->  | EQ18: =G90 ->  | ER18: =G91 ->  | ES18: =G92 ->  | ET18: =G93 ->  | EU18: =G94 ->  | EV18: =G95 ->  | EW18: =G96 ->  | FC18: =IF(FC$11="AVG",IF(FE$1="INST-VAL",AVERAGE(EL18:EP18,EM18:EQ18),AVERAGE(EM18:EQ18)),SUM(EM18:EQ18)) -> 
A19: 1922-04-30 | B19: =INDIRECT(CONCATENATE("'",B$1,"'!",B$4,(YEAR($A19)-1921)*12+MONTH($A19)+3+IF(ISNUMBER(FIND("PRV",B$6)),1,0)))*IF(AND(B$3>0,TRIM(B$9)="CFS"),Conversions!$C19,1) -> 4552 | C19: =INDIRECT(CONCATENATE("'",C$1,"'!",C$4,(YEAR($A19)-1921)*12+MONTH($A19)+3+IF(ISNUMBER(FIND("PRV",C$6)),1,0)))*IF(AND(C$3>0,TRIM(C$9)="CFS"),Conversions!$C19,1) -> 4552 | D19: =INDIRECT(CONCATENATE("'",D$1,"'!",D$4,(YEAR($A19)-1921)*12+MONTH($A19)+3+IF(ISNUMBER(FIND("PRV",D$6)),1,0)))*IF(AND(D$3>0,TRIM(D$9)="CFS"),Conversions!$C19,1) -> 4552 | E19: =INDIRECT(CONCATENATE("'",E$1,"'!",E$4,(YEAR($A19)-1921)*12+MONTH($A19)+3+IF(ISNUMBER(FIND("PRV",E$6)),1,0)))*IF(AND(E$3>0,TRIM(E$9)="CFS"),Conversions!$C19,1) -> 4552 | F19: =INDIRECT(CONCATENATE("'",F$1,"'!",F$4,(YEAR($A19)-1921)*12+MONTH($A19)+3+IF(ISNUMBER(FIND("PRV",F$6)),1,0)))*IF(AND(F$3>0,TRIM(F$9)="CFS"),Conversions!$C19,1) -> 4552 | G19: =INDIRECT(CONCATENATE("'",G$1,"'!",G$4,(YEAR($A19)-1921)*12+MONTH($A19)+3+IF(ISNUMBER(FIND("PRV",G$6)),1,0)))*IF(AND(G$3>0,TRIM(G$9)="CFS"),Conversions!$C19,1) ->  | K19: 1929 | L19: =B97 -> 2348.742017 | M19: =B98 -> 2252.799085 | N19: =B99 -> 2322.111331 | O19: =B100 -> 2586.413922 | P19: =B101 -> 2773.2061 | Q19: =B102 -> 2918.664896 | R19: =B103 -> 3061.378344 | S19: =B104 -> 2765.945964 | T19: =B105 -> 2560.955493 | U19: =B106 -> 2310.767505 | V19: =B107 -> 2078.512335 | W19: =B108 -> 2020.162497 | Y19: 2409.447239 | Z19: 2405.730091 | AA19: 2499.971624 | AC19: 2513.646779 | AD19: 2061.885884 | AE19: 2375.926586 | AF19: 2473.842615 | AG19: 2853.2675 | AH19: 2335.822391 | AI19: 1927.03901 | AK19: 1929 | AL19: =C97 -> 2365.780547 | AM19: =C98 -> 2270.256536 | AN19: =C99 -> 2340.133519 | AO19: =C100 -> 2604.424023 | AP19: =C101 -> 2791.203831 | AQ19: =C102 -> 2927.56891 | AR19: =C103 -> 3069.5815 | AS19: =C104 -> 2890.920814 | AT19: =C105 -> 2684.228382 | AU19: =C106 -> 2435.508483 | AV19: =C107 -> 2162.063767 | AW19: =C108 -> 2076.07928 | AY19: 2469.498659 | AZ19: 2470.875473 | BA19: 2551.479133 | BC19: 2530.538527 | BD19: 2138.791378 | BE19: 2393.437132 | BF19: 2491.762575 | BG19: 2906.446833 | BH19: 2441.32517 | BI19: 1986.965639 | BK19: 1929 | BL19: =D97 -> 2334.684238 | BM19: =D98 -> 2239.237834 | BN19: =D99 -> 2309.309597 | BO19: =D100 -> 2573.620767 | BP19: =D101 -> 2760.42173 | BQ19: =D102 -> 2902.182018 | BR19: =D103 -> 3062.499026 | BS19: =D104 -> 2884.317804 | BT19: =D105 -> 2684.881164 | BU19: =D106 -> 2435.830908 | BV19: =D107 -> 2154.34255 | BW19: =D108 -> 2059.947763 | BY19: 2455.182815 | BZ19: 2458.835839 | CA19: 2533.439617 | CC19: 2500.204611 | CD19: 2128.266163 | CE19: 2362.360406 | CF19: 2460.920049 | CG19: 2892.912574 | CH19: 2436.796851 | CI19: 1972.490404 | CK19: 1929 | CL19: =E97 -> 2346.649898 | CM19: =E98 -> 2250.377513 | CN19: =E99 -> 2274.922853 | CO19: =E100 -> 2539.257078 | CP19: =E101 -> 2726.081623 | CQ19: =E102 -> 2890.885913 | CR19: =E103 -> 3051.220257 | CS19: =E104 -> 2872.840927 | CT19: =E105 -> 2673.448499 | CU19: =E106 -> 2423.299942 | CV19: =E107 -> 2142.503915 | CW19: =E108 -> 2048.928974 | CY19: 2439.443885 | CZ19: 2446.506565 | DA19: 2520.034783 | DC19: 2481.881394 | DD19: 2116.460014 | DE19: 2356.68649 | DF19: 2434.1365 | DG19: 2878.678039 | DH19: 2425.034327 | DI19: 1960.515863 | DK19: 1929 | DL19: =F97 -> 2449.068835 | DM19: =F98 -> 2351.688677 | DN19: =F99 -> 2422.91251 | DO19: =F100 -> 2687.148336 | DP19: =F101 -> 2873.870476 | DQ19: =F102 -> 2995.700177 | DR19: =F103 -> 3155.873661 | DS19: =F104 -> 2977.698766 | DT19: =F105 -> 2777.902391 | DU19: =F106 -> 2528.420129 | DV19: =F107 -> 2245.292361 | DW19: =F108 -> 2151.728588 | DY19: 2538.469669 | DZ19: 2530.078628 | EA19: 2634.775409 | EC19: 2611.600901 | ED19: 2211.793129 | EE19: 2475.8528 | EF19: 2574.280141 | EG19: 2988.78976 | EH19: 2529.08214 | EI19: 2039.19063 | EK19: 1929 | EL19: =G97 ->  | EM19: =G98 ->  | EN19: =G99 ->  | EO19: =G100 ->  | EP19: =G101 ->  | EQ19: =G102 ->  | ER19: =G103 ->  | ES19: =G104 ->  | ET19: =G105 ->  | EU19: =G106 ->  | EV19: =G107 ->  | EW19: =G108 -> 
A20: 1922-05-31 | B20: =INDIRECT(CONCATENATE("'",B$1,"'!",B$4,(YEAR($A20)-1921)*12+MONTH($A20)+3+IF(ISNUMBER(FIND("PRV",B$6)),1,0)))*IF(AND(B$3>0,TRIM(B$9)="CFS"),Conversions!$C20,1) -> 4552 | C20: =INDIRECT(CONCATENATE("'",C$1,"'!",C$4,(YEAR($A20)-1921)*12+MONTH($A20)+3+IF(ISNUMBER(FIND("PRV",C$6)),1,0)))*IF(AND(C$3>0,TRIM(C$9)="CFS"),Conversions!$C20,1) -> 4552 | D20: =INDIRECT(CONCATENATE("'",D$1,"'!",D$4,(YEAR($A20)-1921)*12+MONTH($A20)+3+IF(ISNUMBER(FIND("PRV",D$6)),1,0)))*IF(AND(D$3>0,TRIM(D$9)="CFS"),Conversions!$C20,1) -> 4552 | E20: =INDIRECT(CONCATENATE("'",E$1,"'!",E$4,(YEAR($A20)-1921)*12+MONTH($A20)+3+IF(ISNUMBER(FIND("PRV",E$6)),1,0)))*IF(AND(E$3>0,TRIM(E$9)="CFS"),Conversions!$C20,1) -> 4552 | F20: =INDIRECT(CONCATENATE("'",F$1,"'!",F$4,(YEAR($A20)-1921)*12+MONTH($A20)+3+IF(ISNUMBER(FIND("PRV",F$6)),1,0)))*IF(AND(F$3>0,TRIM(F$9)="CFS"),Conversions!$C20,1) -> 4552 | G20: =INDIRECT(CONCATENATE("'",G$1,"'!",G$4,(YEAR($A20)-1921)*12+MONTH($A20)+3+IF(ISNUMBER(FIND("PRV",G$6)),1,0)))*IF(AND(G$3>0,TRIM(G$9)="CFS"),Conversions!$C20,1) ->  | K20: 1930 | L20: =B109 -> 1863.198136 | M20: =B110 -> 1717.000459 | N20: =B111 -> 2257.161218 | O20: =B112 -> 2459.0266 | P20: =B113 -> 2855.987638 | Q20: =B114 -> 3347.961379 | R20: =B115 -> 3580.508024 | S20: =B116 -> 3548.249617 | T20: =B117 -> 3222.724403 | U20: =B118 -> 2861.210475 | V20: =B119 -> 2569.251152 | W20: =B120 -> 2532.002882 | Y20: 2858.774705 | Z20: 2834.662671 | AA20: 2734.523499 | AC20: 2378.951135 | AD20: 2590.910887 | AE20: 2019.238591 | AF20: 2334.227289 | AG20: 3379.01876 | AH20: 2923.32807 | AI20: 2508.105343 | AK20: 1930 | AL20: =C109 -> 1920.953689 | AM20: =C110 -> 1765.664129 | AN20: =C111 -> 2305.7871 | AO20: =C112 -> 2507.618238 | AP20: =C113 -> 2904.531388 | AQ20: =C114 -> 3396.436455 | AR20: =C115 -> 3628.884363 | AS20: =C116 -> 3612.025027 | AT20: =C117 -> 3291.728321 | AU20: =C118 -> 2931.094016 | AV20: =C119 -> 2660.938535 | AW20: =C120 -> 2630.193049 | AY20: 2919.682351 | AZ20: 2888.087097 | BA20: 2796.321193 | BC20: 2428.459186 | BD20: 2683.529628 | BE20: 2071.063419 | BF20: 2382.834366 | BG20: 3433.868925 | BH20: 3001.217478 | BI20: 2597.244147 | BK20: 1930 | BL20: =D109 -> 1905.185442 | BM20: =D110 -> 1750.333461 | BN20: =D111 -> 2288.631145 | BO20: =D112 -> 2490.474365 | BP20: =D113 -> 2887.404425 | BQ20: =D114 -> 3379.333721 | BR20: =D115 -> 3611.816466 | BS20: =D116 -> 3647.12153 | BT20: =D117 -> 3367.009388 | BU20: =D118 -> 3006.572758 | BV20: =D119 -> 2704.683731 | BW20: =D120 -> 2644.380867 | BY20: 2930.726873 | BZ20: 2899.823639 | CA20: 2806.912275 | CC20: 2411.820596 | CD20: 2712.633609 | CE20: 2054.840278 | CF20: 2365.991484 | CG20: 3441.369656 | CH20: 3056.004269 | CI20: 2601.508631 | CK20: 1930 | CL20: =E109 -> 1892.594363 | CM20: =E110 -> 1737.544586 | CN20: =E111 -> 2274.720538 | CO20: =E112 -> 2476.573554 | CP20: =E113 -> 2873.517313 | CQ20: =E114 -> 3365.466255 | CR20: =E115 -> 3597.977246 | CS20: =E116 -> 3633.515817 | CT20: =E117 -> 3353.46138 | CU20: =E118 -> 2996.06174 | CV20: =E119 -> 2696.270766 | CW20: =E120 -> 2634.978352 | CY20: 2920.28345 | CZ20: 2891.228958 | DA20: 2794.390159 | DC20: 2398.27726 | DD20: 2703.392992 | DE20: 2041.902688 | DF20: 2352.275014 | DG20: 3427.612166 | DH20: 3045.010243 | DI20: 2593.498509 | DK20: 1930 | DL20: =F109 -> 1948.296745 | DM20: =F110 -> 1789.800752 | DN20: =F111 -> 2329.903646 | DO20: =F112 -> 2531.717802 | DP20: =F113 -> 2928.608515 | DQ20: =F114 -> 3420.47952 | DR20: =F115 -> 3652.878456 | DS20: =F116 -> 3688.164546 | DT20: =F117 -> 3407.878506 | DU20: =F118 -> 3052.919899 | DV20: =F119 -> 2690.800461 | DW20: =F120 -> 2625.706629 | DY20: 2955.952324 | DZ20: 2926.357986 | EA20: 2838.929623 | EC20: 2452.883769 | ED20: 2705.024256 | EE20: 2102.431084 | EF20: 2406.942027 | EG20: 3482.441508 | EH20: 3077.133613 | EI20: 2587.356333 | EK20: 1930 | EL20: =G109 ->  | EM20: =G110 ->  | EN20: =G111 ->  | EO20: =G112 ->  | EP20: =G113 ->  | EQ20: =G114 ->  | ER20: =G115 ->  | ES20: =G116 ->  | ET20: =G117 ->  | EU20: =G118 ->  | EV20: =G119 ->  | EW20: =G120 -> 
A21: 1922-06-30 | B21: =INDIRECT(CONCATENATE("'",B$1,"'!",B$4,(YEAR($A21)-1921)*12+MONTH($A21)+3+IF(ISNUMBER(FIND("PRV",B$6)),1,0)))*IF(AND(B$3>0,TRIM(B$9)="CFS"),Conversions!$C21,1) -> 4288.190126 | C21: =INDIRECT(CONCATENATE("'",C$1,"'!",C$4,(YEAR($A21)-1921)*12+MONTH($A21)+3+IF(ISNUMBER(FIND("PRV",C$6)),1,0)))*IF(AND(C$3>0,TRIM(C$9)="CFS"),Conversions!$C21,1) -> 4318.250047 | D21: =INDIRECT(CONCATENATE("'",D$1,"'!",D$4,(YEAR($A21)-1921)*12+MONTH($A21)+3+IF(ISNUMBER(FIND("PRV",D$6)),1,0)))*IF(AND(D$3>0,TRIM(D$9)="CFS"),Conversions!$C21,1) -> 4318.250047 | E21: =INDIRECT(CONCATENATE("'",E$1,"'!",E$4,(YEAR($A21)-1921)*12+MONTH($A21)+3+IF(ISNUMBER(FIND("PRV",E$6)),1,0)))*IF(AND(E$3>0,TRIM(E$9)="CFS"),Conversions!$C21,1) -> 4317.258857 | F21: =INDIRECT(CONCATENATE("'",F$1,"'!",F$4,(YEAR($A21)-1921)*12+MONTH($A21)+3+IF(ISNUMBER(FIND("PRV",F$6)),1,0)))*IF(AND(F$3>0,TRIM(F$9)="CFS"),Conversions!$C21,1) -> 4317.258857 | G21: =INDIRECT(CONCATENATE("'",G$1,"'!",G$4,(YEAR($A21)-1921)*12+MONTH($A21)+3+IF(ISNUMBER(FIND("PRV",G$6)),1,0)))*IF(AND(G$3>0,TRIM(G$9)="CFS"),Conversions!$C21,1) ->  | K21: 1931 | L21: =B121 -> 2481.746776 | M21: =B122 -> 2451.881589 | N21: =B123 -> 2394.745927 | O21: =B124 -> 2470.880011 | P21: =B125 -> 2554.789817 | Q21: =B126 -> 2697.386105 | R21: =B127 -> 2662.933187 | S21: =B128 -> 2368.386343 | T21: =B129 -> 2052.283172 | U21: =B130 -> 1670.081728 | V21: =B131 -> 1423.491397 | W21: =B132 -> 1330.316421 | Y21: 1893.598884 | Z21: 1728.72947 | AA21: 2213.24354 | AC21: 2492.372757 | AD21: 1387.632171 | AE21: 2457.453935 | AF21: 2456.320547 | AG21: 2508.060533 | AH21: 1748.80192 | AI21: 1243.067117 | AK21: 1931 | AL21: =C121 -> 2587.820585 | AM21: =C122 -> 2486.49908 | AN21: =C123 -> 2398.419154 | AO21: =C124 -> 2474.550557 | AP21: =C125 -> 2558.456015 | AQ21: =C126 -> 2721.294404 | AR21: =C127 -> 2623.307245 | AS21: =C128 -> 2327.008369 | AT21: =C129 -> 2014.836894 | AU21: =C130 -> 1636.348732 | AV21: =C131 -> 1363.554676 | AW21: =C132 -> 1269.413709 | AY21: 1863.900655 | AZ21: 1692.543521 | BA21: 2205.125785 | BC21: 2514.49646 | BD21: 1334.402765 | BE21: 2506.277655 | BF21: 2465.149086 | BG21: 2489.564118 | BH21: 1703.237836 | BI21: 1192.232497 | BK21: 1931 | BL21: =D121 -> 2571.099699 | BM21: =D122 -> 2473.406922 | BN21: =D123 -> 2385.418601 | BO21: =D124 -> 2461.559568 | BP21: =D125 -> 2545.480416 | BQ21: =D126 -> 2708.337968 | BR21: =D127 -> 2612.414165 | BS21: =D128 -> 2316.328501 | BT21: =D129 -> 2004.183844 | BU21: =D130 -> 1628.091815 | BV21: =D131 -> 1351.243492 | BW21: =D132 -> 1257.099998 | BY21: 1851.690912 | BZ21: 1680.140515 | CA21: 2192.888749 | CC21: 2501.116868 | CD21: 1322.45891 | CE21: 2495.72386 | CF21: 2452.140612 | CG21: 2477.978191 | CH21: 1692.55835 | CI21: 1178.995238 | CK21: 1931 | CL21: =E121 -> 2561.797976 | CM21: =E122 -> 2471.167633 | CN21: =E123 -> 2382.613363 | CO21: =E124 -> 2458.7564 | CP21: =E125 -> 2542.680569 | CQ21: =E126 -> 2705.542256 | CR21: =E127 -> 2610.571627 | CS21: =E128 -> 2314.503493 | CT21: =E129 -> 2002.300463 | CU21: =E130 -> 1625.297139 | CV21: =E131 -> 1348.081019 | CW21: =E132 -> 1253.937137 | CY21: 1848.953198 | CZ21: 1677.326084 | DA21: 2189.770756 | DC21: 2497.777616 | DD21: 1319.343131 | DE21: 2490.611587 | DF21: 2449.431288 | DG21: 2475.776973 | DH21: 1689.974734 | DI21: 1175.786017 | DK21: 1931 | DL21: =F121 -> 2544.21146 | DM21: =F122 -> 2493.501359 | DN21: =F123 -> 2434.560732 | DO21: =F124 -> 2510.665801 | DP21: =F125 -> 2594.528464 | DQ21: =F126 -> 2757.313549 | DR21: =F127 -> 2683.334597 | DS21: =F128 -> 2388.144294 | DT21: =F129 -> 2075.046251 | DU21: =F130 -> 1698.233967 | DV21: =F131 -> 1452.120234 | DW21: =F132 -> 1358.935952 | DY21: 1924.566083 | DZ21: 1753.903473 | EA21: 2249.216388 | EC21: 2536.803772 | ED21: 1415.251084 | EE21: 2510.114941 | EF21: 2496.413815 | EG21: 2540.89495 | EH21: 1774.735144 | EI21: 1270.133115 | EK21: 1931 | EL21: =G121 ->  | EM21: =G122 ->  | EN21: =G123 ->  | EO21: =G124 ->  | EP21: =G125 ->  | EQ21: =G126 ->  | ER21: =G127 ->  | ES21: =G128 ->  | ET21: =G129 ->  | EU21: =G130 ->  | EV21: =G131 ->  | EW21: =G132 -> 
A22: 1922-07-31 | B22: =INDIRECT(CONCATENATE("'",B$1,"'!",B$4,(YEAR($A22)-1921)*12+MONTH($A22)+3+IF(ISNUMBER(FIND("PRV",B$6)),1,0)))*IF(AND(B$3>0,TRIM(B$9)="CFS"),Conversions!$C22,1) -> 3876.566529 | C22: =INDIRECT(CONCATENATE("'",C$1,"'!",C$4,(YEAR($A22)-1921)*12+MONTH($A22)+3+IF(ISNUMBER(FIND("PRV",C$6)),1,0)))*IF(AND(C$3>0,TRIM(C$9)="CFS"),Conversions!$C22,1) -> 3912.604497 | D22: =INDIRECT(CONCATENATE("'",D$1,"'!",D$4,(YEAR($A22)-1921)*12+MONTH($A22)+3+IF(ISNUMBER(FIND("PRV",D$6)),1,0)))*IF(AND(D$3>0,TRIM(D$9)="CFS"),Conversions!$C22,1) -> 3912.604497 | E22: =INDIRECT(CONCATENATE("'",E$1,"'!",E$4,(YEAR($A22)-1921)*12+MONTH($A22)+3+IF(ISNUMBER(FIND("PRV",E$6)),1,0)))*IF(AND(E$3>0,TRIM(E$9)="CFS"),Conversions!$C22,1) -> 3910.15416 | F22: =INDIRECT(CONCATENATE("'",F$1,"'!",F$4,(YEAR($A22)-1921)*12+MONTH($A22)+3+IF(ISNUMBER(FIND("PRV",F$6)),1,0)))*IF(AND(F$3>0,TRIM(F$9)="CFS"),Conversions!$C22,1) -> 3910.15416 | G22: =INDIRECT(CONCATENATE("'",G$1,"'!",G$4,(YEAR($A22)-1921)*12+MONTH($A22)+3+IF(ISNUMBER(FIND("PRV",G$6)),1,0)))*IF(AND(G$3>0,TRIM(G$9)="CFS"),Conversions!$C22,1) ->  | K22: 1932 | L22: =B133 -> 1148.095661 | M22: =B134 -> 1078.087143 | N22: =B135 -> 1266.455623 | O22: =B136 -> 1465.669031 | P22: =B137 -> 1581.567828 | Q22: =B138 -> 2032.831487 | R22: =B139 -> 2262.178368 | S22: =B140 -> 2442.830906 | T22: =B141 -> 2280.523311 | U22: =B142 -> 2013.67697 | V22: =B143 -> 1798.496896 | W22: =B144 -> 1705.724077 | Y22: 1863.527096 | Z22: 1876.663291 | AA22: 1756.344775 | AC22: 1396.44864 | AD22: 1775.385736 | AE22: 1222.657788 | AF22: 1353.984046 | AG22: 2167.221583 | AH22: 2041.743667 | AI22: 1675.112654 | AK22: 1932 | AL22: =C133 -> 1104.131087 | AM22: =C134 -> 1042.75071 | AN22: =C135 -> 1231.155457 | AO22: =C136 -> 1430.395932 | AP22: =C137 -> 1546.325041 | AQ22: =C138 -> 1997.651781 | AR22: =C139 -> 2227.071068 | AS22: =C140 -> 2425.122787 | AT22: =C141 -> 2273.074792 | AU22: =C142 -> 2008.3526 | AV22: =C143 -> 1792.554583 | AW22: =C144 -> 1697.79684 | AY22: 1846.230959 | AZ22: 1863.949231 | BA22: 1731.365223 | BC22: 1360.303715 | BD22: 1768.534902 | BE22: 1181.985519 | BF22: 1318.696421 | BG22: 2139.886388 | BH22: 2033.860447 | BI22: 1667.701895 | BK22: 1932 | BL22: =D133 -> 1089.974662 | BM22: =D134 -> 1028.578614 | BN22: =D135 -> 1216.997905 | BO22: =D136 -> 1416.246977 | BP22: =D137 -> 1532.188245 | BQ22: =D138 -> 1983.540289 | BR22: =D139 -> 2212.98862 | BS22: =D140 -> 2411.088317 | BT22: =D141 -> 2259.10561 | BU22: =D142 -> 1994.462054 | BV22: =D143 -> 1778.735142 | BW22: =D144 -> 1684.030567 | BY22: 1832.303829 | BZ22: 1850.096785 | CA22: 1717.328083 | CC22: 1346.153843 | CD22: 1754.735011 | CE22: 1168.056167 | CF22: 1304.54277 | CG22: 2125.816038 | CH22: 2019.965562 | CI22: 1653.944295 | CK22: 1932 | CL22: =E133 -> 1086.725332 | CM22: =E134 -> 1025.310145 | CN22: =E135 -> 1213.732791 | CO22: =E136 -> 1412.983767 | CP22: =E137 -> 1528.927839 | CQ22: =E138 -> 1980.285719 | CR22: =E139 -> 2209.740749 | CS22: =E140 -> 2407.824243 | CT22: =E141 -> 2255.827381 | CU22: =E142 -> 1991.173425 | CV22: =E143 -> 1775.435007 | CW22: =E144 -> 1680.736343 | CY22: 1829.026152 | CZ22: 1846.814526 | DA22: 1714.058562 | DC22: 1342.892013 | DD22: 1751.439944 | DE22: 1164.80718 | DF22: 1301.278516 | DG22: 2122.55708 | DH22: 2016.679026 | DI22: 1650.649375 | DK22: 1932 | DL22: =F133 -> 1171.160166 | DM22: =F134 -> 1108.48622 | DN22: =F135 -> 1296.823501 | DO22: =F136 -> 1465.669056 | DP22: =F137 -> 1591.573883 | DQ22: =F138 -> 2063.087616 | DR22: =F139 -> 2292.372223 | DS22: =F140 -> 2490.205724 | DT22: =F141 -> 2337.863043 | DU22: =F142 -> 2072.784953 | DV22: =F143 -> 1856.664582 | DW22: =F144 -> 1761.655284 | DY22: 1906.600217 | DZ22: 1928.192683 | EA22: 1792.362188 | EC22: 1415.93531 | ED22: 1832.548451 | EE22: 1247.193098 | EF22: 1370.84087 | EG22: 2202.596007 | EH22: 2098.310771 | EI22: 1731.512516 | EK22: 1932 | EL22: =G133 ->  | EM22: =G134 ->  | EN22: =G135 ->  | EO22: =G136 ->  | EP22: =G137 ->  | EQ22: =G138 ->  | ER22: =G139 ->  | ES22: =G140 ->  | ET22: =G141 ->  | EU22: =G142 ->  | EV22: =G143 ->  | EW22: =G144 -> 
A23: 1922-08-31 | B23: =INDIRECT(CONCATENATE("'",B$1,"'!",B$4,(YEAR($A23)-1921)*12+MONTH($A23)+3+IF(ISNUMBER(FIND("PRV",B$6)),1,0)))*IF(AND(B$3>0,TRIM(B$9)="CFS"),Conversions!$C23,1) -> 3520.599895 | C23: =INDIRECT(CONCATENATE("'",C$1,"'!",C$4,(YEAR($A23)-1921)*12+MONTH($A23)+3+IF(ISNUMBER(FIND("PRV",C$6)),1,0)))*IF(AND(C$3>0,TRIM(C$9)="CFS"),Conversions!$C23,1) -> 3558.095704 | D23: =INDIRECT(CONCATENATE("'",D$1,"'!",D$4,(YEAR($A23)-1921)*12+MONTH($A23)+3+IF(ISNUMBER(FIND("PRV",D$6)),1,0)))*IF(AND(D$3>0,TRIM(D$9)="CFS"),Conversions!$C23,1) -> 3558.095704 | E23: =INDIRECT(CONCATENATE("'",E$1,"'!",E$4,(YEAR($A23)-1921)*12+MONTH($A23)+3+IF(ISNUMBER(FIND("PRV",E$6)),1,0)))*IF(AND(E$3>0,TRIM(E$9)="CFS"),Conversions!$C23,1) -> 3555.870561 | F23: =INDIRECT(CONCATENATE("'",F$1,"'!",F$4,(YEAR($A23)-1921)*12+MONTH($A23)+3+IF(ISNUMBER(FIND("PRV",F$6)),1,0)))*IF(AND(F$3>0,TRIM(F$9)="CFS"),Conversions!$C23,1) -> 3555.870561 | G23: =INDIRECT(CONCATENATE("'",G$1,"'!",G$4,(YEAR($A23)-1921)*12+MONTH($A23)+3+IF(ISNUMBER(FIND("PRV",G$6)),1,0)))*IF(AND(G$3>0,TRIM(G$9)="CFS"),Conversions!$C23,1) ->  | K23: 1933 | L23: =B145 -> 1630.195501 | M23: =B146 -> 1580.339871 | N23: =B147 -> 1568.290909 | O23: =B148 -> 1584.247097 | P23: =B149 -> 1620.624098 | Q23: =B150 -> 2201.454518 | R23: =B151 -> 2374.768361 | S23: =B152 -> 2346.983999 | T23: =B153 -> 2170.381032 | U23: =B154 -> 1916.82611 | V23: =B155 -> 1574.70042 | W23: =B156 -> 1518.788968 | Y23: 1775.603938 | Z23: 1812.938474 | AA23: 1840.633407 | AC23: 1653.865397 | AD23: 1576.197729 | AE23: 1605.952967 | AF23: 1584.339997 | AG23: 2204.677361 | AH23: 1898.698511 | AI23: 1429.978507 | AK23: 1933 | AL23: =C145 -> 1622.153967 | AM23: =C146 -> 1573.755173 | AN23: =C147 -> 1560.516948 | AO23: =C148 -> 1576.478698 | AP23: =C149 -> 1612.861535 | AQ23: =C150 -> 2189.915597 | AR23: =C151 -> 2364.169031 | AS23: =C152 -> 2385.212797 | AT23: =C153 -> 2208.194471 | AU23: =C154 -> 1954.158925 | AV23: =C155 -> 1714.822645 | AW23: =C156 -> 1641.761823 | AY23: 1813.483825 | AZ23: 1854.838872 | BA23: 1867.000134 | BC23: 1645.929427 | BD23: 1683.677232 | BE23: 1598.390964 | BF23: 1576.768 | BG23: 2212.456357 | BH23: 1972.665838 | BI23: 1524.445216 | BK23: 1933 | BL23: =D145 -> 1608.416592 | BM23: =D146 -> 1560.036309 | BN23: =D147 -> 1546.807224 | BO23: =D148 -> 1562.77878 | BP23: =D149 -> 1599.171911 | BQ23: =D150 -> 2176.245845 | BR23: =D151 -> 2405.841106 | BS23: =D152 -> 2375.889864 | BT23: =D153 -> 2196.945347 | BU23: =D154 -> 1943.433119 | BV23: =D155 -> 1704.079262 | BW23: =D156 -> 1630.771101 | BY23: 1803.410536 | BZ23: 1842.562547 | CA23: 1859.201372 | CC23: 1632.225089 | CD23: 1672.218234 | CE23: 1584.6662 | CF23: 1563.063371 | CG23: 2214.008861 | CH23: 1961.947053 | CI23: 1509.645859 | CK23: 1933 | CL23: =E145 -> 1605.123541 | CM23: =E146 -> 1556.741473 | CN23: =E147 -> 1543.514337 | CO23: =E148 -> 1559.488249 | CP23: =E149 -> 1595.883852 | CQ23: =E150 -> 2172.944927 | CR23: =E151 -> 2402.525604 | CS23: =E152 -> 2372.524141 | CT23: =E153 -> 2193.730074 | CU23: =E154 -> 1940.290149 | CV23: =E155 -> 1700.927802 | CW23: =E156 -> 1627.622495 | CY23: 1800.272535 | CZ23: 1839.503457 | DA23: 1855.943054 | DC23: 1628.932429 | DD23: 1669.128382 | DE23: 1581.372912 | DF23: 1559.771749 | DG23: 2210.700409 | DH23: 1958.755336 | DI23: 1506.668849 | DK23: 1933 | DL23: =F145 -> 1685.86602 | DM23: =F146 -> 1637.367908 | DN23: =F147 -> 1624.092307 | DO23: =F148 -> 1640.008623 | DP23: =F149 -> 1676.343917 | DQ23: =F150 -> 2253.294754 | DR23: =F151 -> 2482.661244 | DS23: =F152 -> 2452.52617 | DT23: =F153 -> 2269.843834 | DU23: =F154 -> 2014.418394 | DV23: =F155 -> 1774.698122 | DW23: =F156 -> 1701.172293 | DY23: 1876.414388 | DZ23: 1914.13267 | EA23: 1934.357799 | EC23: 1709.478628 | ED23: 1742.523128 | EE23: 1662.039547 | EF23: 1640.318948 | EG23: 2290.394011 | EH23: 2033.952395 | EI23: 1579.27447 | EK23: 1933 | EL23: =G145 ->  | EM23: =G146 ->  | EN23: =G147 ->  | EO23: =G148 ->  | EP23: =G149 ->  | EQ23: =G150 ->  | ER23: =G151 ->  | ES23: =G152 ->  | ET23: =G153 ->  | EU23: =G154 ->  | EV23: =G155 ->  | EW23: =G156 -> 
A24: 1922-09-30 | B24: =INDIRECT(CONCATENATE("'",B$1,"'!",B$4,(YEAR($A24)-1921)*12+MONTH($A24)+3+IF(ISNUMBER(FIND("PRV",B$6)),1,0)))*IF(AND(B$3>0,TRIM(B$9)="CFS"),Conversions!$C24,1) -> 3353.49032 | C24: =INDIRECT(CONCATENATE("'",C$1,"'!",C$4,(YEAR($A24)-1921)*12+MONTH($A24)+3+IF(ISNUMBER(FIND("PRV",C$6)),1,0)))*IF(AND(C$3>0,TRIM(C$9)="CFS"),Conversions!$C24,1) -> 3381.834579 | D24: =INDIRECT(CONCATENATE("'",D$1,"'!",D$4,(YEAR($A24)-1921)*12+MONTH($A24)+3+IF(ISNUMBER(FIND("PRV",D$6)),1,0)))*IF(AND(D$3>0,TRIM(D$9)="CFS"),Conversions!$C24,1) -> 3381.834579 | E24: =INDIRECT(CONCATENATE("'",E$1,"'!",E$4,(YEAR($A24)-1921)*12+MONTH($A24)+3+IF(ISNUMBER(FIND("PRV",E$6)),1,0)))*IF(AND(E$3>0,TRIM(E$9)="CFS"),Conversions!$C24,1) -> 3380.154697 | F24: =INDIRECT(CONCATENATE("'",F$1,"'!",F$4,(YEAR($A24)-1921)*12+MONTH($A24)+3+IF(ISNUMBER(FIND("PRV",F$6)),1,0)))*IF(AND(F$3>0,TRIM(F$9)="CFS"),Conversions!$C24,1) -> 3380.154697 | G24: =INDIRECT(CONCATENATE("'",G$1,"'!",G$4,(YEAR($A24)-1921)*12+MONTH($A24)+3+IF(ISNUMBER(FIND("PRV",G$6)),1,0)))*IF(AND(G$3>0,TRIM(G$9)="CFS"),Conversions!$C24,1) ->  | K24: 1934 | L24: =B157 -> 1353.381489 | M24: =B158 -> 1260.829707 | N24: =B159 -> 1384.261457 | O24: =B160 -> 1669.108457 | P24: =B161 -> 1983.777167 | Q24: =B162 -> 2240.013353 | R24: =B163 -> 2397.051304 | S24: =B164 -> 2139.516348 | T24: =B165 -> 1804.13631 | U24: =B166 -> 1535.555145 | V24: =B167 -> 1189.394556 | W24: =B168 -> 1116.135388 | Y24: 1589.60726 | Z24: 1541.31925 | AA24: 1672.76339 | AC24: 1618.934842 | AD24: 1184.287011 | AE24: 1398.105341 | AF24: 1558.557784 | AG24: 2167.634436 | AH24: 1539.22797 | AI24: 1057.225433 | AK24: 1934 | AL24: =C157 -> 1434.735532 | AM24: =C158 -> 1278.85394 | AN24: =C159 -> 1400.640904 | AO24: =C160 -> 1685.474839 | AP24: =C161 -> 2000.12596 | AQ24: =C162 -> 2256.331489 | AR24: =C163 -> 2413.322975 | AS24: =C164 -> 2186.969468 | AT24: =C165 -> 1840.15646 | AU24: =C166 -> 1569.996137 | AV24: =C167 -> 1210.701724 | AW24: =C168 -> 1122.974902 | AY24: 1604.533799 | AZ24: 1554.366586 | BA24: 1700.023694 | BC24: 1642.125831 | BD24: 1191.381262 | BE24: 1444.462176 | BF24: 1575.201898 | BG24: 2194.191285 | BH24: 1568.956627 | BI24: 1048.503531 | BK24: 1934 | BL24: =D157 -> 1420.175556 | BM24: =D158 -> 1251.902576 | BN24: =D159 -> 1373.69196 | BO24: =D160 -> 1658.547391 | BP24: =D161 -> 1973.227438 | BQ24: =D162 -> 2229.483407 | BR24: =D163 -> 2386.551345 | BS24: =D164 -> 2161.162692 | BT24: =D165 -> 1815.020026 | BU24: =D166 -> 1545.018741 | BV24: =D167 -> 1185.89482 | BW24: =D168 -> 1098.353975 | BY24: 1579.018845 | BZ24: 1530.399534 | CA24: 1674.919161 | CC24: 1616.439769 | CD24: 1166.659692 | CE24: 1422.607334 | CF24: 1548.268119 | CG24: 2167.830294 | CH24: 1543.92298 | CI24: 1023.921109 | CK24: 1934 | CL24: =E157 -> 1417.379549 | CM24: =E158 -> 1249.081203 | CN24: =E159 -> 1370.872372 | CO24: =E160 -> 1655.730052 | CP24: =E161 -> 1970.413122 | CQ24: =E162 -> 2226.674369 | CR24: =E163 -> 2383.750305 | CS24: =E164 -> 2158.407647 | CT24: =E165 -> 1812.27485 | CU24: =E166 -> 1542.264797 | CV24: =E167 -> 1183.145868 | CW24: =E168 -> 1095.597887 | CY24: 1576.241408 | CZ24: 1527.629055 | DA24: 1672.132668 | DC24: 1613.624741 | DD24: 1163.904084 | DE24: 1419.752349 | DF24: 1545.449862 | DG24: 2165.044077 | DH24: 1541.172071 | DI24: 1021.157626 | DK24: 1934 | DL24: =F157 -> 1488.979544 | DM24: =F158 -> 1320.645022 | DN24: =F159 -> 1442.38074 | DO24: =F160 -> 1727.181382 | DP24: =F161 -> 2041.790538 | DQ24: =F162 -> 2297.917938 | DR24: =F163 -> 2454.791003 | DS24: =F164 -> 2227.31474 | DT24: =F165 -> 1880.145905 | DU24: =F166 -> 1609.780618 | DV24: =F167 -> 1250.321223 | DW24: =F168 -> 1162.509802 | DY24: 1644.850151 | DZ24: 1590.469079 | EA24: 1741.979871 | EC24: 1685.089285 | ED24: 1230.968096 | EE24: 1491.545536 | EF24: 1616.926634 | EG24: 2235.247976 | EH24: 1608.790005 | EI24: 1087.987771 | EK24: 1934 | EL24: =G157 ->  | EM24: =G158 ->  | EN24: =G159 ->  | EO24: =G160 ->  | EP24: =G161 ->  | EQ24: =G162 ->  | ER24: =G163 ->  | ES24: =G164 ->  | ET24: =G165 ->  | EU24: =G166 ->  | EV24: =G167 ->  | EW24: =G168 -> 
A25: 1922-10-31 | B25: =INDIRECT(CONCATENATE("'",B$1,"'!",B$4,(YEAR($A25)-1921)*12+MONTH($A25)+3+IF(ISNUMBER(FIND("PRV",B$6)),1,0)))*IF(AND(B$3>0,TRIM(B$9)="CFS"),Conversions!$C25,1) -> 3250 | C25: =INDIRECT(CONCATENATE("'",C$1,"'!",C$4,(YEAR($A25)-1921)*12+MONTH($A25)+3+IF(ISNUMBER(FIND("PRV",C$6)),1,0)))*IF(AND(C$3>0,TRIM(C$9)="CFS"),Conversions!$C25,1) -> 3250 | D25: =INDIRECT(CONCATENATE("'",D$1,"'!",D$4,(YEAR($A25)-1921)*12+MONTH($A25)+3+IF(ISNUMBER(FIND("PRV",D$6)),1,0)))*IF(AND(D$3>0,TRIM(D$9)="CFS"),Conversions!$C25,1) -> 3250 | E25: =INDIRECT(CONCATENATE("'",E$1,"'!",E$4,(YEAR($A25)-1921)*12+MONTH($A25)+3+IF(ISNUMBER(FIND("PRV",E$6)),1,0)))*IF(AND(E$3>0,TRIM(E$9)="CFS"),Conversions!$C25,1) -> 3250 | F25: =INDIRECT(CONCATENATE("'",F$1,"'!",F$4,(YEAR($A25)-1921)*12+MONTH($A25)+3+IF(ISNUMBER(FIND("PRV",F$6)),1,0)))*IF(AND(F$3>0,TRIM(F$9)="CFS"),Conversions!$C25,1) -> 3250 | G25: =INDIRECT(CONCATENATE("'",G$1,"'!",G$4,(YEAR($A25)-1921)*12+MONTH($A25)+3+IF(ISNUMBER(FIND("PRV",G$6)),1,0)))*IF(AND(G$3>0,TRIM(G$9)="CFS"),Conversions!$C25,1) ->  | K25: 1935 | L25: =B169 -> 959.1070322 | M25: =B170 -> 1003.473203 | N25: =B171 -> 1038.018862 | O25: =B172 -> 1381.578285 | P25: =B173 -> 1691.851218 | Q25: =B174 -> 2080.174622 | R25: =B175 -> 3109.585799 | S25: =B176 -> 3442.912726 | T25: =B177 -> 3204.083677 | U25: =B178 -> 2831.515009 | V25: =B179 -> 2505.202461 | W25: =B180 -> 2433.015954 | Y25: 2471.663282 | Z25: 2759.019525 | AA25: 2140.043237 | AC25: 1326.912479 | AD25: 2516.054329 | AE25: 1062.363983 | AF25: 1255.753119 | AG25: 2770.160149 | AH25: 2869.691371 | AI25: 2410.520368 | AK25: 1935 | AL25: =C169 -> 910.938185 | AM25: =C170 -> 1012.493289 | AN25: =C171 -> 1044.920165 | AO25: =C172 -> 1381.578293 | AP25: =C173 -> 1702.01594 | AQ25: =C174 -> 2090.32852 | AR25: =C175 -> 3116.456666 | AS25: =C176 -> 3484.838726 | AT25: =C177 -> 3258.980461 | AU25: =C178 -> 2886.616222 | AV25: =C179 -> 2558.87228 | AW25: =C180 -> 2484.850334 | AY25: 2502.484915 | AZ25: 2791.088259 | BA25: 2161.07409 | BC25: 1328.328208 | BD25: 2565.149004 | BE25: 1055.157059 | BF25: 1261.251024 | BG25: 2793.030528 | BH25: 2922.328373 | BI25: 2451.502023 | BK25: 1935 | BL25: =D169 -> 886.4418193 | BM25: =D170 -> 988.040247 | BN25: =D171 -> 1020.484235 | BO25: =D172 -> 1364.061184 | BP25: =D173 -> 1684.281921 | BQ25: =D174 -> 2072.61351 | BR25: =D175 -> 3092.153595 | BS25: =D176 -> 3460.824643 | BT25: =D177 -> 3235.402471 | BU25: =D178 -> 2866.063264 | BV25: =D179 -> 2540.901954 | BW25: =D180 -> 2467.101414 | BY25: 2482.509128 | BZ25: 2772.35005 | CA25: 2139.864188 | CC25: 1307.27905 | CD25: 2546.860562 | CE25: 1031.54347 | CF25: 1240.235501 | CG25: 2771.358486 | CH25: 2901.58268 | CI25: 2433.274079 | CK25: 1935 | CL25: =E169 -> 883.6721941 | CM25: =E170 -> 985.2597277 | CN25: =E171 -> 1017.706082 | CO25: =E172 -> 1361.285807 | CP25: =E173 -> 1681.50913 | CQ25: =E174 -> 2069.843881 | CR25: =E175 -> 3089.389946 | CS25: =E176 -> 3458.487702 | CT25: =E177 -> 3233.737422 | CU25: =E178 -> 2841.231265 | CV25: =E179 -> 2516.062258 | CW25: =E180 -> 2442.704086 | CY25: 2468.947125 | CZ25: 2757.201135 | DA25: 2131.740792 | DC25: 1304.503757 | DD25: 2522.250572 | DE25: 1028.769963 | DF25: 1237.458773 | DG25: 2768.836201 | DH25: 2885.40671 | DI25: 2408.779066 | DK25: 1935 | DL25: =F169 -> 950.3659093 | DM25: =F170 -> 1051.853981 | DN25: =F171 -> 1084.228766 | DO25: =F172 -> 1394.243204 | DP25: =F173 -> 1722.155861 | DQ25: =F174 -> 2115.989537 | DR25: =F175 -> 3155.542872 | DS25: =F176 -> 3524.360673 | DT25: =F177 -> 3299.202528 | DU25: =F178 -> 2930.143511 | DV25: =F179 -> 2605.849605 | DW25: =F180 -> 2532.089295 | DY25: 2539.95045 | DZ25: 2829.457594 | EA25: 2197.168812 | EC25: 1357.131907 | ED25: 2611.665612 | EE25: 1091.20629 | EF25: 1288.492297 | EG25: 2826.643069 | EH25: 2965.855157 | EI25: 2498.078406 | EK25: 1935 | EL25: =G169 ->  | EM25: =G170 ->  | EN25: =G171 ->  | EO25: =G172 ->  | EP25: =G173 ->  | EQ25: =G174 ->  | ER25: =G175 ->  | ES25: =G176 ->  | ET25: =G177 ->  | EU25: =G178 ->  | EV25: =G179 ->  | EW25: =G180 -> 
A26: 1922-11-30 | B26: =INDIRECT(CONCATENATE("'",B$1,"'!",B$4,(YEAR($A26)-1921)*12+MONTH($A26)+3+IF(ISNUMBER(FIND("PRV",B$6)),1,0)))*IF(AND(B$3>0,TRIM(B$9)="CFS"),Conversions!$C26,1) -> 3252 | C26: =INDIRECT(CONCATENATE("'",C$1,"'!",C$4,(YEAR($A26)-1921)*12+MONTH($A26)+3+IF(ISNUMBER(FIND("PRV",C$6)),1,0)))*IF(AND(C$3>0,TRIM(C$9)="CFS"),Conversions!$C26,1) -> 3252 | D26: =INDIRECT(CONCATENATE("'",D$1,"'!",D$4,(YEAR($A26)-1921)*12+MONTH($A26)+3+IF(ISNUMBER(FIND("PRV",D$6)),1,0)))*IF(AND(D$3>0,TRIM(D$9)="CFS"),Conversions!$C26,1) -> 3252 | E26: =INDIRECT(CONCATENATE("'",E$1,"'!",E$4,(YEAR($A26)-1921)*12+MONTH($A26)+3+IF(ISNUMBER(FIND("PRV",E$6)),1,0)))*IF(AND(E$3>0,TRIM(E$9)="CFS"),Conversions!$C26,1) -> 3241.547051 | F26: =INDIRECT(CONCATENATE("'",F$1,"'!",F$4,(YEAR($A26)-1921)*12+MONTH($A26)+3+IF(ISNUMBER(FIND("PRV",F$6)),1,0)))*IF(AND(F$3>0,TRIM(F$9)="CFS"),Conversions!$C26,1) -> 3241.547051 | G26: =INDIRECT(CONCATENATE("'",G$1,"'!",G$4,(YEAR($A26)-1921)*12+MONTH($A26)+3+IF(ISNUMBER(FIND("PRV",G$6)),1,0)))*IF(AND(G$3>0,TRIM(G$9)="CFS"),Conversions!$C26,1) ->  | K26: 1936 | L26: =B181 -> 2388.374139 | M26: =B182 -> 2315.139561 | N26: =B183 -> 2276.525937 | O26: =B184 -> 2933.704422 | P26: =B185 -> 3588 | Q26: =B186 -> 3956.869281 | R26: =B187 -> 4250.343437 | S26: =B188 -> 4172.442142 | T26: =B189 -> 4003.624036 | U26: =B190 -> 3546.141998 | V26: =B191 -> 3114.045614 | W26: =B192 -> 2966.720554 | Y26: 3375.056095 | Z26: 3255.736332 | AA26: 3292.660927 | AC26: 2857.198326 | AD26: 3086.225217 | AE26: 2415.849956 | AF26: 2720.600046 | AG26: 4043.866719 | AH26: 3558.348249 | AI26: 2882.614237 | AK26: 1936 | AL26: =C181 -> 2416.832573 | AM26: =C182 -> 2346.774046 | AN26: =C183 -> 2301.674919 | AO26: =C184 -> 2958.834359 | AP26: =C185 -> 3588 | AQ26: =C186 -> 3956.869281 | AR26: =C187 -> 4250.343437 | AS26: =C188 -> 4179.129887 | AT26: =C189 -> 4026.161794 | AU26: =C190 -> 3547.273534 | AV26: =C191 -> 3117.560126 | AW26: =C192 -> 2970.960218 | AY26: 3381.604412 | AZ26: 3260.776141 | BA26: 3305.034515 | BC26: 2876.42685 | BD26: 3089.690264 | BE26: 2446.780971 | BF26: 2742.6321 | BG26: 4048.355876 | BH26: 3566.510127 | BI26: 2887.275156 | BK26: 1936 | BL26: =D181 -> 2399.093374 | BM26: =D182 -> 2326.352941 | BN26: =D183 -> 2281.259267 | BO26: =D184 -> 2938.434167 | BP26: =D185 -> 3588 | BQ26: =D186 -> 3956.869281 | BR26: =D187 -> 4250.343437 | BS26: =D188 -> 4179.046421 | BT26: =D189 -> 4026.027202 | BU26: =D190 -> 3572.315194 | BV26: =D191 -> 3140.082944 | BW26: =D192 -> 2992.832562 | BY26: 3388.324191 | BZ26: 3270.449885 | CA26: 3304.221399 | CC26: 2862.40554 | CD26: 3110.89336 | CE26: 2427.368343 | CF26: 2725.623301 | CG26: 4048.318185 | CH26: 3581.091208 | CI26: 2904.598797 | CK26: 1936 | CL26: =E181 -> 2374.73948 | CM26: =E182 -> 2301.725004 | CN26: =E183 -> 2256.649521 | CO26: =E184 -> 2913.843056 | CP26: =E185 -> 3588 | CQ26: =E186 -> 3956.869281 | CR26: =E187 -> 4250.343437 | CS26: =E188 -> 4179.161759 | CT26: =E189 -> 4026.339807 | CU26: =E190 -> 3570.85259 | CV26: =E191 -> 3138.788971 | CW26: =E192 -> 2991.702073 | CY26: 3385.685093 | CZ26: 3269.942663 | DA26: 3295.751248 | DC26: 2845.204392 | DD26: 3109.468368 | DE26: 2402.846894 | DF26: 2705.11836 | DG26: 4048.386095 | DH26: 3580.353321 | DI26: 2902.947381 | DK26: 1936 | DL26: =F181 -> 2463.972361 | DM26: =F182 -> 2390.497522 | DN26: =F183 -> 2345.358433 | DO26: =F184 -> 3002.484794 | DP26: =F185 -> 3588 | DQ26: =F186 -> 3956.869281 | DR26: =F187 -> 4250.343437 | DS26: =F188 -> 4179.198497 | DT26: =F189 -> 4026.207197 | DU26: =F190 -> 3573.471769 | DV26: =F191 -> 3141.173963 | DW26: =F192 -> 2993.844355 | DY26: 3394.288433 | DZ26: 3271.266722 | EA26: 3325.951801 | EC26: 2907.352314 | ED26: 3112.036428 | EE26: 2491.77884 | EF26: 2779.030663 | EG26: 4048.378703 | EH26: 3581.843589 | EI26: 2905.831741 | EK26: 1936 | EL26: =G181 ->  | EM26: =G182 ->  | EN26: =G183 ->  | EO26: =G184 ->  | EP26: =G185 ->  | EQ26: =G186 ->  | ER26: =G187 ->  | ES26: =G188 ->  | ET26: =G189 ->  | EU26: =G190 ->  | EV26: =G191 ->  | EW26: =G192 -> 
A27: 1922-12-31 | B27: =INDIRECT(CONCATENATE("'",B$1,"'!",B$4,(YEAR($A27)-1921)*12+MONTH($A27)+3+IF(ISNUMBER(FIND("PRV",B$6)),1,0)))*IF(AND(B$3>0,TRIM(B$9)="CFS"),Conversions!$C27,1) -> 3369 | C27: =INDIRECT(CONCATENATE("'",C$1,"'!",C$4,(YEAR($A27)-1921)*12+MONTH($A27)+3+IF(ISNUMBER(FIND("PRV",C$6)),1,0)))*IF(AND(C$3>0,TRIM(C$9)="CFS"),Conversions!$C27,1) -> 3369 | D27: =INDIRECT(CONCATENATE("'",D$1,"'!",D$4,(YEAR($A27)-1921)*12+MONTH($A27)+3+IF(ISNUMBER(FIND("PRV",D$6)),1,0)))*IF(AND(D$3>0,TRIM(D$9)="CFS"),Conversions!$C27,1) -> 3369 | E27: =INDIRECT(CONCATENATE("'",E$1,"'!",E$4,(YEAR($A27)-1921)*12+MONTH($A27)+3+IF(ISNUMBER(FIND("PRV",E$6)),1,0)))*IF(AND(E$3>0,TRIM(E$9)="CFS"),Conversions!$C27,1) -> 3369 | F27: =INDIRECT(CONCATENATE("'",F$1,"'!",F$4,(YEAR($A27)-1921)*12+MONTH($A27)+3+IF(ISNUMBER(FIND("PRV",F$6)),1,0)))*IF(AND(F$3>0,TRIM(F$9)="CFS"),Conversions!$C27,1) -> 3299.899509 | G27: =INDIRECT(CONCATENATE("'",G$1,"'!",G$4,(YEAR($A27)-1921)*12+MONTH($A27)+3+IF(ISNUMBER(FIND("PRV",G$6)),1,0)))*IF(AND(G$3>0,TRIM(G$9)="CFS"),Conversions!$C27,1) ->  | K27: 1937 | L27: =B193 -> 2809.676968 | M27: =B194 -> 2628.844765 | N27: =B195 -> 2530.259923 | O27: =B196 -> 2505.379266 | P27: =B197 -> 2584.487998 | Q27: =B198 -> 3230.837303 | R27: =B199 -> 3951.568418 | S27: =B200 -> 4196.639399 | T27: =B201 -> 4083.17564 | U27: =B202 -> 3529.052638 | V27: =B203 -> 3159.622299 | W27: =B204 -> 3002.573964 | Y27: 3309.993685 | Z27: 3488.171413 | AA27: 3184.343215 | AC27: 2653.845817 | AD27: 3128.005409 | AE27: 2676.207891 | AF27: 2547.43519 | AG27: 3678.219235 | AH27: 3592.864315 | AI27: 3040.990801 | AK27: 1937 | AL27: =C193 -> 2813.82736 | AM27: =C194 -> 2636.515653 | AN27: =C195 -> 2533.777293 | AO27: =C196 -> 2508.894545 | AP27: =C197 -> 2588.000565 | AQ27: =C198 -> 3234.345407 | AR27: =C199 -> 3955.069501 | AS27: =C200 -> 4220.25713 | AT27: =C201 -> 4121.60451 | AU27: =C202 -> 3544.438035 | AV27: =C203 -> 3173.508108 | AW27: =C204 -> 3017.323228 | AY27: 3321.040031 | AZ27: 3498.632105 | BA27: 3195.630111 | BC27: 2658.254888 | BD27: 3142.190008 | BE27: 2681.011922 | BF27: 2551.643316 | BG27: 3691.118644 | BH27: 3614.585208 | BI27: 3052.372207 | BK27: 1937 | BL27: =D193 -> 2827.213956 | BM27: =D194 -> 2647.416802 | BN27: =D195 -> 2541.308322 | BO27: =D196 -> 2516.421099 | BP27: =D197 -> 2595.521395 | BQ27: =D198 -> 3241.856677 | BR27: =D199 -> 3962.565738 | BS27: =D200 -> 4227.569056 | BT27: =D201 -> 4128.702811 | BU27: =D202 -> 3547.774664 | BV27: =D203 -> 3176.437766 | BW27: =D204 -> 3020.176118 | BY27: 3325.706101 | BZ27: 3502.044226 | CA27: 3202.747034 | CC27: 2667.040587 | CD27: 3145.075053 | CE27: 2692.641478 | CF27: 2559.73284 | CG27: 3698.525894 | CH27: 3619.196957 | CI27: 3054.614296 | CK27: 1937 | CL27: =E193 -> 2824.975528 | CM27: =E194 -> 2645.540111 | CN27: =E195 -> 2541.804497 | CO27: =E196 -> 2516.916979 | CP27: =E197 -> 2596.016922 | CQ27: =E198 -> 3242.351574 | CR27: =E199 -> 3963.059645 | CS27: =E200 -> 4228.02387 | CT27: =E201 -> 4129.119242 | CU27: =E202 -> 3547.942875 | CV27: =E203 -> 3176.562563 | CW27: =E204 -> 3020.269841 | CY27: 3325.982544 | CZ27: 3502.238052 | DA27: 3202.715304 | DC27: 2666.788412 | DD27: 3145.189116 | DE27: 2691.657416 | DF27: 2559.833331 | DG27: 3699.000793 | DH27: 3619.442884 | DI27: 3054.692712 | DK27: 1937 | DL27: =F193 -> 2828.710163 | DM27: =F194 -> 2648.707449 | DN27: =F195 -> 2542.450293 | DO27: =F196 -> 2517.562391 | DP27: =F197 -> 2596.661875 | DQ27: =F198 -> 3242.995706 | DR27: =F199 -> 3963.702488 | DS27: =F200 -> 4228.668112 | DT27: =F201 -> 4129.760426 | DU27: =F202 -> 3567.117103 | DV27: =F203 -> 3196.654846 | DW27: =F204 -> 3039.910955 | DY27: 3332.837163 | DZ27: 3504.319872 | EA27: 3208.575151 | EC27: 2668.246988 | ED27: 3164.876793 | EE27: 2693.892819 | EF27: 2560.899115 | EG27: 3699.644364 | EH27: 3631.955477 | EI27: 3071.083477 | EK27: 1937 | EL27: =G193 ->  | EM27: =G194 ->  | EN27: =G195 ->  | EO27: =G196 ->  | EP27: =G197 ->  | EQ27: =G198 ->  | ER27: =G199 ->  | ES27: =G200 ->  | ET27: =G201 ->  | EU27: =G202 ->  | EV27: =G203 ->  | EW27: =G204 -> 
A28: 1923-01-31 | B28: =INDIRECT(CONCATENATE("'",B$1,"'!",B$4,(YEAR($A28)-1921)*12+MONTH($A28)+3+IF(ISNUMBER(FIND("PRV",B$6)),1,0)))*IF(AND(B$3>0,TRIM(B$9)="CFS"),Conversions!$C28,1) -> 3589.959766 | C28: =INDIRECT(CONCATENATE("'",C$1,"'!",C$4,(YEAR($A28)-1921)*12+MONTH($A28)+3+IF(ISNUMBER(FIND("PRV",C$6)),1,0)))*IF(AND(C$3>0,TRIM(C$9)="CFS"),Conversions!$C28,1) -> 3589.959766 | D28: =INDIRECT(CONCATENATE("'",D$1,"'!",D$4,(YEAR($A28)-1921)*12+MONTH($A28)+3+IF(ISNUMBER(FIND("PRV",D$6)),1,0)))*IF(AND(D$3>0,TRIM(D$9)="CFS"),Conversions!$C28,1) -> 3589.959766 | E28: =INDIRECT(CONCATENATE("'",E$1,"'!",E$4,(YEAR($A28)-1921)*12+MONTH($A28)+3+IF(ISNUMBER(FIND("PRV",E$6)),1,0)))*IF(AND(E$3>0,TRIM(E$9)="CFS"),Conversions!$C28,1) -> 3589.959766 | F28: =INDIRECT(CONCATENATE("'",F$1,"'!",F$4,(YEAR($A28)-1921)*12+MONTH($A28)+3+IF(ISNUMBER(FIND("PRV",F$6)),1,0)))*IF(AND(F$3>0,TRIM(F$9)="CFS"),Conversions!$C28,1) -> 3420.765773 | G28: =INDIRECT(CONCATENATE("'",G$1,"'!",G$4,(YEAR($A28)-1921)*12+MONTH($A28)+3+IF(ISNUMBER(FIND("PRV",G$6)),1,0)))*IF(AND(G$3>0,TRIM(G$9)="CFS"),Conversions!$C28,1) ->  | K28: 1938 | L28: =B205 -> 2914.587289 | M28: =B206 -> 3252 | N28: =B207 -> 3310 | O28: =B208 -> 3668 | P28: =B209 -> 3560 | Q28: =B210 -> 3416 | R28: =B211 -> 4058 | S28: =B212 -> 4552 | T28: =B213 -> 4500 | U28: =B214 -> 4150 | V28: =B215 -> 3700 | W28: =B216 -> 3400 | Y28: 3722.602485 | Z28: 3694.244531 | AA28: 3706.715607 | AC28: 3391.058729 | AD28: 3600 | AE28: 3202.968568 | AF28: 3461.333333 | AG28: 4014 | AH28: 4081.5 | AI28: 3364.57954 | AK28: 1938 | AL28: =C205 -> 2927.039339 | AM28: =C206 -> 3252 | AN28: =C207 -> 3310 | AO28: =C208 -> 3668 | AP28: =C209 -> 3560 | AQ28: =C210 -> 3416 | AR28: =C211 -> 4058 | AS28: =C212 -> 4552 | AT28: =C213 -> 4500 | AU28: =C214 -> 4150 | AV28: =C215 -> 3700 | AW28: =C216 -> 3400 | AY28: 3722.623935 | AZ28: 3694.317839 | BA28: 3707.753278 | BC28: 3392.303934 | BD28: 3600 | BE28: 3207.925238 | BF28: 3461.333333 | BG28: 4014 | BH28: 4081.5 | BI28: 3364.570529 | BK28: 1938 | BL28: =D205 -> 2929.447888 | BM28: =D206 -> 3252 | BN28: =D207 -> 3310 | BO28: =D208 -> 3668 | BP28: =D209 -> 3560 | BQ28: =D210 -> 3416 | BR28: =D211 -> 4058 | BS28: =D212 -> 4552 | BT28: =D213 -> 4500 | BU28: =D214 -> 4150 | BV28: =D215 -> 3700 | BW28: =D216 -> 3400 | BY28: 3722.623574 | BZ28: 3694.317264 | CA28: 3707.953991 | CC28: 3392.544789 | CD28: 3600 | CE28: 3208.883987 | CF28: 3461.333333 | CG28: 4014 | CH28: 4081.5 | CI28: 3364.570022 | CK28: 1938 | CL28: =E205 -> 2929.527015 | CM28: =E206 -> 3252 | CN28: =E207 -> 3310 | CO28: =E208 -> 3668 | CP28: =E209 -> 3560 | CQ28: =E210 -> 3416 | CR28: =E211 -> 4058 | CS28: =E212 -> 4552 | CT28: =E213 -> 4500 | CU28: =E214 -> 4150 | CV28: =E215 -> 3700 | CW28: =E216 -> 3400 | CY28: 3717.297085 | CZ28: 3678.351688 | DA28: 3707.960585 | DC28: 3392.552701 | DD28: 3600 | DE28: 3208.915484 | DF28: 3461.333333 | DG28: 4014 | DH28: 4081.5 | DI28: 3364.566888 | DK28: 1938 | DL28: =F205 -> 2949.012053 | DM28: =F206 -> 3252 | DN28: =F207 -> 3310 | DO28: =F208 -> 3612.016772 | DP28: =F209 -> 3560 | DQ28: =F210 -> 3416 | DR28: =F211 -> 4058 | DS28: =F212 -> 4552 | DT28: =F213 -> 4500 | DU28: =F214 -> 4150 | DV28: =F215 -> 3700 | DW28: =F216 -> 3400 | DY28: 3717.956951 | DZ28: 3669.563545 | EA28: 3704.919069 | EC28: 3383.30456 | ED28: 3600 | EE28: 3209.243979 | EF28: 3442.672257 | EG28: 4014 | EH28: 4081.5 | EI28: 3364.568034 | EK28: 1938 | EL28: =G205 ->  | EM28: =G206 ->  | EN28: =G207 ->  | EO28: =G208 ->  | EP28: =G209 ->  | EQ28: =G210 ->  | ER28: =G211 ->  | ES28: =G212 ->  | ET28: =G213 ->  | EU28: =G214 ->  | EV28: =G215 ->  | EW28: =G216 -> 
A29: 1923-02-28 | B29: =INDIRECT(CONCATENATE("'",B$1,"'!",B$4,(YEAR($A29)-1921)*12+MONTH($A29)+3+IF(ISNUMBER(FIND("PRV",B$6)),1,0)))*IF(AND(B$3>0,TRIM(B$9)="CFS"),Conversions!$C29,1) -> 3633.061339 | C29: =INDIRECT(CONCATENATE("'",C$1,"'!",C$4,(YEAR($A29)-1921)*12+MONTH($A29)+3+IF(ISNUMBER(FIND("PRV",C$6)),1,0)))*IF(AND(C$3>0,TRIM(C$9)="CFS"),Conversions!$C29,1) -> 3634.045275 | D29: =INDIRECT(CONCATENATE("'",D$1,"'!",D$4,(YEAR($A29)-1921)*12+MONTH($A29)+3+IF(ISNUMBER(FIND("PRV",D$6)),1,0)))*IF(AND(D$3>0,TRIM(D$9)="CFS"),Conversions!$C29,1) -> 3634.045275 | E29: =INDIRECT(CONCATENATE("'",E$1,"'!",E$4,(YEAR($A29)-1921)*12+MONTH($A29)+3+IF(ISNUMBER(FIND("PRV",E$6)),1,0)))*IF(AND(E$3>0,TRIM(E$9)="CFS"),Conversions!$C29,1) -> 3624.967611 | F29: =INDIRECT(CONCATENATE("'",F$1,"'!",F$4,(YEAR($A29)-1921)*12+MONTH($A29)+3+IF(ISNUMBER(FIND("PRV",F$6)),1,0)))*IF(AND(F$3>0,TRIM(F$9)="CFS"),Conversions!$C29,1) -> 3455.910962 | G29: =INDIRECT(CONCATENATE("'",G$1,"'!",G$4,(YEAR($A29)-1921)*12+MONTH($A29)+3+IF(ISNUMBER(FIND("PRV",G$6)),1,0)))*IF(AND(G$3>0,TRIM(G$9)="CFS"),Conversions!$C29,1) ->  | K29: 1939 | L29: =B217 -> 3250 | M29: =B218 -> 3187.477241 | N29: =B219 -> 3229.752578 | O29: =B220 -> 3381.529929 | P29: =B221 -> 3506.174622 | Q29: =B222 -> 3922.693935 | R29: =B223 -> 3814.579337 | S29: =B224 -> 3605.267923 | T29: =B225 -> 3200 | U29: =B226 -> 2830.528501 | V29: =B227 -> 2567.272955 | W29: =B228 -> 2522.828836 | Y29: 3030.902156 | Z29: 2997.399188 | AA29: 3251.508821 | AC29: 3378.256268 | AD29: 2567.927413 | AE29: 3264.498696 | AF29: 3319.36948 | AG29: 3673.907126 | AH29: 2915.462459 | AI29: 2448.038592 | AK29: 1939 | AL29: =C217 -> 3250 | AM29: =C218 -> 3187.423177 | AN29: =C219 -> 3230.064043 | AO29: =C220 -> 3381.841188 | AP29: =C221 -> 3506.485662 | AQ29: =C222 -> 3923.00457 | AR29: =C223 -> 3814.801488 | AS29: =C224 -> 3599.686442 | AT29: =C225 -> 3261.229545 | AU29: =C226 -> 2893.373965 | AV29: =C227 -> 2614.765136 | AW29: =C228 -> 2551.63504 | AY29: 3051.309521 | AZ29: 3019.173937 | BA29: 3267.859188 | BC29: 3378.463271 | BD29: 2605.611858 | BE29: 3264.601954 | BF29: 3319.619884 | BG29: 3680.337526 | BH29: 2961.257347 | BI29: 2472.64969 | BK29: 1939 | BL29: =D217 -> 3250 | BM29: =D218 -> 3187.420129 | BN29: =D219 -> 3230.062756 | BO29: =D220 -> 3381.839902 | BP29: =D221 -> 3506.484377 | BQ29: =D222 -> 3923.003286 | BR29: =D223 -> 3888.13359 | BS29: =D224 -> 3774.448817 | BT29: =D225 -> 3442.735936 | BU29: =D226 -> 3084.096151 | BV29: =D227 -> 2727.493913 | BW29: =D228 -> 2589.947045 | BY29: 3120.712895 | BZ29: 3086.760788 | CA29: 3332.138825 | CC29: 3378.461761 | CD29: 2705.737716 | CE29: 3264.600709 | CF29: 3319.618304 | CG29: 3765.048962 | CH29: 3109.130983 | CI29: 2536.083367 | CK29: 1939 | CL29: =E217 -> 3250 | CM29: =E218 -> 3187.401329 | CN29: =E219 -> 3166.163695 | CO29: =E220 -> 3317.982929 | CP29: =E221 -> 3442.672304 | CQ29: =E222 -> 3859.274396 | CR29: =E223 -> 3837.516249 | CS29: =E224 -> 3734.148726 | CT29: =E225 -> 3403.3606 | CU29: =E226 -> 3040.940403 | CV29: =E227 -> 2688.818859 | CW29: =E228 -> 2548.415032 | CY29: 3077.055752 | CZ29: 3054.674987 | DA29: 3289.724543 | DC29: 3333.771491 | DD29: 2664.20262 | DE29: 3240.639122 | DF29: 3266.39448 | DG29: 3713.488956 | DH29: 3068.600435 | DI29: 2493.182116 | DK29: 1939 | DL29: =F217 -> 3250 | DM29: =F218 -> 3187.408204 | DN29: =F219 -> 3230.058439 | DO29: =F220 -> 3281.86852 | DP29: =F221 -> 3309.427376 | DQ29: =F222 -> 3726.203159 | DR29: =F223 -> 3745.814369 | DS29: =F224 -> 3655.096384 | DT29: =F225 -> 3333.572484 | DU29: =F226 -> 2955.228697 | DV29: =F227 -> 2590.829683 | DW29: =F228 -> 2448.857656 | DY29: 2977.545752 | DZ29: 2956.093263 | EA29: 3226.197081 | EC29: 3299.372824 | ED29: 2566.550279 | EE29: 3252.100226 | EF29: 3253.44825 | EG29: 3612.15346 | EH29: 2982.901971 | EI29: 2391.221768 | EK29: 1939 | EL29: =G217 ->  | EM29: =G218 ->  | EN29: =G219 ->  | EO29: =G220 ->  | EP29: =G221 ->  | EQ29: =G222 ->  | ER29: =G223 ->  | ES29: =G224 ->  | ET29: =G225 ->  | EU29: =G226 ->  | EV29: =G227 ->  | EW29: =G228 -> 
A30: 1923-03-31 | B30: =INDIRECT(CONCATENATE("'",B$1,"'!",B$4,(YEAR($A30)-1921)*12+MONTH($A30)+3+IF(ISNUMBER(FIND("PRV",B$6)),1,0)))*IF(AND(B$3>0,TRIM(B$9)="CFS"),Conversions!$C30,1) -> 3769.078447 | C30: =INDIRECT(CONCATENATE("'",C$1,"'!",C$4,(YEAR($A30)-1921)*12+MONTH($A30)+3+IF(ISNUMBER(FIND("PRV",C$6)),1,0)))*IF(AND(C$3>0,TRIM(C$9)="CFS"),Conversions!$C30,1) -> 3770.060972 | D30: =INDIRECT(CONCATENATE("'",D$1,"'!",D$4,(YEAR($A30)-1921)*12+MONTH($A30)+3+IF(ISNUMBER(FIND("PRV",D$6)),1,0)))*IF(AND(D$3>0,TRIM(D$9)="CFS"),Conversions!$C30,1) -> 3770.060972 | E30: =INDIRECT(CONCATENATE("'",E$1,"'!",E$4,(YEAR($A30)-1921)*12+MONTH($A30)+3+IF(ISNUMBER(FIND("PRV",E$6)),1,0)))*IF(AND(E$3>0,TRIM(E$9)="CFS"),Conversions!$C30,1) -> 3760.996326 | F30: =INDIRECT(CONCATENATE("'",F$1,"'!",F$4,(YEAR($A30)-1921)*12+MONTH($A30)+3+IF(ISNUMBER(FIND("PRV",F$6)),1,0)))*IF(AND(F$3>0,TRIM(F$9)="CFS"),Conversions!$C30,1) -> 3593.548303 | G30: =INDIRECT(CONCATENATE("'",G$1,"'!",G$4,(YEAR($A30)-1921)*12+MONTH($A30)+3+IF(ISNUMBER(FIND("PRV",G$6)),1,0)))*IF(AND(G$3>0,TRIM(G$9)="CFS"),Conversions!$C30,1) ->  | K30: 1940 | L30: =B229 -> 2396.832398 | M30: =B230 -> 2281.636127 | N30: =B231 -> 2341.481314 | O30: =B232 -> 3233.668929 | P30: =B233 -> 3252 | Q30: =B234 -> 3435 | R30: =B235 -> 4224.490492 | S30: =B236 -> 4275.078592 | T30: =B237 -> 4045.088517 | U30: =B238 -> 3316.358412 | V30: =B239 -> 2907.610004 | W30: =B240 -> 2656.455073 | Y30: 3296.648447 | Z30: 3317.842703 | AA30: 3197.141655 | AC30: 2804.940514 | AD30: 2830.597139 | AE30: 2474.54968 | AF30: 2780.656102 | AG30: 3895.778336 | AH30: 3433.705941 | AI30: 2613.44096 | AK30: 1940 | AL30: =C229 -> 2407.496833 | AM30: =C230 -> 2302.869259 | AN30: =C231 -> 2358.525128 | AO30: =C232 -> 3250.699837 | AP30: =C233 -> 3252 | AQ30: =C234 -> 3435 | AR30: =C235 -> 4224.490493 | AS30: =C236 -> 4296.632854 | AT30: =C237 -> 4014.241594 | AU30: =C238 -> 3296.907067 | AV30: =C239 -> 2903.524236 | AW30: =C240 -> 2674.622891 | AY30: 3299.624497 | AZ30: 3319.39951 | BA30: 3201.417516 | BC30: 2817.068528 | BD30: 2835.208885 | BE30: 2492.514665 | BF30: 2795.553198 | BG30: 3897.311036 | BH30: 3425.075192 | BI30: 2627.532832 | BK30: 1940 | BL30: =D229 -> 2515.448232 | BM30: =D230 -> 2278.215734 | BN30: =D231 -> 2336.707758 | BO30: =D232 -> 3228.898989 | BP30: =D233 -> 3252 | BQ30: =D234 -> 3435 | BR30: =D235 -> 4224.490493 | BS30: =D236 -> 4296.805885 | BT30: =D237 -> 4073.916644 | BU30: =D238 -> 3345.074721 | BV30: =D239 -> 2927.6557 | BW30: =D240 -> 2675.828088 | BY30: 3309.028342 | BZ30: 3330.620093 | CA30: 3215.836854 | CC30: 2814.209319 | CD30: 2851.747657 | CE30: 2509.948685 | CF30: 2776.904871 | CG30: 3904.813675 | CH30: 3458.241013 | CI30: 2632.237518 | CK30: 1940 | CL30: =E229 -> 2469.807533 | CM30: =E230 -> 2233.828706 | CN30: =E231 -> 2347.903293 | CO30: =E232 -> 3240.086045 | CP30: =E233 -> 3252 | CQ30: =E234 -> 3435 | CR30: =E235 -> 4224.490493 | CS30: =E236 -> 4221.721311 | CT30: =E237 -> 3994.489968 | CU30: =E238 -> 3296.236977 | CV30: =E239 -> 2892.812088 | CW30: =E240 -> 2664.758731 | CY30: 3288.058715 | CZ30: 3308.718211 | DA30: 3189.427929 | DC30: 2805.244362 | DD30: 2826.56877 | DE30: 2486.447518 | DF30: 2776.967897 | DG30: 3876.114197 | DH30: 3406.694764 | DI30: 2618.74542 | DK30: 1940 | DL30: =F229 -> 2364.698298 | DM30: =F230 -> 2129.389018 | DN30: =F231 -> 2189.563378 | DO30: =F232 -> 3081.866034 | DP30: =F233 -> 3252 | DQ30: =F234 -> 3435 | DR30: =F235 -> 4224.490493 | DS30: =F236 -> 4221.487665 | DT30: =F237 -> 3994.115997 | DU30: =F238 -> 3336.517536 | DV30: =F239 -> 2929.539109 | DW30: =F240 -> 2741.610594 | DY30: 3299.998207 | DZ30: 3333.842704 | EA30: 3158.35651 | EC30: 2710.533516 | ED30: 2884.037123 | EE30: 2362.253135 | EF30: 2654.041307 | EG30: 3876.009039 | EH30: 3435.430443 | EI30: 2688.086191 | EK30: 1940 | EL30: =G229 ->  | EM30: =G230 ->  | EN30: =G231 ->  | EO30: =G232 ->  | EP30: =G233 ->  | EQ30: =G234 ->  | ER30: =G235 ->  | ES30: =G236 ->  | ET30: =G237 ->  | EU30: =G238 ->  | EV30: =G239 ->  | EW30: =G240 -> 
A31: 1923-04-30 | B31: =INDIRECT(CONCATENATE("'",B$1,"'!",B$4,(YEAR($A31)-1921)*12+MONTH($A31)+3+IF(ISNUMBER(FIND("PRV",B$6)),1,0)))*IF(AND(B$3>0,TRIM(B$9)="CFS"),Conversions!$C31,1) -> 4229.79085 | C31: =INDIRECT(CONCATENATE("'",C$1,"'!",C$4,(YEAR($A31)-1921)*12+MONTH($A31)+3+IF(ISNUMBER(FIND("PRV",C$6)),1,0)))*IF(AND(C$3>0,TRIM(C$9)="CFS"),Conversions!$C31,1) -> 4239.576444 | D31: =INDIRECT(CONCATENATE("'",D$1,"'!",D$4,(YEAR($A31)-1921)*12+MONTH($A31)+3+IF(ISNUMBER(FIND("PRV",D$6)),1,0)))*IF(AND(D$3>0,TRIM(D$9)="CFS"),Conversions!$C31,1) -> 4239.576444 | E31: =INDIRECT(CONCATENATE("'",E$1,"'!",E$4,(YEAR($A31)-1921)*12+MONTH($A31)+3+IF(ISNUMBER(FIND("PRV",E$6)),1,0)))*IF(AND(E$3>0,TRIM(E$9)="CFS"),Conversions!$C31,1) -> 4230.524062 | F31: =INDIRECT(CONCATENATE("'",F$1,"'!",F$4,(YEAR($A31)-1921)*12+MONTH($A31)+3+IF(ISNUMBER(FIND("PRV",F$6)),1,0)))*IF(AND(F$3>0,TRIM(F$9)="CFS"),Conversions!$C31,1) -> 4061.989404 | G31: =INDIRECT(CONCATENATE("'",G$1,"'!",G$4,(YEAR($A31)-1921)*12+MONTH($A31)+3+IF(ISNUMBER(FIND("PRV",G$6)),1,0)))*IF(AND(G$3>0,TRIM(G$9)="CFS"),Conversions!$C31,1) ->  | K31: 1941 | L31: =B241 -> 2539.094267 | M31: =B242 -> 2381.937076 | N31: =B243 -> 3293 | O31: =B244 -> 3317 | P31: =B245 -> 3423 | Q31: =B246 -> 3940 | R31: =B247 -> 4456 | S31: =B248 -> 4552 | T31: =B249 -> 4500 | U31: =B250 -> 4150 | V31: =B251 -> 3700 | W31: =B252 -> 3400 | Y31: 3771.333333 | Z31: 3785.083333 | AA31: 3637.669279 | AC31: 3130.896842 | AD31: 3600 | AE31: 2800.18972 | AF31: 3170.822846 | AG31: 4227.375 | AH31: 4081.5 | AI31: 3375.333333 | AK31: 1941 | AL31: =C241 -> 2558.051986 | AM31: =C242 -> 2396.323 | AN31: =C243 -> 3293 | AO31: =C244 -> 3317 | AP31: =C245 -> 3423 | AQ31: =C246 -> 3940 | AR31: =C247 -> 4456 | AS31: =C248 -> 4552 | AT31: =C249 -> 4500 | AU31: =C250 -> 4150 | AV31: =C251 -> 3700 | AW31: =C252 -> 3400 | AY31: 3771.021521 | AZ31: 3784.771521 | BA31: 3640.447916 | BC31: 3135.669799 | BD31: 3600 | BE31: 2810.796608 | BF31: 3173.2205 | BG31: 4227.375 | BH31: 4081.5 | BI31: 3374.70971 | BK31: 1941 | BL31: =D241 -> 2558.443642 | BM31: =D242 -> 2397.225947 | BN31: =D243 -> 3293 | BO31: =D244 -> 3317 | BP31: =D245 -> 3423 | BQ31: =D246 -> 3940 | BR31: =D247 -> 4456 | BS31: =D248 -> 4552 | BT31: =D249 -> 4500 | BU31: =D250 -> 4150 | BV31: =D251 -> 3700 | BW31: =D252 -> 3400 | BY31: 3771.020848 | BZ31: 3784.770848 | CA31: 3640.555799 | CC31: 3135.889554 | CD31: 3600 | CE31: 2811.270908 | CF31: 3173.370991 | CG31: 4227.375 | CH31: 4081.5 | CI31: 3374.708363 | CK31: 1941 | CL31: =E241 -> 2548.034005 | CM31: =E242 -> 2394.07496 | CN31: =E243 -> 3293 | CO31: =E244 -> 3317 | CP31: =E245 -> 3423 | CQ31: =E246 -> 3940 | CR31: =E247 -> 4456 | CS31: =E248 -> 4552 | CT31: =E249 -> 4500 | CU31: =E250 -> 4150 | CV31: =E251 -> 3700 | CW31: =E252 -> 3400 | CY31: 3769.991058 | CZ31: 3783.741058 | DA31: 3639.425747 | DC31: 3134.218393 | DD31: 3600 | DE31: 2806.497083 | DF31: 3172.845827 | DG31: 4227.375 | DH31: 4081.5 | DI31: 3372.648784 | DK31: 1941 | DL31: =F241 -> 2625.405799 | DM31: =F242 -> 2464.945254 | DN31: =F243 -> 3293 | DO31: =F244 -> 3317 | DP31: =F245 -> 3423 | DQ31: =F246 -> 3940 | DR31: =F247 -> 4456 | DS31: =F248 -> 4552 | DT31: =F249 -> 4500 | DU31: =F250 -> 4150 | DV31: =F251 -> 3700 | DW31: =F252 -> 3400 | DY31: 3769.991058 | DZ31: 3783.741058 | EA31: 3651.779254 | EC31: 3156.129631 | ED31: 3600 | EE31: 2853.164087 | EF31: 3184.657542 | EG31: 4227.375 | EH31: 4081.5 | EI31: 3372.648784 | EK31: 1941 | EL31: =G241 ->  | EM31: =G242 ->  | EN31: =G243 ->  | EO31: =G244 ->  | EP31: =G245 ->  | EQ31: =G246 ->  | ER31: =G247 ->  | ES31: =G248 ->  | ET31: =G249 ->  | EU31: =G250 ->  | EV31: =G251 ->  | EW31: =G252 -> 
A32: 1923-05-31 | B32: =INDIRECT(CONCATENATE("'",B$1,"'!",B$4,(YEAR($A32)-1921)*12+MONTH($A32)+3+IF(ISNUMBER(FIND("PRV",B$6)),1,0)))*IF(AND(B$3>0,TRIM(B$9)="CFS"),Conversions!$C32,1) -> 3964.600475 | C32: =INDIRECT(CONCATENATE("'",C$1,"'!",C$4,(YEAR($A32)-1921)*12+MONTH($A32)+3+IF(ISNUMBER(FIND("PRV",C$6)),1,0)))*IF(AND(C$3>0,TRIM(C$9)="CFS"),Conversions!$C32,1) -> 3984.967735 | D32: =INDIRECT(CONCATENATE("'",D$1,"'!",D$4,(YEAR($A32)-1921)*12+MONTH($A32)+3+IF(ISNUMBER(FIND("PRV",D$6)),1,0)))*IF(AND(D$3>0,TRIM(D$9)="CFS"),Conversions!$C32,1) -> 3984.967735 | E32: =INDIRECT(CONCATENATE("'",E$1,"'!",E$4,(YEAR($A32)-1921)*12+MONTH($A32)+3+IF(ISNUMBER(FIND("PRV",E$6)),1,0)))*IF(AND(E$3>0,TRIM(E$9)="CFS"),Conversions!$C32,1) -> 3975.970115 | F32: =INDIRECT(CONCATENATE("'",F$1,"'!",F$4,(YEAR($A32)-1921)*12+MONTH($A32)+3+IF(ISNUMBER(FIND("PRV",F$6)),1,0)))*IF(AND(F$3>0,TRIM(F$9)="CFS"),Conversions!$C32,1) -> 3807.018611 | G32: =INDIRECT(CONCATENATE("'",G$1,"'!",G$4,(YEAR($A32)-1921)*12+MONTH($A32)+3+IF(ISNUMBER(FIND("PRV",G$6)),1,0)))*IF(AND(G$3>0,TRIM(G$9)="CFS"),Conversions!$C32,1) ->  | K32: 1942 | L32: =B253 -> 3250 | M32: =B254 -> 3252 | N32: =B255 -> 3316 | O32: =B256 -> 3389 | P32: =B257 -> 3516 | Q32: =B258 -> 3796.880095 | R32: =B259 -> 4527.293537 | S32: =B260 -> 4552 | T32: =B261 -> 4500 | U32: =B262 -> 4150 | V32: =B263 -> 3700 | W32: =B264 -> 3400 | Y32: 3782.431136 | Z32: 3822.764469 | AA32: 3779.097803 | AC32: 3399.288009 | AD32: 3600 | AE32: 3303.125 | AF32: 3363 | AG32: 4221.043408 | AH32: 4081.5 | AI32: 3375.333333 | AK32: 1942 | AL32: =C253 -> 3250 | AM32: =C254 -> 3248.258258 | AN32: =C255 -> 3316 | AO32: =C256 -> 3389 | AP32: =C257 -> 3516 | AQ32: =C258 -> 3796.880095 | AR32: =C259 -> 4531.933699 | AS32: =C260 -> 4552 | AT32: =C261 -> 4500 | AU32: =C262 -> 4150 | AV32: =C263 -> 3700 | AW32: =C264 -> 3400 | AY32: 3782.817816 | AZ32: 3823.151149 | BA32: 3779.172671 | BC32: 3398.539661 | BD32: 3600 | BE32: 3302.189564 | BF32: 3362.376376 | BG32: 4222.203448 | BH32: 4081.5 | BI32: 3375.333333 | BK32: 1942 | BL32: =D253 -> 3250 | BM32: =D254 -> 3248.250176 | BN32: =D255 -> 3316 | BO32: =D256 -> 3389 | BP32: =D257 -> 3516 | BQ32: =D258 -> 3796.880095 | BR32: =D259 -> 4531.933699 | BS32: =D260 -> 4552 | BT32: =D261 -> 4500 | BU32: =D262 -> 4150 | BV32: =D263 -> 3700 | BW32: =D264 -> 3400 | BY32: 3782.817816 | BZ32: 3823.151149 | CA32: 3779.171997 | CC32: 3398.538045 | CD32: 3600 | CE32: 3302.187544 | CF32: 3362.375029 | CG32: 4222.203448 | CH32: 4081.5 | CI32: 3375.333333 | CK32: 1942 | CL32: =E253 -> 3250 | CM32: =E254 -> 3235.892702 | CN32: =E255 -> 3316 | CO32: =E256 -> 3389 | CP32: =E257 -> 3516 | CQ32: =E258 -> 3796.880095 | CR32: =E259 -> 4531.933699 | CS32: =E260 -> 4552 | CT32: =E261 -> 4500 | CU32: =E262 -> 4150 | CV32: =E263 -> 3700 | CW32: =E264 -> 3400 | CY32: 3782.817816 | CZ32: 3823.151149 | DA32: 3778.142208 | DC32: 3396.06655 | DD32: 3600 | DE32: 3299.098175 | DF32: 3360.31545 | DG32: 4222.203448 | DH32: 4081.5 | DI32: 3375.333333 | DK32: 1942 | DL32: =F253 -> 3250 | DM32: =F254 -> 3235.892702 | DN32: =F255 -> 3316 | DO32: =F256 -> 3389 | DP32: =F257 -> 3516 | DQ32: =F258 -> 3796.880095 | DR32: =F259 -> 4531.933699 | DS32: =F260 -> 4552 | DT32: =F261 -> 4500 | DU32: =F262 -> 4150 | DV32: =F263 -> 3700 | DW32: =F264 -> 3400 | DY32: 3782.817816 | DZ32: 3823.151149 | EA32: 3778.142208 | EC32: 3396.06655 | ED32: 3600 | EE32: 3299.098175 | EF32: 3360.31545 | EG32: 4222.203448 | EH32: 4081.5 | EI32: 3375.333333 | EK32: 1942 | EL32: =G253 ->  | EM32: =G254 ->  | EN32: =G255 ->  | EO32: =G256 ->  | EP32: =G257 ->  | EQ32: =G258 ->  | ER32: =G259 ->  | ES32: =G260 ->  | ET32: =G261 ->  | EU32: =G262 ->  | EV32: =G263 ->  | EW32: =G264 -> 
A33: 1923-06-30 | B33: =INDIRECT(CONCATENATE("'",B$1,"'!",B$4,(YEAR($A33)-1921)*12+MONTH($A33)+3+IF(ISNUMBER(FIND("PRV",B$6)),1,0)))*IF(AND(B$3>0,TRIM(B$9)="CFS"),Conversions!$C33,1) -> 3642.950162 | C33: =INDIRECT(CONCATENATE("'",C$1,"'!",C$4,(YEAR($A33)-1921)*12+MONTH($A33)+3+IF(ISNUMBER(FIND("PRV",C$6)),1,0)))*IF(AND(C$3>0,TRIM(C$9)="CFS"),Conversions!$C33,1) -> 3668.989847 | D33: =INDIRECT(CONCATENATE("'",D$1,"'!",D$4,(YEAR($A33)-1921)*12+MONTH($A33)+3+IF(ISNUMBER(FIND("PRV",D$6)),1,0)))*IF(AND(D$3>0,TRIM(D$9)="CFS"),Conversions!$C33,1) -> 3668.989847 | E33: =INDIRECT(CONCATENATE("'",E$1,"'!",E$4,(YEAR($A33)-1921)*12+MONTH($A33)+3+IF(ISNUMBER(FIND("PRV",E$6)),1,0)))*IF(AND(E$3>0,TRIM(E$9)="CFS"),Conversions!$C33,1) -> 3660.044588 | F33: =INDIRECT(CONCATENATE("'",F$1,"'!",F$4,(YEAR($A33)-1921)*12+MONTH($A33)+3+IF(ISNUMBER(FIND("PRV",F$6)),1,0)))*IF(AND(F$3>0,TRIM(F$9)="CFS"),Conversions!$C33,1) -> 3492.019728 | G33: =INDIRECT(CONCATENATE("'",G$1,"'!",G$4,(YEAR($A33)-1921)*12+MONTH($A33)+3+IF(ISNUMBER(FIND("PRV",G$6)),1,0)))*IF(AND(G$3>0,TRIM(G$9)="CFS"),Conversions!$C33,1) ->  | K33: 1943 | L33: =B265 -> 3250 | M33: =B266 -> 3252 | N33: =B267 -> 3356 | O33: =B268 -> 3541 | P33: =B269 -> 3848 | Q33: =B270 -> 4118 | R33: =B271 -> 4552 | S33: =B272 -> 4552 | T33: =B273 -> 4386.826283 | U33: =B274 -> 3723.779252 | V33: =B275 -> 3358.904112 | W33: =B276 -> 3102.077961 | Y33: 3654.170533 | Z33: 3544.168541 | AA33: 3753.382301 | AC33: 3536.2 | AD33: 3280.361221 | AE33: 3332.125 | AF33: 3482.333333 | AG33: 4334.853285 | AH33: 3824.137157 | AI33: 3080.393223 | AK33: 1943 | AL33: =C265 -> 3250 | AM33: =C266 -> 3252 | AN33: =C267 -> 3356 | AO33: =C268 -> 3541 | AP33: =C269 -> 3848 | AQ33: =C270 -> 4118 | AR33: =C271 -> 4552 | AS33: =C272 -> 4552 | AT33: =C273 -> 4404.732338 | AU33: =C274 -> 3741.598543 | AV33: =C275 -> 3376.059612 | AW33: =C276 -> 3119.282881 | AY33: 3664.298644 | AZ33: 3557.15027 | BA33: 3759.222781 | BC33: 3536.2 | BD33: 3297.645499 | BE33: 3332.125 | BF33: 3482.333333 | BG33: 4337.091542 | BH33: 3839.507984 | BI33: 3097.567004 | BK33: 1943 | BL33: =D265 -> 3250 | BM33: =D266 -> 3252 | BN33: =D267 -> 3356 | BO33: =D268 -> 3541 | BP33: =D269 -> 3848 | BQ33: =D270 -> 4118 | BR33: =D271 -> 4552 | BS33: =D272 -> 4552 | BT33: =D273 -> 4404.726167 | BU33: =D274 -> 3741.592403 | BV33: =D275 -> 3376.053331 | BW33: =D276 -> 3119.27473 | BY33: 3664.293799 | BZ33: 3557.143504 | CA33: 3759.220553 | CC33: 3536.2 | CD33: 3297.638073 | CE33: 3332.125 | CF33: 3482.333333 | CG33: 4337.090771 | CH33: 3839.502316 | CI33: 3097.558341 | CK33: 1943 | CL33: =E265 -> 3250 | CM33: =E266 -> 3252 | CN33: =E267 -> 3356 | CO33: =E268 -> 3541 | CP33: =E269 -> 3848 | CQ33: =E270 -> 4118 | CR33: =E271 -> 4552 | CS33: =E272 -> 4552 | CT33: =E273 -> 4404.711943 | CU33: =E274 -> 3741.578248 | CV33: =E275 -> 3376.019516 | CW33: =E276 -> 3119.227243 | CY33: 3664.268212 | CZ33: 3557.105456 | DA33: 3759.211413 | DC33: 3536.2 | DD33: 3297.598901 | DE33: 3332.125 | DF33: 3482.333333 | DG33: 4337.088993 | DH33: 3839.480832 | DI33: 3097.506744 | DK33: 1943 | DL33: =F265 -> 3250 | DM33: =F266 -> 3252 | DN33: =F267 -> 3356 | DO33: =F268 -> 3541 | DP33: =F269 -> 3848 | DQ33: =F270 -> 4118 | DR33: =F271 -> 4552 | DS33: =F272 -> 4552 | DT33: =F273 -> 4404.727255 | DU33: =F274 -> 3741.593485 | DV33: =F275 -> 3376.037931 | DW33: =F276 -> 3119.251339 | DY33: 3664.282318 | DZ33: 3557.125543 | EA33: 3759.217501 | EC33: 3536.2 | ED33: 3297.620418 | EE33: 3332.125 | EF33: 3482.333333 | EG33: 4337.090907 | EH33: 3839.496085 | EI33: 3097.532698 | EK33: 1943 | EL33: =G265 ->  | EM33: =G266 ->  | EN33: =G267 ->  | EO33: =G268 ->  | EP33: =G269 ->  | EQ33: =G270 ->  | ER33: =G271 ->  | ES33: =G272 ->  | ET33: =G273 ->  | EU33: =G274 ->  | EV33: =G275 ->  | EW33: =G276 -> 
A34: 1923-07-31 | B34: =INDIRECT(CONCATENATE("'",B$1,"'!",B$4,(YEAR($A34)-1921)*12+MONTH($A34)+3+IF(ISNUMBER(FIND("PRV",B$6)),1,0)))*IF(AND(B$3>0,TRIM(B$9)="CFS"),Conversions!$C34,1) -> 3264.73171 | C34: =INDIRECT(CONCATENATE("'",C$1,"'!",C$4,(YEAR($A34)-1921)*12+MONTH($A34)+3+IF(ISNUMBER(FIND("PRV",C$6)),1,0)))*IF(AND(C$3>0,TRIM(C$9)="CFS"),Conversions!$C34,1) -> 3295.257719 | D34: =INDIRECT(CONCATENATE("'",D$1,"'!",D$4,(YEAR($A34)-1921)*12+MONTH($A34)+3+IF(ISNUMBER(FIND("PRV",D$6)),1,0)))*IF(AND(D$3>0,TRIM(D$9)="CFS"),Conversions!$C34,1) -> 3295.257719 | E34: =INDIRECT(CONCATENATE("'",E$1,"'!",E$4,(YEAR($A34)-1921)*12+MONTH($A34)+3+IF(ISNUMBER(FIND("PRV",E$6)),1,0)))*IF(AND(E$3>0,TRIM(E$9)="CFS"),Conversions!$C34,1) -> 3286.204346 | F34: =INDIRECT(CONCATENATE("'",F$1,"'!",F$4,(YEAR($A34)-1921)*12+MONTH($A34)+3+IF(ISNUMBER(FIND("PRV",F$6)),1,0)))*IF(AND(F$3>0,TRIM(F$9)="CFS"),Conversions!$C34,1) -> 3119.161486 | G34: =INDIRECT(CONCATENATE("'",G$1,"'!",G$4,(YEAR($A34)-1921)*12+MONTH($A34)+3+IF(ISNUMBER(FIND("PRV",G$6)),1,0)))*IF(AND(G$3>0,TRIM(G$9)="CFS"),Conversions!$C34,1) ->  | K34: 1944 | L34: =B277 -> 3036.423928 | M34: =B278 -> 2846.451451 | N34: =B279 -> 2784.583413 | O34: =B280 -> 2877.466406 | P34: =B281 -> 3191.509685 | Q34: =B282 -> 3516.926648 | R34: =B283 -> 3719.922464 | S34: =B284 -> 3687.174828 | T34: =B285 -> 3434.751782 | U34: =B286 -> 3000.647851 | V34: =B287 -> 2687.391081 | W34: =B288 -> 2637.760857 | Y34: 3091.006179 | Z34: 3186.16023 | AA34: 3118.417533 | AC34: 2995.337249 | AD34: 2699.040904 | AE34: 2914.307744 | AF34: 2893.676796 | AG34: 3559.288669 | AH34: 3071.314639 | AI34: 2632.061999 | AK34: 1944 | AL34: =C277 -> 3053.589463 | AM34: =C278 -> 2863.597722 | AN34: =C279 -> 2801.723163 | AO34: =C280 -> 2894.594714 | AP34: =C281 -> 3208.624806 | AQ34: =C282 -> 3534.018774 | AR34: =C283 -> 3736.985168 | AS34: =C284 -> 3700.651175 | AT34: =C285 -> 3444.413091 | AU34: =C286 -> 3007.705134 | AV34: =C287 -> 2690.373715 | AW34: =C288 -> 2645.060359 | AY34: 3102.347631 | AZ34: 3195.390635 | BA34: 3131.778107 | BC34: 3012.468905 | BD34: 2705.208187 | BE34: 2931.462286 | BF34: 2910.809714 | BG34: 3574.543516 | BH34: 3078.836927 | BI34: 2639.606857 | BK34: 1944 | BL34: =D277 -> 3053.579911 | BM34: =D278 -> 2863.587431 | BN34: =D279 -> 2801.711619 | BO34: =D280 -> 2894.583178 | BP34: =D281 -> 3208.613279 | BQ34: =D282 -> 3534.007262 | BR34: =D283 -> 3736.973676 | BS34: =D284 -> 3806.741668 | BT34: =D285 -> 3643.269058 | BU34: =D286 -> 3206.245458 | BV34: =D287 -> 2796.478745 | BW34: =D288 -> 2675.76396 | BY34: 3148.125634 | BZ34: 3238.613911 | CA34: 3185.129604 | CC34: 3012.457818 | CD34: 2778.985933 | CE34: 2931.451979 | CF34: 2910.798384 | CG34: 3625.915944 | CH34: 3221.811519 | CI34: 2652.574808 | CK34: 1944 | CL34: =E277 -> 3053.521638 | CM34: =E278 -> 2863.523186 | CN34: =E279 -> 2801.636773 | CO34: =E280 -> 2894.508382 | CP34: =E281 -> 3208.538541 | CQ34: =E282 -> 3533.932625 | CR34: =E283 -> 3736.899167 | CS34: =E284 -> 3806.653464 | CT34: =E285 -> 3643.181452 | CU34: =E286 -> 3206.153123 | CV34: =E287 -> 2796.383626 | CW34: =E288 -> 2675.669883 | CY34: 3141.616725 | CZ34: 3228.901785 | DA34: 3185.050155 | DC34: 3012.386803 | DD34: 2778.891494 | DE34: 2931.387352 | DF34: 2910.72534 | DG34: 3625.836313 | DH34: 3221.719968 | DI34: 2646.055362 | DK34: 1944 | DL34: =F277 -> 3053.550482 | DM34: =F278 -> 2863.554616 | DN34: =F279 -> 2801.672703 | DO34: =F280 -> 2894.544287 | DP34: =F281 -> 3208.574418 | DQ34: =F282 -> 3533.968454 | DR34: =F283 -> 3736.934935 | DS34: =F284 -> 3806.70337 | DT34: =F285 -> 3643.226618 | DU34: =F286 -> 3206.197119 | DV34: =F287 -> 2796.42536 | DW34: =F288 -> 2675.723012 | DY34: 3148.079699 | DZ34: 3238.569259 | EA34: 3185.089615 | EC34: 3012.421098 | ED34: 2778.938483 | EE34: 2931.418903 | EF34: 2910.760502 | EG34: 3625.876819 | EH34: 3221.765572 | EI34: 2652.525956 | EK34: 1944 | EL34: =G277 ->  | EM34: =G278 ->  | EN34: =G279 ->  | EO34: =G280 ->  | EP34: =G281 ->  | EQ34: =G282 ->  | ER34: =G283 ->  | ES34: =G284 ->  | ET34: =G285 ->  | EU34: =G286 ->  | EV34: =G287 ->  | EW34: =G288 -> 
A35: 1923-08-31 | B35: =INDIRECT(CONCATENATE("'",B$1,"'!",B$4,(YEAR($A35)-1921)*12+MONTH($A35)+3+IF(ISNUMBER(FIND("PRV",B$6)),1,0)))*IF(AND(B$3>0,TRIM(B$9)="CFS"),Conversions!$C35,1) -> 2946.763879 | C35: =INDIRECT(CONCATENATE("'",C$1,"'!",C$4,(YEAR($A35)-1921)*12+MONTH($A35)+3+IF(ISNUMBER(FIND("PRV",C$6)),1,0)))*IF(AND(C$3>0,TRIM(C$9)="CFS"),Conversions!$C35,1) -> 2987.588649 | D35: =INDIRECT(CONCATENATE("'",D$1,"'!",D$4,(YEAR($A35)-1921)*12+MONTH($A35)+3+IF(ISNUMBER(FIND("PRV",D$6)),1,0)))*IF(AND(D$3>0,TRIM(D$9)="CFS"),Conversions!$C35,1) -> 2987.546119 | E35: =INDIRECT(CONCATENATE("'",E$1,"'!",E$4,(YEAR($A35)-1921)*12+MONTH($A35)+3+IF(ISNUMBER(FIND("PRV",E$6)),1,0)))*IF(AND(E$3>0,TRIM(E$9)="CFS"),Conversions!$C35,1) -> 2977.30102 | F35: =INDIRECT(CONCATENATE("'",F$1,"'!",F$4,(YEAR($A35)-1921)*12+MONTH($A35)+3+IF(ISNUMBER(FIND("PRV",F$6)),1,0)))*IF(AND(F$3>0,TRIM(F$9)="CFS"),Conversions!$C35,1) -> 2812.357538 | G35: =INDIRECT(CONCATENATE("'",G$1,"'!",G$4,(YEAR($A35)-1921)*12+MONTH($A35)+3+IF(ISNUMBER(FIND("PRV",G$6)),1,0)))*IF(AND(G$3>0,TRIM(G$9)="CFS"),Conversions!$C35,1) ->  | K35: 1945 | L35: =B289 -> 2543.293697 | M35: =B290 -> 2742.871802 | N35: =B291 -> 3052.357049 | O35: =B292 -> 3262.824694 | P35: =B293 -> 3948 | Q35: =B294 -> 4266.697983 | R35: =B295 -> 4530.802107 | S35: =B296 -> 4552 | T35: =B297 -> 4314.983439 | U35: =B298 -> 3773.479087 | V35: =B299 -> 3385.226144 | W35: =B300 -> 3283.65164 | Y35: 3754.721385 | Z35: 3777.715749 | AA35: 3638.015637 | AC35: 3282.209877 | AD35: 3388.87103 | AE35: 2822.203831 | AF35: 3220.205881 | AG35: 4370.247953 | AH35: 3847.878622 | AI35: 3274.752079 | AK35: 1945 | AL35: =C289 -> 2552.675841 | AM35: =C290 -> 2751.795028 | AN35: =C291 -> 3061.273763 | AO35: =C292 -> 3271.735574 | AP35: =C293 -> 3948 | AQ35: =C294 -> 4266.697983 | AR35: =C295 -> 4530.802107 | AS35: =C296 -> 4552 | AT35: =C297 -> 4328.882995 | AU35: =C298 -> 3775.327392 | AV35: =C299 -> 3387.986364 | AW35: =C300 -> 3287.107698 | AY35: 3757.814079 | AZ35: 3780.06587 | BA35: 3642.857062 | BC35: 3288.498255 | BD35: 3392.290726 | BE35: 2831.03565 | BF35: 3227.635617 | BG35: 4371.985397 | BH35: 3852.93765 | BI35: 3278.443239 | BK35: 1945 | BL35: =D289 -> 2523.184732 | BM35: =D290 -> 2721.07272 | BN35: =D291 -> 3030.573876 | BO35: =D292 -> 3241.055772 | BP35: =D293 -> 3948 | BQ35: =D294 -> 4266.697983 | BR35: =D295 -> 4530.802107 | BS35: =D296 -> 4552 | BT35: =D297 -> 4328.872469 | BU35: =D298 -> 3773.931991 | BV35: =D299 -> 3386.605413 | BW35: =D300 -> 3285.70682 | BY35: 3754.787221 | BZ35: 3779.595662 | CA35: 3632.375324 | CC35: 3267.128745 | CD35: 3390.888426 | CE35: 2808.310298 | CF35: 3202.055336 | CG35: 4371.984081 | CH35: 3852.065821 | CI35: 3277.261209 | CK35: 1945 | CL35: =E289 -> 2523.088825 | CM35: =E290 -> 2682.431128 | CN35: =E291 -> 2991.960487 | CO35: =E292 -> 3202.467644 | CP35: =E293 -> 3948 | CQ35: =E294 -> 4266.682254 | CR35: =E295 -> 4530.786408 | CS35: =E296 -> 4552 | CT35: =E297 -> 4328.793911 | CU35: =E298 -> 3773.858981 | CV35: =E299 -> 3386.499964 | CW35: =E300 -> 3285.590439 | CY35: 3751.527061 | CZ35: 3779.55118 | DA35: 3622.680004 | DC35: 3243.94896 | DD35: 3390.78082 | DE35: 2784.137301 | DF35: 3169.881232 | DG35: 4371.966404 | DH35: 3851.987019 | DI35: 3277.161852 | DK35: 1945 | DL35: =F289 -> 2523.137034 | DM35: =F290 -> 2721.010287 | DN35: =F291 -> 3030.511489 | DO35: =F292 -> 3240.993426 | DP35: =F293 -> 3948 | DQ35: =F294 -> 4266.697983 | DR35: =F295 -> 4530.802107 | DS35: =F296 -> 4552 | DT35: =F297 -> 4328.872112 | DU35: =F298 -> 3773.919103 | DV35: =F299 -> 3386.591465 | DW35: =F300 -> 3285.687531 | DY35: 3754.775918 | DZ35: 3771.492763 | EA35: 3632.351878 | EC35: 3267.086542 | ED35: 3390.87073 | EE35: 2808.254257 | EF35: 3202.003353 | EG35: 4371.984037 | EH35: 3852.056611 | EI35: 3277.243516 | EK35: 1945 | EL35: =G289 ->  | EM35: =G290 ->  | EN35: =G291 ->  | EO35: =G292 ->  | EP35: =G293 ->  | EQ35: =G294 ->  | ER35: =G295 ->  | ES35: =G296 ->  | ET35: =G297 ->  | EU35: =G298 ->  | EV35: =G299 ->  | EW35: =G300 -> 
A36: 1923-09-30 | B36: =INDIRECT(CONCATENATE("'",B$1,"'!",B$4,(YEAR($A36)-1921)*12+MONTH($A36)+3+IF(ISNUMBER(FIND("PRV",B$6)),1,0)))*IF(AND(B$3>0,TRIM(B$9)="CFS"),Conversions!$C36,1) -> 2918.581988 | C36: =INDIRECT(CONCATENATE("'",C$1,"'!",C$4,(YEAR($A36)-1921)*12+MONTH($A36)+3+IF(ISNUMBER(FIND("PRV",C$6)),1,0)))*IF(AND(C$3>0,TRIM(C$9)="CFS"),Conversions!$C36,1) -> 2951.114378 | D36: =INDIRECT(CONCATENATE("'",D$1,"'!",D$4,(YEAR($A36)-1921)*12+MONTH($A36)+3+IF(ISNUMBER(FIND("PRV",D$6)),1,0)))*IF(AND(D$3>0,TRIM(D$9)="CFS"),Conversions!$C36,1) -> 2951.015331 | E36: =INDIRECT(CONCATENATE("'",E$1,"'!",E$4,(YEAR($A36)-1921)*12+MONTH($A36)+3+IF(ISNUMBER(FIND("PRV",E$6)),1,0)))*IF(AND(E$3>0,TRIM(E$9)="CFS"),Conversions!$C36,1) -> 2942.84422 | F36: =INDIRECT(CONCATENATE("'",F$1,"'!",F$4,(YEAR($A36)-1921)*12+MONTH($A36)+3+IF(ISNUMBER(FIND("PRV",F$6)),1,0)))*IF(AND(F$3>0,TRIM(F$9)="CFS"),Conversions!$C36,1) -> 2794.091171 | G36: =INDIRECT(CONCATENATE("'",G$1,"'!",G$4,(YEAR($A36)-1921)*12+MONTH($A36)+3+IF(ISNUMBER(FIND("PRV",G$6)),1,0)))*IF(AND(G$3>0,TRIM(G$9)="CFS"),Conversions!$C36,1) ->  | K36: 1946 | L36: =B301 -> 3221.991525 | M36: =B302 -> 3252 | N36: =B303 -> 3265 | O36: =B304 -> 3622 | P36: =B305 -> 3864.757064 | Q36: =B306 -> 4260.087613 | R36: =B307 -> 4552 | S36: =B308 -> 4518.742268 | T36: =B309 -> 4149.731808 | U36: =B310 -> 3560.474951 | V36: =B311 -> 3246.753801 | W36: =B312 -> 3200 | Y36: 3679.181641 | Z36: 3603.917019 | AA36: 3726.128253 | AC36: 3548.959327 | AD36: 3246.588789 | AE36: 3297.954336 | AF36: 3481.792844 | AG36: 4334.518579 | AH36: 3704.082924 | AI36: 3119.900631 | AK36: 1946 | AL36: =C301 -> 3228.228838 | AM36: =C302 -> 3252 | AN36: =C303 -> 3265 | AO36: =C304 -> 3622 | AP36: =C305 -> 3864.757064 | AQ36: =C306 -> 4260.087613 | AR36: =C307 -> 4552 | AS36: =C308 -> 4530.037456 | AT36: =C309 -> 4158.911189 | AU36: =C310 -> 3570.447371 | AV36: =C311 -> 3257.518445 | AW36: =C312 -> 3214.725536 | AY36: 3684.126198 | AZ36: 3608.770864 | BA36: 3731.309459 | BC36: 3549.583058 | BD36: 3257.010977 | BE36: 3299.945672 | BF36: 3481.792844 | BG36: 4338.489799 | BH36: 3714.814625 | BI36: 3127.523699 | BK36: 1946 | BL36: =D301 -> 3226.774101 | BM36: =D302 -> 3252 | BN36: =D303 -> 3265 | BO36: =D304 -> 3622 | BP36: =D305 -> 3864.757064 | BQ36: =D306 -> 4260.087613 | BR36: =D307 -> 4552 | BS36: =D308 -> 4530.030813 | BT36: =D309 -> 4158.903739 | BU36: =D310 -> 3570.509315 | BV36: =D311 -> 3257.655057 | BW36: =D312 -> 3214.733086 | BY36: 3687.449681 | BZ36: 3614.34335 | CA36: 3731.204232 | CC36: 3549.437584 | CD36: 3259.015851 | CE36: 3299.406878 | CF36: 3481.792844 | CG36: 4338.487207 | CH36: 3714.862515 | CI36: 3133.859074 | CK36: 1946 | CL36: =E301 -> 3226.645134 | CM36: =E302 -> 3252 | CN36: =E303 -> 3265 | CO36: =E304 -> 3622 | CP36: =E305 -> 3864.757064 | CQ36: =E306 -> 4260.087613 | CR36: =E307 -> 4552 | CS36: =E308 -> 4530.017574 | CT36: =E309 -> 4158.882584 | CU36: =E310 -> 3570.478962 | CV36: =E311 -> 3257.606458 | CW36: =E312 -> 3214.672652 | CY36: 3687.394389 | CZ36: 3614.259098 | DA36: 3731.179003 | DC36: 3549.424687 | DD36: 3258.959202 | DE36: 3299.360088 | DF36: 3481.792844 | DG36: 4338.481253 | DH36: 3714.828279 | DI36: 3133.762953 | DK36: 1946 | DL36: =F301 -> 3226.747286 | DM36: =F302 -> 3252 | DN36: =F303 -> 3265 | DO36: =F304 -> 3622 | DP36: =F305 -> 3767.595571 | DQ36: =F306 -> 4163.013752 | DR36: =F307 -> 4551.56866 | DS36: =F308 -> 4536.710108 | DT36: =F309 -> 4163.157054 | DU36: =F310 -> 3572.35456 | DV36: =F311 -> 3258.957367 | DW36: =F312 -> 3215.804434 | DY36: 3674.991788 | DZ36: 3611.672416 | EA36: 3716.242399 | EC36: 3520.295218 | ED36: 3261.73296 | EE36: 3299.397763 | EF36: 3465.599262 | EG36: 4304.167208 | EH36: 3717.681563 | EI36: 3139.363054 | EK36: 1946 | EL36: =G301 ->  | EM36: =G302 ->  | EN36: =G303 ->  | EO36: =G304 ->  | EP36: =G305 ->  | EQ36: =G306 ->  | ER36: =G307 ->  | ES36: =G308 ->  | ET36: =G309 ->  | EU36: =G310 ->  | EV36: =G311 ->  | EW36: =G312 -> 
A37: 1923-10-31 | B37: =INDIRECT(CONCATENATE("'",B$1,"'!",B$4,(YEAR($A37)-1921)*12+MONTH($A37)+3+IF(ISNUMBER(FIND("PRV",B$6)),1,0)))*IF(AND(B$3>0,TRIM(B$9)="CFS"),Conversions!$C37,1) -> 2859.486952 | C37: =INDIRECT(CONCATENATE("'",C$1,"'!",C$4,(YEAR($A37)-1921)*12+MONTH($A37)+3+IF(ISNUMBER(FIND("PRV",C$6)),1,0)))*IF(AND(C$3>0,TRIM(C$9)="CFS"),Conversions!$C37,1) -> 2882.268925 | D37: =INDIRECT(CONCATENATE("'",D$1,"'!",D$4,(YEAR($A37)-1921)*12+MONTH($A37)+3+IF(ISNUMBER(FIND("PRV",D$6)),1,0)))*IF(AND(D$3>0,TRIM(D$9)="CFS"),Conversions!$C37,1) -> 2882.219137 | E37: =INDIRECT(CONCATENATE("'",E$1,"'!",E$4,(YEAR($A37)-1921)*12+MONTH($A37)+3+IF(ISNUMBER(FIND("PRV",E$6)),1,0)))*IF(AND(E$3>0,TRIM(E$9)="CFS"),Conversions!$C37,1) -> 2875.281689 | F37: =INDIRECT(CONCATENATE("'",F$1,"'!",F$4,(YEAR($A37)-1921)*12+MONTH($A37)+3+IF(ISNUMBER(FIND("PRV",F$6)),1,0)))*IF(AND(F$3>0,TRIM(F$9)="CFS"),Conversions!$C37,1) -> 2744.089711 | G37: =INDIRECT(CONCATENATE("'",G$1,"'!",G$4,(YEAR($A37)-1921)*12+MONTH($A37)+3+IF(ISNUMBER(FIND("PRV",G$6)),1,0)))*IF(AND(G$3>0,TRIM(G$9)="CFS"),Conversions!$C37,1) ->  | K37: 1947 | L37: =B313 -> 3025.55018 | M37: =B314 -> 3021.549626 | N37: =B315 -> 3128.532387 | O37: =B316 -> 3159.013879 | P37: =B317 -> 3424.567715 | Q37: =B318 -> 3949.11043 | R37: =B319 -> 4189.159594 | S37: =B320 -> 3853.859382 | T37: =B321 -> 3539.466005 | U37: =B322 -> 3020.434302 | V37: =B323 -> 2728.536423 | W37: =B324 -> 2677.299546 | Y37: 3212.883712 | Z37: 3198.122546 | AA37: 3309.756622 | AC37: 3244.198782 | AD37: 2756.548519 | AE37: 3088.784783 | AF37: 3170.201645 | AG37: 3868.536567 | AH37: 3138.504049 | AI37: 2692.715857 | AK37: 1947 | AL37: =C313 -> 3027.130531 | AM37: =C314 -> 3023.911617 | AN37: =C315 -> 3127.987548 | AO37: =C316 -> 3158.469383 | AP37: =C317 -> 3424.023682 | AQ37: =C318 -> 3948.567202 | AR37: =C319 -> 4188.617467 | AS37: =C320 -> 3852.109752 | AT37: =C321 -> 3535.779034 | AU37: =C322 -> 3006.132183 | AV37: =C323 -> 2708.121985 | AW37: =C324 -> 2659.034618 | AY37: 3198.988786 | AZ37: 3177.859904 | BA37: 3304.990417 | BC37: 3244.448219 | BD37: 2736.39972 | BE37: 3091.406789 | BF37: 3170.141527 | BG37: 3867.298945 | BH37: 3126.401347 | BI37: 2668.478468 | BK37: 1947 | BL37: =D313 -> 3038.809506 | BM37: =D314 -> 3038.414204 | BN37: =D315 -> 3141.495776 | BO37: =D316 -> 3171.969134 | BP37: =D317 -> 3437.511959 | BQ37: =D318 -> 3962.035498 | BR37: =D319 -> 4202.058488 | BS37: =D320 -> 3865.888179 | BT37: =D321 -> 3548.754809 | BU37: =D322 -> 3030.708971 | BV37: =D323 -> 2736.155068 | BW37: =D324 -> 2688.222167 | BY37: 3222.396312 | BZ37: 3206.735399 | CA37: 3321.835313 | CC37: 3257.962715 | CD37: 2765.766238 | CE37: 3103.017649 | CF37: 3183.80933 | CG37: 3880.778887 | CH37: 3148.168505 | CI37: 2701.470652 | CK37: 1947 | CL37: =E313 -> 3038.718028 | CM37: =E314 -> 3038.189902 | CN37: =E315 -> 3141.321831 | CO37: =E316 -> 3171.795299 | CP37: =E317 -> 3437.338271 | CQ37: =E318 -> 3961.862068 | CR37: =E319 -> 4201.885409 | CS37: =E320 -> 3866.030439 | CT37: =E321 -> 3548.971532 | CU37: =E322 -> 3031.020026 | CV37: =E323 -> 2736.509895 | CW37: =E324 -> 2688.428879 | CY37: 3222.471741 | CZ37: 3206.851562 | DA37: 3321.839298 | DC37: 3257.78707 | DD37: 2766.078127 | DE37: 3102.865934 | DF37: 3183.627072 | DG37: 3880.733205 | DH37: 3148.432778 | DI37: 2701.83397 | DK37: 1947 | DL37: =F313 -> 3048.519597 | DM37: =F314 -> 3048.572893 | DN37: =F315 -> 3151.647463 | DO37: =F316 -> 3182.114451 | DP37: =F317 -> 3447.648653 | DQ37: =F318 -> 3972.157176 | DR37: =F319 -> 4212.159668 | DS37: =F320 -> 3875.68821 | DT37: =F321 -> 3556.441049 | DU37: =F322 -> 3037.484955 | DV37: =F323 -> 2743.191008 | DW37: =F324 -> 2694.873457 | DY37: 3230.263465 | DZ37: 3213.709988 | EA37: 3330.874882 | EC37: 3268.064369 | ED37: 2772.492316 | EE37: 3111.924849 | EF37: 3193.957562 | EG37: 3890.512476 | EH37: 3155.599461 | EI37: 2707.944519 | EK37: 1947 | EL37: =G313 ->  | EM37: =G314 ->  | EN37: =G315 ->  | EO37: =G316 ->  | EP37: =G317 ->  | EQ37: =G318 ->  | ER37: =G319 ->  | ES37: =G320 ->  | ET37: =G321 ->  | EU37: =G322 ->  | EV37: =G323 ->  | EW37: =G324 -> 
A38: 1923-11-30 | B38: =INDIRECT(CONCATENATE("'",B$1,"'!",B$4,(YEAR($A38)-1921)*12+MONTH($A38)+3+IF(ISNUMBER(FIND("PRV",B$6)),1,0)))*IF(AND(B$3>0,TRIM(B$9)="CFS"),Conversions!$C38,1) -> 2743.06271 | C38: =INDIRECT(CONCATENATE("'",C$1,"'!",C$4,(YEAR($A38)-1921)*12+MONTH($A38)+3+IF(ISNUMBER(FIND("PRV",C$6)),1,0)))*IF(AND(C$3>0,TRIM(C$9)="CFS"),Conversions!$C38,1) -> 2767.214404 | D38: =INDIRECT(CONCATENATE("'",D$1,"'!",D$4,(YEAR($A38)-1921)*12+MONTH($A38)+3+IF(ISNUMBER(FIND("PRV",D$6)),1,0)))*IF(AND(D$3>0,TRIM(D$9)="CFS"),Conversions!$C38,1) -> 2767.171655 | E38: =INDIRECT(CONCATENATE("'",E$1,"'!",E$4,(YEAR($A38)-1921)*12+MONTH($A38)+3+IF(ISNUMBER(FIND("PRV",E$6)),1,0)))*IF(AND(E$3>0,TRIM(E$9)="CFS"),Conversions!$C38,1) -> 2760.602098 | F38: =INDIRECT(CONCATENATE("'",F$1,"'!",F$4,(YEAR($A38)-1921)*12+MONTH($A38)+3+IF(ISNUMBER(FIND("PRV",F$6)),1,0)))*IF(AND(F$3>0,TRIM(F$9)="CFS"),Conversions!$C38,1) -> 2640.777138 | G38: =INDIRECT(CONCATENATE("'",G$1,"'!",G$4,(YEAR($A38)-1921)*12+MONTH($A38)+3+IF(ISNUMBER(FIND("PRV",G$6)),1,0)))*IF(AND(G$3>0,TRIM(G$9)="CFS"),Conversions!$C38,1) ->  | K38: 1948 | L38: =B325 -> 2707.184873 | M38: =B326 -> 2658.789883 | N38: =B327 -> 2647.182512 | O38: =B328 -> 3211.205143 | P38: =B329 -> 3195.242454 | Q38: =B330 -> 3531.5069 | R38: =B331 -> 4422 | S38: =B332 -> 4552 | T38: =B333 -> 4500 | U38: =B334 -> 3978.916208 | V38: =B335 -> 3617.373362 | W38: =B336 -> 3400 | Y38: 3669.515361 | Z38: 3691.997031 | AA38: 3535.116778 | AC38: 2966.353176 | AD38: 3543.045964 | AE38: 2739.352403 | AF38: 2928.467941 | AG38: 4088.282032 | AH38: 4018.072392 | AI38: 3344.257929 | AK38: 1948 | AL38: =C325 -> 2677.952932 | AM38: =C326 -> 2628.773725 | AN38: =C327 -> 2600.283463 | AO38: =C328 -> 3164.33584 | AP38: =C329 -> 3164.610651 | AQ38: =C330 -> 3500.908762 | AR38: =C331 -> 4422 | AS38: =C332 -> 4552 | AT38: =C333 -> 4500 | AU38: =C334 -> 3981.331169 | AV38: =C335 -> 3619.403371 | AW38: =C336 -> 3347.90864 | AY38: 3656.80926 | AZ38: 3685.793201 | BA38: 3513.29238 | BC38: 2929.486905 | BD38: 3526.869037 | BE38: 2704.673837 | BF38: 2887.103831 | BG38: 4076.803522 | BH38: 4012.672215 | BI38: 3327.841691 | BK38: 1948 | BL38: =D325 -> 2715.133987 | BM38: =D326 -> 2665.956537 | BN38: =D327 -> 2644.360951 | BO38: =D328 -> 3208.385374 | BP38: =D329 -> 3213.164758 | BQ38: =D330 -> 3549.409507 | BR38: =D331 -> 4422 | BS38: =D332 -> 4552 | BT38: =D333 -> 4500 | BU38: =D334 -> 3982.732769 | BV38: =D335 -> 3620.678993 | BW38: =D336 -> 3347.272353 | BY38: 3668.011937 | BZ38: 3688.554107 | CA38: 3535.091269 | CC38: 2972.827873 | CD38: 3527.314322 | CE38: 2743.438811 | CF38: 2930.768991 | CG38: 4094.997972 | CH38: 4013.261985 | CI38: 3327.11405 | CK38: 1948 | CL38: =E325 -> 2715.571185 | CM38: =E326 -> 2666.493794 | CN38: =E327 -> 2643.754091 | CO38: =E328 -> 3207.778899 | CP38: =E329 -> 3213.912523 | CQ38: =E330 -> 3550.156451 | CR38: =E331 -> 4422 | CS38: =E332 -> 4552 | CT38: =E333 -> 4500 | CU38: =E334 -> 3982.716147 | CV38: =E335 -> 3620.575777 | CW38: =E336 -> 3347.261263 | CY38: 3666.23018 | CZ38: 3672.211438 | DA38: 3535.185011 | DC38: 2972.960625 | DD38: 3527.272389 | DE38: 2743.48074 | DF38: 2930.578716 | DG38: 4095.278178 | DH38: 4013.230639 | DI38: 3327.088507 | DK38: 1948 | DL38: =F325 -> 2721.34001 | DM38: =F326 -> 2672.049173 | DN38: =F327 -> 2648.013769 | DO38: =F328 -> 3212.035833 | DP38: =F329 -> 3219.08555 | DQ38: =F330 -> 3555.323792 | DR38: =F331 -> 4422 | DS38: =F332 -> 4552 | DT38: =F333 -> 4500 | DU38: =F334 -> 3982.749794 | DV38: =F335 -> 3620.621595 | DW38: =F336 -> 3347.177747 | DY38: 3669.247773 | DZ38: 3688.949404 | EA38: 3537.699772 | EC38: 2977.903245 | ED38: 3527.265094 | EE38: 2748.714399 | EF38: 2935.205655 | EG38: 4097.216642 | EH38: 4013.240066 | EI38: 3327.027769 | EK38: 1948 | EL38: =G325 ->  | EM38: =G326 ->  | EN38: =G327 ->  | EO38: =G328 ->  | EP38: =G329 ->  | EQ38: =G330 ->  | ER38: =G331 ->  | ES38: =G332 ->  | ET38: =G333 ->  | EU38: =G334 ->  | EV38: =G335 ->  | EW38: =G336 -> 
A39: 1923-12-31 | B39: =INDIRECT(CONCATENATE("'",B$1,"'!",B$4,(YEAR($A39)-1921)*12+MONTH($A39)+3+IF(ISNUMBER(FIND("PRV",B$6)),1,0)))*IF(AND(B$3>0,TRIM(B$9)="CFS"),Conversions!$C39,1) -> 2677.484118 | C39: =INDIRECT(CONCATENATE("'",C$1,"'!",C$4,(YEAR($A39)-1921)*12+MONTH($A39)+3+IF(ISNUMBER(FIND("PRV",C$6)),1,0)))*IF(AND(C$3>0,TRIM(C$9)="CFS"),Conversions!$C39,1) -> 2701.260261 | D39: =INDIRECT(CONCATENATE("'",D$1,"'!",D$4,(YEAR($A39)-1921)*12+MONTH($A39)+3+IF(ISNUMBER(FIND("PRV",D$6)),1,0)))*IF(AND(D$3>0,TRIM(D$9)="CFS"),Conversions!$C39,1) -> 2701.222331 | E39: =INDIRECT(CONCATENATE("'",E$1,"'!",E$4,(YEAR($A39)-1921)*12+MONTH($A39)+3+IF(ISNUMBER(FIND("PRV",E$6)),1,0)))*IF(AND(E$3>0,TRIM(E$9)="CFS"),Conversions!$C39,1) -> 2695.397809 | F39: =INDIRECT(CONCATENATE("'",F$1,"'!",F$4,(YEAR($A39)-1921)*12+MONTH($A39)+3+IF(ISNUMBER(FIND("PRV",F$6)),1,0)))*IF(AND(F$3>0,TRIM(F$9)="CFS"),Conversions!$C39,1) -> 2581.192728 | G39: =INDIRECT(CONCATENATE("'",G$1,"'!",G$4,(YEAR($A39)-1921)*12+MONTH($A39)+3+IF(ISNUMBER(FIND("PRV",G$6)),1,0)))*IF(AND(G$3>0,TRIM(G$9)="CFS"),Conversions!$C39,1) ->  | K39: 1949 | L39: =B337 -> 3244.612852 | M39: =B338 -> 3158.948508 | N39: =B339 -> 3222.378904 | O39: =B340 -> 3238.636359 | P39: =B341 -> 3437.591285 | Q39: =B342 -> 4071 | R39: =B343 -> 4479.244009 | S39: =B344 -> 4508.881408 | T39: =B345 -> 4126.063801 | U39: =B346 -> 3569.644384 | V39: =B347 -> 3253.60127 | W39: =B348 -> 3203.978232 | Y39: 3564.688547 | Z39: 3566.086739 | AA39: 3626.215084 | AC39: 3343.072296 | AD39: 3262.312298 | AE39: 3236.314611 | AF39: 3253.095053 | AG39: 4210.23824 | AH39: 3701.434819 | AI39: 3131.345243 | AK39: 1949 | AL39: =C337 -> 3245.259031 | AM39: =C338 -> 3161.311431 | AN39: =C339 -> 3222.642221 | AO39: =C340 -> 3238.89952 | AP39: =C341 -> 3437.85427 | AQ39: =C342 -> 4071 | AR39: =C343 -> 4479.244009 | AS39: =C344 -> 4482.155012 | AT39: =C345 -> 4106.499497 | AU39: =C346 -> 3565.021487 | AV39: =C347 -> 3260.03285 | AW39: =C348 -> 3211.029815 | AY39: 3560.849541 | AZ39: 3560.403673 | BA39: 3623.412428 | BC39: 3343.767392 | BD39: 3267.810025 | BE39: 3230.654191 | BF39: 3253.708197 | BG39: 4201.143976 | BH39: 3694.536562 | BI39: 3136.81636 | BK39: 1949 | BL39: =D337 -> 3245.250474 | BM39: =D338 -> 3156.959651 | BN39: =D339 -> 3218.289365 | BO39: =D340 -> 3234.549259 | BP39: =D341 -> 3433.506913 | BQ39: =D342 -> 4071 | BR39: =D343 -> 4479.244009 | BS39: =D344 -> 4482.111241 | BT39: =D345 -> 4106.501741 | BU39: =D346 -> 3567.34258 | BV39: =D347 -> 3260.233261 | BW39: =D348 -> 3211.162778 | BY39: 3561.598949 | BZ39: 3563.132049 | CA39: 3622.179273 | CC39: 3340.286085 | CD39: 3268.310476 | CE39: 3227.852574 | CF39: 3249.357302 | CG39: 4200.589894 | CH39: 3695.178648 | CI39: 3138.153985 | CK39: 1949 | CL39: =E337 -> 3245.244104 | CM39: =E338 -> 3156.944529 | CN39: =E339 -> 3196.17247 | CO39: =E340 -> 3147.225282 | CP39: =E341 -> 3346.24123 | CQ39: =E342 -> 4071 | CR39: =E343 -> 4479.244009 | CS39: =E344 -> 4480.617495 | CT39: =E345 -> 4104.15669 | CU39: =E346 -> 3562.7783 | CV39: =E347 -> 3251.234515 | CW39: =E348 -> 3201.696032 | CY39: 3540.086414 | CZ39: 3552.302056 | DA39: 3603.546221 | DC39: 3300.941112 | DD39: 3259.69933 | DE39: 3211.401094 | DF39: 3198.33021 | DG39: 4189.015116 | DH39: 3689.831567 | DI39: 3126.225366 | DK39: 1949 | DL39: =F337 -> 3245.242084 | DM39: =F338 -> 3156.705359 | DN39: =F339 -> 3218.031519 | DO39: =F340 -> 3234.291567 | DP39: =F341 -> 3433.249393 | DQ39: =F342 -> 4071 | DR39: =F343 -> 4479.244009 | DS39: =F344 -> 4482.101102 | DT39: =F345 -> 4106.489121 | DU39: =F346 -> 3567.324615 | DV39: =F347 -> 3260.219317 | DW39: =F348 -> 3211.143251 | DY39: 3561.676889 | DZ39: 3563.382035 | EA39: 3622.086778 | EC39: 3340.079776 | ED39: 3268.291937 | EE39: 3227.678405 | EF39: 3249.100154 | EG39: 4200.553592 | EH39: 3695.163807 | EI39: 3138.265626 | EK39: 1949 | EL39: =G337 ->  | EM39: =G338 ->  | EN39: =G339 ->  | EO39: =G340 ->  | EP39: =G341 ->  | EQ39: =G342 ->  | ER39: =G343 ->  | ES39: =G344 ->  | ET39: =G345 ->  | EU39: =G346 ->  | EV39: =G347 ->  | EW39: =G348 -> 
A40: 1924-01-31 | B40: =INDIRECT(CONCATENATE("'",B$1,"'!",B$4,(YEAR($A40)-1921)*12+MONTH($A40)+3+IF(ISNUMBER(FIND("PRV",B$6)),1,0)))*IF(AND(B$3>0,TRIM(B$9)="CFS"),Conversions!$C40,1) -> 2771.837045 | C40: =INDIRECT(CONCATENATE("'",C$1,"'!",C$4,(YEAR($A40)-1921)*12+MONTH($A40)+3+IF(ISNUMBER(FIND("PRV",C$6)),1,0)))*IF(AND(C$3>0,TRIM(C$9)="CFS"),Conversions!$C40,1) -> 2795.598058 | D40: =INDIRECT(CONCATENATE("'",D$1,"'!",D$4,(YEAR($A40)-1921)*12+MONTH($A40)+3+IF(ISNUMBER(FIND("PRV",D$6)),1,0)))*IF(AND(D$3>0,TRIM(D$9)="CFS"),Conversions!$C40,1) -> 2795.560153 | E40: =INDIRECT(CONCATENATE("'",E$1,"'!",E$4,(YEAR($A40)-1921)*12+MONTH($A40)+3+IF(ISNUMBER(FIND("PRV",E$6)),1,0)))*IF(AND(E$3>0,TRIM(E$9)="CFS"),Conversions!$C40,1) -> 2789.739337 | F40: =INDIRECT(CONCATENATE("'",F$1,"'!",F$4,(YEAR($A40)-1921)*12+MONTH($A40)+3+IF(ISNUMBER(FIND("PRV",F$6)),1,0)))*IF(AND(F$3>0,TRIM(F$9)="CFS"),Conversions!$C40,1) -> 2675.606325 | G40: =INDIRECT(CONCATENATE("'",G$1,"'!",G$4,(YEAR($A40)-1921)*12+MONTH($A40)+3+IF(ISNUMBER(FIND("PRV",G$6)),1,0)))*IF(AND(G$3>0,TRIM(G$9)="CFS"),Conversions!$C40,1) ->  | K40: 1950 | L40: =B349 -> 3089.070403 | M40: =B350 -> 2948.372918 | N40: =B351 -> 2850.178501 | O40: =B352 -> 3145.220078 | P40: =B353 -> 3547.785865 | Q40: =B354 -> 3999.788925 | R40: =B355 -> 4411.669365 | S40: =B356 -> 4326.322881 | T40: =B357 -> 4084.551641 | U40: =B358 -> 3664.271982 | V40: =B359 -> 3286.581884 | W40: =B360 -> 3203.512854 | Y40: 3624.475456 | Z40: 3684.891628 | AA40: 3546.443942 | AC40: 3207.197405 | AD40: 3315.743576 | AE40: 3015.555244 | AF40: 3081.159324 | AG40: 4138.487481 | AH40: 3700.080844 | AI40: 3240.934599 | AK40: 1950 | AL40: =C349 -> 3099.713334 | AM40: =C350 -> 2939.379014 | AN40: =C351 -> 2839.365692 | AO40: =C352 -> 3134.414102 | AP40: =C353 -> 3536.989266 | AQ40: =C354 -> 3989.003297 | AR40: =C355 -> 4400.904771 | AS40: =C356 -> 4324.033481 | AT40: =C357 -> 4091.021421 | AU40: =C358 -> 3643.413813 | AV40: =C359 -> 3267.306209 | AW40: =C360 -> 3203.776245 | AY40: 3617.905217 | AZ40: 3680.121603 | BA40: 3539.110054 | BC40: 3198.901278 | BD40: 3305.929787 | BE40: 3012.795 | BF40: 3070.654645 | BG40: 4131.986723 | BH40: 3691.411577 | BI40: 3237.809783 | BK40: 1950 | BL40: =D349 -> 3099.728201 | BM40: =D350 -> 2946.908691 | BN40: =D351 -> 2846.898718 | BO40: =D352 -> 3141.942368 | BP40: =D353 -> 3544.510999 | BQ40: =D354 -> 3996.517388 | BR40: =D355 -> 4408.404208 | BS40: =D356 -> 4331.317539 | BT40: =D357 -> 4098.056624 | BU40: =D358 -> 3675.456605 | BV40: =D359 -> 3300.305921 | BW40: =D360 -> 3215.556266 | BY40: 3628.00566 | BZ40: 3688.967879 | CA40: 3550.466961 | CC40: 3205.676714 | CD40: 3326.19683 | CE40: 3017.522046 | CF40: 3078.183644 | CG40: 4139.380737 | CH40: 3711.814013 | CI40: 3247.236409 | CK40: 1950 | CL40: =E349 -> 3089.556586 | CM40: =E350 -> 2923.612445 | CN40: =E351 -> 2823.674391 | CO40: =E352 -> 3118.732718 | CP40: =E353 -> 3521.321489 | CQ40: =E354 -> 3973.35373 | CR40: =E355 -> 4385.285723 | CS40: =E356 -> 4309.04204 | CT40: =E357 -> 4076.793647 | CU40: =E358 -> 3660.743024 | CV40: =E359 -> 3286.827227 | CW40: =E360 -> 3206.033657 | CY40: 3613.511105 | CZ40: 3678.339921 | DA40: 3531.248056 | DC40: 3183.75924 | DD40: 3316.077465 | DE40: 2999.264449 | DF40: 3054.958025 | DG40: 4116.684765 | DH40: 3695.475437 | DI40: 3241.815757 | DK40: 1950 | DL40: =F349 -> 3099.701868 | DM40: =F350 -> 2947.684202 | DN40: =F351 -> 2847.674219 | DO40: =F352 -> 3142.717379 | DP40: =F353 -> 3545.285338 | DQ40: =F354 -> 3997.29094 | DR40: =F355 -> 4409.176251 | DS40: =F356 -> 4332.065372 | DT40: =F357 -> 4098.776427 | DU40: =F358 -> 3675.82125 | DV40: =F359 -> 3300.627464 | DW40: =F360 -> 3215.858348 | DY40: 3628.468231 | DZ40: 3689.301338 | EA40: 3551.056588 | EC40: 3206.371508 | ED40: 3326.465479 | EE40: 3017.997651 | EF40: 3078.958789 | EG40: 4140.140861 | EH40: 3712.29675 | EI40: 3247.390693 | EK40: 1950 | EL40: =G349 ->  | EM40: =G350 ->  | EN40: =G351 ->  | EO40: =G352 ->  | EP40: =G353 ->  | EQ40: =G354 ->  | ER40: =G355 ->  | ES40: =G356 ->  | ET40: =G357 ->  | EU40: =G358 ->  | EV40: =G359 ->  | EW40: =G360 -> 
A41: 1924-02-29 | B41: =INDIRECT(CONCATENATE("'",B$1,"'!",B$4,(YEAR($A41)-1921)*12+MONTH($A41)+3+IF(ISNUMBER(FIND("PRV",B$6)),1,0)))*IF(AND(B$3>0,TRIM(B$9)="CFS"),Conversions!$C41,1) -> 2980.645633 | C41: =INDIRECT(CONCATENATE("'",C$1,"'!",C$4,(YEAR($A41)-1921)*12+MONTH($A41)+3+IF(ISNUMBER(FIND("PRV",C$6)),1,0)))*IF(AND(C$3>0,TRIM(C$9)="CFS"),Conversions!$C41,1) -> 3004.382434 | D41: =INDIRECT(CONCATENATE("'",D$1,"'!",D$4,(YEAR($A41)-1921)*12+MONTH($A41)+3+IF(ISNUMBER(FIND("PRV",D$6)),1,0)))*IF(AND(D$3>0,TRIM(D$9)="CFS"),Conversions!$C41,1) -> 3004.344568 | E41: =INDIRECT(CONCATENATE("'",E$1,"'!",E$4,(YEAR($A41)-1921)*12+MONTH($A41)+3+IF(ISNUMBER(FIND("PRV",E$6)),1,0)))*IF(AND(E$3>0,TRIM(E$9)="CFS"),Conversions!$C41,1) -> 2998.529683 | F41: =INDIRECT(CONCATENATE("'",F$1,"'!",F$4,(YEAR($A41)-1921)*12+MONTH($A41)+3+IF(ISNUMBER(FIND("PRV",F$6)),1,0)))*IF(AND(F$3>0,TRIM(F$9)="CFS"),Conversions!$C41,1) -> 2884.512967 | G41: =INDIRECT(CONCATENATE("'",G$1,"'!",G$4,(YEAR($A41)-1921)*12+MONTH($A41)+3+IF(ISNUMBER(FIND("PRV",G$6)),1,0)))*IF(AND(G$3>0,TRIM(G$9)="CFS"),Conversions!$C41,1) ->  | K41: 1951 | L41: =B361 -> 3250 | M41: =B362 -> 3252 | N41: =B363 -> 3322 | O41: =B364 -> 3624 | P41: =B365 -> 3794 | Q41: =B366 -> 4196.056362 | R41: =B367 -> 4419.749461 | S41: =B368 -> 4552 | T41: =B369 -> 4190.547495 | U41: =B370 -> 3475.946432 | V41: =B371 -> 3088.05595 | W41: =B372 -> 2901.943057 | Y41: 3620.335991 | Z41: 3614.085991 | AA41: 3672.191563 | AC41: 3543.005636 | AD41: 3058.8955 | AE41: 3309.439107 | AF41: 3489.666667 | AG41: 4290.019893 | AH41: 3620.380351 | AI41: 2947.517292 | AK41: 1951 | AL41: =C361 -> 3250 | AM41: =C362 -> 3252 | AN41: =C363 -> 3322 | AO41: =C364 -> 3624 | AP41: =C365 -> 3794 | AQ41: =C366 -> 4196.056362 | AR41: =C367 -> 4419.749461 | AS41: =C368 -> 4552 | AT41: =C369 -> 4186.925031 | AU41: =C370 -> 3472.3382 | AV41: =C371 -> 3084.929782 | AW41: =C372 -> 2894.103042 | AY41: 3617.508334 | AZ41: 3611.258334 | BA41: 3670.675156 | BC41: 3543.005636 | BD41: 3053.308362 | BE41: 3309.472031 | BF41: 3489.666667 | BG41: 4289.567085 | BH41: 3616.811133 | BI41: 2940.430053 | BK41: 1951 | BL41: =D361 -> 3250 | BM41: =D362 -> 3252 | BN41: =D363 -> 3322 | BO41: =D364 -> 3624 | BP41: =D365 -> 3794 | BQ41: =D366 -> 4196.056362 | BR41: =D367 -> 4419.749461 | BS41: =D368 -> 4552 | BT41: =D369 -> 4189.630552 | BU41: =D370 -> 3475.033092 | BV41: =D371 -> 3086.978273 | BW41: =D372 -> 2896.080777 | BY41: 3618.622094 | BZ41: 3612.372094 | CA41: 3671.46071 | CC41: 3543.005636 | CD41: 3055.428054 | CE41: 3310.944533 | CF41: 3489.666667 | CG41: 4289.905275 | CH41: 3618.920576 | CI41: 2942.415596 | CK41: 1951 | CL41: =E361 -> 3250 | CM41: =E362 -> 3252 | CN41: =E363 -> 3322 | CO41: =E364 -> 3624 | CP41: =E365 -> 3794 | CQ41: =E366 -> 4196.056362 | CR41: =E367 -> 4419.749461 | CS41: =E368 -> 4552 | CT41: =E369 -> 4186.911931 | CU41: =E370 -> 3472.325151 | CV41: =E371 -> 3084.910194 | CW41: =E372 -> 2894.086759 | CY41: 3617.49808 | CZ41: 3611.24808 | DA41: 3670.669988 | DC41: 3543.005636 | DD41: 3053.289935 | DE41: 3309.754207 | DF41: 3489.666667 | DG41: 4289.565447 | DH41: 3616.797664 | DI41: 2940.406895 | DK41: 1951 | DL41: =F361 -> 3250 | DM41: =F362 -> 3252 | DN41: =F363 -> 3322 | DO41: =F364 -> 3624 | DP41: =F365 -> 3794 | DQ41: =F366 -> 4196.056362 | DR41: =F367 -> 4419.749461 | DS41: =F368 -> 4552 | DT41: =F369 -> 4186.926985 | DU41: =F370 -> 3472.340146 | DV41: =F371 -> 3084.924093 | DW41: =F372 -> 2905.838563 | DY41: 3620.487504 | DZ41: 3614.086563 | EA41: 3671.652968 | EC41: 3543.005636 | ED41: 3059.23547 | EE41: 3310.982293 | EF41: 3489.666667 | EG41: 4289.567329 | EH41: 3618.277627 | EI41: 2950.360503 | EK41: 1951 | EL41: =G361 ->  | EM41: =G362 ->  | EN41: =G363 ->  | EO41: =G364 ->  | EP41: =G365 ->  | EQ41: =G366 ->  | ER41: =G367 ->  | ES41: =G368 ->  | ET41: =G369 ->  | EU41: =G370 ->  | EV41: =G371 ->  | EW41: =G372 -> 
A42: 1924-03-31 | B42: =INDIRECT(CONCATENATE("'",B$1,"'!",B$4,(YEAR($A42)-1921)*12+MONTH($A42)+3+IF(ISNUMBER(FIND("PRV",B$6)),1,0)))*IF(AND(B$3>0,TRIM(B$9)="CFS"),Conversions!$C42,1) -> 2853.496776 | C42: =INDIRECT(CONCATENATE("'",C$1,"'!",C$4,(YEAR($A42)-1921)*12+MONTH($A42)+3+IF(ISNUMBER(FIND("PRV",C$6)),1,0)))*IF(AND(C$3>0,TRIM(C$9)="CFS"),Conversions!$C42,1) -> 2879.617374 | D42: =INDIRECT(CONCATENATE("'",D$1,"'!",D$4,(YEAR($A42)-1921)*12+MONTH($A42)+3+IF(ISNUMBER(FIND("PRV",D$6)),1,0)))*IF(AND(D$3>0,TRIM(D$9)="CFS"),Conversions!$C42,1) -> 2879.576137 | E42: =INDIRECT(CONCATENATE("'",E$1,"'!",E$4,(YEAR($A42)-1921)*12+MONTH($A42)+3+IF(ISNUMBER(FIND("PRV",E$6)),1,0)))*IF(AND(E$3>0,TRIM(E$9)="CFS"),Conversions!$C42,1) -> 2873.507191 | F42: =INDIRECT(CONCATENATE("'",F$1,"'!",F$4,(YEAR($A42)-1921)*12+MONTH($A42)+3+IF(ISNUMBER(FIND("PRV",F$6)),1,0)))*IF(AND(F$3>0,TRIM(F$9)="CFS"),Conversions!$C42,1) -> 2762.033231 | G42: =INDIRECT(CONCATENATE("'",G$1,"'!",G$4,(YEAR($A42)-1921)*12+MONTH($A42)+3+IF(ISNUMBER(FIND("PRV",G$6)),1,0)))*IF(AND(G$3>0,TRIM(G$9)="CFS"),Conversions!$C42,1) ->  | K42: 1952 | L42: =B373 -> 2897.428557 | M42: =B374 -> 2998.304573 | N42: =B375 -> 3306 | O42: =B376 -> 3604 | P42: =B377 -> 3739 | Q42: =B378 -> 4022 | R42: =B379 -> 4290 | S42: =B380 -> 4552 | T42: =B381 -> 4500 | U42: =B382 -> 4150 | V42: =B383 -> 3700 | W42: =B384 -> 3400 | Y42: 3809.606191 | Z42: 3787.636079 | AA42: 3763.227761 | AC42: 3421.40377 | AD42: 3600 | AE42: 3113.676165 | AF42: 3426.217429 | AG42: 4245.875 | AH42: 4081.5 | AI42: 3360.545716 | AK42: 1952 | AL42: =C373 -> 2889.446326 | AM42: =C374 -> 2990.551799 | AN42: =C375 -> 3306 | AO42: =C376 -> 3604 | AP42: =C377 -> 3739 | AQ42: =C378 -> 4022 | AR42: =C379 -> 4290 | AS42: =C380 -> 4552 | AT42: =C381 -> 4500 | AU42: =C382 -> 4150 | AV42: =C383 -> 3700 | AW42: =C384 -> 3400 | AY42: 3809.548181 | AZ42: 3787.57807 | BA42: 3761.91651 | BC42: 3419.054992 | BD42: 3600 | BE42: 3108.762412 | BF42: 3424.9253 | BG42: 4245.875 | BH42: 4081.5 | BI42: 3360.429696 | BK42: 1952 | BL42: =D373 -> 2891.417133 | BM42: =D374 -> 2992.519479 | BN42: =D375 -> 3306 | BO42: =D376 -> 3604 | BP42: =D377 -> 3739 | BQ42: =D378 -> 4022 | BR42: =D379 -> 4290 | BS42: =D380 -> 4552 | BT42: =D381 -> 4500 | BU42: =D382 -> 4150 | BV42: =D383 -> 3700 | BW42: =D384 -> 3386.919376 | BY42: 3808.83541 | BZ42: 3786.865298 | CA42: 3761.154666 | CC42: 3419.645609 | CD42: 3595.639792 | CE42: 3109.99425 | CF42: 3425.253247 | CG42: 4245.875 | CH42: 4079.864922 | CI42: 3356.824049 | CK42: 1952 | CL42: =E373 -> 2889.420552 | CM42: =E374 -> 2990.51655 | CN42: =E375 -> 3306 | CO42: =E376 -> 3604 | CP42: =E377 -> 3739 | CQ42: =E378 -> 4022 | CR42: =E379 -> 4290 | CS42: =E380 -> 4552 | CT42: =E381 -> 4500 | CU42: =E382 -> 4150 | CV42: =E383 -> 3700 | CW42: =E384 -> 3400 | CY42: 3808.619336 | CZ42: 3786.649224 | DA42: 3761.911425 | DC42: 3419.045365 | DD42: 3600 | DE42: 3108.745121 | DF42: 3424.919425 | DG42: 4245.875 | DH42: 4081.5 | DI42: 3360.567095 | DK42: 1952 | DL42: =F373 -> 2901.54736 | DM42: =F374 -> 3002.467077 | DN42: =F375 -> 3306 | DO42: =F376 -> 3602.188704 | DP42: =F377 -> 3739 | DQ42: =F378 -> 4022 | DR42: =F379 -> 4290 | DS42: =F380 -> 4552 | DT42: =F381 -> 4500 | DU42: =F382 -> 4150 | DV42: =F383 -> 3700 | DW42: =F384 -> 3400 | DY42: 3809.376185 | DZ42: 3779.461571 | EA42: 3763.766928 | EC42: 3422.285892 | ED42: 3600 | EE42: 3116.007018 | EF42: 3426.307414 | EG42: 4245.875 | EH42: 4081.5 | EI42: 3360.387587 | EK42: 1952 | EL42: =G373 ->  | EM42: =G374 ->  | EN42: =G375 ->  | EO42: =G376 ->  | EP42: =G377 ->  | EQ42: =G378 ->  | ER42: =G379 ->  | ES42: =G380 ->  | ET42: =G381 ->  | EU42: =G382 ->  | EV42: =G383 ->  | EW42: =G384 -> 
A43: 1924-04-30 | B43: =INDIRECT(CONCATENATE("'",B$1,"'!",B$4,(YEAR($A43)-1921)*12+MONTH($A43)+3+IF(ISNUMBER(FIND("PRV",B$6)),1,0)))*IF(AND(B$3>0,TRIM(B$9)="CFS"),Conversions!$C43,1) -> 2757.091955 | C43: =INDIRECT(CONCATENATE("'",C$1,"'!",C$4,(YEAR($A43)-1921)*12+MONTH($A43)+3+IF(ISNUMBER(FIND("PRV",C$6)),1,0)))*IF(AND(C$3>0,TRIM(C$9)="CFS"),Conversions!$C43,1) -> 2785.313567 | D43: =INDIRECT(CONCATENATE("'",D$1,"'!",D$4,(YEAR($A43)-1921)*12+MONTH($A43)+3+IF(ISNUMBER(FIND("PRV",D$6)),1,0)))*IF(AND(D$3>0,TRIM(D$9)="CFS"),Conversions!$C43,1) -> 2846.899027 | E43: =INDIRECT(CONCATENATE("'",E$1,"'!",E$4,(YEAR($A43)-1921)*12+MONTH($A43)+3+IF(ISNUMBER(FIND("PRV",E$6)),1,0)))*IF(AND(E$3>0,TRIM(E$9)="CFS"),Conversions!$C43,1) -> 2840.839739 | F43: =INDIRECT(CONCATENATE("'",F$1,"'!",F$4,(YEAR($A43)-1921)*12+MONTH($A43)+3+IF(ISNUMBER(FIND("PRV",F$6)),1,0)))*IF(AND(F$3>0,TRIM(F$9)="CFS"),Conversions!$C43,1) -> 2729.54112 | G43: =INDIRECT(CONCATENATE("'",G$1,"'!",G$4,(YEAR($A43)-1921)*12+MONTH($A43)+3+IF(ISNUMBER(FIND("PRV",G$6)),1,0)))*IF(AND(G$3>0,TRIM(G$9)="CFS"),Conversions!$C43,1) ->  | K43: 1953 | L43: =B385 -> 3250 | M43: =B386 -> 3163.274297 | N43: =B387 -> 3345 | O43: =B388 -> 3366 | P43: =B389 -> 3713.358657 | Q43: =B390 -> 4147.313395 | R43: =B391 -> 4483.937053 | S43: =B392 -> 4552 | T43: =B393 -> 4500 | U43: =B394 -> 4087.942294 | V43: =B395 -> 3700 | W43: =B396 -> 3400 | Y43: 3816.879939 | Z43: 3828.016718 | AA43: 3809.068808 | AC43: 3457.25793 | AD43: 3589.657049 | AE43: 3285.318574 | AF43: 3383.105492 | AG43: 4322.482444 | AH43: 4065.985573 | AI43: 3375.333333 | AK43: 1953 | AL43: =C385 -> 3250 | AM43: =C386 -> 3162.578178 | AN43: =C387 -> 3345 | AO43: =C388 -> 3366 | AP43: =C389 -> 3713.358657 | AQ43: =C390 -> 4147.313395 | AR43: =C391 -> 4509.039543 | AS43: =C392 -> 4552 | AT43: =C393 -> 4500 | AU43: =C394 -> 4085.260401 | AV43: =C395 -> 3700 | AW43: =C396 -> 3400 | AY43: 3818.694748 | AZ43: 3829.831527 | BA43: 3810.879181 | BC43: 3457.118706 | BD43: 3589.210067 | BE43: 3285.144544 | BF43: 3382.989472 | BG43: 4328.758067 | BH43: 4065.3151 | BI43: 3375.333333 | BK43: 1953 | BL43: =D385 -> 3250 | BM43: =D386 -> 3167.105545 | BN43: =D387 -> 3345 | BO43: =D388 -> 3366 | BP43: =D389 -> 3713.358657 | BQ43: =D390 -> 4147.313395 | BR43: =D391 -> 4508.916554 | BS43: =D392 -> 4552 | BT43: =D393 -> 4500 | BU43: =D394 -> 4085.250432 | BV43: =D395 -> 3700 | BW43: =D396 -> 3400 | BY43: 3818.683679 | BZ43: 3829.820458 | CA43: 3811.245382 | CC43: 3458.02418 | CD43: 3589.208405 | CE43: 3284.641308 | CF43: 3383.744034 | CG43: 4328.727319 | CH43: 4065.312608 | CI43: 3375.333333 | CK43: 1953 | CL43: =E385 -> 3250 | CM43: =E386 -> 3163.40257 | CN43: =E387 -> 3333.029466 | CO43: =E388 -> 3366 | CP43: =E389 -> 3713.358657 | CQ43: =E390 -> 4147.313395 | CR43: =E391 -> 4508.930118 | CS43: =E392 -> 4552 | CT43: =E393 -> 4500 | CU43: =E394 -> 4085.244768 | CV43: =E395 -> 3700 | CW43: =E396 -> 3400 | CY43: 3818.581302 | CZ43: 3829.71808 | DA43: 3809.939915 | DC43: 3454.889478 | DD43: 3589.207461 | DE43: 3282.358009 | DF43: 3379.136693 | DG43: 4328.73071 | DH43: 4065.311192 | DI43: 3375.333333 | DK43: 1953 | DL43: =F385 -> 3250 | DM43: =F386 -> 3162.325521 | DN43: =F387 -> 3345 | DO43: =F388 -> 3366 | DP43: =F389 -> 3616.213336 | DQ43: =F390 -> 4050.282703 | DR43: =F391 -> 4414.145986 | DS43: =F392 -> 4552 | DT43: =F393 -> 4500 | DU43: =F394 -> 4084.593341 | DV43: =F395 -> 3700 | DW43: =F396 -> 3400 | DY43: 3794.447004 | DZ43: 3813.679226 | EA43: 3786.713407 | EC43: 3427.936042 | ED43: 3589.09889 | EE43: 3285.08138 | EF43: 3366.756476 | EG43: 4268.633839 | EH43: 4065.148335 | EI43: 3375.333333 | EK43: 1953 | EL43: =G385 ->  | EM43: =G386 ->  | EN43: =G387 ->  | EO43: =G388 ->  | EP43: =G389 ->  | EQ43: =G390 ->  | ER43: =G391 ->  | ES43: =G392 ->  | ET43: =G393 ->  | EU43: =G394 ->  | EV43: =G395 ->  | EW43: =G396 -> 
A44: 1924-05-31 | B44: =INDIRECT(CONCATENATE("'",B$1,"'!",B$4,(YEAR($A44)-1921)*12+MONTH($A44)+3+IF(ISNUMBER(FIND("PRV",B$6)),1,0)))*IF(AND(B$3>0,TRIM(B$9)="CFS"),Conversions!$C44,1) -> 2408.197813 | C44: =INDIRECT(CONCATENATE("'",C$1,"'!",C$4,(YEAR($A44)-1921)*12+MONTH($A44)+3+IF(ISNUMBER(FIND("PRV",C$6)),1,0)))*IF(AND(C$3>0,TRIM(C$9)="CFS"),Conversions!$C44,1) -> 2435.377474 | D44: =INDIRECT(CONCATENATE("'",D$1,"'!",D$4,(YEAR($A44)-1921)*12+MONTH($A44)+3+IF(ISNUMBER(FIND("PRV",D$6)),1,0)))*IF(AND(D$3>0,TRIM(D$9)="CFS"),Conversions!$C44,1) -> 2559.915489 | E44: =INDIRECT(CONCATENATE("'",E$1,"'!",E$4,(YEAR($A44)-1921)*12+MONTH($A44)+3+IF(ISNUMBER(FIND("PRV",E$6)),1,0)))*IF(AND(E$3>0,TRIM(E$9)="CFS"),Conversions!$C44,1) -> 2553.913508 | F44: =INDIRECT(CONCATENATE("'",F$1,"'!",F$4,(YEAR($A44)-1921)*12+MONTH($A44)+3+IF(ISNUMBER(FIND("PRV",F$6)),1,0)))*IF(AND(F$3>0,TRIM(F$9)="CFS"),Conversions!$C44,1) -> 2442.741642 | G44: =INDIRECT(CONCATENATE("'",G$1,"'!",G$4,(YEAR($A44)-1921)*12+MONTH($A44)+3+IF(ISNUMBER(FIND("PRV",G$6)),1,0)))*IF(AND(G$3>0,TRIM(G$9)="CFS"),Conversions!$C44,1) ->  | K44: 1954 | L44: =B397 -> 3250 | M44: =B398 -> 3252 | N44: =B399 -> 3350.007873 | O44: =B400 -> 3552 | P44: =B401 -> 3661 | Q44: =B402 -> 4106 | R44: =B403 -> 4546 | S44: =B404 -> 4547.064678 | T44: =B405 -> 4232.580864 | U44: =B406 -> 3563.961581 | V44: =B407 -> 3243.390756 | W44: =B408 -> 3089.462031 | Y44: 3671.632127 | Z44: 3666.618767 | AA44: 3699.455649 | AC44: 3498.601575 | AD44: 3208.952877 | AE44: =IF(AE$11="AVG",IF(AE$1="INST-VAL",AVERAGE(W43,L44:N44,L44:O44),AVERAGE(L44:O44)),SUM(L44:O44)) -> 3332.001968 | AF44: 3452.835958 | AG44: 4286.463777 | AH44: 3714.549139 | AI44: 3100.748424 | AK44: 1954 | AL44: =C397 -> 3250 | AM44: =C398 -> 3252 | AN44: =C399 -> 3349.364982 | AO44: =C400 -> 3552 | AP44: =C401 -> 3661 | AQ44: =C402 -> 4106 | AR44: =C403 -> 4546 | AS44: =C404 -> 4547.004004 | AT44: =C405 -> 4232.484432 | AU44: =C406 -> 3563.86556 | AV44: =C407 -> 3244.600016 | AW44: =C408 -> 3092.722413 | AY44: 3672.715235 | AZ44: 3667.048818 | BA44: 3699.753451 | BC44: 3498.472996 | BD44: 3210.996141 | BE44: 3331.841246 | BF44: 3452.621661 | BG44: 4286.436555 | BH44: 3715.203304 | BI44: 3104.06961 | BK44: 1954 | BL44: =D397 -> 3250 | BM44: =D398 -> 3252 | BN44: =D399 -> 3349.365115 | BO44: =D400 -> 3552 | BP44: =D401 -> 3661 | BQ44: =D402 -> 4106 | BR44: =D403 -> 4546 | BS44: =D404 -> 4547.003868 | BT44: =D405 -> 4232.482743 | BU44: =D406 -> 3563.863878 | BV44: =D407 -> 3244.597669 | BW44: =D408 -> 3092.719307 | BY44: 3672.713971 | BZ44: 3667.047545 | CA44: 3699.752715 | CC44: 3498.473023 | CD44: 3210.993527 | CE44: =IF(CE$11="AVG",IF(CE$1="INST-VAL",AVERAGE(BW43,BL44:BN44,BL44:BO44),AVERAGE(BL44:BO44)),SUM(BL44:BO44)) -> 3331.841279 | CF44: =IF(CF$11="AVG",IF(CE$1="INST-VAL",AVERAGE(BM44:BO44,BN44:BP44),AVERAGE(BN44:BP44)),SUM(BN44:BP44)) -> 3452.621705 | CG44: =IF(CG$11="AVG",IF(CE$1="INST-VAL",AVERAGE(BP44:BS44,BQ44:BT44),AVERAGE(BQ44:BT44)),SUM(BQ44:BT44)) -> 4286.43631 | CH44: =IF(CH$11="AVG",IF(CE$1="INST-VAL",AVERAGE(BS44:BV44,BT44:BW44),AVERAGE(BT44:BW44)),SUM(BT44:BW44)) -> 3715.201469 | CI44: =IF(CI$11="AVG",IF(CE$1="INST-VAL",AVERAGE(BV44:BW44,BL45,BW44,BL45:BM45),AVERAGE(BW44,BL45:BM45)),SUM(BW44,BL45:BM45)) -> 3104.066634 | CK44: 1954 | CL44: =E397 -> 3250 | CM44: =E398 -> 3252 | CN44: =E399 -> 3348.128683 | CO44: =E400 -> 3552 | CP44: =E401 -> 3661 | CQ44: =E402 -> 4106 | CR44: =E403 -> 4546 | CS44: =E404 -> 4437.60401 | CT44: =E405 -> 4163.796175 | CU44: =E406 -> 3493.629939 | CV44: =E407 -> 3174.602981 | CW44: =E408 -> 3041.375653 | CY44: 3633.49579 | CZ44: 3627.773174 | DA44: 3668.844787 | DC44: 3498.225737 | DD44: 3150.988621 | DE44: 3331.532171 | DF44: 3452.209561 | DG44: 4250.500524 | DH44: 3642.879732 | DI44: 3050.606589 | DK44: 1954 | DL44: =F397 -> 3250 | DM44: =F398 -> 3252 | DN44: =F399 -> 3348.128683 | DO44: =F400 -> 3552 | DP44: =F401 -> 3661 | DQ44: =F402 -> 4106 | DR44: =F403 -> 4546 | DS44: =F404 -> 4437.601134 | DT44: =F405 -> 4163.909757 | DU44: =F406 -> 3493.743038 | DV44: =F407 -> 3174.710052 | DW44: =F408 -> 3041.482374 | DY44: 3634.039193 | DZ44: 3609.971802 | EA44: 3668.881253 | EC44: 3498.225737 | ED44: 3151.096104 | EE44: 3331.532171 | EF44: 3452.209561 | EG44: 4250.514003 | EH44: 3642.97615 | EI44: 3051.69125 | EK44: 1954 | EL44: =G397 ->  | EM44: =G398 ->  | EN44: =G399 ->  | EO44: =G400 ->  | EP44: =G401 ->  | EQ44: =G402 ->  | ER44: =G403 ->  | ES44: =G404 ->  | ET44: =G405 ->  | EU44: =G406 ->  | EV44: =G407 ->  | EW44: =G408 -> 
A45: 1924-06-30 | B45: =INDIRECT(CONCATENATE("'",B$1,"'!",B$4,(YEAR($A45)-1921)*12+MONTH($A45)+3+IF(ISNUMBER(FIND("PRV",B$6)),1,0)))*IF(AND(B$3>0,TRIM(B$9)="CFS"),Conversions!$C45,1) -> 2036.059248 | C45: =INDIRECT(CONCATENATE("'",C$1,"'!",C$4,(YEAR($A45)-1921)*12+MONTH($A45)+3+IF(ISNUMBER(FIND("PRV",C$6)),1,0)))*IF(AND(C$3>0,TRIM(C$9)="CFS"),Conversions!$C45,1) -> 2063.025683 | D45: =INDIRECT(CONCATENATE("'",D$1,"'!",D$4,(YEAR($A45)-1921)*12+MONTH($A45)+3+IF(ISNUMBER(FIND("PRV",D$6)),1,0)))*IF(AND(D$3>0,TRIM(D$9)="CFS"),Conversions!$C45,1) -> 2245.342366 | E45: =INDIRECT(CONCATENATE("'",E$1,"'!",E$4,(YEAR($A45)-1921)*12+MONTH($A45)+3+IF(ISNUMBER(FIND("PRV",E$6)),1,0)))*IF(AND(E$3>0,TRIM(E$9)="CFS"),Conversions!$C45,1) -> 2239.365462 | F45: =INDIRECT(CONCATENATE("'",F$1,"'!",F$4,(YEAR($A45)-1921)*12+MONTH($A45)+3+IF(ISNUMBER(FIND("PRV",F$6)),1,0)))*IF(AND(F$3>0,TRIM(F$9)="CFS"),Conversions!$C45,1) -> 2128.683192 | G45: =INDIRECT(CONCATENATE("'",G$1,"'!",G$4,(YEAR($A45)-1921)*12+MONTH($A45)+3+IF(ISNUMBER(FIND("PRV",G$6)),1,0)))*IF(AND(G$3>0,TRIM(G$9)="CFS"),Conversions!$C45,1) ->  | K45: 1955 | L45: =B409 -> 3024.050109 | M45: =B410 -> 3134.07551 | N45: =B411 -> 3360 | O45: =B412 -> 3506.573261 | P45: =B413 -> 3646.266413 | Q45: =B414 -> 3814.725704 | R45: =B415 -> 4186.897132 | S45: =B416 -> 4316.661516 | T45: =B417 -> 3819.276167 | U45: =B418 -> 3316.361671 | V45: =B419 -> 2978.667785 | W45: =B420 -> 2992.927769 | Y45: 3476.028011 | Z45: 3424.958038 | AA45: 3508.040253 | AC45: 3413.260618 | AD45: 3026.435901 | AE45: 3204.035816 | AF45: 3418.914741 | AG45: 4012.763911 | AH45: 3442.275066 | AI45: 2957.59411 | AK45: 1955 | AL45: =C409 -> 3027.466428 | AM45: =C410 -> 3139.439965 | AN45: =C411 -> 3360 | AO45: =C412 -> 3506.573261 | AP45: =C413 -> 3638.429733 | AQ45: =C414 -> 3806.899496 | AR45: =C415 -> 4193.873484 | AS45: =C416 -> 4324.514541 | AT45: =C417 -> 3836.150793 | AU45: =C418 -> 3334.812677 | AV45: =C419 -> 2992.389535 | AW45: =C420 -> 3011.33443 | AY45: 3489.72875 | AZ45: 3439.311834 | BA45: 3514.323695 | BC45: 3412.325184 | BD45: 3049.085088 | BE45: 3206.638557 | BF45: 3418.502703 | BG45: 4015.644446 | BH45: 3457.819372 | BI45: 2991.179229 | BK45: 1955 | BL45: =D409 -> 3027.463334 | BM45: =D410 -> 3139.436855 | BN45: =D411 -> 3360 | BO45: =D412 -> 3506.573261 | BP45: =D413 -> 3638.42963 | BQ45: =D414 -> 3806.899393 | BR45: =D415 -> 4193.873381 | BS45: =D416 -> 4324.509462 | BT45: =D417 -> 3836.168899 | BU45: =D418 -> 3338.058991 | BV45: =D419 -> 2993.614797 | BW45: =D420 -> 3012.456547 | BY45: 3490.042488 | BZ45: 3439.62558 | CA45: 3514.790379 | CC45: 3412.324222 | CD45: 3050.263146 | CE45: 3206.636618 | CF45: 3418.502168 | CG45: 4015.645375 | CH45: 3459.081423 | CI45: 2991.305097 | CK45: 1955 | CL45: =E409 -> 2980.344523 | CM45: =E410 -> 3085.596203 | CN45: =E411 -> 3360 | CO45: =E412 -> 3506.573261 | CP45: =E413 -> 3637.755349 | CQ45: =E414 -> 3806.226014 | CR45: =E415 -> 4193.200771 | CS45: =E416 -> 4323.957882 | CT45: =E417 -> 3821.737268 | CU45: =E418 -> 3323.438401 | CV45: =E419 -> 2985.20523 | CW45: =E420 -> 3004.38891 | CY45: 3483.402469 | CZ45: 3433.041752 | DA45: 3502.368651 | DC45: 3396.642016 | DD45: 3040.959665 | DE45: 3174.978796 | DF45: 3409.416345 | DG45: 4013.282744 | DH45: 3448.638574 | DI45: 2980.576817 | DK45: 1955 | DL45: =F409 -> 2980.448733 | DM45: =F410 -> 3091.575233 | DN45: =F411 -> 3360 | DO45: =F412 -> 3423.363799 | DP45: =F413 -> 3500.827503 | DQ45: =F414 -> 3669.483238 | DR45: =F415 -> 4056.627267 | DS45: =F416 -> 4189.762064 | DT45: =F417 -> 3714.822691 | DU45: =F418 -> 3258.331772 | DV45: =F419 -> 2936.968465 | DW45: =F420 -> 2914.124667 | DY45: 3387.023538 | DZ45: 3355.007596 | EA45: 3424.694619 | EC45: 3340.146504 | ED45: 2970.370367 | EE45: 3166.111763 | EF45: 3359.855056 | EG45: 3880.924416 | EH45: 3365.516573 | EI45: 2892.482159 | EK45: 1955 | EL45: =G409 ->  | EM45: =G410 ->  | EN45: =G411 ->  | EO45: =G412 ->  | EP45: =G413 ->  | EQ45: =G414 ->  | ER45: =G415 ->  | ES45: =G416 ->  | ET45: =G417 ->  | EU45: =G418 ->  | EV45: =G419 ->  | EW45: =G420 -> 
A46: 1924-07-31 | B46: =INDIRECT(CONCATENATE("'",B$1,"'!",B$4,(YEAR($A46)-1921)*12+MONTH($A46)+3+IF(ISNUMBER(FIND("PRV",B$6)),1,0)))*IF(AND(B$3>0,TRIM(B$9)="CFS"),Conversions!$C46,1) -> 1693.912774 | C46: =INDIRECT(CONCATENATE("'",C$1,"'!",C$4,(YEAR($A46)-1921)*12+MONTH($A46)+3+IF(ISNUMBER(FIND("PRV",C$6)),1,0)))*IF(AND(C$3>0,TRIM(C$9)="CFS"),Conversions!$C46,1) -> 1719.997513 | D46: =INDIRECT(CONCATENATE("'",D$1,"'!",D$4,(YEAR($A46)-1921)*12+MONTH($A46)+3+IF(ISNUMBER(FIND("PRV",D$6)),1,0)))*IF(AND(D$3>0,TRIM(D$9)="CFS"),Conversions!$C46,1) -> 1901.744367 | E46: =INDIRECT(CONCATENATE("'",E$1,"'!",E$4,(YEAR($A46)-1921)*12+MONTH($A46)+3+IF(ISNUMBER(FIND("PRV",E$6)),1,0)))*IF(AND(E$3>0,TRIM(E$9)="CFS"),Conversions!$C46,1) -> 1895.807836 | F46: =INDIRECT(CONCATENATE("'",F$1,"'!",F$4,(YEAR($A46)-1921)*12+MONTH($A46)+3+IF(ISNUMBER(FIND("PRV",F$6)),1,0)))*IF(AND(F$3>0,TRIM(F$9)="CFS"),Conversions!$C46,1) -> 1785.611277 | G46: =INDIRECT(CONCATENATE("'",G$1,"'!",G$4,(YEAR($A46)-1921)*12+MONTH($A46)+3+IF(ISNUMBER(FIND("PRV",G$6)),1,0)))*IF(AND(G$3>0,TRIM(G$9)="CFS"),Conversions!$C46,1) ->  | K46: 1956 | L46: =B421 -> 2899.062625 | M46: =B422 -> 2982.916088 | N46: =B423 -> 3252 | O46: =B424 -> 3252 | P46: =B425 -> 3288 | Q46: =B426 -> 3971.402227 | R46: =B427 -> 4487.018905 | S46: =B428 -> 4552 | T46: =B429 -> 4461.597111 | U46: =B430 -> 4114.326708 | V46: =B431 -> 3700 | W46: =B432 -> 3400 | Y46: 3731.525554 | Z46: 3766.166165 | AA46: 3696.693639 | AC46: 3242.029703 | AD46: 3594.054451 | AE46: 3064.110649 | AF46: 3213.152681 | AG46: 4221.304922 | AH46: 4062.980955 | AI46: 3356.14226 | AK46: 1956 | AL46: =C421 -> 2952.249921 | AM46: =C422 -> 3027.517135 | AN46: =C423 -> 3252 | AO46: =C424 -> 3252 | AP46: =C425 -> 3288 | AQ46: =C426 -> 3971.402227 | AR46: =C427 -> 4487.018902 | AS46: =C428 -> 4552 | AT46: =C429 -> 4475.23327 | AU46: =C430 -> 4134.667969 | AV46: =C431 -> 3700 | AW46: =C432 -> 3400 | AY46: 3734.475324 | AZ46: 3769.210455 | BA46: 3707.674119 | BC46: 3256.268642 | BD46: 3597.444661 | BE46: 3090.858568 | BF46: 3220.586189 | BG46: 4223.009441 | BH46: 4071.47531 | BI46: 3356.189734 | BK46: 1956 | BL46: =D421 -> 2951.377196 | BM46: =D422 -> 3026.548299 | BN46: =D423 -> 3252 | BO46: =D424 -> 3252 | BP46: =D425 -> 3288 | BQ46: =D426 -> 3971.402227 | BR46: =D427 -> 4487.018902 | BS46: =D428 -> 4552 | BT46: =D429 -> 4475.228922 | BU46: =D430 -> 4134.658846 | BV46: =D431 -> 3700 | BW46: =D432 -> 3400 | BY46: 3734.473908 | BZ46: 3769.208853 | CA46: 3707.519533 | CC46: 3255.987602 | CD46: 3597.443141 | CE46: 3090.538442 | CF46: 3220.424717 | CG46: 4223.008897 | CH46: 4071.471942 | CI46: 3356.189518 | CK46: 1956 | CL46: =E421 -> 2943.131308 | CM46: =E422 -> 3003.215237 | CN46: =E423 -> 3252 | CO46: =E424 -> 3252 | CP46: =E425 -> 3288 | CQ46: =E426 -> 3971.402227 | CR46: =E427 -> 4487.018902 | CS46: =E428 -> 4552 | CT46: =E429 -> 4475.230817 | CU46: =E430 -> 4134.658949 | CV46: =E431 -> 3700 | CW46: =E432 -> 3400 | CY46: 3728.119315 | CZ46: 3756.504286 | DA46: 3704.88812 | DC46: 3250.496401 | DD46: 3597.443158 | DE46: 3081.63525 | DF46: 3216.535873 | DG46: 4223.009134 | DH46: 4071.472441 | DI46: 3356.188206 | DK46: 1956 | DL46: =F421 -> 2861.704164 | DM46: =F422 -> 2866.266828 | DN46: =F423 -> 3252 | DO46: =F424 -> 3252 | DP46: =F425 -> 3288 | DQ46: =F426 -> 3971.402227 | DR46: =F427 -> 4487.018902 | DS46: =F428 -> 4552 | DT46: =F429 -> 4475.233156 | DU46: =F430 -> 4134.663006 | DV46: =F431 -> 3700 | DW46: =F432 -> 3400 | DY46: 3734.472587 | DZ46: 3769.206262 | EA46: 3686.69069 | EC46: 3214.964005 | ED46: 3597.443834 | EE46: 3015.758331 | EF46: 3193.711138 | EG46: 4223.009427 | EH46: 4071.47404 | EI46: 3356.188017 | EK46: 1956 | EL46: =G421 ->  | EM46: =G422 ->  | EN46: =G423 ->  | EO46: =G424 ->  | EP46: =G425 ->  | EQ46: =G426 ->  | ER46: =G427 ->  | ES46: =G428 ->  | ET46: =G429 ->  | EU46: =G430 ->  | EV46: =G431 ->  | EW46: =G432 -> 
A47: 1924-08-31 | B47: =INDIRECT(CONCATENATE("'",B$1,"'!",B$4,(YEAR($A47)-1921)*12+MONTH($A47)+3+IF(ISNUMBER(FIND("PRV",B$6)),1,0)))*IF(AND(B$3>0,TRIM(B$9)="CFS"),Conversions!$C47,1) -> 1424.342838 | C47: =INDIRECT(CONCATENATE("'",C$1,"'!",C$4,(YEAR($A47)-1921)*12+MONTH($A47)+3+IF(ISNUMBER(FIND("PRV",C$6)),1,0)))*IF(AND(C$3>0,TRIM(C$9)="CFS"),Conversions!$C47,1) -> 1458.358438 | D47: =INDIRECT(CONCATENATE("'",D$1,"'!",D$4,(YEAR($A47)-1921)*12+MONTH($A47)+3+IF(ISNUMBER(FIND("PRV",D$6)),1,0)))*IF(AND(D$3>0,TRIM(D$9)="CFS"),Conversions!$C47,1) -> 1579.114549 | E47: =INDIRECT(CONCATENATE("'",E$1,"'!",E$4,(YEAR($A47)-1921)*12+MONTH($A47)+3+IF(ISNUMBER(FIND("PRV",E$6)),1,0)))*IF(AND(E$3>0,TRIM(E$9)="CFS"),Conversions!$C47,1) -> 1573.258042 | F47: =INDIRECT(CONCATENATE("'",F$1,"'!",F$4,(YEAR($A47)-1921)*12+MONTH($A47)+3+IF(ISNUMBER(FIND("PRV",F$6)),1,0)))*IF(AND(F$3>0,TRIM(F$9)="CFS"),Conversions!$C47,1) -> 1463.428088 | G47: =INDIRECT(CONCATENATE("'",G$1,"'!",G$4,(YEAR($A47)-1921)*12+MONTH($A47)+3+IF(ISNUMBER(FIND("PRV",G$6)),1,0)))*IF(AND(G$3>0,TRIM(G$9)="CFS"),Conversions!$C47,1) ->  | K47: 1957 | L47: =B433 -> 3250 | M47: =B434 -> 3136.853559 | N47: =B435 -> 3165.108141 | O47: =B436 -> 3280.687328 | P47: =B437 -> 3675 | Q47: =B438 -> 4129 | R47: =B439 -> 4538.920429 | S47: =B440 -> 4552 | T47: =B441 -> 4322.582596 | U47: =B442 -> 3654.6182 | V47: =B443 -> 3233.451719 | W47: =B444 -> 3162.722859 | Y47: 3699.081928 | Z47: 3684.691317 | AA47: 3675.078736 | AC47: 3389.429805 | AD47: 3282.827893 | AE47: 3223.076341 | AF47: 3283.907416 | AG47: 4304.677932 | AH47: 3767.003486 | AI47: 3218.482906 | AK47: 1957 | AL47: =C433 -> 3250 | AM47: =C434 -> 3137.138405 | AN47: =C435 -> 3166.243116 | AO47: =C436 -> 3281.821565 | AP47: =C437 -> 3675 | AQ47: =C438 -> 4129 | AR47: =C439 -> 4538.920429 | AS47: =C440 -> 4552 | AT47: =C441 -> 4335.810966 | AU47: =C442 -> 3667.791332 | AV47: =C443 -> 3246.689431 | AW47: =C444 -> 3178.8869 | AY47: 3703.826719 | AZ47: 3689.341588 | BA47: 3679.941845 | BC47: 3389.940617 | BD47: 3294.823999 | BE47: 3223.573076 | BF47: 3284.711295 | BG47: 4306.331478 | BH47: 3778.933795 | BI47: 3226.077205 | BK47: 1957 | BL47: =D433 -> 3250 | BM47: =D434 -> 3137.137107 | BN47: =D435 -> 3166.240892 | BO47: =D436 -> 3281.819343 | BP47: =D437 -> 3675 | BQ47: =D438 -> 4129 | BR47: =D439 -> 4463.992491 | BS47: =D440 -> 4552 | BT47: =D441 -> 4335.963113 | BU47: =D442 -> 3667.942736 | BV47: =D443 -> 3243.539596 | BW47: =D444 -> 3175.697583 | BY47: 3697.079572 | BZ47: 3682.594627 | CA47: 3673.194405 | CC47: 3389.939468 | CD47: 3292.736182 | CE47: 3223.571918 | CF47: 3284.709596 | CG47: 4287.618512 | CH47: 3777.823559 | CI47: 3224.489127 | CK47: 1957 | CL47: =E433 -> 3250 | CM47: =E434 -> 3137.129238 | CN47: =E435 -> 3089.991651 | CO47: =E436 -> 3205.619646 | CP47: =E437 -> 3675 | CQ47: =E438 -> 4129 | CR47: =E439 -> 4463.992491 | CS47: =E440 -> 4552 | CT47: =E441 -> 4335.827166 | CU47: =E442 -> 3667.807453 | CV47: =E443 -> 3242.301724 | CW47: =E444 -> 3176.018765 | CY47: 3690.630604 | CZ47: 3682.495633 | DA47: 3660.390678 | DC47: 3359.448107 | DD47: 3292.408072 | DE47: 3194.982678 | DF47: 3233.891972 | DG47: 4287.601519 | DH47: 3777.486432 | DI47: 3224.389876 | DK47: 1957 | DL47: =F433 -> 3250 | DM47: =F434 -> 3137.128104 | DN47: =F435 -> 3166.225646 | DO47: =F436 -> 3281.804107 | DP47: =F437 -> 3675 | DQ47: =F438 -> 4129 | DR47: =F439 -> 4463.992491 | DS47: =F440 -> 4552 | DT47: =F441 -> 4352.009884 | DU47: =F442 -> 3683.911267 | DV47: =F443 -> 3253.590154 | DW47: =F444 -> 3182.69288 | DY47: 3701.166732 | DZ47: 3686.683056 | EA47: 3677.279544 | EC47: 3389.931571 | ED47: 3301.079556 | EE47: 3223.563951 | EF47: 3284.697935 | EG47: 4289.624358 | EH47: 3789.214436 | EI47: 3228.495985 | EK47: 1957 | EL47: =G433 ->  | EM47: =G434 ->  | EN47: =G435 ->  | EO47: =G436 ->  | EP47: =G437 ->  | EQ47: =G438 ->  | ER47: =G439 ->  | ES47: =G440 ->  | ET47: =G441 ->  | EU47: =G442 ->  | EV47: =G443 ->  | EW47: =G444 -> 
A48: 1924-09-30 | B48: =INDIRECT(CONCATENATE("'",B$1,"'!",B$4,(YEAR($A48)-1921)*12+MONTH($A48)+3+IF(ISNUMBER(FIND("PRV",B$6)),1,0)))*IF(AND(B$3>0,TRIM(B$9)="CFS"),Conversions!$C48,1) -> 1350.069812 | C48: =INDIRECT(CONCATENATE("'",C$1,"'!",C$4,(YEAR($A48)-1921)*12+MONTH($A48)+3+IF(ISNUMBER(FIND("PRV",C$6)),1,0)))*IF(AND(C$3>0,TRIM(C$9)="CFS"),Conversions!$C48,1) -> 1387.570543 | D48: =INDIRECT(CONCATENATE("'",D$1,"'!",D$4,(YEAR($A48)-1921)*12+MONTH($A48)+3+IF(ISNUMBER(FIND("PRV",D$6)),1,0)))*IF(AND(D$3>0,TRIM(D$9)="CFS"),Conversions!$C48,1) -> 1450.274054 | E48: =INDIRECT(CONCATENATE("'",E$1,"'!",E$4,(YEAR($A48)-1921)*12+MONTH($A48)+3+IF(ISNUMBER(FIND("PRV",E$6)),1,0)))*IF(AND(E$3>0,TRIM(E$9)="CFS"),Conversions!$C48,1) -> 1444.591391 | F48: =INDIRECT(CONCATENATE("'",F$1,"'!",F$4,(YEAR($A48)-1921)*12+MONTH($A48)+3+IF(ISNUMBER(FIND("PRV",F$6)),1,0)))*IF(AND(F$3>0,TRIM(F$9)="CFS"),Conversions!$C48,1) -> 1334.897698 | G48: =INDIRECT(CONCATENATE("'",G$1,"'!",G$4,(YEAR($A48)-1921)*12+MONTH($A48)+3+IF(ISNUMBER(FIND("PRV",G$6)),1,0)))*IF(AND(G$3>0,TRIM(G$9)="CFS"),Conversions!$C48,1) ->  | K48: 1958 | L48: =B445 -> 3250 | M48: =B446 -> 3252 | N48: =B447 -> 3338 | O48: =B448 -> 3531 | P48: =B449 -> 3252 | Q48: =B450 -> 3416 | R48: =B451 -> 4173 | S48: =B452 -> 4552 | T48: =B453 -> 4500 | U48: =B454 -> 4150 | V48: =B455 -> 3700 | W48: =B456 -> 3400 | Y48: 3688.104915 | Z48: 3741.604915 | AA48: 3709.5 | AC48: 3341.2 | AD48: 3600 | AE48: 3296.715357 | AF48: 3373.666667 | AG48: 4004.25 | AH48: 4081.5 | AI48: 3354.300719 | AK48: 1958 | AL48: =C445 -> 3250 | AM48: =C446 -> 3252 | AN48: =C447 -> 3338 | AO48: =C448 -> 3531 | AP48: =C449 -> 3252 | AQ48: =C450 -> 3416 | AR48: =C451 -> 4173 | AS48: =C452 -> 4552 | AT48: =C453 -> 4500 | AU48: =C454 -> 4150 | AV48: =C455 -> 3700 | AW48: =C456 -> 3400 | AY48: 3688.254536 | AZ48: 3741.754536 | BA48: 3709.5 | BC48: 3341.2 | BD48: 3600 | BE48: 3298.735863 | BF48: 3373.666667 | BG48: 4004.25 | BH48: 4081.5 | BI48: 3354.339609 | BK48: 1958 | BL48: =D445 -> 3250 | BM48: =D446 -> 3252 | BN48: =D447 -> 3338 | BO48: =D448 -> 3531 | BP48: =D449 -> 3252 | BQ48: =D450 -> 3416 | BR48: =D451 -> 4173 | BS48: =D452 -> 4552 | BT48: =D453 -> 4500 | BU48: =D454 -> 4150 | BV48: =D455 -> 3700 | BW48: =D456 -> 3400 | BY48: 3688.321132 | BZ48: 3741.821132 | CA48: 3709.5 | CC48: 3341.2 | CD48: 3600 | CE48: 3298.337198 | CF48: 3373.666667 | CG48: 4004.25 | CH48: 4081.5 | CI48: 3354.339472 | CK48: 1958 | CL48: =E445 -> 3250 | CM48: =E446 -> 3252 | CN48: =E447 -> 3338 | CO48: =E448 -> 3531 | CP48: =E449 -> 3252 | CQ48: =E450 -> 3416 | CR48: =E451 -> 4173 | CS48: =E452 -> 4552 | CT48: =E453 -> 4500 | CU48: =E454 -> 4150 | CV48: =E455 -> 3700 | CW48: =E456 -> 3400 | CY48: 3677.35461 | CZ48: 3730.85461 | DA48: 3709.5 | DC48: 3341.2 | DD48: 3600 | DE48: 3298.377346 | DF48: 3373.666667 | DG48: 4004.25 | DH48: 4081.5 | DI48: 3354.338466 | DK48: 1958 | DL48: =F445 -> 3250 | DM48: =F446 -> 3252 | DN48: =F447 -> 3338 | DO48: =F448 -> 3531 | DP48: =F449 -> 3252 | DQ48: =F450 -> 3416 | DR48: =F451 -> 4173 | DS48: =F452 -> 4552 | DT48: =F453 -> 4500 | DU48: =F454 -> 4150 | DV48: =F455 -> 3700 | DW48: =F456 -> 3400 | DY48: 3688.094353 | DZ48: 3741.594353 | EA48: 3709.5 | EC48: 3341.2 | ED48: 3600 | EE48: 3299.21161 | EF48: 3373.666667 | EG48: 4004.25 | EH48: 4081.5 | EI48: 3354.337933 | EK48: 1958 | EL48: =G445 ->  | EM48: =G446 ->  | EN48: =G447 ->  | EO48: =G448 ->  | EP48: =G449 ->  | EQ48: =G450 ->  | ER48: =G451 ->  | ES48: =G452 ->  | ET48: =G453 ->  | EU48: =G454 ->  | EV48: =G455 ->  | EW48: =G456 -> 
A49: 1924-10-31 | B49: =INDIRECT(CONCATENATE("'",B$1,"'!",B$4,(YEAR($A49)-1921)*12+MONTH($A49)+3+IF(ISNUMBER(FIND("PRV",B$6)),1,0)))*IF(AND(B$3>0,TRIM(B$9)="CFS"),Conversions!$C49,1) -> 1343.38742 | C49: =INDIRECT(CONCATENATE("'",C$1,"'!",C$4,(YEAR($A49)-1921)*12+MONTH($A49)+3+IF(ISNUMBER(FIND("PRV",C$6)),1,0)))*IF(AND(C$3>0,TRIM(C$9)="CFS"),Conversions!$C49,1) -> 1405.059711 | D49: =INDIRECT(CONCATENATE("'",D$1,"'!",D$4,(YEAR($A49)-1921)*12+MONTH($A49)+3+IF(ISNUMBER(FIND("PRV",D$6)),1,0)))*IF(AND(D$3>0,TRIM(D$9)="CFS"),Conversions!$C49,1) -> 1409.176645 | E49: =INDIRECT(CONCATENATE("'",E$1,"'!",E$4,(YEAR($A49)-1921)*12+MONTH($A49)+3+IF(ISNUMBER(FIND("PRV",E$6)),1,0)))*IF(AND(E$3>0,TRIM(E$9)="CFS"),Conversions!$C49,1) -> 1402.384189 | F49: =INDIRECT(CONCATENATE("'",F$1,"'!",F$4,(YEAR($A49)-1921)*12+MONTH($A49)+3+IF(ISNUMBER(FIND("PRV",F$6)),1,0)))*IF(AND(F$3>0,TRIM(F$9)="CFS"),Conversions!$C49,1) -> 1330.101221 | G49: =INDIRECT(CONCATENATE("'",G$1,"'!",G$4,(YEAR($A49)-1921)*12+MONTH($A49)+3+IF(ISNUMBER(FIND("PRV",G$6)),1,0)))*IF(AND(G$3>0,TRIM(G$9)="CFS"),Conversions!$C49,1) ->  | K49: 1959 | L49: =B457 -> 3250 | M49: =B458 -> 3125.804315 | N49: =B459 -> 3207.45467 | O49: =B460 -> 3648 | P49: =B461 -> 3777 | Q49: =B462 -> 4221.081231 | R49: =B463 -> 4512.53156 | S49: =B464 -> 4341.883534 | T49: =B465 -> 3838.966405 | U49: =B466 -> 3173.769646 | V49: =B467 -> 2801.27963 | W49: =B468 -> 2819.708297 | Y49: 3384.322501 | Z49: 3259.649694 | AA49: 3559.789941 | AC49: 3498.75992 | AD49: 2845.271857 | AE49: 3276.814746 | AF49: 3435.618943 | AG49: 4220.869882 | AH49: 3348.702899 | AI49: 2700.406971 | AK49: 1959 | AL49: =C457 -> 3250 | AM49: =C458 -> 3126.037653 | AN49: =C459 -> 3209.01678 | AO49: =C460 -> 3648 | AP49: =C461 -> 3777 | AQ49: =C462 -> 4221.081232 | AR49: =C463 -> 4501.123496 | AS49: =C464 -> 4330.087274 | AT49: =C465 -> 3826.477732 | AU49: =C466 -> 3161.3462 | AV49: =C467 -> 2789.052236 | AW49: =C468 -> 2814.52686 | AY49: 3377.690457 | AZ49: 3252.582325 | BA49: 3554.479122 | BC49: 3499.11901 | BD49: 2836.166615 | BE49: 3277.263608 | BF49: 3436.178535 | BG49: 4213.507717 | BH49: 3337.295809 | BI49: 2693.502814 | BK49: 1959 | BL49: =D457 -> 3250 | BM49: =D458 -> 3126.036832 | BN49: =D459 -> 3209.816753 | BO49: =D460 -> 3648 | BP49: =D461 -> 3777 | BQ49: =D462 -> 4221.081232 | BR49: =D463 -> 4501.120612 | BS49: =D464 -> 4330.080236 | BT49: =D465 -> 3826.441438 | BU49: =D466 -> 3161.310096 | BV49: =D467 -> 2789.016979 | BW49: =D468 -> 2814.489296 | BY49: 3377.658825 | BZ49: 3252.5388 | CA49: 3554.532789 | CC49: 3499.27884 | CD49: 2836.122625 | CE49: 3277.463396 | CF49: 3436.445056 | CG49: 4213.5007 | CH49: 3337.26332 | CI49: 2693.445215 | CK49: 1959 | CL49: =E457 -> 3250 | CM49: =E458 -> 3126.030797 | CN49: =E459 -> 3078.224519 | CO49: =E460 -> 3648 | CP49: =E461 -> 3777 | CQ49: =E462 -> 4221.081232 | CR49: =E463 -> 4499.324989 | CS49: =E464 -> 4327.90728 | CT49: =E465 -> 3806.458264 | CU49: =E466 -> 3141.431445 | CV49: =E467 -> 2769.626257 | CW49: =E468 -> 2788.816244 | CY49: 3362.069829 | CZ49: 3231.719305 | DA49: 3536.158419 | DC49: 3472.959186 | DD49: 2811.431914 | DE49: 3244.563829 | DF49: 3392.579972 | DG49: 4210.010658 | DH49: 3318.969432 | DI49: 2664.173552 | DK49: 1959 | DL49: =F457 -> 3250 | DM49: =F458 -> 3126.0276 | DN49: =F459 -> 3207.104636 | DO49: =F460 -> 3648 | DP49: =F461 -> 3777 | DQ49: =F462 -> 4221.081232 | DR49: =F463 -> 4501.121037 | DS49: =F464 -> 4330.088324 | DT49: =F465 -> 3826.541527 | DU49: =F466 -> 3199.948524 | DV49: =F467 -> 2828.787818 | DW49: =F468 -> 2854.075185 | DY49: 3396.465961 | DZ49: 3277.12552 | EA49: 3564.14799 | EC49: 3498.73457 | ED49: 2875.507905 | EE49: 3276.783059 | EF49: 3435.539479 | EG49: 4213.515339 | EH49: 3361.839906 | EI49: 2731.906476 | EK49: 1959 | EL49: =G457 ->  | EM49: =G458 ->  | EN49: =G459 ->  | EO49: =G460 ->  | EP49: =G461 ->  | EQ49: =G462 ->  | ER49: =G463 ->  | ES49: =G464 ->  | ET49: =G465 ->  | EU49: =G466 ->  | EV49: =G467 ->  | EW49: =G468 -> 
A50: 1924-11-30 | B50: =INDIRECT(CONCATENATE("'",B$1,"'!",B$4,(YEAR($A50)-1921)*12+MONTH($A50)+3+IF(ISNUMBER(FIND("PRV",B$6)),1,0)))*IF(AND(B$3>0,TRIM(B$9)="CFS"),Conversions!$C50,1) -> 1499.784842 | C50: =INDIRECT(CONCATENATE("'",C$1,"'!",C$4,(YEAR($A50)-1921)*12+MONTH($A50)+3+IF(ISNUMBER(FIND("PRV",C$6)),1,0)))*IF(AND(C$3>0,TRIM(C$9)="CFS"),Conversions!$C50,1) -> 1533.527285 | D50: =INDIRECT(CONCATENATE("'",D$1,"'!",D$4,(YEAR($A50)-1921)*12+MONTH($A50)+3+IF(ISNUMBER(FIND("PRV",D$6)),1,0)))*IF(AND(D$3>0,TRIM(D$9)="CFS"),Conversions!$C50,1) -> 1564.654122 | E50: =INDIRECT(CONCATENATE("'",E$1,"'!",E$4,(YEAR($A50)-1921)*12+MONTH($A50)+3+IF(ISNUMBER(FIND("PRV",E$6)),1,0)))*IF(AND(E$3>0,TRIM(E$9)="CFS"),Conversions!$C50,1) -> 1557.69167 | F50: =INDIRECT(CONCATENATE("'",F$1,"'!",F$4,(YEAR($A50)-1921)*12+MONTH($A50)+3+IF(ISNUMBER(FIND("PRV",F$6)),1,0)))*IF(AND(F$3>0,TRIM(F$9)="CFS"),Conversions!$C50,1) -> 1485.677848 | G50: =INDIRECT(CONCATENATE("'",G$1,"'!",G$4,(YEAR($A50)-1921)*12+MONTH($A50)+3+IF(ISNUMBER(FIND("PRV",G$6)),1,0)))*IF(AND(G$3>0,TRIM(G$9)="CFS"),Conversions!$C50,1) ->  | K50: 1960 | L50: =B469 -> 2655.88564 | M50: =B470 -> 2449.974323 | N50: =B471 -> 2371.789747 | O50: =B472 -> 2601.274896 | P50: =B473 -> 3327.651415 | Q50: =B474 -> 4021.188818 | R50: =B475 -> 4066.066006 | S50: =B476 -> 4198.201647 | T50: =B477 -> 3764.565689 | U50: =B478 -> 3227.531312 | V50: =B479 -> 2915.152075 | W50: =B480 -> 2823.546091 | Y50: 3322.935025 | Z50: 3447.600021 | AA50: 3201.902305 | AC50: 2817.845522 | AD50: 2905.158084 | AE50: 2547.035326 | AF50: 2620.625837 | AG50: 3957.891256 | AH50: 3354.530736 | AI50: 2814.233161 | AK50: 1960 | AL50: =C469 -> 2648.495296 | AM50: =C470 -> 2445.920334 | AN50: =C471 -> 2369.174829 | AO50: =C472 -> 2598.661882 | AP50: =C473 -> 3325.040535 | AQ50: =C474 -> 4018.581991 | AR50: =C475 -> 4045.182458 | AS50: =C476 -> 4184.253513 | AT50: =C477 -> 3858.41869 | AU50: =C478 -> 3296.90425 | AV50: =C479 -> 2944.590455 | AW50: =C480 -> 2818.873989 | AY50: 3323.144985 | AZ50: 3445.702694 | BA50: 3212.841519 | BC50: 2814.467245 | BD50: 2918.551214 | BE50: 2542.546207 | BF50: 2617.772382 | BG50: 3959.936894 | BH50: 3400.369287 | BI50: 2796.041714 | BK50: 1960 | BL50: =D469 -> 2648.413103 | BM50: =D470 -> 2445.849513 | BN50: =D471 -> 2369.103392 | BO50: =D472 -> 2598.590498 | BP50: =D473 -> 3324.969209 | BQ50: =D474 -> 4018.510776 | BR50: =D475 -> 4113.712625 | BS50: =D476 -> 4256.296535 | BT50: =D477 -> 3912.873598 | BU50: =D478 -> 3381.317776 | BV50: =D479 -> 2994.27585 | BW50: =D480 -> 2844.494005 | BY50: 3365.321376 | BZ50: 3492.095503 | CA50: 3242.36724 | CC50: 2814.39491 | CD50: 2966.15136 | CE50: 2542.476476 | CF50: 2617.701084 | CG50: 4001.860335 | CH50: 3459.715623 | CI50: 2838.141564 | CK50: 1960 | CL50: =E469 -> 2610.275039 | CM50: =E470 -> 2417.232486 | CN50: =E471 -> 2337.684714 | CO50: =E472 -> 2567.194702 | CP50: =E473 -> 3293.599012 | CQ50: =E474 -> 3987.189282 | CR50: =E475 -> 4088.591102 | CS50: =E476 -> 4231.640399 | CT50: =E477 -> 3889.064121 | CU50: =E478 -> 3357.476345 | CV50: =E479 -> 2974.973045 | CW50: =E480 -> 2842.795654 | CY50: 3343.40926 | CZ50: 3471.4538 | DA50: 3216.476325 | DC50: 2782.888615 | DD50: 2954.939957 | DE50: 2510.799428 | DF50: 2586.765055 | DG50: 3974.688087 | DH50: 3439.682884 | DI50: 2833.64139 | DK50: 1960 | DL50: =F469 -> 2687.372898 | DM50: =F470 -> 2479.754873 | DN50: =F471 -> 2403.82012 | DO50: =F472 -> 2633.282183 | DP50: =F473 -> 3359.632515 | DQ50: =F474 -> 4053.120268 | DR50: =F475 -> 4141.481433 | DS50: =F476 -> 4283.583106 | DT50: =F477 -> 3939.259972 | DU50: =F478 -> 3407.664406 | DV50: =F479 -> 3019.556293 | DW50: =F480 -> 2869.212138 | DY50: 3392.617979 | DZ50: 3515.171465 | EA50: 3273.145017 | EC50: 2849.347255 | ED50: 2991.134553 | EE50: 2578.656644 | EF50: 2652.265332 | EG50: 4031.907763 | EH50: 3485.719573 | EI50: 2862.368342 | EK50: 1960 | EL50: =G469 ->  | EM50: =G470 ->  | EN50: =G471 ->  | EO50: =G472 ->  | EP50: =G473 ->  | EQ50: =G474 ->  | ER50: =G475 ->  | ES50: =G476 ->  | ET50: =G477 ->  | EU50: =G478 ->  | EV50: =G479 ->  | EW50: =G480 -> 
A51: 1924-12-31 | B51: =INDIRECT(CONCATENATE("'",B$1,"'!",B$4,(YEAR($A51)-1921)*12+MONTH($A51)+3+IF(ISNUMBER(FIND("PRV",B$6)),1,0)))*IF(AND(B$3>0,TRIM(B$9)="CFS"),Conversions!$C51,1) -> 1612.663428 | C51: =INDIRECT(CONCATENATE("'",C$1,"'!",C$4,(YEAR($A51)-1921)*12+MONTH($A51)+3+IF(ISNUMBER(FIND("PRV",C$6)),1,0)))*IF(AND(C$3>0,TRIM(C$9)="CFS"),Conversions!$C51,1) -> 1644.74485 | D51: =INDIRECT(CONCATENATE("'",D$1,"'!",D$4,(YEAR($A51)-1921)*12+MONTH($A51)+3+IF(ISNUMBER(FIND("PRV",D$6)),1,0)))*IF(AND(D$3>0,TRIM(D$9)="CFS"),Conversions!$C51,1) -> 1675.852242 | E51: =INDIRECT(CONCATENATE("'",E$1,"'!",E$4,(YEAR($A51)-1921)*12+MONTH($A51)+3+IF(ISNUMBER(FIND("PRV",E$6)),1,0)))*IF(AND(E$3>0,TRIM(E$9)="CFS"),Conversions!$C51,1) -> 1668.847707 | F51: =INDIRECT(CONCATENATE("'",F$1,"'!",F$4,(YEAR($A51)-1921)*12+MONTH($A51)+3+IF(ISNUMBER(FIND("PRV",F$6)),1,0)))*IF(AND(F$3>0,TRIM(F$9)="CFS"),Conversions!$C51,1) -> 1596.935944 | G51: =INDIRECT(CONCATENATE("'",G$1,"'!",G$4,(YEAR($A51)-1921)*12+MONTH($A51)+3+IF(ISNUMBER(FIND("PRV",G$6)),1,0)))*IF(AND(G$3>0,TRIM(G$9)="CFS"),Conversions!$C51,1) ->  | K51: 1961 | L51: =B481 -> 2726.020859 | M51: =B482 -> 2871.112993 | N51: =B483 -> 3332.908498 | O51: =B484 -> 3510.906259 | P51: =B485 -> 3914 | Q51: =B486 -> 4280 | R51: =B487 -> 4551.551962 | S51: =B488 -> 4494.455561 | T51: =B489 -> 4019.340046 | U51: =B490 -> 3364.53995 | V51: =B491 -> 3075.636083 | W51: =B492 -> 3039.018189 | Y51: 3609.756111 | Z51: 3573.659094 | AA51: 3598.290867 | AC51: 3426.387636 | AD51: 3077.789599 | AE51: 3024.317131 | AF51: 3412.123751 | AG51: 4323.169387 | AH51: 3556.563238 | AI51: 2970.87858 | AK51: 1961 | AL51: =C481 -> 2687.474146 | AM51: =C482 -> 2818.963563 | AN51: =C483 -> 3280.794344 | AO51: =C484 -> 3480.394923 | AP51: =C485 -> 3914 | AQ51: =C486 -> 4280 | AR51: =C487 -> 4552 | AS51: =C488 -> 4485.482428 | AT51: =C489 -> 4004.484345 | AU51: =C490 -> 3332.942397 | AV51: =C491 -> 3037.505338 | AW51: =C492 -> 2997.388215 | AY51: 3580.470312 | AZ51: 3541.512256 | BA51: 3572.619142 | BC51: 3395.577981 | BD51: 3037.605289 | BE51: 2984.216627 | BF51: 3375.89035 | BG51: 4319.18115 | BH51: 3529.09185 | BI51: 2922.983664 | BK51: 1961 | BL51: =D481 -> 2738.050674 | BM51: =D482 -> 2869.484178 | BN51: =D483 -> 3331.280785 | BO51: =D484 -> 3530.849233 | BP51: =D485 -> 3914 | BQ51: =D486 -> 4280 | BR51: =D487 -> 4552 | BS51: =D488 -> 4484.873788 | BT51: =D489 -> 4004.035726 | BU51: =D490 -> 3333.307517 | BV51: =D491 -> 3038.0469 | BW51: =D492 -> 2998.028506 | BY51: 3583.791058 | BZ51: 3540.262385 | CA51: 3589.496442 | CC51: 3430.927906 | CD51: 3037.68092 | CE51: 3031.621814 | CF51: 3417.957369 | CG51: 4318.972913 | CH51: 3529.210322 | CI51: 2921.805092 | CK51: 1961 | CL51: =E481 -> 2736.625997 | CM51: =E482 -> 2868.031991 | CN51: =E483 -> 3283.729476 | CO51: =E484 -> 3483.328187 | CP51: =E485 -> 3914 | CQ51: =E486 -> 4280 | CR51: =E487 -> 4552 | CS51: =E488 -> 4486.096874 | CT51: =E489 -> 4005.302624 | CU51: =E490 -> 3343.343962 | CV51: =E491 -> 3048.290398 | CW51: =E492 -> 3008.161835 | CY51: 3583.650873 | CZ51: 3542.75532 | DA51: 3584.075945 | DC51: 3411.48053 | DD51: 3047.510827 | DE51: 3012.862346 | DF51: 3386.024553 | DG51: 4319.437047 | DH51: 3536.016584 | DI51: 2931.890066 | DK51: 1961 | DL51: =F481 -> 2761.606048 | DM51: =F482 -> 2893.017384 | DN51: =F483 -> 3350 | DO51: =F484 -> 3549.556535 | DP51: =F485 -> 3914 | DQ51: =F486 -> 4280 | DR51: =F487 -> 4552 | DS51: =F488 -> 4484.677503 | DT51: =F489 -> 4003.282277 | DU51: =F490 -> 3332.578169 | DV51: =F491 -> 3036.819072 | DW51: =F492 -> 2996.125665 | DY51: 3579.069895 | DZ51: 3531.182128 | EA51: 3596.138554 | EC51: 3445.475389 | ED51: 3036.163185 | EE51: 3053.501942 | EF51: 3434.355076 | EG51: 4318.82966 | EH51: 3528.270276 | EI51: 2914.556402 | EK51: 1961 | EL51: =G481 ->  | EM51: =G482 ->  | EN51: =G483 ->  | EO51: =G484 ->  | EP51: =G485 ->  | EQ51: =G486 ->  | ER51: =G487 ->  | ES51: =G488 ->  | ET51: =G489 ->  | EU51: =G490 ->  | EV51: =G491 ->  | EW51: =G492 -> 
A52: 1925-01-31 | B52: =INDIRECT(CONCATENATE("'",B$1,"'!",B$4,(YEAR($A52)-1921)*12+MONTH($A52)+3+IF(ISNUMBER(FIND("PRV",B$6)),1,0)))*IF(AND(B$3>0,TRIM(B$9)="CFS"),Conversions!$C52,1) -> 1852.177913 | C52: =INDIRECT(CONCATENATE("'",C$1,"'!",C$4,(YEAR($A52)-1921)*12+MONTH($A52)+3+IF(ISNUMBER(FIND("PRV",C$6)),1,0)))*IF(AND(C$3>0,TRIM(C$9)="CFS"),Conversions!$C52,1) -> 1884.235439 | D52: =INDIRECT(CONCATENATE("'",D$1,"'!",D$4,(YEAR($A52)-1921)*12+MONTH($A52)+3+IF(ISNUMBER(FIND("PRV",D$6)),1,0)))*IF(AND(D$3>0,TRIM(D$9)="CFS"),Conversions!$C52,1) -> 1915.319618 | E52: =INDIRECT(CONCATENATE("'",E$1,"'!",E$4,(YEAR($A52)-1921)*12+MONTH($A52)+3+IF(ISNUMBER(FIND("PRV",E$6)),1,0)))*IF(AND(E$3>0,TRIM(E$9)="CFS"),Conversions!$C52,1) -> 1908.320313 | F52: =INDIRECT(CONCATENATE("'",F$1,"'!",F$4,(YEAR($A52)-1921)*12+MONTH($A52)+3+IF(ISNUMBER(FIND("PRV",F$6)),1,0)))*IF(AND(F$3>0,TRIM(F$9)="CFS"),Conversions!$C52,1) -> 1836.462465 | G52: =INDIRECT(CONCATENATE("'",G$1,"'!",G$4,(YEAR($A52)-1921)*12+MONTH($A52)+3+IF(ISNUMBER(FIND("PRV",G$6)),1,0)))*IF(AND(G$3>0,TRIM(G$9)="CFS"),Conversions!$C52,1) ->  | K52: 1962 | L52: =B493 -> 2872.8891 | M52: =B494 -> 2925.820816 | N52: =B495 -> 3268.915362 | O52: =B496 -> 3316.742056 | P52: =B497 -> 3675 | Q52: =B498 -> 4209.334355 | R52: =B499 -> 4552 | S52: =B500 -> 4487.143844 | T52: =B501 -> 4171.207926 | U52: =B502 -> 3530.687381 | V52: =B503 -> 3222.434389 | W52: =B504 -> 3119.737874 | Y52: 3677.940652 | Z52: 3717.650345 | AA52: 3612.659425 | AC52: 3345.517993 | AD52: 3244.171984 | AE52: 3061.37635 | AF52: 3295.355942 | AG52: 4292.895541 | AH52: 3681.942639 | AI52: 3202.318356 | AK52: 1962 | AL52: =C493 -> 2822.902231 | AM52: =C494 -> 2859.815752 | AN52: =C495 -> 3198.728109 | AO52: =C496 -> 3251.898252 | AP52: =C497 -> 3675 | AQ52: =C498 -> 4209.334355 | AR52: =C499 -> 4552 | AS52: =C500 -> 4495.753339 | AT52: =C501 -> 4187.139454 | AU52: =C502 -> 3532.3206 | AV52: =C503 -> 3221.509034 | AW52: =C504 -> 3129.383962 | AY52: 3675.311354 | AZ52: 3721.589022 | BA52: 3594.648757 | BC52: 3300.312081 | BD52: 3247.351099 | BE52: 3001.522331 | BF52: 3239.344745 | BG52: 4297.039355 | BH52: 3688.384435 | BI52: 3205.112368 | BK52: 1962 | BL52: =D493 -> 2820.627195 | BM52: =D494 -> 2855.472254 | BN52: =D495 -> 3194.251576 | BO52: =D496 -> 3247.505163 | BP52: =D497 -> 3675 | BQ52: =D498 -> 4209.334355 | BR52: =D499 -> 4552 | BS52: =D500 -> 4495.736567 | BT52: =D501 -> 4187.107862 | BU52: =D502 -> 3532.273986 | BV52: =D503 -> 3221.516226 | BW52: =D504 -> 3129.259701 | BY52: 3674.881609 | BZ52: 3721.525369 | CA52: 3593.340407 | CC52: 3297.441954 | CD52: 3247.304307 | CE52: 2998.279465 | CF52: 3235.664289 | CG52: 4297.031213 | CH52: 3688.349052 | CI52: 3204.98018 | CK52: 1962 | CL52: =E493 -> 2828.816534 | CM52: =E494 -> 2869.093261 | CN52: =E495 -> 3185.376799 | CO52: =E496 -> 3231.58155 | CP52: =E497 -> 3675 | CQ52: =E498 -> 4209.334355 | CR52: =E499 -> 4552 | CS52: =E500 -> 4495.724812 | CT52: =E501 -> 4187.092344 | CU52: =E502 -> 3532.724654 | CV52: =E503 -> 3222.424606 | CW52: =E504 -> 3130.27368 | CY52: 3673.748603 | CZ52: 3721.71933 | DA52: 3593.286883 | DC52: 3296.025411 | DD52: 3248.020204 | DE52: 3000.789572 | DF52: 3229.668327 | DG52: 4297.026335 | DH52: 3688.810212 | DI52: 3205.466533 | DK52: 1962 | DL52: =F493 -> 2818.511467 | DM52: =F494 -> 2821.245078 | DN52: =F495 -> 3160.042978 | DO52: =F496 -> 3213.903327 | DP52: =F497 -> 3675 | DQ52: =F498 -> 4209.334355 | DR52: =F499 -> 4552 | DS52: =F500 -> 4495.666352 | DT52: =F501 -> 4186.95721 | DU52: =F502 -> 3531.690413 | DV52: =F503 -> 3220.414009 | DW52: =F504 -> 3125.861653 | DY52: 3671.644139 | DZ52: 3713.073313 | EA52: 3584.218903 | EC52: 3276.822859 | ED52: 3245.706956 | EE52: 2976.203505 | EF52: 3207.356281 | EG52: 4296.994828 | EH52: 3687.456409 | EI52: 3203.673278 | EK52: 1962 | EL52: =G493 ->  | EM52: =G494 ->  | EN52: =G495 ->  | EO52: =G496 ->  | EP52: =G497 ->  | EQ52: =G498 ->  | ER52: =G499 ->  | ES52: =G500 ->  | ET52: =G501 ->  | EU52: =G502 ->  | EV52: =G503 ->  | EW52: =G504 -> 
A53: 1925-02-28 | B53: =INDIRECT(CONCATENATE("'",B$1,"'!",B$4,(YEAR($A53)-1921)*12+MONTH($A53)+3+IF(ISNUMBER(FIND("PRV",B$6)),1,0)))*IF(AND(B$3>0,TRIM(B$9)="CFS"),Conversions!$C53,1) -> 3067.643448 | C53: =INDIRECT(CONCATENATE("'",C$1,"'!",C$4,(YEAR($A53)-1921)*12+MONTH($A53)+3+IF(ISNUMBER(FIND("PRV",C$6)),1,0)))*IF(AND(C$3>0,TRIM(C$9)="CFS"),Conversions!$C53,1) -> 3099.669126 | D53: =INDIRECT(CONCATENATE("'",D$1,"'!",D$4,(YEAR($A53)-1921)*12+MONTH($A53)+3+IF(ISNUMBER(FIND("PRV",D$6)),1,0)))*IF(AND(D$3>0,TRIM(D$9)="CFS"),Conversions!$C53,1) -> 3130.722423 | E53: =INDIRECT(CONCATENATE("'",E$1,"'!",E$4,(YEAR($A53)-1921)*12+MONTH($A53)+3+IF(ISNUMBER(FIND("PRV",E$6)),1,0)))*IF(AND(E$3>0,TRIM(E$9)="CFS"),Conversions!$C53,1) -> 3123.730072 | F53: =INDIRECT(CONCATENATE("'",F$1,"'!",F$4,(YEAR($A53)-1921)*12+MONTH($A53)+3+IF(ISNUMBER(FIND("PRV",F$6)),1,0)))*IF(AND(F$3>0,TRIM(F$9)="CFS"),Conversions!$C53,1) -> 3051.943613 | G53: =INDIRECT(CONCATENATE("'",G$1,"'!",G$4,(YEAR($A53)-1921)*12+MONTH($A53)+3+IF(ISNUMBER(FIND("PRV",G$6)),1,0)))*IF(AND(G$3>0,TRIM(G$9)="CFS"),Conversions!$C53,1) ->  | K53: 1963 | L53: =B505 -> 3250 | M53: =B506 -> 3252 | N53: =B507 -> 3349 | O53: =B508 -> 3524.258373 | P53: =B509 -> 3944 | Q53: =B510 -> 4226 | R53: =B511 -> 4137 | S53: =B512 -> 4552 | T53: =B513 -> 4418.432935 | U53: =B514 -> 3796.571977 | V53: =B515 -> 3479.047508 | W53: =B516 -> 3236.994921 | Y53: 3752.329462 | Z53: 3762.283833 | AA53: 3763.775476 | AC53: 3561.451675 | AD53: 3410.516371 | AE53: 3293.249531 | AF53: 3490.419458 | AG53: 4274.054117 | AH53: 3897.13747 | AI53: 3278.986688 | AK53: 1963 | AL53: =C505 -> 3250 | AM53: =C506 -> 3250.397249 | AN53: =C507 -> 3349 | AO53: =C508 -> 3538.230273 | AP53: =C509 -> 3944 | AQ53: =C510 -> 4226 | AR53: =C511 -> 4137 | AS53: =C512 -> 4552 | AT53: =C513 -> 4396.325914 | AU53: =C514 -> 3776.188341 | AV53: =C515 -> 3458.879474 | AW53: =C516 -> 3217.643271 | AY53: 3745.472521 | AZ53: 3755.106629 | BA53: 3757.972043 | BC53: 3563.925504 | BD53: 3390.726777 | BE53: 3295.801092 | BF53: 3494.809632 | BG53: 4271.290739 | BH53: 3879.053841 | BI53: 3262.736614 | BK53: 1963 | BL53: =D505 -> 3250 | BM53: =D506 -> 3249.845453 | BN53: =D507 -> 3349 | BO53: =D508 -> 3538.230273 | BP53: =D509 -> 3944 | BQ53: =D510 -> 4226 | BR53: =D511 -> 4137 | BS53: =D512 -> 4552 | BT53: =D513 -> 4421.56868 | BU53: =D514 -> 3794.978907 | BV53: =D515 -> 3476.597217 | BW53: =D516 -> 3235.846614 | BY53: 3753.273101 | BZ53: 3762.15535 | CA53: 3764.588929 | CC53: 3563.815145 | CD53: 3408.860309 | CE53: 3295.64761 | CF53: 3494.717666 | CG53: 4274.446085 | CH53: 3896.767028 | CI53: 3277.813501 | CK53: 1963 | CL53: =E505 -> 3250 | CM53: =E506 -> 3249.827232 | CN53: =E507 -> 3349 | CO53: =E508 -> 3538.230273 | CP53: =E509 -> 3944 | CQ53: =E510 -> 4226 | CR53: =E511 -> 4137 | CS53: =E512 -> 4552 | CT53: =E513 -> 4421.522468 | CU53: =E514 -> 3794.846915 | CV53: =E515 -> 3476.468143 | CW53: =E516 -> 3235.467791 | CY53: 3752.218687 | CZ53: 3759.171508 | DA53: 3764.530235 | DC53: 3563.811501 | DD53: 3408.605994 | DE53: 3295.769802 | DF53: 3494.714629 | DG53: 4274.440308 | DH53: 3896.642855 | DI53: 3277.539682 | DK53: 1963 | DL53: =F505 -> 3250 | DM53: =F506 -> 3249.902351 | DN53: =F507 -> 3349 | DO53: =F508 -> 3442.053412 | DP53: =F509 -> 3944 | DQ53: =F510 -> 4226 | DR53: =F511 -> 4137 | DS53: =F512 -> 4552 | DT53: =F513 -> 4421.598962 | DU53: =F514 -> 3794.900565 | DV53: =F515 -> 3476.53372 | DW53: =F516 -> 3236.254463 | DY53: 3745.423915 | DZ53: 3737.550018 | EA53: 3756.603623 | EC53: 3544.591153 | ED53: 3409.02988 | EE53: 3283.214971 | EF53: 3462.668196 | EG53: 4274.44987 | EH53: 3896.790119 | EI53: 3278.074557 | EK53: 1963 | EL53: =G505 ->  | EM53: =G506 ->  | EN53: =G507 ->  | EO53: =G508 ->  | EP53: =G509 ->  | EQ53: =G510 ->  | ER53: =G511 ->  | ES53: =G512 ->  | ET53: =G513 ->  | EU53: =G514 ->  | EV53: =G515 ->  | EW53: =G516 -> 
